Workbook

Sheet MOM
A1: =YEAR(表A_RAW!F2)&"年"&MONTH(表A_RAW!F2)&"月" -> 2025年5月
F2: 成長及衰退前五名之產業MOM%
A4: 成長前五名之產業 MOM% | C4: 該產業成長前五名之公司 MOM% | F4: 單月營收金額(千元) | G4: 本月與上月相較 | I4: 本月與去年同期相較 | K4: 累計營收金額(千元) | L4: 累計營收與去年同期相較
A5: 成長 排名 | B5: 產業 | C5: 排名 | D5: 公司代號&簡稱 | G5: 上月營收金額(千元) | H5: 較上月變動比率(%) | I5: 去年同期金額(千元) | J5: 較去年同期變動比率(%) | L5: 去年累計營收金額(千元) | M5: 較去年同期變動比率(%)
A6: 1 | B6: =VLOOKUP(A6,表B_RAW!N:P,3,0) -> 貿易百貨 | C6: 1 | D6: =VLOOKUP($B$6&C6,表B_RAW!A:D,3,0) -> 2905 三商 | F6: =IF(ISERROR(VLOOKUP($D6,表B_RAW!$C:$I,4,0)),"",VLOOKUP($D6,表B_RAW!$C:$I,4,0)) -> 30875829 | G6: =IF(ISERROR(VLOOKUP($D6,表B_RAW!$C:$I,5,0)),"",VLOOKUP($D6,表B_RAW!$C:$I,5,0)) -> 19214208 | H6: =IF(ISERROR(VLOOKUP($D6,表B_RAW!$C:$I,6,0)),"",VLOOKUP($D6,表B_RAW!$C:$I,6,0)/100) -> 0.6069 | I6: =IF(ISERROR(VLOOKUP($D6,表A_RAW!$C:$I,5,0)),"",VLOOKUP($D6,表A_RAW!$C:$I,5,0)) -> 10603378 | J6: =IF(ISERROR(VLOOKUP($D6,表A_RAW!$C:$I,7,0)),"",VLOOKUP($D6,表A_RAW!$C:$I,7,0)) -> 1.911886099 | K6: =IF(ISERROR(VLOOKUP($D6,表C_RAW!$C:$I,4,0)),"",VLOOKUP($D6,表C_RAW!$C:$I,4,0)) -> 100697350 | L6: =IF(ISERROR(VLOOKUP($D6,表C_RAW!$C:$I,5,0)),"",VLOOKUP($D6,表C_RAW!$C:$I,5,0)) -> 97497636 | M6: =IF(ISERROR(VLOOKUP($D6,表C_RAW!$C:$I,6,0)),"",VLOOKUP($D6,表C_RAW!$C:$I,6,0)/100) -> 0.0328
C7: 2 | D7: =VLOOKUP($B$6&C7,表B_RAW!A:D,3,0) -> 2939 永邑-KY | F7: =IF(ISERROR(VLOOKUP($D7,表B_RAW!$C:$I,4,0)),"",VLOOKUP($D7,表B_RAW!$C:$I,4,0)) -> 27500 | G7: =IF(ISERROR(VLOOKUP($D7,表B_RAW!$C:$I,5,0)),"",VLOOKUP($D7,表B_RAW!$C:$I,5,0)) -> 20497 | H7: =IF(ISERROR(VLOOKUP($D7,表B_RAW!$C:$I,6,0)),"",VLOOKUP($D7,表B_RAW!$C:$I,6,0)/100) -> 0.3417 | I7: =IF(ISERROR(VLOOKUP($D7,表A_RAW!$C:$I,5,0)),"",VLOOKUP($D7,表A_RAW!$C:$I,5,0)) -> 15691 | J7: =IF(ISERROR(VLOOKUP($D7,表A_RAW!$C:$I,7,0)),"",VLOOKUP($D7,表A_RAW!$C:$I,7,0)) -> 0.7525970301 | K7: =IF(ISERROR(VLOOKUP($D7,表C_RAW!$C:$I,4,0)),"",VLOOKUP($D7,表C_RAW!$C:$I,4,0)) -> 140055 | L7: =IF(ISERROR(VLOOKUP($D7,表C_RAW!$C:$I,5,0)),"",VLOOKUP($D7,表C_RAW!$C:$I,5,0)) -> 101003 | M7: =IF(ISERROR(VLOOKUP($D7,表C_RAW!$C:$I,6,0)),"",VLOOKUP($D7,表C_RAW!$C:$I,6,0)/100) -> 0.3866
C8: 3 | D8: =VLOOKUP($B$6&C8,表B_RAW!A:D,3,0) -> 8443 阿瘦 | F8: =IF(ISERROR(VLOOKUP($D8,表B_RAW!$C:$I,4,0)),"",VLOOKUP($D8,表B_RAW!$C:$I,4,0)) -> 101959 | G8: =IF(ISERROR(VLOOKUP($D8,表B_RAW!$C:$I,5,0)),"",VLOOKUP($D8,表B_RAW!$C:$I,5,0)) -> 78436 | H8: =IF(ISERROR(VLOOKUP($D8,表B_RAW!$C:$I,6,0)),"",VLOOKUP($D8,表B_RAW!$C:$I,6,0)/100) -> 0.2999 | I8: =IF(ISERROR(VLOOKUP($D8,表A_RAW!$C:$I,5,0)),"",VLOOKUP($D8,表A_RAW!$C:$I,5,0)) -> 91140 | J8: =IF(ISERROR(VLOOKUP($D8,表A_RAW!$C:$I,7,0)),"",VLOOKUP($D8,表A_RAW!$C:$I,7,0)) -> 0.118707483 | K8: =IF(ISERROR(VLOOKUP($D8,表C_RAW!$C:$I,4,0)),"",VLOOKUP($D8,表C_RAW!$C:$I,4,0)) -> 480609 | L8: =IF(ISERROR(VLOOKUP($D8,表C_RAW!$C:$I,5,0)),"",VLOOKUP($D8,表C_RAW!$C:$I,5,0)) -> 474309 | M8: =IF(ISERROR(VLOOKUP($D8,表C_RAW!$C:$I,6,0)),"",VLOOKUP($D8,表C_RAW!$C:$I,6,0)/100) -> 0.0133
B9: =VLOOKUP(A6,表B_RAW!N:T,7,0) -> 24.04 | C9: 4 | D9: =VLOOKUP($B$6&C9,表B_RAW!A:D,3,0) -> 4807 日成-KY | F9: =IF(ISERROR(VLOOKUP($D9,表B_RAW!$C:$I,4,0)),"",VLOOKUP($D9,表B_RAW!$C:$I,4,0)) -> 144277 | G9: =IF(ISERROR(VLOOKUP($D9,表B_RAW!$C:$I,5,0)),"",VLOOKUP($D9,表B_RAW!$C:$I,5,0)) -> 117528 | H9: =IF(ISERROR(VLOOKUP($D9,表B_RAW!$C:$I,6,0)),"",VLOOKUP($D9,表B_RAW!$C:$I,6,0)/100) -> 0.2276 | I9: =IF(ISERROR(VLOOKUP($D9,表A_RAW!$C:$I,5,0)),"",VLOOKUP($D9,表A_RAW!$C:$I,5,0)) -> 103907 | J9: =IF(ISERROR(VLOOKUP($D9,表A_RAW!$C:$I,7,0)),"",VLOOKUP($D9,表A_RAW!$C:$I,7,0)) -> 0.3885205039 | K9: =IF(ISERROR(VLOOKUP($D9,表C_RAW!$C:$I,4,0)),"",VLOOKUP($D9,表C_RAW!$C:$I,4,0)) -> 787520 | L9: =IF(ISERROR(VLOOKUP($D9,表C_RAW!$C:$I,5,0)),"",VLOOKUP($D9,表C_RAW!$C:$I,5,0)) -> 507501 | M9: =IF(ISERROR(VLOOKUP($D9,表C_RAW!$C:$I,6,0)),"",VLOOKUP($D9,表C_RAW!$C:$I,6,0)/100) -> 0.5518
C10: 5 | D10: =VLOOKUP($B$6&C10,表B_RAW!A:D,3,0) -> 2910 統領 | F10: =IF(ISERROR(VLOOKUP($D10,表B_RAW!$C:$I,4,0)),"",VLOOKUP($D10,表B_RAW!$C:$I,4,0)) -> 46481 | G10: =IF(ISERROR(VLOOKUP($D10,表B_RAW!$C:$I,5,0)),"",VLOOKUP($D10,表B_RAW!$C:$I,5,0)) -> 41072 | H10: =IF(ISERROR(VLOOKUP($D10,表B_RAW!$C:$I,6,0)),"",VLOOKUP($D10,表B_RAW!$C:$I,6,0)/100) -> 0.1317 | I10: =IF(ISERROR(VLOOKUP($D10,表A_RAW!$C:$I,5,0)),"",VLOOKUP($D10,表A_RAW!$C:$I,5,0)) -> 53667 | J10: =IF(ISERROR(VLOOKUP($D10,表A_RAW!$C:$I,7,0)),"",VLOOKUP($D10,表A_RAW!$C:$I,7,0)) -> -0.1338997894 | K10: =IF(ISERROR(VLOOKUP($D10,表C_RAW!$C:$I,4,0)),"",VLOOKUP($D10,表C_RAW!$C:$I,4,0)) -> 214813 | L10: =IF(ISERROR(VLOOKUP($D10,表C_RAW!$C:$I,5,0)),"",VLOOKUP($D10,表C_RAW!$C:$I,5,0)) -> 293021 | M10: =IF(ISERROR(VLOOKUP($D10,表C_RAW!$C:$I,6,0)),"",VLOOKUP($D10,表C_RAW!$C:$I,6,0)/100) -> -0.2669
A11: 2 | B11: =VLOOKUP(A11,表B_RAW!N:P,3,0) -> 電腦及週邊設備業 | C11: 1 | D11: =VLOOKUP($B$11&C11,表B_RAW!A:D,3,0) -> 3046 建碁 | F11: =IF(ISERROR(VLOOKUP($D11,表B_RAW!$C:$I,4,0)),"",VLOOKUP($D11,表B_RAW!$C:$I,4,0)) -> 776180 | G11: =IF(ISERROR(VLOOKUP($D11,表B_RAW!$C:$I,5,0)),"",VLOOKUP($D11,表B_RAW!$C:$I,5,0)) -> 360658 | H11: =IF(ISERROR(VLOOKUP($D11,表B_RAW!$C:$I,6,0)),"",VLOOKUP($D11,表B_RAW!$C:$I,6,0)/100) -> 1.1521 | I11: =IF(ISERROR(VLOOKUP($D11,表A_RAW!$C:$I,5,0)),"",VLOOKUP($D11,表A_RAW!$C:$I,5,0)) -> 710194 | J11: =IF(ISERROR(VLOOKUP($D11,表A_RAW!$C:$I,7,0)),"",VLOOKUP($D11,表A_RAW!$C:$I,7,0)) -> 0.09291264077 | K11: =IF(ISERROR(VLOOKUP($D11,表C_RAW!$C:$I,4,0)),"",VLOOKUP($D11,表C_RAW!$C:$I,4,0)) -> 2934566 | L11: =IF(ISERROR(VLOOKUP($D11,表C_RAW!$C:$I,5,0)),"",VLOOKUP($D11,表C_RAW!$C:$I,5,0)) -> 2909081 | M11: =IF(ISERROR(VLOOKUP($D11,表C_RAW!$C:$I,6,0)),"",VLOOKUP($D11,表C_RAW!$C:$I,6,0)/100) -> 0.0088
C12: 2 | D12: =VLOOKUP($B$11&C12,表B_RAW!A:D,3,0) -> 6228 全譜 | F12: =IF(ISERROR(VLOOKUP($D12,表B_RAW!$C:$I,4,0)),"",VLOOKUP($D12,表B_RAW!$C:$I,4,0)) -> 2587 | G12: =IF(ISERROR(VLOOKUP($D12,表B_RAW!$C:$I,5,0)),"",VLOOKUP($D12,表B_RAW!$C:$I,5,0)) -> 1446 | H12: =IF(ISERROR(VLOOKUP($D12,表B_RAW!$C:$I,6,0)),"",VLOOKUP($D12,表B_RAW!$C:$I,6,0)/100) -> 0.7891 | I12: =IF(ISERROR(VLOOKUP($D12,表A_RAW!$C:$I,5,0)),"",VLOOKUP($D12,表A_RAW!$C:$I,5,0)) -> 3787 | J12: =IF(ISERROR(VLOOKUP($D12,表A_RAW!$C:$I,7,0)),"",VLOOKUP($D12,表A_RAW!$C:$I,7,0)) -> -0.3168735147 | K12: =IF(ISERROR(VLOOKUP($D12,表C_RAW!$C:$I,4,0)),"",VLOOKUP($D12,表C_RAW!$C:$I,4,0)) -> 22003 | L12: =IF(ISERROR(VLOOKUP($D12,表C_RAW!$C:$I,5,0)),"",VLOOKUP($D12,表C_RAW!$C:$I,5,0)) -> 18623 | M12: =IF(ISERROR(VLOOKUP($D12,表C_RAW!$C:$I,6,0)),"",VLOOKUP($D12,表C_RAW!$C:$I,6,0)/100) -> 0.1815
C13: 3 | D13: =VLOOKUP($B$11&C13,表B_RAW!A:D,3,0) -> 3231 緯創 | F13: =IF(ISERROR(VLOOKUP($D13,表B_RAW!$C:$I,4,0)),"",VLOOKUP($D13,表B_RAW!$C:$I,4,0)) -> 208405603 | G13: =IF(ISERROR(VLOOKUP($D13,表B_RAW!$C:$I,5,0)),"",VLOOKUP($D13,表B_RAW!$C:$I,5,0)) -> 133703546 | H13: =IF(ISERROR(VLOOKUP($D13,表B_RAW!$C:$I,6,0)),"",VLOOKUP($D13,表B_RAW!$C:$I,6,0)/100) -> 0.5587 | I13: =IF(ISERROR(VLOOKUP($D13,表A_RAW!$C:$I,5,0)),"",VLOOKUP($D13,表A_RAW!$C:$I,5,0)) -> 79501289 | J13: =IF(ISERROR(VLOOKUP($D13,表A_RAW!$C:$I,7,0)),"",VLOOKUP($D13,表A_RAW!$C:$I,7,0)) -> 1.621411623 | K13: =IF(ISERROR(VLOOKUP($D13,表C_RAW!$C:$I,4,0)),"",VLOOKUP($D13,表C_RAW!$C:$I,4,0)) -> 688594218 | L13: =IF(ISERROR(VLOOKUP($D13,表C_RAW!$C:$I,5,0)),"",VLOOKUP($D13,表C_RAW!$C:$I,5,0)) -> 390372177 | M13: =IF(ISERROR(VLOOKUP($D13,表C_RAW!$C:$I,6,0)),"",VLOOKUP($D13,表C_RAW!$C:$I,6,0)/100) -> 0.7639
B14: =VLOOKUP(A11,表B_RAW!N:T,7,0) -> 10.53 | C14: 4 | D14: =VLOOKUP($B$11&C14,表B_RAW!A:D,3,0) -> 2376 技嘉 | F14: =IF(ISERROR(VLOOKUP($D14,表B_RAW!$C:$I,4,0)),"",VLOOKUP($D14,表B_RAW!$C:$I,4,0)) -> 46728346 | G14: =IF(ISERROR(VLOOKUP($D14,表B_RAW!$C:$I,5,0)),"",VLOOKUP($D14,表B_RAW!$C:$I,5,0)) -> 30098100 | H14: =IF(ISERROR(VLOOKUP($D14,表B_RAW!$C:$I,6,0)),"",VLOOKUP($D14,表B_RAW!$C:$I,6,0)/100) -> 0.5525 | I14: =IF(ISERROR(VLOOKUP($D14,表A_RAW!$C:$I,5,0)),"",VLOOKUP($D14,表A_RAW!$C:$I,5,0)) -> 22477138 | J14: =IF(ISERROR(VLOOKUP($D14,表A_RAW!$C:$I,7,0)),"",VLOOKUP($D14,表A_RAW!$C:$I,7,0)) -> 1.078927753 | K14: =IF(ISERROR(VLOOKUP($D14,表C_RAW!$C:$I,4,0)),"",VLOOKUP($D14,表C_RAW!$C:$I,4,0)) -> 142567026 | L14: =IF(ISERROR(VLOOKUP($D14,表C_RAW!$C:$I,5,0)),"",VLOOKUP($D14,表C_RAW!$C:$I,5,0)) -> 106153110 | M14: =IF(ISERROR(VLOOKUP($D14,表C_RAW!$C:$I,6,0)),"",VLOOKUP($D14,表C_RAW!$C:$I,6,0)/100) -> 0.343
C15: 5 | D15: =IFERROR(VLOOKUP($B$11&C15,表B_RAW!A:D,3,0),"") -> 3577 泓格 | F15: =IF(ISERROR(VLOOKUP($D15,表B_RAW!$C:$I,4,0)),"",VLOOKUP($D15,表B_RAW!$C:$I,4,0)) -> 122441 | G15: =IF(ISERROR(VLOOKUP($D15,表B_RAW!$C:$I,5,0)),"",VLOOKUP($D15,表B_RAW!$C:$I,5,0)) -> 81426 | H15: =IF(ISERROR(VLOOKUP($D15,表B_RAW!$C:$I,6,0)),"",VLOOKUP($D15,表B_RAW!$C:$I,6,0)/100) -> 0.5037 | I15: =IF(ISERROR(VLOOKUP($D15,表A_RAW!$C:$I,5,0)),"",VLOOKUP($D15,表A_RAW!$C:$I,5,0)) -> 81528 | J15: =IF(ISERROR(VLOOKUP($D15,表A_RAW!$C:$I,7,0)),"",VLOOKUP($D15,表A_RAW!$C:$I,7,0)) -> 0.501827593 | K15: =IF(ISERROR(VLOOKUP($D15,表C_RAW!$C:$I,4,0)),"",VLOOKUP($D15,表C_RAW!$C:$I,4,0)) -> 519582 | L15: =IF(ISERROR(VLOOKUP($D15,表C_RAW!$C:$I,5,0)),"",VLOOKUP($D15,表C_RAW!$C:$I,5,0)) -> 396118 | M15: =IF(ISERROR(VLOOKUP($D15,表C_RAW!$C:$I,6,0)),"",VLOOKUP($D15,表C_RAW!$C:$I,6,0)/100) -> 0.3117
A16: 3 | B16: =VLOOKUP(A16,表B_RAW!N:P,3,0) -> 觀光餐旅 | C16: 1 | D16: =VLOOKUP($B$16&C16,表B_RAW!A:D,3,0) -> 8940 新天地 | F16: =IF(ISERROR(VLOOKUP($D16,表B_RAW!$C:$I,4,0)),"",VLOOKUP($D16,表B_RAW!$C:$I,4,0)) -> 128390 | G16: =IF(ISERROR(VLOOKUP($D16,表B_RAW!$C:$I,5,0)),"",VLOOKUP($D16,表B_RAW!$C:$I,5,0)) -> 80016 | H16: =IF(ISERROR(VLOOKUP($D16,表B_RAW!$C:$I,6,0)),"",VLOOKUP($D16,表B_RAW!$C:$I,6,0)/100) -> 0.6046 | I16: =IF(ISERROR(VLOOKUP($D16,表A_RAW!$C:$I,5,0)),"",VLOOKUP($D16,表A_RAW!$C:$I,5,0)) -> 99642 | J16: =IF(ISERROR(VLOOKUP($D16,表A_RAW!$C:$I,7,0)),"",VLOOKUP($D16,表A_RAW!$C:$I,7,0)) -> 0.2885128761 | K16: =IF(ISERROR(VLOOKUP($D16,表C_RAW!$C:$I,4,0)),"",VLOOKUP($D16,表C_RAW!$C:$I,4,0)) -> 808573 | L16: =IF(ISERROR(VLOOKUP($D16,表C_RAW!$C:$I,5,0)),"",VLOOKUP($D16,表C_RAW!$C:$I,5,0)) -> 808949 | M16: =IF(ISERROR(VLOOKUP($D16,表C_RAW!$C:$I,6,0)),"",VLOOKUP($D16,表C_RAW!$C:$I,6,0)/100) -> -0.0005
C17: 2 | D17: =VLOOKUP($B$16&C17,表B_RAW!A:D,3,0) -> 4530 宏易 | F17: =IF(ISERROR(VLOOKUP($D17,表B_RAW!$C:$I,4,0)),"",VLOOKUP($D17,表B_RAW!$C:$I,4,0)) -> 30167 | G17: =IF(ISERROR(VLOOKUP($D17,表B_RAW!$C:$I,5,0)),"",VLOOKUP($D17,表B_RAW!$C:$I,5,0)) -> 21993 | H17: =IF(ISERROR(VLOOKUP($D17,表B_RAW!$C:$I,6,0)),"",VLOOKUP($D17,表B_RAW!$C:$I,6,0)/100) -> 0.3717 | I17: =IF(ISERROR(VLOOKUP($D17,表A_RAW!$C:$I,5,0)),"",VLOOKUP($D17,表A_RAW!$C:$I,5,0)) -> 15463 | J17: =IF(ISERROR(VLOOKUP($D17,表A_RAW!$C:$I,7,0)),"",VLOOKUP($D17,表A_RAW!$C:$I,7,0)) -> 0.9509150876 | K17: =IF(ISERROR(VLOOKUP($D17,表C_RAW!$C:$I,4,0)),"",VLOOKUP($D17,表C_RAW!$C:$I,4,0)) -> 123139 | L17: =IF(ISERROR(VLOOKUP($D17,表C_RAW!$C:$I,5,0)),"",VLOOKUP($D17,表C_RAW!$C:$I,5,0)) -> 69213 | M17: =IF(ISERROR(VLOOKUP($D17,表C_RAW!$C:$I,6,0)),"",VLOOKUP($D17,表C_RAW!$C:$I,6,0)/100) -> 0.7791
C18: 3 | D18: =VLOOKUP($B$16&C18,表B_RAW!A:D,3,0) -> 3522 御嵿 | F18: =IF(ISERROR(VLOOKUP($D18,表B_RAW!$C:$I,4,0)),"",VLOOKUP($D18,表B_RAW!$C:$I,4,0)) -> 83920 | G18: =IF(ISERROR(VLOOKUP($D18,表B_RAW!$C:$I,5,0)),"",VLOOKUP($D18,表B_RAW!$C:$I,5,0)) -> 62884 | H18: =IF(ISERROR(VLOOKUP($D18,表B_RAW!$C:$I,6,0)),"",VLOOKUP($D18,表B_RAW!$C:$I,6,0)/100) -> 0.3345 | I18: =IF(ISERROR(VLOOKUP($D18,表A_RAW!$C:$I,5,0)),"",VLOOKUP($D18,表A_RAW!$C:$I,5,0)) -> 44488 | J18: =IF(ISERROR(VLOOKUP($D18,表A_RAW!$C:$I,7,0)),"",VLOOKUP($D18,表A_RAW!$C:$I,7,0)) -> 0.8863513757 | K18: =IF(ISERROR(VLOOKUP($D18,表C_RAW!$C:$I,4,0)),"",VLOOKUP($D18,表C_RAW!$C:$I,4,0)) -> 549119 | L18: =IF(ISERROR(VLOOKUP($D18,表C_RAW!$C:$I,5,0)),"",VLOOKUP($D18,表C_RAW!$C:$I,5,0)) -> 387735 | M18: =IF(ISERROR(VLOOKUP($D18,表C_RAW!$C:$I,6,0)),"",VLOOKUP($D18,表C_RAW!$C:$I,6,0)/100) -> 0.4162
B19: =VLOOKUP(A16,表B_RAW!N:T,7,0) -> 8.26 | C19: 4 | D19: =VLOOKUP($B$16&C19,表B_RAW!A:D,3,0) -> 5703 亞都 | F19: =IF(ISERROR(VLOOKUP($D19,表B_RAW!$C:$I,4,0)),"",VLOOKUP($D19,表B_RAW!$C:$I,4,0)) -> 44031 | G19: =IF(ISERROR(VLOOKUP($D19,表B_RAW!$C:$I,5,0)),"",VLOOKUP($D19,表B_RAW!$C:$I,5,0)) -> 33296 | H19: =IF(ISERROR(VLOOKUP($D19,表B_RAW!$C:$I,6,0)),"",VLOOKUP($D19,表B_RAW!$C:$I,6,0)/100) -> 0.3224 | I19: =IF(ISERROR(VLOOKUP($D19,表A_RAW!$C:$I,5,0)),"",VLOOKUP($D19,表A_RAW!$C:$I,5,0)) -> 32870 | J19: =IF(ISERROR(VLOOKUP($D19,表A_RAW!$C:$I,7,0)),"",VLOOKUP($D19,表A_RAW!$C:$I,7,0)) -> 0.3395497414 | K19: =IF(ISERROR(VLOOKUP($D19,表C_RAW!$C:$I,4,0)),"",VLOOKUP($D19,表C_RAW!$C:$I,4,0)) -> 194152 | L19: =IF(ISERROR(VLOOKUP($D19,表C_RAW!$C:$I,5,0)),"",VLOOKUP($D19,表C_RAW!$C:$I,5,0)) -> 188315 | M19: =IF(ISERROR(VLOOKUP($D19,表C_RAW!$C:$I,6,0)),"",VLOOKUP($D19,表C_RAW!$C:$I,6,0)/100) -> 0.031
C20: 5 | D20: =VLOOKUP($B$16&C20,表B_RAW!A:D,3,0) -> 1268 漢來美食 | F20: =IF(ISERROR(VLOOKUP($D20,表B_RAW!$C:$I,4,0)),"",VLOOKUP($D20,表B_RAW!$C:$I,4,0)) -> 539221 | G20: =IF(ISERROR(VLOOKUP($D20,表B_RAW!$C:$I,5,0)),"",VLOOKUP($D20,表B_RAW!$C:$I,5,0)) -> 410440 | H20: =IF(ISERROR(VLOOKUP($D20,表B_RAW!$C:$I,6,0)),"",VLOOKUP($D20,表B_RAW!$C:$I,6,0)/100) -> 0.3138 | I20: =IF(ISERROR(VLOOKUP($D20,表A_RAW!$C:$I,5,0)),"",VLOOKUP($D20,表A_RAW!$C:$I,5,0)) -> 444039 | J20: =IF(ISERROR(VLOOKUP($D20,表A_RAW!$C:$I,7,0)),"",VLOOKUP($D20,表A_RAW!$C:$I,7,0)) -> 0.2143550454 | K20: =IF(ISERROR(VLOOKUP($D20,表C_RAW!$C:$I,4,0)),"",VLOOKUP($D20,表C_RAW!$C:$I,4,0)) -> 2685120 | L20: =IF(ISERROR(VLOOKUP($D20,表C_RAW!$C:$I,5,0)),"",VLOOKUP($D20,表C_RAW!$C:$I,5,0)) -> 2509844 | M20: =IF(ISERROR(VLOOKUP($D20,表C_RAW!$C:$I,6,0)),"",VLOOKUP($D20,表C_RAW!$C:$I,6,0)/100) -> 0.0698
A21: 4 | B21: =VLOOKUP(A21,表B_RAW!N:P,3,0) -> 居家生活 | C21: 1 | D21: =VLOOKUP($B$21&C21,表B_RAW!A:D,3,0) -> 8941 關中 | F21: =IF(ISERROR(VLOOKUP($D21,表B_RAW!$C:$I,4,0)),"",VLOOKUP($D21,表B_RAW!$C:$I,4,0)) -> 334073 | G21: =IF(ISERROR(VLOOKUP($D21,表B_RAW!$C:$I,5,0)),"",VLOOKUP($D21,表B_RAW!$C:$I,5,0)) -> 269764 | H21: =IF(ISERROR(VLOOKUP($D21,表B_RAW!$C:$I,6,0)),"",VLOOKUP($D21,表B_RAW!$C:$I,6,0)/100) -> 0.2384 | I21: =IF(ISERROR(VLOOKUP($D21,表A_RAW!$C:$I,5,0)),"",VLOOKUP($D21,表A_RAW!$C:$I,5,0)) -> 316277 | J21: =IF(ISERROR(VLOOKUP($D21,表A_RAW!$C:$I,7,0)),"",VLOOKUP($D21,表A_RAW!$C:$I,7,0)) -> 0.05626713292 | K21: =IF(ISERROR(VLOOKUP($D21,表C_RAW!$C:$I,4,0)),"",VLOOKUP($D21,表C_RAW!$C:$I,4,0)) -> 1310692 | L21: =IF(ISERROR(VLOOKUP($D21,表C_RAW!$C:$I,5,0)),"",VLOOKUP($D21,表C_RAW!$C:$I,5,0)) -> 1222840 | M21: =IF(ISERROR(VLOOKUP($D21,表C_RAW!$C:$I,6,0)),"",VLOOKUP($D21,表C_RAW!$C:$I,6,0)/100) -> 0.0718
C22: 2 | D22: =VLOOKUP($B$21&C22,表B_RAW!A:D,3,0) -> 8433 弘帆 | F22: =IF(ISERROR(VLOOKUP($D22,表B_RAW!$C:$I,4,0)),"",VLOOKUP($D22,表B_RAW!$C:$I,4,0)) -> 233249 | G22: =IF(ISERROR(VLOOKUP($D22,表B_RAW!$C:$I,5,0)),"",VLOOKUP($D22,表B_RAW!$C:$I,5,0)) -> 190425 | H22: =IF(ISERROR(VLOOKUP($D22,表B_RAW!$C:$I,6,0)),"",VLOOKUP($D22,表B_RAW!$C:$I,6,0)/100) -> 0.2249 | I22: =IF(ISERROR(VLOOKUP($D22,表A_RAW!$C:$I,5,0)),"",VLOOKUP($D22,表A_RAW!$C:$I,5,0)) -> 297731 | J22: =IF(ISERROR(VLOOKUP($D22,表A_RAW!$C:$I,7,0)),"",VLOOKUP($D22,表A_RAW!$C:$I,7,0)) -> -0.216578052 | K22: =IF(ISERROR(VLOOKUP($D22,表C_RAW!$C:$I,4,0)),"",VLOOKUP($D22,表C_RAW!$C:$I,4,0)) -> 1196655 | L22: =IF(ISERROR(VLOOKUP($D22,表C_RAW!$C:$I,5,0)),"",VLOOKUP($D22,表C_RAW!$C:$I,5,0)) -> 1302036 | M22: =IF(ISERROR(VLOOKUP($D22,表C_RAW!$C:$I,6,0)),"",VLOOKUP($D22,表C_RAW!$C:$I,6,0)/100) -> -0.0809
C23: 3 | D23: =VLOOKUP($B$21&C23,表B_RAW!A:D,3,0) -> 9924 福興 | F23: =IF(ISERROR(VLOOKUP($D23,表B_RAW!$C:$I,4,0)),"",VLOOKUP($D23,表B_RAW!$C:$I,4,0)) -> 681473 | G23: =IF(ISERROR(VLOOKUP($D23,表B_RAW!$C:$I,5,0)),"",VLOOKUP($D23,表B_RAW!$C:$I,5,0)) -> 584439 | H23: =IF(ISERROR(VLOOKUP($D23,表B_RAW!$C:$I,6,0)),"",VLOOKUP($D23,表B_RAW!$C:$I,6,0)/100) -> 0.166 | I23: =IF(ISERROR(VLOOKUP($D23,表A_RAW!$C:$I,5,0)),"",VLOOKUP($D23,表A_RAW!$C:$I,5,0)) -> 721305 | J23: =IF(ISERROR(VLOOKUP($D23,表A_RAW!$C:$I,7,0)),"",VLOOKUP($D23,表A_RAW!$C:$I,7,0)) -> -0.05522213211 | K23: =IF(ISERROR(VLOOKUP($D23,表C_RAW!$C:$I,4,0)),"",VLOOKUP($D23,表C_RAW!$C:$I,4,0)) -> 3035227 | L23: =IF(ISERROR(VLOOKUP($D23,表C_RAW!$C:$I,5,0)),"",VLOOKUP($D23,表C_RAW!$C:$I,5,0)) -> 3230737 | M23: =IF(ISERROR(VLOOKUP($D23,表C_RAW!$C:$I,6,0)),"",VLOOKUP($D23,表C_RAW!$C:$I,6,0)/100) -> -0.0605
B24: =VLOOKUP(A21,表B_RAW!N:T,7,0) -> 1.76 | C24: 4 | D24: =VLOOKUP($B$21&C24,表B_RAW!A:D,3,0) -> 2937 集雅社 | F24: =IF(ISERROR(VLOOKUP($D24,表B_RAW!$C:$I,4,0)),"",VLOOKUP($D24,表B_RAW!$C:$I,4,0)) -> 425889 | G24: =IF(ISERROR(VLOOKUP($D24,表B_RAW!$C:$I,5,0)),"",VLOOKUP($D24,表B_RAW!$C:$I,5,0)) -> 369899 | H24: =IF(ISERROR(VLOOKUP($D24,表B_RAW!$C:$I,6,0)),"",VLOOKUP($D24,表B_RAW!$C:$I,6,0)/100) -> 0.1514 | I24: =IF(ISERROR(VLOOKUP($D24,表A_RAW!$C:$I,5,0)),"",VLOOKUP($D24,表A_RAW!$C:$I,5,0)) -> 396516 | J24: =IF(ISERROR(VLOOKUP($D24,表A_RAW!$C:$I,7,0)),"",VLOOKUP($D24,表A_RAW!$C:$I,7,0)) -> 0.07407771691 | K24: =IF(ISERROR(VLOOKUP($D24,表C_RAW!$C:$I,4,0)),"",VLOOKUP($D24,表C_RAW!$C:$I,4,0)) -> 1967753 | L24: =IF(ISERROR(VLOOKUP($D24,表C_RAW!$C:$I,5,0)),"",VLOOKUP($D24,表C_RAW!$C:$I,5,0)) -> 1761448 | M24: =IF(ISERROR(VLOOKUP($D24,表C_RAW!$C:$I,6,0)),"",VLOOKUP($D24,表C_RAW!$C:$I,6,0)/100) -> 0.1171
C25: 5 | D25: =VLOOKUP($B$21&C25,表B_RAW!A:D,3,0) -> 2941 米斯特 | F25: =IF(ISERROR(VLOOKUP($D25,表B_RAW!$C:$I,4,0)),"",VLOOKUP($D25,表B_RAW!$C:$I,4,0)) -> 84796 | G25: =IF(ISERROR(VLOOKUP($D25,表B_RAW!$C:$I,5,0)),"",VLOOKUP($D25,表B_RAW!$C:$I,5,0)) -> 73702 | H25: =IF(ISERROR(VLOOKUP($D25,表B_RAW!$C:$I,6,0)),"",VLOOKUP($D25,表B_RAW!$C:$I,6,0)/100) -> 0.1505 | I25: =IF(ISERROR(VLOOKUP($D25,表A_RAW!$C:$I,5,0)),"",VLOOKUP($D25,表A_RAW!$C:$I,5,0)) -> 59856 | J25: =IF(ISERROR(VLOOKUP($D25,表A_RAW!$C:$I,7,0)),"",VLOOKUP($D25,表A_RAW!$C:$I,7,0)) -> 0.4166666667 | K25: =IF(ISERROR(VLOOKUP($D25,表C_RAW!$C:$I,4,0)),"",VLOOKUP($D25,表C_RAW!$C:$I,4,0)) -> 389548 | L25: =IF(ISERROR(VLOOKUP($D25,表C_RAW!$C:$I,5,0)),"",VLOOKUP($D25,表C_RAW!$C:$I,5,0)) -> 323671 | M25: =IF(ISERROR(VLOOKUP($D25,表C_RAW!$C:$I,6,0)),"",VLOOKUP($D25,表C_RAW!$C:$I,6,0)/100) -> 0.2035
A26: 5 | B26: =VLOOKUP(A26,表B_RAW!N:P,3,0) -> 數位雲端 | C26: 1 | D26: =VLOOKUP($B$26&C26,表B_RAW!A:D,3,0) -> 6870 騰雲 | F26: =IF(ISERROR(VLOOKUP($D26,表B_RAW!$C:$I,4,0)),"",VLOOKUP($D26,表B_RAW!$C:$I,4,0)) -> 56708 | G26: =IF(ISERROR(VLOOKUP($D26,表B_RAW!$C:$I,5,0)),"",VLOOKUP($D26,表B_RAW!$C:$I,5,0)) -> 47336 | H26: =IF(ISERROR(VLOOKUP($D26,表B_RAW!$C:$I,6,0)),"",VLOOKUP($D26,表B_RAW!$C:$I,6,0)/100) -> 0.198 | I26: =IF(ISERROR(VLOOKUP($D26,表A_RAW!$C:$I,5,0)),"",VLOOKUP($D26,表A_RAW!$C:$I,5,0)) -> 47764 | J26: =IF(ISERROR(VLOOKUP($D26,表A_RAW!$C:$I,7,0)),"",VLOOKUP($D26,表A_RAW!$C:$I,7,0)) -> 0.1872539988 | K26: =IF(ISERROR(VLOOKUP($D26,表C_RAW!$C:$I,4,0)),"",VLOOKUP($D26,表C_RAW!$C:$I,4,0)) -> 259215 | L26: =IF(ISERROR(VLOOKUP($D26,表C_RAW!$C:$I,5,0)),"",VLOOKUP($D26,表C_RAW!$C:$I,5,0)) -> 215609 | M26: =IF(ISERROR(VLOOKUP($D26,表C_RAW!$C:$I,6,0)),"",VLOOKUP($D26,表C_RAW!$C:$I,6,0)/100) -> 0.2022
C27: 2 | D27: =VLOOKUP($B$26&C27,表B_RAW!A:D,3,0) -> 5278 尚凡* | F27: =IF(ISERROR(VLOOKUP($D27,表B_RAW!$C:$I,4,0)),"",VLOOKUP($D27,表B_RAW!$C:$I,4,0)) -> 220642 | G27: =IF(ISERROR(VLOOKUP($D27,表B_RAW!$C:$I,5,0)),"",VLOOKUP($D27,表B_RAW!$C:$I,5,0)) -> 189619 | H27: =IF(ISERROR(VLOOKUP($D27,表B_RAW!$C:$I,6,0)),"",VLOOKUP($D27,表B_RAW!$C:$I,6,0)/100) -> 0.1636 | I27: =IF(ISERROR(VLOOKUP($D27,表A_RAW!$C:$I,5,0)),"",VLOOKUP($D27,表A_RAW!$C:$I,5,0)) -> 165281 | J27: =IF(ISERROR(VLOOKUP($D27,表A_RAW!$C:$I,7,0)),"",VLOOKUP($D27,表A_RAW!$C:$I,7,0)) -> 0.3349507808 | K27: =IF(ISERROR(VLOOKUP($D27,表C_RAW!$C:$I,4,0)),"",VLOOKUP($D27,表C_RAW!$C:$I,4,0)) -> 947888 | L27: =IF(ISERROR(VLOOKUP($D27,表C_RAW!$C:$I,5,0)),"",VLOOKUP($D27,表C_RAW!$C:$I,5,0)) -> 790974 | M27: =IF(ISERROR(VLOOKUP($D27,表C_RAW!$C:$I,6,0)),"",VLOOKUP($D27,表C_RAW!$C:$I,6,0)/100) -> 0.1984
C28: 3 | D28: =VLOOKUP($B$26&C28,表B_RAW!A:D,3,0) -> 2949 欣新網 | F28: =IF(ISERROR(VLOOKUP($D28,表B_RAW!$C:$I,4,0)),"",VLOOKUP($D28,表B_RAW!$C:$I,4,0)) -> 462874 | G28: =IF(ISERROR(VLOOKUP($D28,表B_RAW!$C:$I,5,0)),"",VLOOKUP($D28,表B_RAW!$C:$I,5,0)) -> 407091 | H28: =IF(ISERROR(VLOOKUP($D28,表B_RAW!$C:$I,6,0)),"",VLOOKUP($D28,表B_RAW!$C:$I,6,0)/100) -> 0.137 | I28: =IF(ISERROR(VLOOKUP($D28,表A_RAW!$C:$I,5,0)),"",VLOOKUP($D28,表A_RAW!$C:$I,5,0)) -> 400133 | J28: =IF(ISERROR(VLOOKUP($D28,表A_RAW!$C:$I,7,0)),"",VLOOKUP($D28,表A_RAW!$C:$I,7,0)) -> 0.1568003639 | K28: =IF(ISERROR(VLOOKUP($D28,表C_RAW!$C:$I,4,0)),"",VLOOKUP($D28,表C_RAW!$C:$I,4,0)) -> 2068691 | L28: =IF(ISERROR(VLOOKUP($D28,表C_RAW!$C:$I,5,0)),"",VLOOKUP($D28,表C_RAW!$C:$I,5,0)) -> 1701702 | M28: =IF(ISERROR(VLOOKUP($D28,表C_RAW!$C:$I,6,0)),"",VLOOKUP($D28,表C_RAW!$C:$I,6,0)/100) -> 0.2157
B29: =VLOOKUP(A26,表B_RAW!N:T,7,0) -> 1.32 | C29: 4 | D29: =VLOOKUP($B$26&C29,表B_RAW!A:D,3,0) -> 6865 偉康科技 | F29: =IF(ISERROR(VLOOKUP($D29,表B_RAW!$C:$I,4,0)),"",VLOOKUP($D29,表B_RAW!$C:$I,4,0)) -> 29510 | G29: =IF(ISERROR(VLOOKUP($D29,表B_RAW!$C:$I,5,0)),"",VLOOKUP($D29,表B_RAW!$C:$I,5,0)) -> 26621 | H29: =IF(ISERROR(VLOOKUP($D29,表B_RAW!$C:$I,6,0)),"",VLOOKUP($D29,表B_RAW!$C:$I,6,0)/100) -> 0.1085 | I29: =IF(ISERROR(VLOOKUP($D29,表A_RAW!$C:$I,5,0)),"",VLOOKUP($D29,表A_RAW!$C:$I,5,0)) -> 36310 | J29: =IF(ISERROR(VLOOKUP($D29,表A_RAW!$C:$I,7,0)),"",VLOOKUP($D29,表A_RAW!$C:$I,7,0)) -> -0.1872762324 | K29: =IF(ISERROR(VLOOKUP($D29,表C_RAW!$C:$I,4,0)),"",VLOOKUP($D29,表C_RAW!$C:$I,4,0)) -> 165955 | L29: =IF(ISERROR(VLOOKUP($D29,表C_RAW!$C:$I,5,0)),"",VLOOKUP($D29,表C_RAW!$C:$I,5,0)) -> 188544 | M29: =IF(ISERROR(VLOOKUP($D29,表C_RAW!$C:$I,6,0)),"",VLOOKUP($D29,表C_RAW!$C:$I,6,0)/100) -> -0.1198
C30: 5 | D30: =VLOOKUP($B$26&C30,表B_RAW!A:D,3,0) -> 6906 現觀科 | F30: =IF(ISERROR(VLOOKUP($D30,表B_RAW!$C:$I,4,0)),"",VLOOKUP($D30,表B_RAW!$C:$I,4,0)) -> 23391 | G30: =IF(ISERROR(VLOOKUP($D30,表B_RAW!$C:$I,5,0)),"",VLOOKUP($D30,表B_RAW!$C:$I,5,0)) -> 21523 | H30: =IF(ISERROR(VLOOKUP($D30,表B_RAW!$C:$I,6,0)),"",VLOOKUP($D30,表B_RAW!$C:$I,6,0)/100) -> 0.0868 | I30: =IF(ISERROR(VLOOKUP($D30,表A_RAW!$C:$I,5,0)),"",VLOOKUP($D30,表A_RAW!$C:$I,5,0)) -> 22556 | J30: =IF(ISERROR(VLOOKUP($D30,表A_RAW!$C:$I,7,0)),"",VLOOKUP($D30,表A_RAW!$C:$I,7,0)) -> 0.037018975 | K30: =IF(ISERROR(VLOOKUP($D30,表C_RAW!$C:$I,4,0)),"",VLOOKUP($D30,表C_RAW!$C:$I,4,0)) -> 124176 | L30: =IF(ISERROR(VLOOKUP($D30,表C_RAW!$C:$I,5,0)),"",VLOOKUP($D30,表C_RAW!$C:$I,5,0)) -> 120328 | M30: =IF(ISERROR(VLOOKUP($D30,表C_RAW!$C:$I,6,0)),"",VLOOKUP($D30,表C_RAW!$C:$I,6,0)/100) -> 0.032
A32: 衰退前五名之產業 MOM% | C32: 該產業衰退前五名之公司 MOM% | F32: 單月營收金額(千元) | G32: 本月與上月相較 | I32: 本月與去年同期相較 | K32: 累計營收金額(千元) | L32: 累計營收與去年同期相較
A33: 衰退 排名 | B33: 產業 | C33: 排名 | D33: 公司代號&簡稱 | G33: 上月營收金額(千元) | H33: 較上月變動比率(%) | I33: 去年同期金額(千元) | J33: 較去年同期變動比率(%) | L33: 去年累計營收金額(千元) | M33: 較去年同期變動比率(%)
A34: 1 | B34: =VLOOKUP(A34,表B_RAW!O:P,2,0) -> 金融業 | C34: 1 | D34: =VLOOKUP($B$34&C34,表B_RAW!B:D,2,0) -> 2883 凱基金 | F34: =IF(ISERROR(VLOOKUP($D34,表B_RAW!$C:$I,4,0)),"",VLOOKUP($D34,表B_RAW!$C:$I,4,0)) -> -15937728 | G34: =IF(ISERROR(VLOOKUP($D34,表B_RAW!$C:$I,5,0)),"",VLOOKUP($D34,表B_RAW!$C:$I,5,0)) -> 1487116 | H34: =IF(ISERROR(VLOOKUP($D34,表B_RAW!$C:$I,6,0)),"",VLOOKUP($D34,表B_RAW!$C:$I,6,0)/100) -> -11.7172 | I34: =IF(ISERROR(VLOOKUP($D34,表A_RAW!$C:$I,5,0)),"",VLOOKUP($D34,表A_RAW!$C:$I,5,0)) -> 160627 | J34: =IF(ISERROR(VLOOKUP($D34,表A_RAW!$C:$I,7,0)),"",VLOOKUP($D34,表A_RAW!$C:$I,7,0)) -> -100.2219739 | K34: =IF(ISERROR(VLOOKUP($D34,表C_RAW!$C:$I,4,0)),"",VLOOKUP($D34,表C_RAW!$C:$I,4,0)) -> 12868723 | L34: =IF(ISERROR(VLOOKUP($D34,表C_RAW!$C:$I,5,0)),"",VLOOKUP($D34,表C_RAW!$C:$I,5,0)) -> 23478200 | M34: =IF(ISERROR(VLOOKUP($D34,表C_RAW!$C:$I,6,0)),"",VLOOKUP($D34,表C_RAW!$C:$I,6,0)/100) -> -0.4519
C35: 2 | D35: =VLOOKUP($B$34&C35,表B_RAW!B:D,2,0) -> 2867 三商壽 | F35: =IF(ISERROR(VLOOKUP($D35,表B_RAW!$C:$I,4,0)),"",VLOOKUP($D35,表B_RAW!$C:$I,4,0)) -> -12713380 | G35: =IF(ISERROR(VLOOKUP($D35,表B_RAW!$C:$I,5,0)),"",VLOOKUP($D35,表B_RAW!$C:$I,5,0)) -> 6830024 | H35: =IF(ISERROR(VLOOKUP($D35,表B_RAW!$C:$I,6,0)),"",VLOOKUP($D35,表B_RAW!$C:$I,6,0)/100) -> -2.8614 | I35: =IF(ISERROR(VLOOKUP($D35,表A_RAW!$C:$I,5,0)),"",VLOOKUP($D35,表A_RAW!$C:$I,5,0)) -> 9904979 | J35: =IF(ISERROR(VLOOKUP($D35,表A_RAW!$C:$I,7,0)),"",VLOOKUP($D35,表A_RAW!$C:$I,7,0)) -> -2.283534271 | K35: =IF(ISERROR(VLOOKUP($D35,表C_RAW!$C:$I,4,0)),"",VLOOKUP($D35,表C_RAW!$C:$I,4,0)) -> 26923427 | L35: =IF(ISERROR(VLOOKUP($D35,表C_RAW!$C:$I,5,0)),"",VLOOKUP($D35,表C_RAW!$C:$I,5,0)) -> 60520248 | M35: =IF(ISERROR(VLOOKUP($D35,表C_RAW!$C:$I,6,0)),"",VLOOKUP($D35,表C_RAW!$C:$I,6,0)/100) -> -0.5551
C36: 3 | D36: =VLOOKUP($B$34&C36,表B_RAW!B:D,2,0) -> 2888 新光金 | F36: =IF(ISERROR(VLOOKUP($D36,表B_RAW!$C:$I,4,0)),"",VLOOKUP($D36,表B_RAW!$C:$I,4,0)) -> -20840092 | G36: =IF(ISERROR(VLOOKUP($D36,表B_RAW!$C:$I,5,0)),"",VLOOKUP($D36,表B_RAW!$C:$I,5,0)) -> -6299405 | H36: =IF(ISERROR(VLOOKUP($D36,表B_RAW!$C:$I,6,0)),"",VLOOKUP($D36,表B_RAW!$C:$I,6,0)/100) -> -2.3083 | I36: =IF(ISERROR(VLOOKUP($D36,表A_RAW!$C:$I,5,0)),"",VLOOKUP($D36,表A_RAW!$C:$I,5,0)) -> -2713493 | J36: =IF(ISERROR(VLOOKUP($D36,表A_RAW!$C:$I,7,0)),"",VLOOKUP($D36,表A_RAW!$C:$I,7,0)) -> -6.680171646 | K36: =IF(ISERROR(VLOOKUP($D36,表C_RAW!$C:$I,4,0)),"",VLOOKUP($D36,表C_RAW!$C:$I,4,0)) -> -20717921 | L36: =IF(ISERROR(VLOOKUP($D36,表C_RAW!$C:$I,5,0)),"",VLOOKUP($D36,表C_RAW!$C:$I,5,0)) -> 19668832 | M36: =IF(ISERROR(VLOOKUP($D36,表C_RAW!$C:$I,6,0)),"",VLOOKUP($D36,表C_RAW!$C:$I,6,0)/100) -> -2.0533
B37: =VLOOKUP(A34,表B_RAW!O:T,6,0) -> -48.7 | C37: 4 | D37: =VLOOKUP($B$34&C37,表B_RAW!B:D,2,0) -> 5878 台名 | F37: =IF(ISERROR(VLOOKUP($D37,表B_RAW!$C:$I,4,0)),"",VLOOKUP($D37,表B_RAW!$C:$I,4,0)) -> 58627 | G37: =IF(ISERROR(VLOOKUP($D37,表B_RAW!$C:$I,5,0)),"",VLOOKUP($D37,表B_RAW!$C:$I,5,0)) -> 98595 | H37: =IF(ISERROR(VLOOKUP($D37,表B_RAW!$C:$I,6,0)),"",VLOOKUP($D37,表B_RAW!$C:$I,6,0)/100) -> -0.4054 | I37: =IF(ISERROR(VLOOKUP($D37,表A_RAW!$C:$I,5,0)),"",VLOOKUP($D37,表A_RAW!$C:$I,5,0)) -> 63265 | J37: =IF(ISERROR(VLOOKUP($D37,表A_RAW!$C:$I,7,0)),"",VLOOKUP($D37,表A_RAW!$C:$I,7,0)) -> -0.07331067731 | K37: =IF(ISERROR(VLOOKUP($D37,表C_RAW!$C:$I,4,0)),"",VLOOKUP($D37,表C_RAW!$C:$I,4,0)) -> 377033 | L37: =IF(ISERROR(VLOOKUP($D37,表C_RAW!$C:$I,5,0)),"",VLOOKUP($D37,表C_RAW!$C:$I,5,0)) -> 347950 | M37: =IF(ISERROR(VLOOKUP($D37,表C_RAW!$C:$I,6,0)),"",VLOOKUP($D37,表C_RAW!$C:$I,6,0)/100) -> 0.0836
C38: 5 | D38: =VLOOKUP($B$34&C38,表B_RAW!B:D,2,0) -> 6024 群益期 | F38: =IF(ISERROR(VLOOKUP($D38,表B_RAW!$C:$I,4,0)),"",VLOOKUP($D38,表B_RAW!$C:$I,4,0)) -> 243394 | G38: =IF(ISERROR(VLOOKUP($D38,表B_RAW!$C:$I,5,0)),"",VLOOKUP($D38,表B_RAW!$C:$I,5,0)) -> 400290 | H38: =IF(ISERROR(VLOOKUP($D38,表B_RAW!$C:$I,6,0)),"",VLOOKUP($D38,表B_RAW!$C:$I,6,0)/100) -> -0.392 | I38: =IF(ISERROR(VLOOKUP($D38,表A_RAW!$C:$I,5,0)),"",VLOOKUP($D38,表A_RAW!$C:$I,5,0)) -> 210368 | J38: =IF(ISERROR(VLOOKUP($D38,表A_RAW!$C:$I,7,0)),"",VLOOKUP($D38,表A_RAW!$C:$I,7,0)) -> 0.1569915577 | K38: =IF(ISERROR(VLOOKUP($D38,表C_RAW!$C:$I,4,0)),"",VLOOKUP($D38,表C_RAW!$C:$I,4,0)) -> 1347792 | L38: =IF(ISERROR(VLOOKUP($D38,表C_RAW!$C:$I,5,0)),"",VLOOKUP($D38,表C_RAW!$C:$I,5,0)) -> 1061253 | M38: =IF(ISERROR(VLOOKUP($D38,表C_RAW!$C:$I,6,0)),"",VLOOKUP($D38,表C_RAW!$C:$I,6,0)/100) -> 0.27
A39: 2 | B39: =VLOOKUP(A39,表B_RAW!O:P,2,0) -> 電子通路業 | C39: 1 | D39: =VLOOKUP($B$39&C39,表B_RAW!B:D,2,0) -> 8096 擎亞 | F39: =IF(ISERROR(VLOOKUP($D39,表B_RAW!$C:$I,4,0)),"",VLOOKUP($D39,表B_RAW!$C:$I,4,0)) -> 1564353 | G39: =IF(ISERROR(VLOOKUP($D39,表B_RAW!$C:$I,5,0)),"",VLOOKUP($D39,表B_RAW!$C:$I,5,0)) -> 3590208 | H39: =IF(ISERROR(VLOOKUP($D39,表B_RAW!$C:$I,6,0)),"",VLOOKUP($D39,表B_RAW!$C:$I,6,0)/100) -> -0.5643 | I39: =IF(ISERROR(VLOOKUP($D39,表A_RAW!$C:$I,5,0)),"",VLOOKUP($D39,表A_RAW!$C:$I,5,0)) -> 2573154 | J39: =IF(ISERROR(VLOOKUP($D39,表A_RAW!$C:$I,7,0)),"",VLOOKUP($D39,表A_RAW!$C:$I,7,0)) -> -0.3920484355 | K39: =IF(ISERROR(VLOOKUP($D39,表C_RAW!$C:$I,4,0)),"",VLOOKUP($D39,表C_RAW!$C:$I,4,0)) -> 19681467 | L39: =IF(ISERROR(VLOOKUP($D39,表C_RAW!$C:$I,5,0)),"",VLOOKUP($D39,表C_RAW!$C:$I,5,0)) -> 12674065 | M39: =IF(ISERROR(VLOOKUP($D39,表C_RAW!$C:$I,6,0)),"",VLOOKUP($D39,表C_RAW!$C:$I,6,0)/100) -> 0.5529
C40: 2 | D40: =VLOOKUP($B$39&C40,表B_RAW!B:D,2,0) -> 3360 尚立 | F40: =IF(ISERROR(VLOOKUP($D40,表B_RAW!$C:$I,4,0)),"",VLOOKUP($D40,表B_RAW!$C:$I,4,0)) -> 466341 | G40: =IF(ISERROR(VLOOKUP($D40,表B_RAW!$C:$I,5,0)),"",VLOOKUP($D40,表B_RAW!$C:$I,5,0)) -> 735302 | H40: =IF(ISERROR(VLOOKUP($D40,表B_RAW!$C:$I,6,0)),"",VLOOKUP($D40,表B_RAW!$C:$I,6,0)/100) -> -0.3658 | I40: =IF(ISERROR(VLOOKUP($D40,表A_RAW!$C:$I,5,0)),"",VLOOKUP($D40,表A_RAW!$C:$I,5,0)) -> 577361 | J40: =IF(ISERROR(VLOOKUP($D40,表A_RAW!$C:$I,7,0)),"",VLOOKUP($D40,表A_RAW!$C:$I,7,0)) -> -0.1922887067 | K40: =IF(ISERROR(VLOOKUP($D40,表C_RAW!$C:$I,4,0)),"",VLOOKUP($D40,表C_RAW!$C:$I,4,0)) -> 2546711 | L40: =IF(ISERROR(VLOOKUP($D40,表C_RAW!$C:$I,5,0)),"",VLOOKUP($D40,表C_RAW!$C:$I,5,0)) -> 2281293 | M40: =IF(ISERROR(VLOOKUP($D40,表C_RAW!$C:$I,6,0)),"",VLOOKUP($D40,表C_RAW!$C:$I,6,0)/100) -> 0.1163
C41: 3 | D41: =VLOOKUP($B$39&C41,表B_RAW!B:D,2,0) -> 3036 文曄 | F41: =IF(ISERROR(VLOOKUP($D41,表B_RAW!$C:$I,4,0)),"",VLOOKUP($D41,表B_RAW!$C:$I,4,0)) -> 78326329 | G41: =IF(ISERROR(VLOOKUP($D41,表B_RAW!$C:$I,5,0)),"",VLOOKUP($D41,表B_RAW!$C:$I,5,0)) -> 118088535 | H41: =IF(ISERROR(VLOOKUP($D41,表B_RAW!$C:$I,6,0)),"",VLOOKUP($D41,表B_RAW!$C:$I,6,0)/100) -> -0.3367 | I41: =IF(ISERROR(VLOOKUP($D41,表A_RAW!$C:$I,5,0)),"",VLOOKUP($D41,表A_RAW!$C:$I,5,0)) -> 80208802 | J41: =IF(ISERROR(VLOOKUP($D41,表A_RAW!$C:$I,7,0)),"",VLOOKUP($D41,表A_RAW!$C:$I,7,0)) -> -0.02346965611 | K41: =IF(ISERROR(VLOOKUP($D41,表C_RAW!$C:$I,4,0)),"",VLOOKUP($D41,表C_RAW!$C:$I,4,0)) -> 443839321 | L41: =IF(ISERROR(VLOOKUP($D41,表C_RAW!$C:$I,5,0)),"",VLOOKUP($D41,表C_RAW!$C:$I,5,0)) -> 360388364 | M41: =IF(ISERROR(VLOOKUP($D41,表C_RAW!$C:$I,6,0)),"",VLOOKUP($D41,表C_RAW!$C:$I,6,0)/100) -> 0.2316
B42: =VLOOKUP(A39,表B_RAW!O:T,6,0) -> -22.12 | C42: 4 | D42: =VLOOKUP($B$39&C42,表B_RAW!B:D,2,0) -> 8112 至上 | F42: =IF(ISERROR(VLOOKUP($D42,表B_RAW!$C:$I,4,0)),"",VLOOKUP($D42,表B_RAW!$C:$I,4,0)) -> 15267382 | G42: =IF(ISERROR(VLOOKUP($D42,表B_RAW!$C:$I,5,0)),"",VLOOKUP($D42,表B_RAW!$C:$I,5,0)) -> 22480940 | H42: =IF(ISERROR(VLOOKUP($D42,表B_RAW!$C:$I,6,0)),"",VLOOKUP($D42,表B_RAW!$C:$I,6,0)/100) -> -0.3209 | I42: =IF(ISERROR(VLOOKUP($D42,表A_RAW!$C:$I,5,0)),"",VLOOKUP($D42,表A_RAW!$C:$I,5,0)) -> 23604503 | J42: =IF(ISERROR(VLOOKUP($D42,表A_RAW!$C:$I,7,0)),"",VLOOKUP($D42,表A_RAW!$C:$I,7,0)) -> -0.3532004465 | K42: =IF(ISERROR(VLOOKUP($D42,表C_RAW!$C:$I,4,0)),"",VLOOKUP($D42,表C_RAW!$C:$I,4,0)) -> 84065759 | L42: =IF(ISERROR(VLOOKUP($D42,表C_RAW!$C:$I,5,0)),"",VLOOKUP($D42,表C_RAW!$C:$I,5,0)) -> 100819961 | M42: =IF(ISERROR(VLOOKUP($D42,表C_RAW!$C:$I,6,0)),"",VLOOKUP($D42,表C_RAW!$C:$I,6,0)/100) -> -0.1662
C43: 5 | D43: =VLOOKUP($B$39&C43,表B_RAW!B:D,2,0) -> 8072 陞泰 | F43: =IF(ISERROR(VLOOKUP($D43,表B_RAW!$C:$I,4,0)),"",VLOOKUP($D43,表B_RAW!$C:$I,4,0)) -> 95522 | G43: =IF(ISERROR(VLOOKUP($D43,表B_RAW!$C:$I,5,0)),"",VLOOKUP($D43,表B_RAW!$C:$I,5,0)) -> 123162 | H43: =IF(ISERROR(VLOOKUP($D43,表B_RAW!$C:$I,6,0)),"",VLOOKUP($D43,表B_RAW!$C:$I,6,0)/100) -> -0.2244 | I43: =IF(ISERROR(VLOOKUP($D43,表A_RAW!$C:$I,5,0)),"",VLOOKUP($D43,表A_RAW!$C:$I,5,0)) -> 72695 | J43: =IF(ISERROR(VLOOKUP($D43,表A_RAW!$C:$I,7,0)),"",VLOOKUP($D43,表A_RAW!$C:$I,7,0)) -> 0.3140105922 | K43: =IF(ISERROR(VLOOKUP($D43,表C_RAW!$C:$I,4,0)),"",VLOOKUP($D43,表C_RAW!$C:$I,4,0)) -> 485053 | L43: =IF(ISERROR(VLOOKUP($D43,表C_RAW!$C:$I,5,0)),"",VLOOKUP($D43,表C_RAW!$C:$I,5,0)) -> 367618 | M43: =IF(ISERROR(VLOOKUP($D43,表C_RAW!$C:$I,6,0)),"",VLOOKUP($D43,表C_RAW!$C:$I,6,0)/100) -> 0.3194
A44: 3 | B44: =VLOOKUP(A44,表B_RAW!O:P,2,0) -> 綠能環保 | C44: 1 | D44: =VLOOKUP($B$44&C44,表B_RAW!B:D,2,0) -> 6806 森崴能源 | F44: =IF(ISERROR(VLOOKUP($D44,表B_RAW!$C:$I,4,0)),"",VLOOKUP($D44,表B_RAW!$C:$I,4,0)) -> 717543 | G44: =IF(ISERROR(VLOOKUP($D44,表B_RAW!$C:$I,5,0)),"",VLOOKUP($D44,表B_RAW!$C:$I,5,0)) -> 1367587 | H44: =IF(ISERROR(VLOOKUP($D44,表B_RAW!$C:$I,6,0)),"",VLOOKUP($D44,表B_RAW!$C:$I,6,0)/100) -> -0.4753 | I44: =IF(ISERROR(VLOOKUP($D44,表A_RAW!$C:$I,5,0)),"",VLOOKUP($D44,表A_RAW!$C:$I,5,0)) -> 1402771 | J44: =IF(ISERROR(VLOOKUP($D44,表A_RAW!$C:$I,7,0)),"",VLOOKUP($D44,表A_RAW!$C:$I,7,0)) -> -0.4884817265 | K44: =IF(ISERROR(VLOOKUP($D44,表C_RAW!$C:$I,4,0)),"",VLOOKUP($D44,表C_RAW!$C:$I,4,0)) -> 7779233 | L44: =IF(ISERROR(VLOOKUP($D44,表C_RAW!$C:$I,5,0)),"",VLOOKUP($D44,表C_RAW!$C:$I,5,0)) -> 5002787 | M44: =IF(ISERROR(VLOOKUP($D44,表C_RAW!$C:$I,6,0)),"",VLOOKUP($D44,表C_RAW!$C:$I,6,0)/100) -> 0.555
C45: 2 | D45: =VLOOKUP($B$44&C45,表B_RAW!B:D,2,0) -> 6869 雲豹能源 | F45: =IF(ISERROR(VLOOKUP($D45,表B_RAW!$C:$I,4,0)),"",VLOOKUP($D45,表B_RAW!$C:$I,4,0)) -> 753387 | G45: =IF(ISERROR(VLOOKUP($D45,表B_RAW!$C:$I,5,0)),"",VLOOKUP($D45,表B_RAW!$C:$I,5,0)) -> 1394729 | H45: =IF(ISERROR(VLOOKUP($D45,表B_RAW!$C:$I,6,0)),"",VLOOKUP($D45,表B_RAW!$C:$I,6,0)/100) -> -0.4598 | I45: =IF(ISERROR(VLOOKUP($D45,表A_RAW!$C:$I,5,0)),"",VLOOKUP($D45,表A_RAW!$C:$I,5,0)) -> 257159 | J45: =IF(ISERROR(VLOOKUP($D45,表A_RAW!$C:$I,7,0)),"",VLOOKUP($D45,表A_RAW!$C:$I,7,0)) -> 1.929654416 | K45: =IF(ISERROR(VLOOKUP($D45,表C_RAW!$C:$I,4,0)),"",VLOOKUP($D45,表C_RAW!$C:$I,4,0)) -> 3143903 | L45: =IF(ISERROR(VLOOKUP($D45,表C_RAW!$C:$I,5,0)),"",VLOOKUP($D45,表C_RAW!$C:$I,5,0)) -> 1471950 | M45: =IF(ISERROR(VLOOKUP($D45,表C_RAW!$C:$I,6,0)),"",VLOOKUP($D45,表C_RAW!$C:$I,6,0)/100) -> 1.1359
C46: 3 | D46: =VLOOKUP($B$44&C46,表B_RAW!B:D,2,0) -> 6624 萬年清 | F46: =IF(ISERROR(VLOOKUP($D46,表B_RAW!$C:$I,4,0)),"",VLOOKUP($D46,表B_RAW!$C:$I,4,0)) -> 44938 | G46: =IF(ISERROR(VLOOKUP($D46,表B_RAW!$C:$I,5,0)),"",VLOOKUP($D46,表B_RAW!$C:$I,5,0)) -> 62269 | H46: =IF(ISERROR(VLOOKUP($D46,表B_RAW!$C:$I,6,0)),"",VLOOKUP($D46,表B_RAW!$C:$I,6,0)/100) -> -0.2783 | I46: =IF(ISERROR(VLOOKUP($D46,表A_RAW!$C:$I,5,0)),"",VLOOKUP($D46,表A_RAW!$C:$I,5,0)) -> 85919 | J46: =IF(ISERROR(VLOOKUP($D46,表A_RAW!$C:$I,7,0)),"",VLOOKUP($D46,表A_RAW!$C:$I,7,0)) -> -0.4769724974 | K46: =IF(ISERROR(VLOOKUP($D46,表C_RAW!$C:$I,4,0)),"",VLOOKUP($D46,表C_RAW!$C:$I,4,0)) -> 207567 | L46: =IF(ISERROR(VLOOKUP($D46,表C_RAW!$C:$I,5,0)),"",VLOOKUP($D46,表C_RAW!$C:$I,5,0)) -> 159950 | M46: =IF(ISERROR(VLOOKUP($D46,表C_RAW!$C:$I,6,0)),"",VLOOKUP($D46,表C_RAW!$C:$I,6,0)/100) -> 0.2977
B47: =VLOOKUP(A44,表B_RAW!O:T,6,0) -> -10.38 | C47: 4 | D47: =VLOOKUP($B$44&C47,表B_RAW!B:D,2,0) -> 5292 華懋 | F47: =IF(ISERROR(VLOOKUP($D47,表B_RAW!$C:$I,4,0)),"",VLOOKUP($D47,表B_RAW!$C:$I,4,0)) -> 156267 | G47: =IF(ISERROR(VLOOKUP($D47,表B_RAW!$C:$I,5,0)),"",VLOOKUP($D47,表B_RAW!$C:$I,5,0)) -> 212075 | H47: =IF(ISERROR(VLOOKUP($D47,表B_RAW!$C:$I,6,0)),"",VLOOKUP($D47,表B_RAW!$C:$I,6,0)/100) -> -0.2632 | I47: =IF(ISERROR(VLOOKUP($D47,表A_RAW!$C:$I,5,0)),"",VLOOKUP($D47,表A_RAW!$C:$I,5,0)) -> 143166 | J47: =IF(ISERROR(VLOOKUP($D47,表A_RAW!$C:$I,7,0)),"",VLOOKUP($D47,表A_RAW!$C:$I,7,0)) -> 0.0915091572 | K47: =IF(ISERROR(VLOOKUP($D47,表C_RAW!$C:$I,4,0)),"",VLOOKUP($D47,表C_RAW!$C:$I,4,0)) -> 1086255 | L47: =IF(ISERROR(VLOOKUP($D47,表C_RAW!$C:$I,5,0)),"",VLOOKUP($D47,表C_RAW!$C:$I,5,0)) -> 846735 | M47: =IF(ISERROR(VLOOKUP($D47,表C_RAW!$C:$I,6,0)),"",VLOOKUP($D47,表C_RAW!$C:$I,6,0)/100) -> 0.2829
C48: 5 | D48: =VLOOKUP($B$44&C48,表B_RAW!B:D,2,0) -> 8423 保綠-KY | F48: =IF(ISERROR(VLOOKUP($D48,表B_RAW!$C:$I,4,0)),"",VLOOKUP($D48,表B_RAW!$C:$I,4,0)) -> 30296 | G48: =IF(ISERROR(VLOOKUP($D48,表B_RAW!$C:$I,5,0)),"",VLOOKUP($D48,表B_RAW!$C:$I,5,0)) -> 38698 | H48: =IF(ISERROR(VLOOKUP($D48,表B_RAW!$C:$I,6,0)),"",VLOOKUP($D48,表B_RAW!$C:$I,6,0)/100) -> -0.2171 | I48: =IF(ISERROR(VLOOKUP($D48,表A_RAW!$C:$I,5,0)),"",VLOOKUP($D48,表A_RAW!$C:$I,5,0)) -> 34259 | J48: =IF(ISERROR(VLOOKUP($D48,表A_RAW!$C:$I,7,0)),"",VLOOKUP($D48,表A_RAW!$C:$I,7,0)) -> -0.1156776322 | K48: =IF(ISERROR(VLOOKUP($D48,表C_RAW!$C:$I,4,0)),"",VLOOKUP($D48,表C_RAW!$C:$I,4,0)) -> 165049 | L48: =IF(ISERROR(VLOOKUP($D48,表C_RAW!$C:$I,5,0)),"",VLOOKUP($D48,表C_RAW!$C:$I,5,0)) -> 150692 | M48: =IF(ISERROR(VLOOKUP($D48,表C_RAW!$C:$I,6,0)),"",VLOOKUP($D48,表C_RAW!$C:$I,6,0)/100) -> 0.0953
A49: 4 | B49: =VLOOKUP(A49,表B_RAW!O:P,2,0) -> 化學工業 | C49: 1 | D49: =VLOOKUP($B$49&C49,表B_RAW!B:D,2,0) -> 1742 台蠟 | F49: =IF(ISERROR(VLOOKUP($D49,表B_RAW!$C:$I,4,0)),"",VLOOKUP($D49,表B_RAW!$C:$I,4,0)) -> 8458 | G49: =IF(ISERROR(VLOOKUP($D49,表B_RAW!$C:$I,5,0)),"",VLOOKUP($D49,表B_RAW!$C:$I,5,0)) -> 12200 | H49: =IF(ISERROR(VLOOKUP($D49,表B_RAW!$C:$I,6,0)),"",VLOOKUP($D49,表B_RAW!$C:$I,6,0)/100) -> -0.3067 | I49: =IF(ISERROR(VLOOKUP($D49,表A_RAW!$C:$I,5,0)),"",VLOOKUP($D49,表A_RAW!$C:$I,5,0)) -> 27053 | J49: =IF(ISERROR(VLOOKUP($D49,表A_RAW!$C:$I,7,0)),"",VLOOKUP($D49,表A_RAW!$C:$I,7,0)) -> -0.6873544524 | K49: =IF(ISERROR(VLOOKUP($D49,表C_RAW!$C:$I,4,0)),"",VLOOKUP($D49,表C_RAW!$C:$I,4,0)) -> 61508 | L49: =IF(ISERROR(VLOOKUP($D49,表C_RAW!$C:$I,5,0)),"",VLOOKUP($D49,表C_RAW!$C:$I,5,0)) -> 108493 | M49: =IF(ISERROR(VLOOKUP($D49,表C_RAW!$C:$I,6,0)),"",VLOOKUP($D49,表C_RAW!$C:$I,6,0)/100) -> -0.4331
C50: 2 | D50: =VLOOKUP($B$49&C50,表B_RAW!B:D,2,0) -> 1723 中碳 | F50: =IF(ISERROR(VLOOKUP($D50,表B_RAW!$C:$I,4,0)),"",VLOOKUP($D50,表B_RAW!$C:$I,4,0)) -> 401829 | G50: =IF(ISERROR(VLOOKUP($D50,表B_RAW!$C:$I,5,0)),"",VLOOKUP($D50,表B_RAW!$C:$I,5,0)) -> 519047 | H50: =IF(ISERROR(VLOOKUP($D50,表B_RAW!$C:$I,6,0)),"",VLOOKUP($D50,表B_RAW!$C:$I,6,0)/100) -> -0.2258 | I50: =IF(ISERROR(VLOOKUP($D50,表A_RAW!$C:$I,5,0)),"",VLOOKUP($D50,表A_RAW!$C:$I,5,0)) -> 743035 | J50: =IF(ISERROR(VLOOKUP($D50,表A_RAW!$C:$I,7,0)),"",VLOOKUP($D50,表A_RAW!$C:$I,7,0)) -> -0.4592058248 | K50: =IF(ISERROR(VLOOKUP($D50,表C_RAW!$C:$I,4,0)),"",VLOOKUP($D50,表C_RAW!$C:$I,4,0)) -> 2612666 | L50: =IF(ISERROR(VLOOKUP($D50,表C_RAW!$C:$I,5,0)),"",VLOOKUP($D50,表C_RAW!$C:$I,5,0)) -> 3223876 | M50: =IF(ISERROR(VLOOKUP($D50,表C_RAW!$C:$I,6,0)),"",VLOOKUP($D50,表C_RAW!$C:$I,6,0)/100) -> -0.1896
C51: 3 | D51: =VLOOKUP($B$49&C51,表B_RAW!B:D,2,0) -> 4721 美琪瑪 | F51: =IF(ISERROR(VLOOKUP($D51,表B_RAW!$C:$I,4,0)),"",VLOOKUP($D51,表B_RAW!$C:$I,4,0)) -> 297007 | G51: =IF(ISERROR(VLOOKUP($D51,表B_RAW!$C:$I,5,0)),"",VLOOKUP($D51,表B_RAW!$C:$I,5,0)) -> 380403 | H51: =IF(ISERROR(VLOOKUP($D51,表B_RAW!$C:$I,6,0)),"",VLOOKUP($D51,表B_RAW!$C:$I,6,0)/100) -> -0.2192 | I51: =IF(ISERROR(VLOOKUP($D51,表A_RAW!$C:$I,5,0)),"",VLOOKUP($D51,表A_RAW!$C:$I,5,0)) -> 206774 | J51: =IF(ISERROR(VLOOKUP($D51,表A_RAW!$C:$I,7,0)),"",VLOOKUP($D51,表A_RAW!$C:$I,7,0)) -> 0.4363846518 | K51: =IF(ISERROR(VLOOKUP($D51,表C_RAW!$C:$I,4,0)),"",VLOOKUP($D51,表C_RAW!$C:$I,4,0)) -> 1157092 | L51: =IF(ISERROR(VLOOKUP($D51,表C_RAW!$C:$I,5,0)),"",VLOOKUP($D51,表C_RAW!$C:$I,5,0)) -> 960443 | M51: =IF(ISERROR(VLOOKUP($D51,表C_RAW!$C:$I,6,0)),"",VLOOKUP($D51,表C_RAW!$C:$I,6,0)/100) -> 0.2047
B52: =VLOOKUP(A49,表B_RAW!O:T,6,0) -> -8.94 | C52: 4 | D52: =VLOOKUP($B$49&C52,表B_RAW!B:D,2,0) -> 4764 雙鍵 | F52: =IF(ISERROR(VLOOKUP($D52,表B_RAW!$C:$I,4,0)),"",VLOOKUP($D52,表B_RAW!$C:$I,4,0)) -> 219026 | G52: =IF(ISERROR(VLOOKUP($D52,表B_RAW!$C:$I,5,0)),"",VLOOKUP($D52,表B_RAW!$C:$I,5,0)) -> 278184 | H52: =IF(ISERROR(VLOOKUP($D52,表B_RAW!$C:$I,6,0)),"",VLOOKUP($D52,表B_RAW!$C:$I,6,0)/100) -> -0.2127 | I52: =IF(ISERROR(VLOOKUP($D52,表A_RAW!$C:$I,5,0)),"",VLOOKUP($D52,表A_RAW!$C:$I,5,0)) -> 224173 | J52: =IF(ISERROR(VLOOKUP($D52,表A_RAW!$C:$I,7,0)),"",VLOOKUP($D52,表A_RAW!$C:$I,7,0)) -> -0.02295994611 | K52: =IF(ISERROR(VLOOKUP($D52,表C_RAW!$C:$I,4,0)),"",VLOOKUP($D52,表C_RAW!$C:$I,4,0)) -> 1157276 | L52: =IF(ISERROR(VLOOKUP($D52,表C_RAW!$C:$I,5,0)),"",VLOOKUP($D52,表C_RAW!$C:$I,5,0)) -> 971073 | M52: =IF(ISERROR(VLOOKUP($D52,表C_RAW!$C:$I,6,0)),"",VLOOKUP($D52,表C_RAW!$C:$I,6,0)/100) -> 0.1917
C53: 5 | D53: =VLOOKUP($B$49&C53,表B_RAW!B:D,2,0) -> 1721 三晃 | F53: =IF(ISERROR(VLOOKUP($D53,表B_RAW!$C:$I,4,0)),"",VLOOKUP($D53,表B_RAW!$C:$I,4,0)) -> 112986 | G53: =IF(ISERROR(VLOOKUP($D53,表B_RAW!$C:$I,5,0)),"",VLOOKUP($D53,表B_RAW!$C:$I,5,0)) -> 142359 | H53: =IF(ISERROR(VLOOKUP($D53,表B_RAW!$C:$I,6,0)),"",VLOOKUP($D53,表B_RAW!$C:$I,6,0)/100) -> -0.2063 | I53: =IF(ISERROR(VLOOKUP($D53,表A_RAW!$C:$I,5,0)),"",VLOOKUP($D53,表A_RAW!$C:$I,5,0)) -> 202110 | J53: =IF(ISERROR(VLOOKUP($D53,表A_RAW!$C:$I,7,0)),"",VLOOKUP($D53,表A_RAW!$C:$I,7,0)) -> -0.4409677898 | K53: =IF(ISERROR(VLOOKUP($D53,表C_RAW!$C:$I,4,0)),"",VLOOKUP($D53,表C_RAW!$C:$I,4,0)) -> 760255 | L53: =IF(ISERROR(VLOOKUP($D53,表C_RAW!$C:$I,5,0)),"",VLOOKUP($D53,表C_RAW!$C:$I,5,0)) -> 949736 | M53: =IF(ISERROR(VLOOKUP($D53,表C_RAW!$C:$I,6,0)),"",VLOOKUP($D53,表C_RAW!$C:$I,6,0)/100) -> -0.1995
A54: 5 | B54: =VLOOKUP(A54,表B_RAW!O:P,2,0) -> 電器電纜 | C54: 1 | D54: =VLOOKUP($B$54&C54,表B_RAW!B:D,2,0) -> 1618 合機 | F54: =IF(ISERROR(VLOOKUP($D54,表B_RAW!$C:$I,4,0)),"",VLOOKUP($D54,表B_RAW!$C:$I,4,0)) -> 243227 | G54: =IF(ISERROR(VLOOKUP($D54,表B_RAW!$C:$I,5,0)),"",VLOOKUP($D54,表B_RAW!$C:$I,5,0)) -> 801512 | H54: =IF(ISERROR(VLOOKUP($D54,表B_RAW!$C:$I,6,0)),"",VLOOKUP($D54,表B_RAW!$C:$I,6,0)/100) -> -0.6965 | I54: =IF(ISERROR(VLOOKUP($D54,表A_RAW!$C:$I,5,0)),"",VLOOKUP($D54,表A_RAW!$C:$I,5,0)) -> 440392 | J54: =IF(ISERROR(VLOOKUP($D54,表A_RAW!$C:$I,7,0)),"",VLOOKUP($D54,表A_RAW!$C:$I,7,0)) -> -0.4477034097 | K54: =IF(ISERROR(VLOOKUP($D54,表C_RAW!$C:$I,4,0)),"",VLOOKUP($D54,表C_RAW!$C:$I,4,0)) -> 2132469 | L54: =IF(ISERROR(VLOOKUP($D54,表C_RAW!$C:$I,5,0)),"",VLOOKUP($D54,表C_RAW!$C:$I,5,0)) -> 1679393 | M54: =IF(ISERROR(VLOOKUP($D54,表C_RAW!$C:$I,6,0)),"",VLOOKUP($D54,表C_RAW!$C:$I,6,0)/100) -> 0.2698
C55: 2 | D55: =VLOOKUP($B$54&C55,表B_RAW!B:D,2,0) -> 1617 榮星 | F55: =IF(ISERROR(VLOOKUP($D55,表B_RAW!$C:$I,4,0)),"",VLOOKUP($D55,表B_RAW!$C:$I,4,0)) -> 250152 | G55: =IF(ISERROR(VLOOKUP($D55,表B_RAW!$C:$I,5,0)),"",VLOOKUP($D55,表B_RAW!$C:$I,5,0)) -> 314665 | H55: =IF(ISERROR(VLOOKUP($D55,表B_RAW!$C:$I,6,0)),"",VLOOKUP($D55,表B_RAW!$C:$I,6,0)/100) -> -0.205 | I55: =IF(ISERROR(VLOOKUP($D55,表A_RAW!$C:$I,5,0)),"",VLOOKUP($D55,表A_RAW!$C:$I,5,0)) -> 304964 | J55: =IF(ISERROR(VLOOKUP($D55,表A_RAW!$C:$I,7,0)),"",VLOOKUP($D55,表A_RAW!$C:$I,7,0)) -> -0.1797326898 | K55: =IF(ISERROR(VLOOKUP($D55,表C_RAW!$C:$I,4,0)),"",VLOOKUP($D55,表C_RAW!$C:$I,4,0)) -> 1334365 | L55: =IF(ISERROR(VLOOKUP($D55,表C_RAW!$C:$I,5,0)),"",VLOOKUP($D55,表C_RAW!$C:$I,5,0)) -> 1289019 | M55: =IF(ISERROR(VLOOKUP($D55,表C_RAW!$C:$I,6,0)),"",VLOOKUP($D55,表C_RAW!$C:$I,6,0)/100) -> 0.0352
C56: 3 | D56: =VLOOKUP($B$54&C56,表B_RAW!B:D,2,0) -> 5283 禾聯碩 | F56: =IF(ISERROR(VLOOKUP($D56,表B_RAW!$C:$I,4,0)),"",VLOOKUP($D56,表B_RAW!$C:$I,4,0)) -> 634160 | G56: =IF(ISERROR(VLOOKUP($D56,表B_RAW!$C:$I,5,0)),"",VLOOKUP($D56,表B_RAW!$C:$I,5,0)) -> 772443 | H56: =IF(ISERROR(VLOOKUP($D56,表B_RAW!$C:$I,6,0)),"",VLOOKUP($D56,表B_RAW!$C:$I,6,0)/100) -> -0.179 | I56: =IF(ISERROR(VLOOKUP($D56,表A_RAW!$C:$I,5,0)),"",VLOOKUP($D56,表A_RAW!$C:$I,5,0)) -> 587189 | J56: =IF(ISERROR(VLOOKUP($D56,表A_RAW!$C:$I,7,0)),"",VLOOKUP($D56,表A_RAW!$C:$I,7,0)) -> 0.07999298352 | K56: =IF(ISERROR(VLOOKUP($D56,表C_RAW!$C:$I,4,0)),"",VLOOKUP($D56,表C_RAW!$C:$I,4,0)) -> 2672607 | L56: =IF(ISERROR(VLOOKUP($D56,表C_RAW!$C:$I,5,0)),"",VLOOKUP($D56,表C_RAW!$C:$I,5,0)) -> 2467758 | M56: =IF(ISERROR(VLOOKUP($D56,表C_RAW!$C:$I,6,0)),"",VLOOKUP($D56,表C_RAW!$C:$I,6,0)/100) -> 0.083
B57: =VLOOKUP(A54,表B_RAW!O:T,6,0) -> -8.28 | C57: 4 | D57: =VLOOKUP($B$54&C57,表B_RAW!B:D,2,0) -> 1605 華新 | F57: =IF(ISERROR(VLOOKUP($D57,表B_RAW!$C:$I,4,0)),"",VLOOKUP($D57,表B_RAW!$C:$I,4,0)) -> 15710431 | G57: =IF(ISERROR(VLOOKUP($D57,表B_RAW!$C:$I,5,0)),"",VLOOKUP($D57,表B_RAW!$C:$I,5,0)) -> 17657667 | H57: =IF(ISERROR(VLOOKUP($D57,表B_RAW!$C:$I,6,0)),"",VLOOKUP($D57,表B_RAW!$C:$I,6,0)/100) -> -0.1103 | I57: =IF(ISERROR(VLOOKUP($D57,表A_RAW!$C:$I,5,0)),"",VLOOKUP($D57,表A_RAW!$C:$I,5,0)) -> 15678448 | J57: =IF(ISERROR(VLOOKUP($D57,表A_RAW!$C:$I,7,0)),"",VLOOKUP($D57,表A_RAW!$C:$I,7,0)) -> 0.002039934055 | K57: =IF(ISERROR(VLOOKUP($D57,表C_RAW!$C:$I,4,0)),"",VLOOKUP($D57,表C_RAW!$C:$I,4,0)) -> 78244167 | L57: =IF(ISERROR(VLOOKUP($D57,表C_RAW!$C:$I,5,0)),"",VLOOKUP($D57,表C_RAW!$C:$I,5,0)) -> 71442885 | M57: =IF(ISERROR(VLOOKUP($D57,表C_RAW!$C:$I,6,0)),"",VLOOKUP($D57,表C_RAW!$C:$I,6,0)/100) -> 0.0952
C58: 5 | D58: =VLOOKUP($B$54&C58,表B_RAW!B:D,2,0) -> 2061 風青 | F58: =IF(ISERROR(VLOOKUP($D58,表B_RAW!$C:$I,4,0)),"",VLOOKUP($D58,表B_RAW!$C:$I,4,0)) -> 100183 | G58: =IF(ISERROR(VLOOKUP($D58,表B_RAW!$C:$I,5,0)),"",VLOOKUP($D58,表B_RAW!$C:$I,5,0)) -> 111106 | H58: =IF(ISERROR(VLOOKUP($D58,表B_RAW!$C:$I,6,0)),"",VLOOKUP($D58,表B_RAW!$C:$I,6,0)/100) -> -0.0983 | I58: =IF(ISERROR(VLOOKUP($D58,表A_RAW!$C:$I,5,0)),"",VLOOKUP($D58,表A_RAW!$C:$I,5,0)) -> 118251 | J58: =IF(ISERROR(VLOOKUP($D58,表A_RAW!$C:$I,7,0)),"",VLOOKUP($D58,表A_RAW!$C:$I,7,0)) -> -0.1527936339 | K58: =IF(ISERROR(VLOOKUP($D58,表C_RAW!$C:$I,4,0)),"",VLOOKUP($D58,表C_RAW!$C:$I,4,0)) -> 507537 | L58: =IF(ISERROR(VLOOKUP($D58,表C_RAW!$C:$I,5,0)),"",VLOOKUP($D58,表C_RAW!$C:$I,5,0)) -> 439882 | M58: =IF(ISERROR(VLOOKUP($D58,表C_RAW!$C:$I,6,0)),"",VLOOKUP($D58,表C_RAW!$C:$I,6,0)/100) -> 0.1538

Sheet YOY(單月)
B1: =YEAR(表A_RAW!F2)&"年"&MONTH(表A_RAW!F2)&"月" -> 2025年5月
G2: 成長及衰退前五名之產業YOY%(單月)
B4: 成長前五名之產業 YOY(單月)% | D4: 該產業成長前五名之公司 YOY(單月)% | G4: 單月營收金額(千元) | H4: 本月與上月相較 | J4: 本月與去年同期相較 | L4: 累計營收金額(千元) | M4: 累計營收與去年同期相較
B5: 成長 排名 | C5: 產業 | D5: 排名 | E5: 公司代號&簡稱 | H5: 上月營收金額(千元) | I5: 較上月變動比率(%) | J5: 去年同期金額(千元) | K5: 較去年同期變動比率(%) | M5: 去年累計營收金額(千元) | N5: 較去年同期變動比率(%)
B6: 1 | C6: =VLOOKUP(B6,表A_RAW!N:T,3,0) -> 貿易百貨 | D6: 1 | E6: =VLOOKUP($C$6&D6,表A_RAW!A:I,3,0) -> 2905 三商 | G6: =IF(ISERROR(VLOOKUP($E6,表A_RAW!$C:$I,4,0)),"",VLOOKUP($E6,表A_RAW!$C:$I,4,0)) -> 30875829 | H6: =IF(ISERROR(VLOOKUP($E6,表B_RAW!$C:$I,5,0)),"",VLOOKUP($E6,表B_RAW!$C:$I,5,0)) -> 19214208 | I6: =IF(ISERROR(VLOOKUP($E6,表B_RAW!$C:$I,6,0)),"",VLOOKUP($E6,表B_RAW!$C:$I,6,0)/100) -> 0.6069 | J6: =IF(ISERROR(VLOOKUP($E6,表A_RAW!$C:$I,5,0)),"",VLOOKUP($E6,表A_RAW!$C:$I,5,0)) -> 10603378 | K6: =IF(ISERROR(VLOOKUP($E6,表A_RAW!$C:$I,7,0)),"",VLOOKUP($E6,表A_RAW!$C:$I,7,0)) -> 1.911886099 | L6: =IF(ISERROR(VLOOKUP($E6,表C_RAW!$C:$I,4,0)),"",VLOOKUP($E6,表C_RAW!$C:$I,4,0)) -> 100697350 | M6: =IF(ISERROR(VLOOKUP($E6,表C_RAW!$C:$I,5,0)),"",VLOOKUP($E6,表C_RAW!$C:$I,5,0)) -> 97497636 | N6: =IF(ISERROR(VLOOKUP($E6,表C_RAW!$C:$I,6,0)),"",VLOOKUP($E6,表C_RAW!$C:$I,6,0)/100) -> 0.0328
D7: 2 | E7: =VLOOKUP($C$6&D7,表A_RAW!A:I,3,0) -> 2939 永邑-KY | G7: =IF(ISERROR(VLOOKUP($E7,表A_RAW!$C:$I,4,0)),"",VLOOKUP($E7,表A_RAW!$C:$I,4,0)) -> 27500 | H7: =IF(ISERROR(VLOOKUP($E7,表B_RAW!$C:$I,5,0)),"",VLOOKUP($E7,表B_RAW!$C:$I,5,0)) -> 20497 | I7: =IF(ISERROR(VLOOKUP($E7,表B_RAW!$C:$I,6,0)),"",VLOOKUP($E7,表B_RAW!$C:$I,6,0)/100) -> 0.3417 | J7: =IF(ISERROR(VLOOKUP($E7,表A_RAW!$C:$I,5,0)),"",VLOOKUP($E7,表A_RAW!$C:$I,5,0)) -> 15691 | K7: =IF(ISERROR(VLOOKUP($E7,表A_RAW!$C:$I,7,0)),"",VLOOKUP($E7,表A_RAW!$C:$I,7,0)) -> 0.7525970301 | L7: =IF(ISERROR(VLOOKUP($E7,表C_RAW!$C:$I,4,0)),"",VLOOKUP($E7,表C_RAW!$C:$I,4,0)) -> 140055 | M7: =IF(ISERROR(VLOOKUP($E7,表C_RAW!$C:$I,5,0)),"",VLOOKUP($E7,表C_RAW!$C:$I,5,0)) -> 101003 | N7: =IF(ISERROR(VLOOKUP($E7,表C_RAW!$C:$I,6,0)),"",VLOOKUP($E7,表C_RAW!$C:$I,6,0)/100) -> 0.3866
D8: 3 | E8: =VLOOKUP($C$6&D8,表A_RAW!A:I,3,0) -> 4807 日成-KY | G8: =IF(ISERROR(VLOOKUP($E8,表A_RAW!$C:$I,4,0)),"",VLOOKUP($E8,表A_RAW!$C:$I,4,0)) -> 144277 | H8: =IF(ISERROR(VLOOKUP($E8,表B_RAW!$C:$I,5,0)),"",VLOOKUP($E8,表B_RAW!$C:$I,5,0)) -> 117528 | I8: =IF(ISERROR(VLOOKUP($E8,表B_RAW!$C:$I,6,0)),"",VLOOKUP($E8,表B_RAW!$C:$I,6,0)/100) -> 0.2276 | J8: =IF(ISERROR(VLOOKUP($E8,表A_RAW!$C:$I,5,0)),"",VLOOKUP($E8,表A_RAW!$C:$I,5,0)) -> 103907 | K8: =IF(ISERROR(VLOOKUP($E8,表A_RAW!$C:$I,7,0)),"",VLOOKUP($E8,表A_RAW!$C:$I,7,0)) -> 0.3885205039 | L8: =IF(ISERROR(VLOOKUP($E8,表C_RAW!$C:$I,4,0)),"",VLOOKUP($E8,表C_RAW!$C:$I,4,0)) -> 787520 | M8: =IF(ISERROR(VLOOKUP($E8,表C_RAW!$C:$I,5,0)),"",VLOOKUP($E8,表C_RAW!$C:$I,5,0)) -> 507501 | N8: =IF(ISERROR(VLOOKUP($E8,表C_RAW!$C:$I,6,0)),"",VLOOKUP($E8,表C_RAW!$C:$I,6,0)/100) -> 0.5518
C9: =VLOOKUP(B6,表A_RAW!N:T,7,0) -> 44.39115959 | D9: 4 | E9: =VLOOKUP($C$6&D9,表A_RAW!A:I,3,0) -> 2913 農林 | G9: =IF(ISERROR(VLOOKUP($E9,表A_RAW!$C:$I,4,0)),"",VLOOKUP($E9,表A_RAW!$C:$I,4,0)) -> 42369 | H9: =IF(ISERROR(VLOOKUP($E9,表B_RAW!$C:$I,5,0)),"",VLOOKUP($E9,表B_RAW!$C:$I,5,0)) -> 43418 | I9: =IF(ISERROR(VLOOKUP($E9,表B_RAW!$C:$I,6,0)),"",VLOOKUP($E9,表B_RAW!$C:$I,6,0)/100) -> -0.0242 | J9: =IF(ISERROR(VLOOKUP($E9,表A_RAW!$C:$I,5,0)),"",VLOOKUP($E9,表A_RAW!$C:$I,5,0)) -> 34119 | K9: =IF(ISERROR(VLOOKUP($E9,表A_RAW!$C:$I,7,0)),"",VLOOKUP($E9,表A_RAW!$C:$I,7,0)) -> 0.2418007562 | L9: =IF(ISERROR(VLOOKUP($E9,表C_RAW!$C:$I,4,0)),"",VLOOKUP($E9,表C_RAW!$C:$I,4,0)) -> 217385 | M9: =IF(ISERROR(VLOOKUP($E9,表C_RAW!$C:$I,5,0)),"",VLOOKUP($E9,表C_RAW!$C:$I,5,0)) -> 156924 | N9: =IF(ISERROR(VLOOKUP($E9,表C_RAW!$C:$I,6,0)),"",VLOOKUP($E9,表C_RAW!$C:$I,6,0)/100) -> 0.3853
D10: 5 | E10: =VLOOKUP($C$6&D10,表A_RAW!A:I,3,0) -> 8443 阿瘦 | G10: =IF(ISERROR(VLOOKUP($E10,表A_RAW!$C:$I,4,0)),"",VLOOKUP($E10,表A_RAW!$C:$I,4,0)) -> 101959 | H10: =IF(ISERROR(VLOOKUP($E10,表B_RAW!$C:$I,5,0)),"",VLOOKUP($E10,表B_RAW!$C:$I,5,0)) -> 78436 | I10: =IF(ISERROR(VLOOKUP($E10,表B_RAW!$C:$I,6,0)),"",VLOOKUP($E10,表B_RAW!$C:$I,6,0)/100) -> 0.2999 | J10: =IF(ISERROR(VLOOKUP($E10,表A_RAW!$C:$I,5,0)),"",VLOOKUP($E10,表A_RAW!$C:$I,5,0)) -> 91140 | K10: =IF(ISERROR(VLOOKUP($E10,表A_RAW!$C:$I,7,0)),"",VLOOKUP($E10,表A_RAW!$C:$I,7,0)) -> 0.118707483 | L10: =IF(ISERROR(VLOOKUP($E10,表C_RAW!$C:$I,4,0)),"",VLOOKUP($E10,表C_RAW!$C:$I,4,0)) -> 480609 | M10: =IF(ISERROR(VLOOKUP($E10,表C_RAW!$C:$I,5,0)),"",VLOOKUP($E10,表C_RAW!$C:$I,5,0)) -> 474309 | N10: =IF(ISERROR(VLOOKUP($E10,表C_RAW!$C:$I,6,0)),"",VLOOKUP($E10,表C_RAW!$C:$I,6,0)/100) -> 0.0133
B11: 2 | C11: =VLOOKUP(B11,表A_RAW!N:T,3,0) -> 電腦及週邊設備業 | D11: 1 | E11: =VLOOKUP($C$11&D11,表A_RAW!A:I,3,0) -> 6669 緯穎 | G11: =IF(ISERROR(VLOOKUP($E11,表A_RAW!$C:$I,4,0)),"",VLOOKUP($E11,表A_RAW!$C:$I,4,0)) -> 71132658 | H11: =IF(ISERROR(VLOOKUP($E11,表B_RAW!$C:$I,5,0)),"",VLOOKUP($E11,表B_RAW!$C:$I,5,0)) -> 63802622 | I11: =IF(ISERROR(VLOOKUP($E11,表B_RAW!$C:$I,6,0)),"",VLOOKUP($E11,表B_RAW!$C:$I,6,0)/100) -> 0.1149 | J11: =IF(ISERROR(VLOOKUP($E11,表A_RAW!$C:$I,5,0)),"",VLOOKUP($E11,表A_RAW!$C:$I,5,0)) -> 24759583 | K11: =IF(ISERROR(VLOOKUP($E11,表A_RAW!$C:$I,7,0)),"",VLOOKUP($E11,表A_RAW!$C:$I,7,0)) -> 1.872934411 | L11: =IF(ISERROR(VLOOKUP($E11,表C_RAW!$C:$I,4,0)),"",VLOOKUP($E11,表C_RAW!$C:$I,4,0)) -> 305590564 | M11: =IF(ISERROR(VLOOKUP($E11,表C_RAW!$C:$I,5,0)),"",VLOOKUP($E11,表C_RAW!$C:$I,5,0)) -> 116350992 | N11: =IF(ISERROR(VLOOKUP($E11,表C_RAW!$C:$I,6,0)),"",VLOOKUP($E11,表C_RAW!$C:$I,6,0)/100) -> 1.6265
D12: 2 | E12: =VLOOKUP($C$11&D12,表A_RAW!A:I,3,0) -> 5386 青雲 | G12: =IF(ISERROR(VLOOKUP($E12,表A_RAW!$C:$I,4,0)),"",VLOOKUP($E12,表A_RAW!$C:$I,4,0)) -> 474032 | H12: =IF(ISERROR(VLOOKUP($E12,表B_RAW!$C:$I,5,0)),"",VLOOKUP($E12,表B_RAW!$C:$I,5,0)) -> 501804 | I12: =IF(ISERROR(VLOOKUP($E12,表B_RAW!$C:$I,6,0)),"",VLOOKUP($E12,表B_RAW!$C:$I,6,0)/100) -> -0.0553 | J12: =IF(ISERROR(VLOOKUP($E12,表A_RAW!$C:$I,5,0)),"",VLOOKUP($E12,表A_RAW!$C:$I,5,0)) -> 173917 | K12: =IF(ISERROR(VLOOKUP($E12,表A_RAW!$C:$I,7,0)),"",VLOOKUP($E12,表A_RAW!$C:$I,7,0)) -> 1.725621992 | L12: =IF(ISERROR(VLOOKUP($E12,表C_RAW!$C:$I,4,0)),"",VLOOKUP($E12,表C_RAW!$C:$I,4,0)) -> 2222542 | M12: =IF(ISERROR(VLOOKUP($E12,表C_RAW!$C:$I,5,0)),"",VLOOKUP($E12,表C_RAW!$C:$I,5,0)) -> 1039084 | N12: =IF(ISERROR(VLOOKUP($E12,表C_RAW!$C:$I,6,0)),"",VLOOKUP($E12,表C_RAW!$C:$I,6,0)/100) -> 1.1389
D13: 3 | E13: =VLOOKUP($C$11&D13,表A_RAW!A:I,3,0) -> 3231 緯創 | G13: =IF(ISERROR(VLOOKUP($E13,表A_RAW!$C:$I,4,0)),"",VLOOKUP($E13,表A_RAW!$C:$I,4,0)) -> 208405603 | H13: =IF(ISERROR(VLOOKUP($E13,表B_RAW!$C:$I,5,0)),"",VLOOKUP($E13,表B_RAW!$C:$I,5,0)) -> 133703546 | I13: =IF(ISERROR(VLOOKUP($E13,表B_RAW!$C:$I,6,0)),"",VLOOKUP($E13,表B_RAW!$C:$I,6,0)/100) -> 0.5587 | J13: =IF(ISERROR(VLOOKUP($E13,表A_RAW!$C:$I,5,0)),"",VLOOKUP($E13,表A_RAW!$C:$I,5,0)) -> 79501289 | K13: =IF(ISERROR(VLOOKUP($E13,表A_RAW!$C:$I,7,0)),"",VLOOKUP($E13,表A_RAW!$C:$I,7,0)) -> 1.621411623 | L13: =IF(ISERROR(VLOOKUP($E13,表C_RAW!$C:$I,4,0)),"",VLOOKUP($E13,表C_RAW!$C:$I,4,0)) -> 688594218 | M13: =IF(ISERROR(VLOOKUP($E13,表C_RAW!$C:$I,5,0)),"",VLOOKUP($E13,表C_RAW!$C:$I,5,0)) -> 390372177 | N13: =IF(ISERROR(VLOOKUP($E13,表C_RAW!$C:$I,6,0)),"",VLOOKUP($E13,表C_RAW!$C:$I,6,0)/100) -> 0.7639
C14: =VLOOKUP(B11,表A_RAW!N:T,7,0) -> 44.13810857 | D14: 4 | E14: =VLOOKUP($C$11&D14,表A_RAW!A:I,3,0) -> 3515 華擎 | G14: =IF(ISERROR(VLOOKUP($E14,表A_RAW!$C:$I,4,0)),"",VLOOKUP($E14,表A_RAW!$C:$I,4,0)) -> 4388787 | H14: =IF(ISERROR(VLOOKUP($E14,表B_RAW!$C:$I,5,0)),"",VLOOKUP($E14,表B_RAW!$C:$I,5,0)) -> 5127844 | I14: =IF(ISERROR(VLOOKUP($E14,表B_RAW!$C:$I,6,0)),"",VLOOKUP($E14,表B_RAW!$C:$I,6,0)/100) -> -0.1441 | J14: =IF(ISERROR(VLOOKUP($E14,表A_RAW!$C:$I,5,0)),"",VLOOKUP($E14,表A_RAW!$C:$I,5,0)) -> 1832432 | K14: =IF(ISERROR(VLOOKUP($E14,表A_RAW!$C:$I,7,0)),"",VLOOKUP($E14,表A_RAW!$C:$I,7,0)) -> 1.395061317 | L14: =IF(ISERROR(VLOOKUP($E14,表C_RAW!$C:$I,4,0)),"",VLOOKUP($E14,表C_RAW!$C:$I,4,0)) -> 19983711 | M14: =IF(ISERROR(VLOOKUP($E14,表C_RAW!$C:$I,5,0)),"",VLOOKUP($E14,表C_RAW!$C:$I,5,0)) -> 8457590 | N14: =IF(ISERROR(VLOOKUP($E14,表C_RAW!$C:$I,6,0)),"",VLOOKUP($E14,表C_RAW!$C:$I,6,0)/100) -> 1.3628
D15: 5 | E15: =VLOOKUP($C$11&D15,表A_RAW!A:I,3,0) -> 3706 神達 | G15: =IF(ISERROR(VLOOKUP($E15,表A_RAW!$C:$I,4,0)),"",VLOOKUP($E15,表A_RAW!$C:$I,4,0)) -> 9134910 | H15: =IF(ISERROR(VLOOKUP($E15,表B_RAW!$C:$I,5,0)),"",VLOOKUP($E15,表B_RAW!$C:$I,5,0)) -> 8821467 | I15: =IF(ISERROR(VLOOKUP($E15,表B_RAW!$C:$I,6,0)),"",VLOOKUP($E15,表B_RAW!$C:$I,6,0)/100) -> 0.0355 | J15: =IF(ISERROR(VLOOKUP($E15,表A_RAW!$C:$I,5,0)),"",VLOOKUP($E15,表A_RAW!$C:$I,5,0)) -> 4199440 | K15: =IF(ISERROR(VLOOKUP($E15,表A_RAW!$C:$I,7,0)),"",VLOOKUP($E15,表A_RAW!$C:$I,7,0)) -> 1.175268607 | L15: =IF(ISERROR(VLOOKUP($E15,表C_RAW!$C:$I,4,0)),"",VLOOKUP($E15,表C_RAW!$C:$I,4,0)) -> 41621536 | M15: =IF(ISERROR(VLOOKUP($E15,表C_RAW!$C:$I,5,0)),"",VLOOKUP($E15,表C_RAW!$C:$I,5,0)) -> 18338191 | N15: =IF(ISERROR(VLOOKUP($E15,表C_RAW!$C:$I,6,0)),"",VLOOKUP($E15,表C_RAW!$C:$I,6,0)/100) -> 1.2697
B16: 3 | C16: =VLOOKUP(B16,表A_RAW!N:T,3,0) -> 半導體業 | D16: 1 | E16: =VLOOKUP($C$16&D16,表A_RAW!A:I,3,0) -> 2363 矽統 | G16: =IF(ISERROR(VLOOKUP($E16,表A_RAW!$C:$I,4,0)),"",VLOOKUP($E16,表A_RAW!$C:$I,4,0)) -> 185030 | H16: =IF(ISERROR(VLOOKUP($E16,表B_RAW!$C:$I,5,0)),"",VLOOKUP($E16,表B_RAW!$C:$I,5,0)) -> 184409 | I16: =IF(ISERROR(VLOOKUP($E16,表B_RAW!$C:$I,6,0)),"",VLOOKUP($E16,表B_RAW!$C:$I,6,0)/100) -> 0.0034 | J16: =IF(ISERROR(VLOOKUP($E16,表A_RAW!$C:$I,5,0)),"",VLOOKUP($E16,表A_RAW!$C:$I,5,0)) -> 15891 | K16: =IF(ISERROR(VLOOKUP($E16,表A_RAW!$C:$I,7,0)),"",VLOOKUP($E16,表A_RAW!$C:$I,7,0)) -> 10.64369769 | L16: =IF(ISERROR(VLOOKUP($E16,表C_RAW!$C:$I,4,0)),"",VLOOKUP($E16,表C_RAW!$C:$I,4,0)) -> 839122 | M16: =IF(ISERROR(VLOOKUP($E16,表C_RAW!$C:$I,5,0)),"",VLOOKUP($E16,表C_RAW!$C:$I,5,0)) -> 66690 | N16: =IF(ISERROR(VLOOKUP($E16,表C_RAW!$C:$I,6,0)),"",VLOOKUP($E16,表C_RAW!$C:$I,6,0)/100) -> 11.5824
D17: 2 | E17: =VLOOKUP($C$16&D17,表A_RAW!A:I,3,0) -> 3555 博士旺 | G17: =IF(ISERROR(VLOOKUP($E17,表A_RAW!$C:$I,4,0)),"",VLOOKUP($E17,表A_RAW!$C:$I,4,0)) -> 5943 | H17: =IF(ISERROR(VLOOKUP($E17,表B_RAW!$C:$I,5,0)),"",VLOOKUP($E17,表B_RAW!$C:$I,5,0)) -> 2352 | I17: =IF(ISERROR(VLOOKUP($E17,表B_RAW!$C:$I,6,0)),"",VLOOKUP($E17,表B_RAW!$C:$I,6,0)/100) -> 1.5268 | J17: =IF(ISERROR(VLOOKUP($E17,表A_RAW!$C:$I,5,0)),"",VLOOKUP($E17,表A_RAW!$C:$I,5,0)) -> 2083 | K17: =IF(ISERROR(VLOOKUP($E17,表A_RAW!$C:$I,7,0)),"",VLOOKUP($E17,表A_RAW!$C:$I,7,0)) -> 1.853096495 | L17: =IF(ISERROR(VLOOKUP($E17,表C_RAW!$C:$I,4,0)),"",VLOOKUP($E17,表C_RAW!$C:$I,4,0)) -> 14648 | M17: =IF(ISERROR(VLOOKUP($E17,表C_RAW!$C:$I,5,0)),"",VLOOKUP($E17,表C_RAW!$C:$I,5,0)) -> 23293 | N17: =IF(ISERROR(VLOOKUP($E17,表C_RAW!$C:$I,6,0)),"",VLOOKUP($E17,表C_RAW!$C:$I,6,0)/100) -> -0.3711
D18: 3 | E18: =VLOOKUP($C$16&D18,表A_RAW!A:I,3,0) -> 8227 巨有科技 | G18: =IF(ISERROR(VLOOKUP($E18,表A_RAW!$C:$I,4,0)),"",VLOOKUP($E18,表A_RAW!$C:$I,4,0)) -> 103291 | H18: =IF(ISERROR(VLOOKUP($E18,表B_RAW!$C:$I,5,0)),"",VLOOKUP($E18,表B_RAW!$C:$I,5,0)) -> 88765 | I18: =IF(ISERROR(VLOOKUP($E18,表B_RAW!$C:$I,6,0)),"",VLOOKUP($E18,表B_RAW!$C:$I,6,0)/100) -> 0.1636 | J18: =IF(ISERROR(VLOOKUP($E18,表A_RAW!$C:$I,5,0)),"",VLOOKUP($E18,表A_RAW!$C:$I,5,0)) -> 41486 | K18: =IF(ISERROR(VLOOKUP($E18,表A_RAW!$C:$I,7,0)),"",VLOOKUP($E18,表A_RAW!$C:$I,7,0)) -> 1.489779685 | L18: =IF(ISERROR(VLOOKUP($E18,表C_RAW!$C:$I,4,0)),"",VLOOKUP($E18,表C_RAW!$C:$I,4,0)) -> 388228 | M18: =IF(ISERROR(VLOOKUP($E18,表C_RAW!$C:$I,5,0)),"",VLOOKUP($E18,表C_RAW!$C:$I,5,0)) -> 269705 | N18: =IF(ISERROR(VLOOKUP($E18,表C_RAW!$C:$I,6,0)),"",VLOOKUP($E18,表C_RAW!$C:$I,6,0)/100) -> 0.4395
C19: =VLOOKUP(B16,表A_RAW!N:T,7,0) -> 19.97663937 | D19: 4 | E19: =VLOOKUP($C$16&D19,表A_RAW!A:I,3,0) -> 4945 陞達科技 | G19: =IF(ISERROR(VLOOKUP($E19,表A_RAW!$C:$I,4,0)),"",VLOOKUP($E19,表A_RAW!$C:$I,4,0)) -> 62031 | H19: =IF(ISERROR(VLOOKUP($E19,表B_RAW!$C:$I,5,0)),"",VLOOKUP($E19,表B_RAW!$C:$I,5,0)) -> 56081 | I19: =IF(ISERROR(VLOOKUP($E19,表B_RAW!$C:$I,6,0)),"",VLOOKUP($E19,表B_RAW!$C:$I,6,0)/100) -> 0.1061 | J19: =IF(ISERROR(VLOOKUP($E19,表A_RAW!$C:$I,5,0)),"",VLOOKUP($E19,表A_RAW!$C:$I,5,0)) -> 29406 | K19: =IF(ISERROR(VLOOKUP($E19,表A_RAW!$C:$I,7,0)),"",VLOOKUP($E19,表A_RAW!$C:$I,7,0)) -> 1.109467456 | L19: =IF(ISERROR(VLOOKUP($E19,表C_RAW!$C:$I,4,0)),"",VLOOKUP($E19,表C_RAW!$C:$I,4,0)) -> 270026 | M19: =IF(ISERROR(VLOOKUP($E19,表C_RAW!$C:$I,5,0)),"",VLOOKUP($E19,表C_RAW!$C:$I,5,0)) -> 164296 | N19: =IF(ISERROR(VLOOKUP($E19,表C_RAW!$C:$I,6,0)),"",VLOOKUP($E19,表C_RAW!$C:$I,6,0)/100) -> 0.6435
D20: 5 | E20: =VLOOKUP($C$16&D20,表A_RAW!A:I,3,0) -> 6451 訊芯-KY | G20: =IF(ISERROR(VLOOKUP($E20,表A_RAW!$C:$I,4,0)),"",VLOOKUP($E20,表A_RAW!$C:$I,4,0)) -> 595003 | H20: =IF(ISERROR(VLOOKUP($E20,表B_RAW!$C:$I,5,0)),"",VLOOKUP($E20,表B_RAW!$C:$I,5,0)) -> 659508 | I20: =IF(ISERROR(VLOOKUP($E20,表B_RAW!$C:$I,6,0)),"",VLOOKUP($E20,表B_RAW!$C:$I,6,0)/100) -> -0.0978 | J20: =IF(ISERROR(VLOOKUP($E20,表A_RAW!$C:$I,5,0)),"",VLOOKUP($E20,表A_RAW!$C:$I,5,0)) -> 305439 | K20: =IF(ISERROR(VLOOKUP($E20,表A_RAW!$C:$I,7,0)),"",VLOOKUP($E20,表A_RAW!$C:$I,7,0)) -> 0.9480256287 | L20: =IF(ISERROR(VLOOKUP($E20,表C_RAW!$C:$I,4,0)),"",VLOOKUP($E20,表C_RAW!$C:$I,4,0)) -> 3231344 | M20: =IF(ISERROR(VLOOKUP($E20,表C_RAW!$C:$I,5,0)),"",VLOOKUP($E20,表C_RAW!$C:$I,5,0)) -> 1660701 | N20: =IF(ISERROR(VLOOKUP($E20,表C_RAW!$C:$I,6,0)),"",VLOOKUP($E20,表C_RAW!$C:$I,6,0)/100) -> 0.9458
B21: 4 | C21: =VLOOKUP(B21,表A_RAW!N:T,3,0) -> 資訊服務業 | D21: 1 | E21: =VLOOKUP($C$21&D21,表A_RAW!A:I,3,FALSE) -> 2427 三商電 | G21: =IF(ISERROR(VLOOKUP($E21,表A_RAW!$C:$I,4,0)),"",VLOOKUP($E21,表A_RAW!$C:$I,4,0)) -> 1123056 | H21: =IF(ISERROR(VLOOKUP($E21,表B_RAW!$C:$I,5,0)),"",VLOOKUP($E21,表B_RAW!$C:$I,5,0)) -> 348763 | I21: =IF(ISERROR(VLOOKUP($E21,表B_RAW!$C:$I,6,0)),"",VLOOKUP($E21,表B_RAW!$C:$I,6,0)/100) -> 2.2201 | J21: =IF(ISERROR(VLOOKUP($E21,表A_RAW!$C:$I,5,0)),"",VLOOKUP($E21,表A_RAW!$C:$I,5,0)) -> 231127 | K21: =IF(ISERROR(VLOOKUP($E21,表A_RAW!$C:$I,7,0)),"",VLOOKUP($E21,表A_RAW!$C:$I,7,0)) -> 3.859042864 | L21: =IF(ISERROR(VLOOKUP($E21,表C_RAW!$C:$I,4,0)),"",VLOOKUP($E21,表C_RAW!$C:$I,4,0)) -> 2580607 | M21: =IF(ISERROR(VLOOKUP($E21,表C_RAW!$C:$I,5,0)),"",VLOOKUP($E21,表C_RAW!$C:$I,5,0)) -> 2039743 | N21: =IF(ISERROR(VLOOKUP($E21,表C_RAW!$C:$I,6,0)),"",VLOOKUP($E21,表C_RAW!$C:$I,6,0)/100) -> 0.2652
D22: 2 | E22: =VLOOKUP($C$21&D22,表A_RAW!A:I,3,FALSE) -> 5201 凱衛 | G22: =IF(ISERROR(VLOOKUP($E22,表A_RAW!$C:$I,4,0)),"",VLOOKUP($E22,表A_RAW!$C:$I,4,0)) -> 26304 | H22: =IF(ISERROR(VLOOKUP($E22,表B_RAW!$C:$I,5,0)),"",VLOOKUP($E22,表B_RAW!$C:$I,5,0)) -> 27355 | I22: =IF(ISERROR(VLOOKUP($E22,表B_RAW!$C:$I,6,0)),"",VLOOKUP($E22,表B_RAW!$C:$I,6,0)/100) -> -0.0384 | J22: =IF(ISERROR(VLOOKUP($E22,表A_RAW!$C:$I,5,0)),"",VLOOKUP($E22,表A_RAW!$C:$I,5,0)) -> 14714 | K22: =IF(ISERROR(VLOOKUP($E22,表A_RAW!$C:$I,7,0)),"",VLOOKUP($E22,表A_RAW!$C:$I,7,0)) -> 0.7876851978 | L22: =IF(ISERROR(VLOOKUP($E22,表C_RAW!$C:$I,4,0)),"",VLOOKUP($E22,表C_RAW!$C:$I,4,0)) -> 125120 | M22: =IF(ISERROR(VLOOKUP($E22,表C_RAW!$C:$I,5,0)),"",VLOOKUP($E22,表C_RAW!$C:$I,5,0)) -> 137057 | N22: =IF(ISERROR(VLOOKUP($E22,表C_RAW!$C:$I,6,0)),"",VLOOKUP($E22,表C_RAW!$C:$I,6,0)/100) -> -0.0871
D23: 3 | E23: =VLOOKUP($C$21&D23,表A_RAW!A:I,3,FALSE) -> 6516 勤崴國際 | G23: =IF(ISERROR(VLOOKUP($E23,表A_RAW!$C:$I,4,0)),"",VLOOKUP($E23,表A_RAW!$C:$I,4,0)) -> 41475 | H23: =IF(ISERROR(VLOOKUP($E23,表B_RAW!$C:$I,5,0)),"",VLOOKUP($E23,表B_RAW!$C:$I,5,0)) -> 45907 | I23: =IF(ISERROR(VLOOKUP($E23,表B_RAW!$C:$I,6,0)),"",VLOOKUP($E23,表B_RAW!$C:$I,6,0)/100) -> -0.0965 | J23: =IF(ISERROR(VLOOKUP($E23,表A_RAW!$C:$I,5,0)),"",VLOOKUP($E23,表A_RAW!$C:$I,5,0)) -> 25347 | K23: =IF(ISERROR(VLOOKUP($E23,表A_RAW!$C:$I,7,0)),"",VLOOKUP($E23,表A_RAW!$C:$I,7,0)) -> 0.6362883181 | L23: =IF(ISERROR(VLOOKUP($E23,表C_RAW!$C:$I,4,0)),"",VLOOKUP($E23,表C_RAW!$C:$I,4,0)) -> 221205 | M23: =IF(ISERROR(VLOOKUP($E23,表C_RAW!$C:$I,5,0)),"",VLOOKUP($E23,表C_RAW!$C:$I,5,0)) -> 152207 | N23: =IF(ISERROR(VLOOKUP($E23,表C_RAW!$C:$I,6,0)),"",VLOOKUP($E23,表C_RAW!$C:$I,6,0)/100) -> 0.4533
C24: =VLOOKUP(B21,表A_RAW!N:T,7,0) -> 12.81291332 | D24: 4 | E24: =VLOOKUP($C$21&D24,表A_RAW!A:I,3,FALSE) -> 8272 全景軟體 | G24: =IF(ISERROR(VLOOKUP($E24,表A_RAW!$C:$I,4,0)),"",VLOOKUP($E24,表A_RAW!$C:$I,4,0)) -> 35205 | H24: =IF(ISERROR(VLOOKUP($E24,表B_RAW!$C:$I,5,0)),"",VLOOKUP($E24,表B_RAW!$C:$I,5,0)) -> 26779 | I24: =IF(ISERROR(VLOOKUP($E24,表B_RAW!$C:$I,6,0)),"",VLOOKUP($E24,表B_RAW!$C:$I,6,0)/100) -> 0.3146 | J24: =IF(ISERROR(VLOOKUP($E24,表A_RAW!$C:$I,5,0)),"",VLOOKUP($E24,表A_RAW!$C:$I,5,0)) -> 22464 | K24: =IF(ISERROR(VLOOKUP($E24,表A_RAW!$C:$I,7,0)),"",VLOOKUP($E24,表A_RAW!$C:$I,7,0)) -> 0.5671741453 | L24: =IF(ISERROR(VLOOKUP($E24,表C_RAW!$C:$I,4,0)),"",VLOOKUP($E24,表C_RAW!$C:$I,4,0)) -> 138721 | M24: =IF(ISERROR(VLOOKUP($E24,表C_RAW!$C:$I,5,0)),"",VLOOKUP($E24,表C_RAW!$C:$I,5,0)) -> 118271 | N24: =IF(ISERROR(VLOOKUP($E24,表C_RAW!$C:$I,6,0)),"",VLOOKUP($E24,表C_RAW!$C:$I,6,0)/100) -> 0.1729
D25: 5 | E25: =VLOOKUP($C$21&D25,表A_RAW!A:I,3,FALSE) -> 6140 訊達 | G25: =IF(ISERROR(VLOOKUP($E25,表A_RAW!$C:$I,4,0)),"",VLOOKUP($E25,表A_RAW!$C:$I,4,0)) -> 218202 | H25: =IF(ISERROR(VLOOKUP($E25,表B_RAW!$C:$I,5,0)),"",VLOOKUP($E25,表B_RAW!$C:$I,5,0)) -> 234042 | I25: =IF(ISERROR(VLOOKUP($E25,表B_RAW!$C:$I,6,0)),"",VLOOKUP($E25,表B_RAW!$C:$I,6,0)/100) -> -0.0677 | J25: =IF(ISERROR(VLOOKUP($E25,表A_RAW!$C:$I,5,0)),"",VLOOKUP($E25,表A_RAW!$C:$I,5,0)) -> 144046 | K25: =IF(ISERROR(VLOOKUP($E25,表A_RAW!$C:$I,7,0)),"",VLOOKUP($E25,表A_RAW!$C:$I,7,0)) -> 0.5148077697 | L25: =IF(ISERROR(VLOOKUP($E25,表C_RAW!$C:$I,4,0)),"",VLOOKUP($E25,表C_RAW!$C:$I,4,0)) -> 947312 | M25: =IF(ISERROR(VLOOKUP($E25,表C_RAW!$C:$I,5,0)),"",VLOOKUP($E25,表C_RAW!$C:$I,5,0)) -> 673031 | N25: =IF(ISERROR(VLOOKUP($E25,表C_RAW!$C:$I,6,0)),"",VLOOKUP($E25,表C_RAW!$C:$I,6,0)/100) -> 0.4075
B26: 5 | C26: =VLOOKUP(B26,表A_RAW!N:T,3,0) -> 其他電子業 | D26: 1 | E26: =VLOOKUP($C$26&D26,表A_RAW!A:I,3,FALSE) -> 2354 鴻準 | G26: =IF(ISERROR(VLOOKUP($E26,表A_RAW!$C:$I,4,0)),"",VLOOKUP($E26,表A_RAW!$C:$I,4,0)) -> 14754321 | H26: =IF(ISERROR(VLOOKUP($E26,表B_RAW!$C:$I,5,0)),"",VLOOKUP($E26,表B_RAW!$C:$I,5,0)) -> 12889456 | I26: =IF(ISERROR(VLOOKUP($E26,表B_RAW!$C:$I,6,0)),"",VLOOKUP($E26,表B_RAW!$C:$I,6,0)/100) -> 0.1447 | J26: =IF(ISERROR(VLOOKUP($E26,表A_RAW!$C:$I,5,0)),"",VLOOKUP($E26,表A_RAW!$C:$I,5,0)) -> 4219732 | K26: =IF(ISERROR(VLOOKUP($E26,表A_RAW!$C:$I,7,0)),"",VLOOKUP($E26,表A_RAW!$C:$I,7,0)) -> 2.49650665 | L26: =IF(ISERROR(VLOOKUP($E26,表C_RAW!$C:$I,4,0)),"",VLOOKUP($E26,表C_RAW!$C:$I,4,0)) -> 57616795 | M26: =IF(ISERROR(VLOOKUP($E26,表C_RAW!$C:$I,5,0)),"",VLOOKUP($E26,表C_RAW!$C:$I,5,0)) -> 16362645 | N26: =IF(ISERROR(VLOOKUP($E26,表C_RAW!$C:$I,6,0)),"",VLOOKUP($E26,表C_RAW!$C:$I,6,0)/100) -> 2.5212
D27: 2 | E27: =VLOOKUP($C$26&D27,表A_RAW!A:I,3,FALSE) -> 3067 全域 | G27: =IF(ISERROR(VLOOKUP($E27,表A_RAW!$C:$I,4,0)),"",VLOOKUP($E27,表A_RAW!$C:$I,4,0)) -> 5548 | H27: =IF(ISERROR(VLOOKUP($E27,表B_RAW!$C:$I,5,0)),"",VLOOKUP($E27,表B_RAW!$C:$I,5,0)) -> 3494 | I27: =IF(ISERROR(VLOOKUP($E27,表B_RAW!$C:$I,6,0)),"",VLOOKUP($E27,表B_RAW!$C:$I,6,0)/100) -> 0.5879 | J27: =IF(ISERROR(VLOOKUP($E27,表A_RAW!$C:$I,5,0)),"",VLOOKUP($E27,表A_RAW!$C:$I,5,0)) -> 1736 | K27: =IF(ISERROR(VLOOKUP($E27,表A_RAW!$C:$I,7,0)),"",VLOOKUP($E27,表A_RAW!$C:$I,7,0)) -> 2.195852535 | L27: =IF(ISERROR(VLOOKUP($E27,表C_RAW!$C:$I,4,0)),"",VLOOKUP($E27,表C_RAW!$C:$I,4,0)) -> 23424 | M27: =IF(ISERROR(VLOOKUP($E27,表C_RAW!$C:$I,5,0)),"",VLOOKUP($E27,表C_RAW!$C:$I,5,0)) -> 34467 | N27: =IF(ISERROR(VLOOKUP($E27,表C_RAW!$C:$I,6,0)),"",VLOOKUP($E27,表C_RAW!$C:$I,6,0)/100) -> -0.3204
D28: 3 | E28: =VLOOKUP($C$26&D28,表A_RAW!A:I,3,FALSE) -> 3093 港建* | G28: =IF(ISERROR(VLOOKUP($E28,表A_RAW!$C:$I,4,0)),"",VLOOKUP($E28,表A_RAW!$C:$I,4,0)) -> 213080 | H28: =IF(ISERROR(VLOOKUP($E28,表B_RAW!$C:$I,5,0)),"",VLOOKUP($E28,表B_RAW!$C:$I,5,0)) -> 262552 | I28: =IF(ISERROR(VLOOKUP($E28,表B_RAW!$C:$I,6,0)),"",VLOOKUP($E28,表B_RAW!$C:$I,6,0)/100) -> -0.1884 | J28: =IF(ISERROR(VLOOKUP($E28,表A_RAW!$C:$I,5,0)),"",VLOOKUP($E28,表A_RAW!$C:$I,5,0)) -> 101521 | K28: =IF(ISERROR(VLOOKUP($E28,表A_RAW!$C:$I,7,0)),"",VLOOKUP($E28,表A_RAW!$C:$I,7,0)) -> 1.098876095 | L28: =IF(ISERROR(VLOOKUP($E28,表C_RAW!$C:$I,4,0)),"",VLOOKUP($E28,表C_RAW!$C:$I,4,0)) -> 1048168 | M28: =IF(ISERROR(VLOOKUP($E28,表C_RAW!$C:$I,5,0)),"",VLOOKUP($E28,表C_RAW!$C:$I,5,0)) -> 392369 | N28: =IF(ISERROR(VLOOKUP($E28,表C_RAW!$C:$I,6,0)),"",VLOOKUP($E28,表C_RAW!$C:$I,6,0)/100) -> 1.6714
C29: =VLOOKUP(B26,表A_RAW!N:T,7,0) -> 12.55333666 | D29: 4 | E29: =VLOOKUP($C$26&D29,表A_RAW!A:I,3,FALSE) -> 6667 信紘科 | G29: =IF(ISERROR(VLOOKUP($E29,表A_RAW!$C:$I,4,0)),"",VLOOKUP($E29,表A_RAW!$C:$I,4,0)) -> 482741 | H29: =IF(ISERROR(VLOOKUP($E29,表B_RAW!$C:$I,5,0)),"",VLOOKUP($E29,表B_RAW!$C:$I,5,0)) -> 488304 | I29: =IF(ISERROR(VLOOKUP($E29,表B_RAW!$C:$I,6,0)),"",VLOOKUP($E29,表B_RAW!$C:$I,6,0)/100) -> -0.0114 | J29: =IF(ISERROR(VLOOKUP($E29,表A_RAW!$C:$I,5,0)),"",VLOOKUP($E29,表A_RAW!$C:$I,5,0)) -> 243437 | K29: =IF(ISERROR(VLOOKUP($E29,表A_RAW!$C:$I,7,0)),"",VLOOKUP($E29,表A_RAW!$C:$I,7,0)) -> 0.9830223015 | L29: =IF(ISERROR(VLOOKUP($E29,表C_RAW!$C:$I,4,0)),"",VLOOKUP($E29,表C_RAW!$C:$I,4,0)) -> 2325547 | M29: =IF(ISERROR(VLOOKUP($E29,表C_RAW!$C:$I,5,0)),"",VLOOKUP($E29,表C_RAW!$C:$I,5,0)) -> 1146404 | N29: =IF(ISERROR(VLOOKUP($E29,表C_RAW!$C:$I,6,0)),"",VLOOKUP($E29,表C_RAW!$C:$I,6,0)/100) -> 1.0286
D30: 5 | E30: =VLOOKUP($C$26&D30,表A_RAW!A:I,3,FALSE) -> 6739 竹陞科技 | G30: =IF(ISERROR(VLOOKUP($E30,表A_RAW!$C:$I,4,0)),"",VLOOKUP($E30,表A_RAW!$C:$I,4,0)) -> 60311 | H30: =IF(ISERROR(VLOOKUP($E30,表B_RAW!$C:$I,5,0)),"",VLOOKUP($E30,表B_RAW!$C:$I,5,0)) -> 55061 | I30: =IF(ISERROR(VLOOKUP($E30,表B_RAW!$C:$I,6,0)),"",VLOOKUP($E30,表B_RAW!$C:$I,6,0)/100) -> 0.0953 | J30: =IF(ISERROR(VLOOKUP($E30,表A_RAW!$C:$I,5,0)),"",VLOOKUP($E30,表A_RAW!$C:$I,5,0)) -> 32615 | K30: =IF(ISERROR(VLOOKUP($E30,表A_RAW!$C:$I,7,0)),"",VLOOKUP($E30,表A_RAW!$C:$I,7,0)) -> 0.8491798252 | L30: =IF(ISERROR(VLOOKUP($E30,表C_RAW!$C:$I,4,0)),"",VLOOKUP($E30,表C_RAW!$C:$I,4,0)) -> 263236 | M30: =IF(ISERROR(VLOOKUP($E30,表C_RAW!$C:$I,5,0)),"",VLOOKUP($E30,表C_RAW!$C:$I,5,0)) -> 139838 | N30: =IF(ISERROR(VLOOKUP($E30,表C_RAW!$C:$I,6,0)),"",VLOOKUP($E30,表C_RAW!$C:$I,6,0)/100) -> 0.8824
B32: 衰退前五名之產業 YOY(單月)% | D32: 該產業衰退前五名之公司 YOY(單月)% | G32: 單月營收金額(千元) | H32: 本月與上月相較 | J32: 本月與去年同期相較 | L32: 累計營收金額(千元) | M32: 累計營收與去年同期相較
B33: 衰退 排名 | C33: 產業 | D33: 排名 | E33: 公司代號&簡稱 | H33: 上月營收金額(千元) | I33: 較上月變動比率(%) | J33: 去年同期金額(千元) | K33: 較去年同期變動比率(%) | M33: 去年累計營收金額(千元) | N33: 較去年同期變動比率(%)
B34: 1 | C34: =VLOOKUP(B34,表A_RAW!O:T,2,0) -> 金融業 | D34: 1 | E34: =VLOOKUP($C$34&D34,表A_RAW!B:I,2,0) -> 2883 凱基金 | G34: =IF(ISERROR(VLOOKUP($E34,表A_RAW!$C:$I,4,0)),"",VLOOKUP($E34,表A_RAW!$C:$I,4,0)) -> -15937728 | H34: =IF(ISERROR(VLOOKUP($E34,表B_RAW!$C:$I,5,0)),"",VLOOKUP($E34,表B_RAW!$C:$I,5,0)) -> 1487116 | I34: =IF(ISERROR(VLOOKUP($E34,表B_RAW!$C:$I,6,0)),"",VLOOKUP($E34,表B_RAW!$C:$I,6,0)/100) -> -11.7172 | J34: =IF(ISERROR(VLOOKUP($E34,表A_RAW!$C:$I,5,0)),"",VLOOKUP($E34,表A_RAW!$C:$I,5,0)) -> 160627 | K34: =IF(ISERROR(VLOOKUP($E34,表A_RAW!$C:$I,7,0)),"",VLOOKUP($E34,表A_RAW!$C:$I,7,0)) -> -100.2219739 | L34: =IF(ISERROR(VLOOKUP($E34,表C_RAW!$C:$I,4,0)),"",VLOOKUP($E34,表C_RAW!$C:$I,4,0)) -> 12868723 | M34: =IF(ISERROR(VLOOKUP($E34,表C_RAW!$C:$I,5,0)),"",VLOOKUP($E34,表C_RAW!$C:$I,5,0)) -> 23478200 | N34: =IF(ISERROR(VLOOKUP($E34,表C_RAW!$C:$I,6,0)),"",VLOOKUP($E34,表C_RAW!$C:$I,6,0)/100) -> -0.4519
D35: 2 | E35: =VLOOKUP($C$34&D35,表A_RAW!B:I,2,0) -> 2888 新光金 | G35: =IF(ISERROR(VLOOKUP($E35,表A_RAW!$C:$I,4,0)),"",VLOOKUP($E35,表A_RAW!$C:$I,4,0)) -> -20840092 | H35: =IF(ISERROR(VLOOKUP($E35,表B_RAW!$C:$I,5,0)),"",VLOOKUP($E35,表B_RAW!$C:$I,5,0)) -> -6299405 | I35: =IF(ISERROR(VLOOKUP($E35,表B_RAW!$C:$I,6,0)),"",VLOOKUP($E35,表B_RAW!$C:$I,6,0)/100) -> -2.3083 | J35: =IF(ISERROR(VLOOKUP($E35,表A_RAW!$C:$I,5,0)),"",VLOOKUP($E35,表A_RAW!$C:$I,5,0)) -> -2713493 | K35: =IF(ISERROR(VLOOKUP($E35,表A_RAW!$C:$I,7,0)),"",VLOOKUP($E35,表A_RAW!$C:$I,7,0)) -> -6.680171646 | L35: =IF(ISERROR(VLOOKUP($E35,表C_RAW!$C:$I,4,0)),"",VLOOKUP($E35,表C_RAW!$C:$I,4,0)) -> -20717921 | M35: =IF(ISERROR(VLOOKUP($E35,表C_RAW!$C:$I,5,0)),"",VLOOKUP($E35,表C_RAW!$C:$I,5,0)) -> 19668832 | N35: =IF(ISERROR(VLOOKUP($E35,表C_RAW!$C:$I,6,0)),"",VLOOKUP($E35,表C_RAW!$C:$I,6,0)/100) -> -2.0533
D36: 3 | E36: =VLOOKUP($C$34&D36,表A_RAW!B:I,2,0) -> 2867 三商壽 | G36: =IF(ISERROR(VLOOKUP($E36,表A_RAW!$C:$I,4,0)),"",VLOOKUP($E36,表A_RAW!$C:$I,4,0)) -> -12713380 | H36: =IF(ISERROR(VLOOKUP($E36,表B_RAW!$C:$I,5,0)),"",VLOOKUP($E36,表B_RAW!$C:$I,5,0)) -> 6830024 | I36: =IF(ISERROR(VLOOKUP($E36,表B_RAW!$C:$I,6,0)),"",VLOOKUP($E36,表B_RAW!$C:$I,6,0)/100) -> -2.8614 | J36: =IF(ISERROR(VLOOKUP($E36,表A_RAW!$C:$I,5,0)),"",VLOOKUP($E36,表A_RAW!$C:$I,5,0)) -> 9904979 | K36: =IF(ISERROR(VLOOKUP($E36,表A_RAW!$C:$I,7,0)),"",VLOOKUP($E36,表A_RAW!$C:$I,7,0)) -> -2.283534271 | L36: =IF(ISERROR(VLOOKUP($E36,表C_RAW!$C:$I,4,0)),"",VLOOKUP($E36,表C_RAW!$C:$I,4,0)) -> 26923427 | M36: =IF(ISERROR(VLOOKUP($E36,表C_RAW!$C:$I,5,0)),"",VLOOKUP($E36,表C_RAW!$C:$I,5,0)) -> 60520248 | N36: =IF(ISERROR(VLOOKUP($E36,表C_RAW!$C:$I,6,0)),"",VLOOKUP($E36,表C_RAW!$C:$I,6,0)/100) -> -0.5551
C37: =VLOOKUP(B34,表A_RAW!O:T,6,0) -> -72.00500352 | D37: 4 | E37: =VLOOKUP($C$34&D37,表A_RAW!B:I,2,0) -> 2881 富邦金 | G37: =IF(ISERROR(VLOOKUP($E37,表A_RAW!$C:$I,4,0)),"",VLOOKUP($E37,表A_RAW!$C:$I,4,0)) -> -15180707 | H37: =IF(ISERROR(VLOOKUP($E37,表B_RAW!$C:$I,5,0)),"",VLOOKUP($E37,表B_RAW!$C:$I,5,0)) -> -12096204 | I37: =IF(ISERROR(VLOOKUP($E37,表B_RAW!$C:$I,6,0)),"",VLOOKUP($E37,表B_RAW!$C:$I,6,0)/100) -> -0.255 | J37: =IF(ISERROR(VLOOKUP($E37,表A_RAW!$C:$I,5,0)),"",VLOOKUP($E37,表A_RAW!$C:$I,5,0)) -> 25041290 | K37: =IF(ISERROR(VLOOKUP($E37,表A_RAW!$C:$I,7,0)),"",VLOOKUP($E37,表A_RAW!$C:$I,7,0)) -> -1.606227035 | L37: =IF(ISERROR(VLOOKUP($E37,表C_RAW!$C:$I,4,0)),"",VLOOKUP($E37,表C_RAW!$C:$I,4,0)) -> 81836340 | M37: =IF(ISERROR(VLOOKUP($E37,表C_RAW!$C:$I,5,0)),"",VLOOKUP($E37,表C_RAW!$C:$I,5,0)) -> 141215662 | N37: =IF(ISERROR(VLOOKUP($E37,表C_RAW!$C:$I,6,0)),"",VLOOKUP($E37,表C_RAW!$C:$I,6,0)/100) -> -0.4205
D38: 5 | E38: =VLOOKUP($C$34&D38,表A_RAW!B:I,2,0) -> 6020 大展證 | G38: =IF(ISERROR(VLOOKUP($E38,表A_RAW!$C:$I,4,0)),"",VLOOKUP($E38,表A_RAW!$C:$I,4,0)) -> 22592 | H38: =IF(ISERROR(VLOOKUP($E38,表B_RAW!$C:$I,5,0)),"",VLOOKUP($E38,表B_RAW!$C:$I,5,0)) -> -19356 | I38: =IF(ISERROR(VLOOKUP($E38,表B_RAW!$C:$I,6,0)),"",VLOOKUP($E38,表B_RAW!$C:$I,6,0)/100) -> 2.1672 | J38: =IF(ISERROR(VLOOKUP($E38,表A_RAW!$C:$I,5,0)),"",VLOOKUP($E38,表A_RAW!$C:$I,5,0)) -> 47447 | K38: =IF(ISERROR(VLOOKUP($E38,表A_RAW!$C:$I,7,0)),"",VLOOKUP($E38,表A_RAW!$C:$I,7,0)) -> -0.5238476616 | L38: =IF(ISERROR(VLOOKUP($E38,表C_RAW!$C:$I,4,0)),"",VLOOKUP($E38,表C_RAW!$C:$I,4,0)) -> -2664 | M38: =IF(ISERROR(VLOOKUP($E38,表C_RAW!$C:$I,5,0)),"",VLOOKUP($E38,表C_RAW!$C:$I,5,0)) -> 194012 | N38: =IF(ISERROR(VLOOKUP($E38,表C_RAW!$C:$I,6,0)),"",VLOOKUP($E38,表C_RAW!$C:$I,6,0)/100) -> -1.0137
B39: 2 | C39: =VLOOKUP(B39,表A_RAW!O:T,2,0) -> 油電燃氣業 | D39: 1 | E39: =VLOOKUP($C$39&D39,表A_RAW!B:I,2,0) -> 9931 欣高 | G39: =IF(ISERROR(VLOOKUP($E39,表A_RAW!$C:$I,4,0)),"",VLOOKUP($E39,表A_RAW!$C:$I,4,0)) -> 114316 | H39: =IF(ISERROR(VLOOKUP($E39,表B_RAW!$C:$I,5,0)),"",VLOOKUP($E39,表B_RAW!$C:$I,5,0)) -> 148370 | I39: =IF(ISERROR(VLOOKUP($E39,表B_RAW!$C:$I,6,0)),"",VLOOKUP($E39,表B_RAW!$C:$I,6,0)/100) -> -0.2295 | J39: =IF(ISERROR(VLOOKUP($E39,表A_RAW!$C:$I,5,0)),"",VLOOKUP($E39,表A_RAW!$C:$I,5,0)) -> 266859 | K39: =IF(ISERROR(VLOOKUP($E39,表A_RAW!$C:$I,7,0)),"",VLOOKUP($E39,表A_RAW!$C:$I,7,0)) -> -0.5716239662 | L39: =IF(ISERROR(VLOOKUP($E39,表C_RAW!$C:$I,4,0)),"",VLOOKUP($E39,表C_RAW!$C:$I,4,0)) -> 683304 | M39: =IF(ISERROR(VLOOKUP($E39,表C_RAW!$C:$I,5,0)),"",VLOOKUP($E39,表C_RAW!$C:$I,5,0)) -> 1115109 | N39: =IF(ISERROR(VLOOKUP($E39,表C_RAW!$C:$I,6,0)),"",VLOOKUP($E39,表C_RAW!$C:$I,6,0)/100) -> -0.3872
D40: 2 | E40: =VLOOKUP($C$39&D40,表A_RAW!B:I,2,0) -> 2616 山隆 | G40: =IF(ISERROR(VLOOKUP($E40,表A_RAW!$C:$I,4,0)),"",VLOOKUP($E40,表A_RAW!$C:$I,4,0)) -> 669256 | H40: =IF(ISERROR(VLOOKUP($E40,表B_RAW!$C:$I,5,0)),"",VLOOKUP($E40,表B_RAW!$C:$I,5,0)) -> 660945 | I40: =IF(ISERROR(VLOOKUP($E40,表B_RAW!$C:$I,6,0)),"",VLOOKUP($E40,表B_RAW!$C:$I,6,0)/100) -> 0.0126 | J40: =IF(ISERROR(VLOOKUP($E40,表A_RAW!$C:$I,5,0)),"",VLOOKUP($E40,表A_RAW!$C:$I,5,0)) -> 1061037 | K40: =IF(ISERROR(VLOOKUP($E40,表A_RAW!$C:$I,7,0)),"",VLOOKUP($E40,表A_RAW!$C:$I,7,0)) -> -0.3692434854 | L40: =IF(ISERROR(VLOOKUP($E40,表C_RAW!$C:$I,4,0)),"",VLOOKUP($E40,表C_RAW!$C:$I,4,0)) -> 3339951 | M40: =IF(ISERROR(VLOOKUP($E40,表C_RAW!$C:$I,5,0)),"",VLOOKUP($E40,表C_RAW!$C:$I,5,0)) -> 5731828 | N40: =IF(ISERROR(VLOOKUP($E40,表C_RAW!$C:$I,6,0)),"",VLOOKUP($E40,表C_RAW!$C:$I,6,0)/100) -> -0.4173
D41: 3 | E41: =VLOOKUP($C$39&D41,表A_RAW!B:I,2,0) -> 8927 北基 | G41: =IF(ISERROR(VLOOKUP($E41,表A_RAW!$C:$I,4,0)),"",VLOOKUP($E41,表A_RAW!$C:$I,4,0)) -> 796008 | H41: =IF(ISERROR(VLOOKUP($E41,表B_RAW!$C:$I,5,0)),"",VLOOKUP($E41,表B_RAW!$C:$I,5,0)) -> 901070 | I41: =IF(ISERROR(VLOOKUP($E41,表B_RAW!$C:$I,6,0)),"",VLOOKUP($E41,表B_RAW!$C:$I,6,0)/100) -> -0.1166 | J41: =IF(ISERROR(VLOOKUP($E41,表A_RAW!$C:$I,5,0)),"",VLOOKUP($E41,表A_RAW!$C:$I,5,0)) -> 1138060 | K41: =IF(ISERROR(VLOOKUP($E41,表A_RAW!$C:$I,7,0)),"",VLOOKUP($E41,表A_RAW!$C:$I,7,0)) -> -0.3005570884 | L41: =IF(ISERROR(VLOOKUP($E41,表C_RAW!$C:$I,4,0)),"",VLOOKUP($E41,表C_RAW!$C:$I,4,0)) -> 4287691 | M41: =IF(ISERROR(VLOOKUP($E41,表C_RAW!$C:$I,5,0)),"",VLOOKUP($E41,表C_RAW!$C:$I,5,0)) -> 4826072 | N41: =IF(ISERROR(VLOOKUP($E41,表C_RAW!$C:$I,6,0)),"",VLOOKUP($E41,表C_RAW!$C:$I,6,0)/100) -> -0.1116
C42: =VLOOKUP(B39,表A_RAW!O:T,6,0) -> -26.20905498 | D42: 4 | E42: =VLOOKUP($C$39&D42,表A_RAW!B:I,2,0) -> 6505 台塑化 | G42: =IF(ISERROR(VLOOKUP($E42,表A_RAW!$C:$I,4,0)),"",VLOOKUP($E42,表A_RAW!$C:$I,4,0)) -> 45539031 | H42: =IF(ISERROR(VLOOKUP($E42,表B_RAW!$C:$I,5,0)),"",VLOOKUP($E42,表B_RAW!$C:$I,5,0)) -> 46250613 | I42: =IF(ISERROR(VLOOKUP($E42,表B_RAW!$C:$I,6,0)),"",VLOOKUP($E42,表B_RAW!$C:$I,6,0)/100) -> -0.0154 | J42: =IF(ISERROR(VLOOKUP($E42,表A_RAW!$C:$I,5,0)),"",VLOOKUP($E42,表A_RAW!$C:$I,5,0)) -> 63506779 | K42: =IF(ISERROR(VLOOKUP($E42,表A_RAW!$C:$I,7,0)),"",VLOOKUP($E42,表A_RAW!$C:$I,7,0)) -> -0.2829264573 | L42: =IF(ISERROR(VLOOKUP($E42,表C_RAW!$C:$I,4,0)),"",VLOOKUP($E42,表C_RAW!$C:$I,4,0)) -> 265056930 | M42: =IF(ISERROR(VLOOKUP($E42,表C_RAW!$C:$I,5,0)),"",VLOOKUP($E42,表C_RAW!$C:$I,5,0)) -> 285420291 | N42: =IF(ISERROR(VLOOKUP($E42,表C_RAW!$C:$I,6,0)),"",VLOOKUP($E42,表C_RAW!$C:$I,6,0)/100) -> -0.0713
D43: 5 | E43: =VLOOKUP($C$39&D43,表A_RAW!B:I,2,0) -> 9937 全國 | G43: =IF(ISERROR(VLOOKUP($E43,表A_RAW!$C:$I,4,0)),"",VLOOKUP($E43,表A_RAW!$C:$I,4,0)) -> 1853598 | H43: =IF(ISERROR(VLOOKUP($E43,表B_RAW!$C:$I,5,0)),"",VLOOKUP($E43,表B_RAW!$C:$I,5,0)) -> 1922105 | I43: =IF(ISERROR(VLOOKUP($E43,表B_RAW!$C:$I,6,0)),"",VLOOKUP($E43,表B_RAW!$C:$I,6,0)/100) -> -0.0356 | J43: =IF(ISERROR(VLOOKUP($E43,表A_RAW!$C:$I,5,0)),"",VLOOKUP($E43,表A_RAW!$C:$I,5,0)) -> 2084126 | K43: =IF(ISERROR(VLOOKUP($E43,表A_RAW!$C:$I,7,0)),"",VLOOKUP($E43,表A_RAW!$C:$I,7,0)) -> -0.1106113546 | L43: =IF(ISERROR(VLOOKUP($E43,表C_RAW!$C:$I,4,0)),"",VLOOKUP($E43,表C_RAW!$C:$I,4,0)) -> 9574753 | M43: =IF(ISERROR(VLOOKUP($E43,表C_RAW!$C:$I,5,0)),"",VLOOKUP($E43,表C_RAW!$C:$I,5,0)) -> 9913966 | N43: =IF(ISERROR(VLOOKUP($E43,表C_RAW!$C:$I,6,0)),"",VLOOKUP($E43,表C_RAW!$C:$I,6,0)/100) -> -0.0342
B44: 3 | C44: =VLOOKUP(B44,表A_RAW!O:T,2,0) -> 建材營造 | D44: 1 | E44: =VLOOKUP($C$44&D44,表A_RAW!B:I,2,0) -> 1438 三地開發 | G44: =IF(ISERROR(VLOOKUP($E44,表A_RAW!$C:$I,4,0)),"",VLOOKUP($E44,表A_RAW!$C:$I,4,0)) -> 0 | H44: =IF(ISERROR(VLOOKUP($E44,表B_RAW!$C:$I,5,0)),"",VLOOKUP($E44,表B_RAW!$C:$I,5,0)) -> 0 | I44: =IF(ISERROR(VLOOKUP($E44,表B_RAW!$C:$I,6,0)),"",VLOOKUP($E44,表B_RAW!$C:$I,6,0)/100) -> 0 | J44: =IF(ISERROR(VLOOKUP($E44,表A_RAW!$C:$I,5,0)),"",VLOOKUP($E44,表A_RAW!$C:$I,5,0)) -> 1660 | K44: =IF(ISERROR(VLOOKUP($E44,表A_RAW!$C:$I,7,0)),"",VLOOKUP($E44,表A_RAW!$C:$I,7,0)) -> -1 | L44: =IF(ISERROR(VLOOKUP($E44,表C_RAW!$C:$I,4,0)),"",VLOOKUP($E44,表C_RAW!$C:$I,4,0)) -> 241 | M44: =IF(ISERROR(VLOOKUP($E44,表C_RAW!$C:$I,5,0)),"",VLOOKUP($E44,表C_RAW!$C:$I,5,0)) -> 1660 | N44: =IF(ISERROR(VLOOKUP($E44,表C_RAW!$C:$I,6,0)),"",VLOOKUP($E44,表C_RAW!$C:$I,6,0)/100) -> -0.8548
D45: 2 | E45: =VLOOKUP($C$44&D45,表A_RAW!B:I,2,0) -> 4113 聯上 | G45: =IF(ISERROR(VLOOKUP($E45,表A_RAW!$C:$I,4,0)),"",VLOOKUP($E45,表A_RAW!$C:$I,4,0)) -> 53 | H45: =IF(ISERROR(VLOOKUP($E45,表B_RAW!$C:$I,5,0)),"",VLOOKUP($E45,表B_RAW!$C:$I,5,0)) -> 47345 | I45: =IF(ISERROR(VLOOKUP($E45,表B_RAW!$C:$I,6,0)),"",VLOOKUP($E45,表B_RAW!$C:$I,6,0)/100) -> -0.9989 | J45: =IF(ISERROR(VLOOKUP($E45,表A_RAW!$C:$I,5,0)),"",VLOOKUP($E45,表A_RAW!$C:$I,5,0)) -> 1014571 | K45: =IF(ISERROR(VLOOKUP($E45,表A_RAW!$C:$I,7,0)),"",VLOOKUP($E45,表A_RAW!$C:$I,7,0)) -> -0.9999477612 | L45: =IF(ISERROR(VLOOKUP($E45,表C_RAW!$C:$I,4,0)),"",VLOOKUP($E45,表C_RAW!$C:$I,4,0)) -> 520239 | M45: =IF(ISERROR(VLOOKUP($E45,表C_RAW!$C:$I,5,0)),"",VLOOKUP($E45,表C_RAW!$C:$I,5,0)) -> 2946300 | N45: =IF(ISERROR(VLOOKUP($E45,表C_RAW!$C:$I,6,0)),"",VLOOKUP($E45,表C_RAW!$C:$I,6,0)/100) -> -0.8234
D46: 3 | E46: =VLOOKUP($C$44&D46,表A_RAW!B:I,2,0) -> 1808 潤隆 | G46: =IF(ISERROR(VLOOKUP($E46,表A_RAW!$C:$I,4,0)),"",VLOOKUP($E46,表A_RAW!$C:$I,4,0)) -> 2004 | H46: =IF(ISERROR(VLOOKUP($E46,表B_RAW!$C:$I,5,0)),"",VLOOKUP($E46,表B_RAW!$C:$I,5,0)) -> 34068 | I46: =IF(ISERROR(VLOOKUP($E46,表B_RAW!$C:$I,6,0)),"",VLOOKUP($E46,表B_RAW!$C:$I,6,0)/100) -> -0.9412 | J46: =IF(ISERROR(VLOOKUP($E46,表A_RAW!$C:$I,5,0)),"",VLOOKUP($E46,表A_RAW!$C:$I,5,0)) -> 2359830 | K46: =IF(ISERROR(VLOOKUP($E46,表A_RAW!$C:$I,7,0)),"",VLOOKUP($E46,表A_RAW!$C:$I,7,0)) -> -0.9991507863 | L46: =IF(ISERROR(VLOOKUP($E46,表C_RAW!$C:$I,4,0)),"",VLOOKUP($E46,表C_RAW!$C:$I,4,0)) -> 66982 | M46: =IF(ISERROR(VLOOKUP($E46,表C_RAW!$C:$I,5,0)),"",VLOOKUP($E46,表C_RAW!$C:$I,5,0)) -> 5100234 | N46: =IF(ISERROR(VLOOKUP($E46,表C_RAW!$C:$I,6,0)),"",VLOOKUP($E46,表C_RAW!$C:$I,6,0)/100) -> -0.9869
C47: =VLOOKUP(B44,表A_RAW!O:T,6,0) -> -20.4966394 | D47: 4 | E47: =VLOOKUP($C$44&D47,表A_RAW!B:I,2,0) -> 6219 富旺 | G47: =IF(ISERROR(VLOOKUP($E47,表A_RAW!$C:$I,4,0)),"",VLOOKUP($E47,表A_RAW!$C:$I,4,0)) -> 231 | H47: =IF(ISERROR(VLOOKUP($E47,表B_RAW!$C:$I,5,0)),"",VLOOKUP($E47,表B_RAW!$C:$I,5,0)) -> 295 | I47: =IF(ISERROR(VLOOKUP($E47,表B_RAW!$C:$I,6,0)),"",VLOOKUP($E47,表B_RAW!$C:$I,6,0)/100) -> -0.2169 | J47: =IF(ISERROR(VLOOKUP($E47,表A_RAW!$C:$I,5,0)),"",VLOOKUP($E47,表A_RAW!$C:$I,5,0)) -> 227445 | K47: =IF(ISERROR(VLOOKUP($E47,表A_RAW!$C:$I,7,0)),"",VLOOKUP($E47,表A_RAW!$C:$I,7,0)) -> -0.9989843698 | L47: =IF(ISERROR(VLOOKUP($E47,表C_RAW!$C:$I,4,0)),"",VLOOKUP($E47,表C_RAW!$C:$I,4,0)) -> 6592 | M47: =IF(ISERROR(VLOOKUP($E47,表C_RAW!$C:$I,5,0)),"",VLOOKUP($E47,表C_RAW!$C:$I,5,0)) -> 1097886 | N47: =IF(ISERROR(VLOOKUP($E47,表C_RAW!$C:$I,6,0)),"",VLOOKUP($E47,表C_RAW!$C:$I,6,0)/100) -> -0.994
D48: 5 | E48: =VLOOKUP($C$44&D48,表A_RAW!B:I,2,0) -> 6171 大城地產 | G48: =IF(ISERROR(VLOOKUP($E48,表A_RAW!$C:$I,4,0)),"",VLOOKUP($E48,表A_RAW!$C:$I,4,0)) -> 33 | H48: =IF(ISERROR(VLOOKUP($E48,表B_RAW!$C:$I,5,0)),"",VLOOKUP($E48,表B_RAW!$C:$I,5,0)) -> 33 | I48: =IF(ISERROR(VLOOKUP($E48,表B_RAW!$C:$I,6,0)),"",VLOOKUP($E48,表B_RAW!$C:$I,6,0)/100) -> 0 | J48: =IF(ISERROR(VLOOKUP($E48,表A_RAW!$C:$I,5,0)),"",VLOOKUP($E48,表A_RAW!$C:$I,5,0)) -> 12709 | K48: =IF(ISERROR(VLOOKUP($E48,表A_RAW!$C:$I,7,0)),"",VLOOKUP($E48,表A_RAW!$C:$I,7,0)) -> -0.9974034149 | L48: =IF(ISERROR(VLOOKUP($E48,表C_RAW!$C:$I,4,0)),"",VLOOKUP($E48,表C_RAW!$C:$I,4,0)) -> 15890 | M48: =IF(ISERROR(VLOOKUP($E48,表C_RAW!$C:$I,5,0)),"",VLOOKUP($E48,表C_RAW!$C:$I,5,0)) -> 23987 | N48: =IF(ISERROR(VLOOKUP($E48,表C_RAW!$C:$I,6,0)),"",VLOOKUP($E48,表C_RAW!$C:$I,6,0)/100) -> -0.3376
B49: 4 | C49: =VLOOKUP(B49,表A_RAW!O:T,2,0) -> 塑膠工業 | D49: 1 | E49: =VLOOKUP($C$49&D49,表A_RAW!B:I,2,0) -> 4306 炎洲 | G49: =IF(ISERROR(VLOOKUP($E49,表A_RAW!$C:$I,4,0)),"",VLOOKUP($E49,表A_RAW!$C:$I,4,0)) -> 998724 | H49: =IF(ISERROR(VLOOKUP($E49,表B_RAW!$C:$I,5,0)),"",VLOOKUP($E49,表B_RAW!$C:$I,5,0)) -> 1035112 | I49: =IF(ISERROR(VLOOKUP($E49,表B_RAW!$C:$I,6,0)),"",VLOOKUP($E49,表B_RAW!$C:$I,6,0)/100) -> -0.0352 | J49: =IF(ISERROR(VLOOKUP($E49,表A_RAW!$C:$I,5,0)),"",VLOOKUP($E49,表A_RAW!$C:$I,5,0)) -> 1947182 | K49: =IF(ISERROR(VLOOKUP($E49,表A_RAW!$C:$I,7,0)),"",VLOOKUP($E49,表A_RAW!$C:$I,7,0)) -> -0.4870926292 | L49: =IF(ISERROR(VLOOKUP($E49,表C_RAW!$C:$I,4,0)),"",VLOOKUP($E49,表C_RAW!$C:$I,4,0)) -> 5033207 | M49: =IF(ISERROR(VLOOKUP($E49,表C_RAW!$C:$I,5,0)),"",VLOOKUP($E49,表C_RAW!$C:$I,5,0)) -> 6225250 | N49: =IF(ISERROR(VLOOKUP($E49,表C_RAW!$C:$I,6,0)),"",VLOOKUP($E49,表C_RAW!$C:$I,6,0)/100) -> -0.1915
D50: 2 | E50: =VLOOKUP($C$49&D50,表A_RAW!B:I,2,0) -> 1314 中石化 | G50: =IF(ISERROR(VLOOKUP($E50,表A_RAW!$C:$I,4,0)),"",VLOOKUP($E50,表A_RAW!$C:$I,4,0)) -> 1696761 | H50: =IF(ISERROR(VLOOKUP($E50,表B_RAW!$C:$I,5,0)),"",VLOOKUP($E50,表B_RAW!$C:$I,5,0)) -> 1739506 | I50: =IF(ISERROR(VLOOKUP($E50,表B_RAW!$C:$I,6,0)),"",VLOOKUP($E50,表B_RAW!$C:$I,6,0)/100) -> -0.0246 | J50: =IF(ISERROR(VLOOKUP($E50,表A_RAW!$C:$I,5,0)),"",VLOOKUP($E50,表A_RAW!$C:$I,5,0)) -> 3133666 | K50: =IF(ISERROR(VLOOKUP($E50,表A_RAW!$C:$I,7,0)),"",VLOOKUP($E50,表A_RAW!$C:$I,7,0)) -> -0.458538019 | L50: =IF(ISERROR(VLOOKUP($E50,表C_RAW!$C:$I,4,0)),"",VLOOKUP($E50,表C_RAW!$C:$I,4,0)) -> 9953922 | M50: =IF(ISERROR(VLOOKUP($E50,表C_RAW!$C:$I,5,0)),"",VLOOKUP($E50,表C_RAW!$C:$I,5,0)) -> 14118455 | N50: =IF(ISERROR(VLOOKUP($E50,表C_RAW!$C:$I,6,0)),"",VLOOKUP($E50,表C_RAW!$C:$I,6,0)/100) -> -0.295
D51: 3 | E51: =VLOOKUP($C$49&D51,表A_RAW!B:I,2,0) -> 1340 勝悅-KY | G51: =IF(ISERROR(VLOOKUP($E51,表A_RAW!$C:$I,4,0)),"",VLOOKUP($E51,表A_RAW!$C:$I,4,0)) -> 23241 | H51: =IF(ISERROR(VLOOKUP($E51,表B_RAW!$C:$I,5,0)),"",VLOOKUP($E51,表B_RAW!$C:$I,5,0)) -> 28106 | I51: =IF(ISERROR(VLOOKUP($E51,表B_RAW!$C:$I,6,0)),"",VLOOKUP($E51,表B_RAW!$C:$I,6,0)/100) -> -0.1731 | J51: =IF(ISERROR(VLOOKUP($E51,表A_RAW!$C:$I,5,0)),"",VLOOKUP($E51,表A_RAW!$C:$I,5,0)) -> 42775 | K51: =IF(ISERROR(VLOOKUP($E51,表A_RAW!$C:$I,7,0)),"",VLOOKUP($E51,表A_RAW!$C:$I,7,0)) -> -0.4566686148 | L51: =IF(ISERROR(VLOOKUP($E51,表C_RAW!$C:$I,4,0)),"",VLOOKUP($E51,表C_RAW!$C:$I,4,0)) -> 112401 | M51: =IF(ISERROR(VLOOKUP($E51,表C_RAW!$C:$I,5,0)),"",VLOOKUP($E51,表C_RAW!$C:$I,5,0)) -> 160236 | N51: =IF(ISERROR(VLOOKUP($E51,表C_RAW!$C:$I,6,0)),"",VLOOKUP($E51,表C_RAW!$C:$I,6,0)/100) -> -0.2985
C52: =VLOOKUP(B49,表A_RAW!O:T,6,0) -> -19.48454617 | D52: 4 | E52: =VLOOKUP($C$49&D52,表A_RAW!B:I,2,0) -> 1321 大洋 | G52: =IF(ISERROR(VLOOKUP($E52,表A_RAW!$C:$I,4,0)),"",VLOOKUP($E52,表A_RAW!$C:$I,4,0)) -> 319215 | H52: =IF(ISERROR(VLOOKUP($E52,表B_RAW!$C:$I,5,0)),"",VLOOKUP($E52,表B_RAW!$C:$I,5,0)) -> 317330 | I52: =IF(ISERROR(VLOOKUP($E52,表B_RAW!$C:$I,6,0)),"",VLOOKUP($E52,表B_RAW!$C:$I,6,0)/100) -> 0.0059 | J52: =IF(ISERROR(VLOOKUP($E52,表A_RAW!$C:$I,5,0)),"",VLOOKUP($E52,表A_RAW!$C:$I,5,0)) -> 498956 | K52: =IF(ISERROR(VLOOKUP($E52,表A_RAW!$C:$I,7,0)),"",VLOOKUP($E52,表A_RAW!$C:$I,7,0)) -> -0.3602341689 | L52: =IF(ISERROR(VLOOKUP($E52,表C_RAW!$C:$I,4,0)),"",VLOOKUP($E52,表C_RAW!$C:$I,4,0)) -> 1633740 | M52: =IF(ISERROR(VLOOKUP($E52,表C_RAW!$C:$I,5,0)),"",VLOOKUP($E52,表C_RAW!$C:$I,5,0)) -> 1999421 | N52: =IF(ISERROR(VLOOKUP($E52,表C_RAW!$C:$I,6,0)),"",VLOOKUP($E52,表C_RAW!$C:$I,6,0)/100) -> -0.1829
D53: 5 | E53: =VLOOKUP($C$49&D53,表A_RAW!B:I,2,0) -> 1323 永裕 | G53: =IF(ISERROR(VLOOKUP($E53,表A_RAW!$C:$I,4,0)),"",VLOOKUP($E53,表A_RAW!$C:$I,4,0)) -> 173860 | H53: =IF(ISERROR(VLOOKUP($E53,表B_RAW!$C:$I,5,0)),"",VLOOKUP($E53,表B_RAW!$C:$I,5,0)) -> 177544 | I53: =IF(ISERROR(VLOOKUP($E53,表B_RAW!$C:$I,6,0)),"",VLOOKUP($E53,表B_RAW!$C:$I,6,0)/100) -> -0.0207 | J53: =IF(ISERROR(VLOOKUP($E53,表A_RAW!$C:$I,5,0)),"",VLOOKUP($E53,表A_RAW!$C:$I,5,0)) -> 268716 | K53: =IF(ISERROR(VLOOKUP($E53,表A_RAW!$C:$I,7,0)),"",VLOOKUP($E53,表A_RAW!$C:$I,7,0)) -> -0.3529972164 | L53: =IF(ISERROR(VLOOKUP($E53,表C_RAW!$C:$I,4,0)),"",VLOOKUP($E53,表C_RAW!$C:$I,4,0)) -> 878457 | M53: =IF(ISERROR(VLOOKUP($E53,表C_RAW!$C:$I,5,0)),"",VLOOKUP($E53,表C_RAW!$C:$I,5,0)) -> 1274949 | N53: =IF(ISERROR(VLOOKUP($E53,表C_RAW!$C:$I,6,0)),"",VLOOKUP($E53,表C_RAW!$C:$I,6,0)/100) -> -0.311
B54: 5 | C54: =VLOOKUP(B54,表A_RAW!O:T,2,0) -> 紡織纖維 | D54: 1 | E54: =VLOOKUP($C$54&D54,表A_RAW!B:I,2,0) -> 1418 東華 | G54: =IF(ISERROR(VLOOKUP($E54,表A_RAW!$C:$I,4,0)),"",VLOOKUP($E54,表A_RAW!$C:$I,4,0)) -> 343 | H54: =IF(ISERROR(VLOOKUP($E54,表B_RAW!$C:$I,5,0)),"",VLOOKUP($E54,表B_RAW!$C:$I,5,0)) -> 348 | I54: =IF(ISERROR(VLOOKUP($E54,表B_RAW!$C:$I,6,0)),"",VLOOKUP($E54,表B_RAW!$C:$I,6,0)/100) -> -0.0144 | J54: =IF(ISERROR(VLOOKUP($E54,表A_RAW!$C:$I,5,0)),"",VLOOKUP($E54,表A_RAW!$C:$I,5,0)) -> 1343 | K54: =IF(ISERROR(VLOOKUP($E54,表A_RAW!$C:$I,7,0)),"",VLOOKUP($E54,表A_RAW!$C:$I,7,0)) -> -0.7446016381 | L54: =IF(ISERROR(VLOOKUP($E54,表C_RAW!$C:$I,4,0)),"",VLOOKUP($E54,表C_RAW!$C:$I,4,0)) -> 3531 | M54: =IF(ISERROR(VLOOKUP($E54,表C_RAW!$C:$I,5,0)),"",VLOOKUP($E54,表C_RAW!$C:$I,5,0)) -> 5794 | N54: =IF(ISERROR(VLOOKUP($E54,表C_RAW!$C:$I,6,0)),"",VLOOKUP($E54,表C_RAW!$C:$I,6,0)/100) -> -0.3906
D55: 2 | E55: =VLOOKUP($C$54&D55,表A_RAW!B:I,2,0) -> 1446 宏和 | G55: =IF(ISERROR(VLOOKUP($E55,表A_RAW!$C:$I,4,0)),"",VLOOKUP($E55,表A_RAW!$C:$I,4,0)) -> 78961 | H55: =IF(ISERROR(VLOOKUP($E55,表B_RAW!$C:$I,5,0)),"",VLOOKUP($E55,表B_RAW!$C:$I,5,0)) -> 384531 | I55: =IF(ISERROR(VLOOKUP($E55,表B_RAW!$C:$I,6,0)),"",VLOOKUP($E55,表B_RAW!$C:$I,6,0)/100) -> -0.7947 | J55: =IF(ISERROR(VLOOKUP($E55,表A_RAW!$C:$I,5,0)),"",VLOOKUP($E55,表A_RAW!$C:$I,5,0)) -> 210934 | K55: =IF(ISERROR(VLOOKUP($E55,表A_RAW!$C:$I,7,0)),"",VLOOKUP($E55,表A_RAW!$C:$I,7,0)) -> -0.6256601591 | L55: =IF(ISERROR(VLOOKUP($E55,表C_RAW!$C:$I,4,0)),"",VLOOKUP($E55,表C_RAW!$C:$I,4,0)) -> 757404 | M55: =IF(ISERROR(VLOOKUP($E55,表C_RAW!$C:$I,5,0)),"",VLOOKUP($E55,表C_RAW!$C:$I,5,0)) -> 1157209 | N55: =IF(ISERROR(VLOOKUP($E55,表C_RAW!$C:$I,6,0)),"",VLOOKUP($E55,表C_RAW!$C:$I,6,0)/100) -> -0.3455
D56: 3 | E56: =VLOOKUP($C$54&D56,表A_RAW!B:I,2,0) -> 1417 嘉裕 | G56: =IF(ISERROR(VLOOKUP($E56,表A_RAW!$C:$I,4,0)),"",VLOOKUP($E56,表A_RAW!$C:$I,4,0)) -> 23747 | H56: =IF(ISERROR(VLOOKUP($E56,表B_RAW!$C:$I,5,0)),"",VLOOKUP($E56,表B_RAW!$C:$I,5,0)) -> 21620 | I56: =IF(ISERROR(VLOOKUP($E56,表B_RAW!$C:$I,6,0)),"",VLOOKUP($E56,表B_RAW!$C:$I,6,0)/100) -> 0.0984 | J56: =IF(ISERROR(VLOOKUP($E56,表A_RAW!$C:$I,5,0)),"",VLOOKUP($E56,表A_RAW!$C:$I,5,0)) -> 55508 | K56: =IF(ISERROR(VLOOKUP($E56,表A_RAW!$C:$I,7,0)),"",VLOOKUP($E56,表A_RAW!$C:$I,7,0)) -> -0.5721877928 | L56: =IF(ISERROR(VLOOKUP($E56,表C_RAW!$C:$I,4,0)),"",VLOOKUP($E56,表C_RAW!$C:$I,4,0)) -> 100509 | M56: =IF(ISERROR(VLOOKUP($E56,表C_RAW!$C:$I,5,0)),"",VLOOKUP($E56,表C_RAW!$C:$I,5,0)) -> 344513 | N56: =IF(ISERROR(VLOOKUP($E56,表C_RAW!$C:$I,6,0)),"",VLOOKUP($E56,表C_RAW!$C:$I,6,0)/100) -> -0.7083
C57: =VLOOKUP(B54,表A_RAW!O:T,6,0) -> -12.08600006 | D57: 4 | E57: =VLOOKUP($C$54&D57,表A_RAW!B:I,2,0) -> 1463 強盛新 | G57: =IF(ISERROR(VLOOKUP($E57,表A_RAW!$C:$I,4,0)),"",VLOOKUP($E57,表A_RAW!$C:$I,4,0)) -> 15686 | H57: =IF(ISERROR(VLOOKUP($E57,表B_RAW!$C:$I,5,0)),"",VLOOKUP($E57,表B_RAW!$C:$I,5,0)) -> 15540 | I57: =IF(ISERROR(VLOOKUP($E57,表B_RAW!$C:$I,6,0)),"",VLOOKUP($E57,表B_RAW!$C:$I,6,0)/100) -> 0.0094 | J57: =IF(ISERROR(VLOOKUP($E57,表A_RAW!$C:$I,5,0)),"",VLOOKUP($E57,表A_RAW!$C:$I,5,0)) -> 32410 | K57: =IF(ISERROR(VLOOKUP($E57,表A_RAW!$C:$I,7,0)),"",VLOOKUP($E57,表A_RAW!$C:$I,7,0)) -> -0.5160135761 | L57: =IF(ISERROR(VLOOKUP($E57,表C_RAW!$C:$I,4,0)),"",VLOOKUP($E57,表C_RAW!$C:$I,4,0)) -> 685467 | M57: =IF(ISERROR(VLOOKUP($E57,表C_RAW!$C:$I,5,0)),"",VLOOKUP($E57,表C_RAW!$C:$I,5,0)) -> 132758 | N57: =IF(ISERROR(VLOOKUP($E57,表C_RAW!$C:$I,6,0)),"",VLOOKUP($E57,表C_RAW!$C:$I,6,0)/100) -> 4.1633
D58: 5 | E58: =IFERROR(VLOOKUP($C$54&D58,表A_RAW!B:I,2,0),"") -> 1465 偉全 | G58: =IF(ISERROR(VLOOKUP($E58,表A_RAW!$C:$I,4,0)),"",VLOOKUP($E58,表A_RAW!$C:$I,4,0)) -> 22806 | H58: =IF(ISERROR(VLOOKUP($E58,表B_RAW!$C:$I,5,0)),"",VLOOKUP($E58,表B_RAW!$C:$I,5,0)) -> 41306 | I58: =IF(ISERROR(VLOOKUP($E58,表B_RAW!$C:$I,6,0)),"",VLOOKUP($E58,表B_RAW!$C:$I,6,0)/100) -> -0.4479 | J58: =IF(ISERROR(VLOOKUP($E58,表A_RAW!$C:$I,5,0)),"",VLOOKUP($E58,表A_RAW!$C:$I,5,0)) -> 41597 | K58: =IF(ISERROR(VLOOKUP($E58,表A_RAW!$C:$I,7,0)),"",VLOOKUP($E58,表A_RAW!$C:$I,7,0)) -> -0.4517393081 | L58: =IF(ISERROR(VLOOKUP($E58,表C_RAW!$C:$I,4,0)),"",VLOOKUP($E58,表C_RAW!$C:$I,4,0)) -> 147951 | M58: =IF(ISERROR(VLOOKUP($E58,表C_RAW!$C:$I,5,0)),"",VLOOKUP($E58,表C_RAW!$C:$I,5,0)) -> 196210 | N58: =IF(ISERROR(VLOOKUP($E58,表C_RAW!$C:$I,6,0)),"",VLOOKUP($E58,表C_RAW!$C:$I,6,0)/100) -> -0.246

Sheet YOY(累計)
B1: =YEAR(表A_RAW!F2)&"年"&MONTH(表A_RAW!F2)&"月" -> 2025年5月
C2: 成長及衰退前五名之產業YOY%(累計)
B4: 成長前五名之產業 YOY(累計)% | D4: 該產業成長前五名之公司 YOY(累計)% | G4: 單月營收金額(千元) | H4: 本月與上月相較 | J4: 本月與去年同期相較 | L4: 累計營收金額(千元) | M4: 累計營收與去年同期相較
B5: 成長 排名 | C5: 產業 | D5: 排名 | E5: 公司代號&簡稱 | H5: 上月營收金額(千元) | I5: 較上月變動比率(%) | J5: 去年同期金額(千元) | K5: 較去年同期變動比率(%) | M5: 去年累計營收金額(千元) | N5: 較去年同期變動比率(%)
B6: 1 | C6: =VLOOKUP(B6,表C_RAW!N:P,3,0) -> 電腦及週邊設備業 | D6: 1 | E6: =IFERROR(VLOOKUP($C$6&D6,表C_RAW!A:D,3,0),"") -> 6669 緯穎 | G6: =IF(ISERROR(VLOOKUP($E6,表B_RAW!$C:$I,4,0)),"",VLOOKUP($E6,表B_RAW!$C:$I,4,0)) -> 71132658 | H6: =IF(ISERROR(VLOOKUP($E6,表B_RAW!$C:$I,5,0)),"",VLOOKUP($E6,表B_RAW!$C:$I,5,0)) -> 63802622 | I6: =IF(ISERROR(VLOOKUP($E6,表B_RAW!$C:$I,6,0)),"",VLOOKUP($E6,表B_RAW!$C:$I,6,0)/100) -> 0.1149 | J6: =IF(ISERROR(VLOOKUP($E6,表A_RAW!$C:$I,5,0)),"",VLOOKUP($E6,表A_RAW!$C:$I,5,0)) -> 24759583 | K6: =IF(ISERROR(VLOOKUP($E6,表A_RAW!$C:$I,7,0)),"",VLOOKUP($E6,表A_RAW!$C:$I,7,0)) -> 1.872934411 | L6: =IF(ISERROR(VLOOKUP($E6,表C_RAW!$C:$I,4,0)),"",VLOOKUP($E6,表C_RAW!$C:$I,4,0)) -> 305590564 | M6: =IF(ISERROR(VLOOKUP($E6,表C_RAW!$C:$I,5,0)),"",VLOOKUP($E6,表C_RAW!$C:$I,5,0)) -> 116350992 | N6: =IF(ISERROR(VLOOKUP($E6,表C_RAW!$C:$I,6,0)),"",VLOOKUP($E6,表C_RAW!$C:$I,6,0)/100) -> 1.6265
D7: 2 | E7: =IFERROR(VLOOKUP($C$6&D7,表C_RAW!A:D,3,0),"") -> 8114 振樺電 | G7: =IF(ISERROR(VLOOKUP($E7,表B_RAW!$C:$I,4,0)),"",VLOOKUP($E7,表B_RAW!$C:$I,4,0)) -> 1782653 | H7: =IF(ISERROR(VLOOKUP($E7,表B_RAW!$C:$I,5,0)),"",VLOOKUP($E7,表B_RAW!$C:$I,5,0)) -> 2380093 | I7: =IF(ISERROR(VLOOKUP($E7,表B_RAW!$C:$I,6,0)),"",VLOOKUP($E7,表B_RAW!$C:$I,6,0)/100) -> -0.251 | J7: =IF(ISERROR(VLOOKUP($E7,表A_RAW!$C:$I,5,0)),"",VLOOKUP($E7,表A_RAW!$C:$I,5,0)) -> 1053465 | K7: =IF(ISERROR(VLOOKUP($E7,表A_RAW!$C:$I,7,0)),"",VLOOKUP($E7,表A_RAW!$C:$I,7,0)) -> 0.692180566 | L7: =IF(ISERROR(VLOOKUP($E7,表C_RAW!$C:$I,4,0)),"",VLOOKUP($E7,表C_RAW!$C:$I,4,0)) -> 10081728 | M7: =IF(ISERROR(VLOOKUP($E7,表C_RAW!$C:$I,5,0)),"",VLOOKUP($E7,表C_RAW!$C:$I,5,0)) -> 4081421 | N7: =IF(ISERROR(VLOOKUP($E7,表C_RAW!$C:$I,6,0)),"",VLOOKUP($E7,表C_RAW!$C:$I,6,0)/100) -> 1.4702
D8: 3 | E8: =IFERROR(VLOOKUP($C$6&D8,表C_RAW!A:D,3,0),"") -> 3515 華擎 | G8: =IF(ISERROR(VLOOKUP($E8,表B_RAW!$C:$I,4,0)),"",VLOOKUP($E8,表B_RAW!$C:$I,4,0)) -> 4388787 | H8: =IF(ISERROR(VLOOKUP($E8,表B_RAW!$C:$I,5,0)),"",VLOOKUP($E8,表B_RAW!$C:$I,5,0)) -> 5127844 | I8: =IF(ISERROR(VLOOKUP($E8,表B_RAW!$C:$I,6,0)),"",VLOOKUP($E8,表B_RAW!$C:$I,6,0)/100) -> -0.1441 | J8: =IF(ISERROR(VLOOKUP($E8,表A_RAW!$C:$I,5,0)),"",VLOOKUP($E8,表A_RAW!$C:$I,5,0)) -> 1832432 | K8: =IF(ISERROR(VLOOKUP($E8,表A_RAW!$C:$I,7,0)),"",VLOOKUP($E8,表A_RAW!$C:$I,7,0)) -> 1.395061317 | L8: =IF(ISERROR(VLOOKUP($E8,表C_RAW!$C:$I,4,0)),"",VLOOKUP($E8,表C_RAW!$C:$I,4,0)) -> 19983711 | M8: =IF(ISERROR(VLOOKUP($E8,表C_RAW!$C:$I,5,0)),"",VLOOKUP($E8,表C_RAW!$C:$I,5,0)) -> 8457590 | N8: =IF(ISERROR(VLOOKUP($E8,表C_RAW!$C:$I,6,0)),"",VLOOKUP($E8,表C_RAW!$C:$I,6,0)/100) -> 1.3628
C9: =VLOOKUP(B6,表C_RAW!N:T,7,0) -> 36.82 | D9: 4 | E9: =IFERROR(VLOOKUP($C$6&D9,表C_RAW!A:D,3,0),"") -> 3706 神達 | G9: =IF(ISERROR(VLOOKUP($E9,表B_RAW!$C:$I,4,0)),"",VLOOKUP($E9,表B_RAW!$C:$I,4,0)) -> 9134910 | H9: =IF(ISERROR(VLOOKUP($E9,表B_RAW!$C:$I,5,0)),"",VLOOKUP($E9,表B_RAW!$C:$I,5,0)) -> 8821467 | I9: =IF(ISERROR(VLOOKUP($E9,表B_RAW!$C:$I,6,0)),"",VLOOKUP($E9,表B_RAW!$C:$I,6,0)/100) -> 0.0355 | J9: =IF(ISERROR(VLOOKUP($E9,表A_RAW!$C:$I,5,0)),"",VLOOKUP($E9,表A_RAW!$C:$I,5,0)) -> 4199440 | K9: =IF(ISERROR(VLOOKUP($E9,表A_RAW!$C:$I,7,0)),"",VLOOKUP($E9,表A_RAW!$C:$I,7,0)) -> 1.175268607 | L9: =IF(ISERROR(VLOOKUP($E9,表C_RAW!$C:$I,4,0)),"",VLOOKUP($E9,表C_RAW!$C:$I,4,0)) -> 41621536 | M9: =IF(ISERROR(VLOOKUP($E9,表C_RAW!$C:$I,5,0)),"",VLOOKUP($E9,表C_RAW!$C:$I,5,0)) -> 18338191 | N9: =IF(ISERROR(VLOOKUP($E9,表C_RAW!$C:$I,6,0)),"",VLOOKUP($E9,表C_RAW!$C:$I,6,0)/100) -> 1.2697
D10: 5 | E10: =IFERROR(VLOOKUP($C$6&D10,表C_RAW!A:D,3,0),"") -> 5386 青雲 | G10: =IF(ISERROR(VLOOKUP($E10,表B_RAW!$C:$I,4,0)),"",VLOOKUP($E10,表B_RAW!$C:$I,4,0)) -> 474032 | H10: =IF(ISERROR(VLOOKUP($E10,表B_RAW!$C:$I,5,0)),"",VLOOKUP($E10,表B_RAW!$C:$I,5,0)) -> 501804 | I10: =IF(ISERROR(VLOOKUP($E10,表B_RAW!$C:$I,6,0)),"",VLOOKUP($E10,表B_RAW!$C:$I,6,0)/100) -> -0.0553 | J10: =IF(ISERROR(VLOOKUP($E10,表A_RAW!$C:$I,5,0)),"",VLOOKUP($E10,表A_RAW!$C:$I,5,0)) -> 173917 | K10: =IF(ISERROR(VLOOKUP($E10,表A_RAW!$C:$I,7,0)),"",VLOOKUP($E10,表A_RAW!$C:$I,7,0)) -> 1.725621992 | L10: =IF(ISERROR(VLOOKUP($E10,表C_RAW!$C:$I,4,0)),"",VLOOKUP($E10,表C_RAW!$C:$I,4,0)) -> 2222542 | M10: =IF(ISERROR(VLOOKUP($E10,表C_RAW!$C:$I,5,0)),"",VLOOKUP($E10,表C_RAW!$C:$I,5,0)) -> 1039084 | N10: =IF(ISERROR(VLOOKUP($E10,表C_RAW!$C:$I,6,0)),"",VLOOKUP($E10,表C_RAW!$C:$I,6,0)/100) -> 1.1389
B11: 2 | C11: =VLOOKUP(B11,表C_RAW!N:P,3,0) -> 綠能環保 | D11: 1 | E11: =VLOOKUP($C$11&D11,表C_RAW!A:D,3,0) -> 6873 泓德能源 | G11: =IF(ISERROR(VLOOKUP($E11,表B_RAW!$C:$I,4,0)),"",VLOOKUP($E11,表B_RAW!$C:$I,4,0)) -> 586199 | H11: =IF(ISERROR(VLOOKUP($E11,表B_RAW!$C:$I,5,0)),"",VLOOKUP($E11,表B_RAW!$C:$I,5,0)) -> 668292 | I11: =IF(ISERROR(VLOOKUP($E11,表B_RAW!$C:$I,6,0)),"",VLOOKUP($E11,表B_RAW!$C:$I,6,0)/100) -> -0.1228 | J11: =IF(ISERROR(VLOOKUP($E11,表A_RAW!$C:$I,5,0)),"",VLOOKUP($E11,表A_RAW!$C:$I,5,0)) -> 215595 | K11: =IF(ISERROR(VLOOKUP($E11,表A_RAW!$C:$I,7,0)),"",VLOOKUP($E11,表A_RAW!$C:$I,7,0)) -> 1.718982351 | L11: =IF(ISERROR(VLOOKUP($E11,表C_RAW!$C:$I,4,0)),"",VLOOKUP($E11,表C_RAW!$C:$I,4,0)) -> 2721357 | M11: =IF(ISERROR(VLOOKUP($E11,表C_RAW!$C:$I,5,0)),"",VLOOKUP($E11,表C_RAW!$C:$I,5,0)) -> 1249285 | N11: =IF(ISERROR(VLOOKUP($E11,表C_RAW!$C:$I,6,0)),"",VLOOKUP($E11,表C_RAW!$C:$I,6,0)/100) -> 1.1783
D12: 2 | E12: =VLOOKUP($C$11&D12,表C_RAW!A:D,3,0) -> 6869 雲豹能源 | G12: =IF(ISERROR(VLOOKUP($E12,表B_RAW!$C:$I,4,0)),"",VLOOKUP($E12,表B_RAW!$C:$I,4,0)) -> 753387 | H12: =IF(ISERROR(VLOOKUP($E12,表B_RAW!$C:$I,5,0)),"",VLOOKUP($E12,表B_RAW!$C:$I,5,0)) -> 1394729 | I12: =IF(ISERROR(VLOOKUP($E12,表B_RAW!$C:$I,6,0)),"",VLOOKUP($E12,表B_RAW!$C:$I,6,0)/100) -> -0.4598 | J12: =IF(ISERROR(VLOOKUP($E12,表A_RAW!$C:$I,5,0)),"",VLOOKUP($E12,表A_RAW!$C:$I,5,0)) -> 257159 | K12: =IF(ISERROR(VLOOKUP($E12,表A_RAW!$C:$I,7,0)),"",VLOOKUP($E12,表A_RAW!$C:$I,7,0)) -> 1.929654416 | L12: =IF(ISERROR(VLOOKUP($E12,表C_RAW!$C:$I,4,0)),"",VLOOKUP($E12,表C_RAW!$C:$I,4,0)) -> 3143903 | M12: =IF(ISERROR(VLOOKUP($E12,表C_RAW!$C:$I,5,0)),"",VLOOKUP($E12,表C_RAW!$C:$I,5,0)) -> 1471950 | N12: =IF(ISERROR(VLOOKUP($E12,表C_RAW!$C:$I,6,0)),"",VLOOKUP($E12,表C_RAW!$C:$I,6,0)/100) -> 1.1359
D13: 3 | E13: =VLOOKUP($C$11&D13,表C_RAW!A:D,3,0) -> 6692 進能服 | G13: =IF(ISERROR(VLOOKUP($E13,表B_RAW!$C:$I,4,0)),"",VLOOKUP($E13,表B_RAW!$C:$I,4,0)) -> 102065 | H13: =IF(ISERROR(VLOOKUP($E13,表B_RAW!$C:$I,5,0)),"",VLOOKUP($E13,表B_RAW!$C:$I,5,0)) -> 72238 | I13: =IF(ISERROR(VLOOKUP($E13,表B_RAW!$C:$I,6,0)),"",VLOOKUP($E13,表B_RAW!$C:$I,6,0)/100) -> 0.4129 | J13: =IF(ISERROR(VLOOKUP($E13,表A_RAW!$C:$I,5,0)),"",VLOOKUP($E13,表A_RAW!$C:$I,5,0)) -> 100118 | K13: =IF(ISERROR(VLOOKUP($E13,表A_RAW!$C:$I,7,0)),"",VLOOKUP($E13,表A_RAW!$C:$I,7,0)) -> 0.01944705248 | L13: =IF(ISERROR(VLOOKUP($E13,表C_RAW!$C:$I,4,0)),"",VLOOKUP($E13,表C_RAW!$C:$I,4,0)) -> 936558 | M13: =IF(ISERROR(VLOOKUP($E13,表C_RAW!$C:$I,5,0)),"",VLOOKUP($E13,表C_RAW!$C:$I,5,0)) -> 464393 | N13: =IF(ISERROR(VLOOKUP($E13,表C_RAW!$C:$I,6,0)),"",VLOOKUP($E13,表C_RAW!$C:$I,6,0)/100) -> 1.0167
C14: =VLOOKUP(B11,表C_RAW!N:T,7,0) -> 24.38 | D14: 4 | E14: =VLOOKUP($C$11&D14,表C_RAW!A:D,3,0) -> 6806 森崴能源 | G14: =IF(ISERROR(VLOOKUP($E14,表B_RAW!$C:$I,4,0)),"",VLOOKUP($E14,表B_RAW!$C:$I,4,0)) -> 717543 | H14: =IF(ISERROR(VLOOKUP($E14,表B_RAW!$C:$I,5,0)),"",VLOOKUP($E14,表B_RAW!$C:$I,5,0)) -> 1367587 | I14: =IF(ISERROR(VLOOKUP($E14,表B_RAW!$C:$I,6,0)),"",VLOOKUP($E14,表B_RAW!$C:$I,6,0)/100) -> -0.4753 | J14: =IF(ISERROR(VLOOKUP($E14,表A_RAW!$C:$I,5,0)),"",VLOOKUP($E14,表A_RAW!$C:$I,5,0)) -> 1402771 | K14: =IF(ISERROR(VLOOKUP($E14,表A_RAW!$C:$I,7,0)),"",VLOOKUP($E14,表A_RAW!$C:$I,7,0)) -> -0.4884817265 | L14: =IF(ISERROR(VLOOKUP($E14,表C_RAW!$C:$I,4,0)),"",VLOOKUP($E14,表C_RAW!$C:$I,4,0)) -> 7779233 | M14: =IF(ISERROR(VLOOKUP($E14,表C_RAW!$C:$I,5,0)),"",VLOOKUP($E14,表C_RAW!$C:$I,5,0)) -> 5002787 | N14: =IF(ISERROR(VLOOKUP($E14,表C_RAW!$C:$I,6,0)),"",VLOOKUP($E14,表C_RAW!$C:$I,6,0)/100) -> 0.555
D15: 5 | E15: =VLOOKUP($C$11&D15,表C_RAW!A:D,3,0) -> 6944 兆聯實業 | G15: =IF(ISERROR(VLOOKUP($E15,表B_RAW!$C:$I,4,0)),"",VLOOKUP($E15,表B_RAW!$C:$I,4,0)) -> 1127621 | H15: =IF(ISERROR(VLOOKUP($E15,表B_RAW!$C:$I,5,0)),"",VLOOKUP($E15,表B_RAW!$C:$I,5,0)) -> 1148830 | I15: =IF(ISERROR(VLOOKUP($E15,表B_RAW!$C:$I,6,0)),"",VLOOKUP($E15,表B_RAW!$C:$I,6,0)/100) -> -0.0185 | J15: =IF(ISERROR(VLOOKUP($E15,表A_RAW!$C:$I,5,0)),"",VLOOKUP($E15,表A_RAW!$C:$I,5,0)) -> 883459 | K15: =IF(ISERROR(VLOOKUP($E15,表A_RAW!$C:$I,7,0)),"",VLOOKUP($E15,表A_RAW!$C:$I,7,0)) -> 0.2763704937 | L15: =IF(ISERROR(VLOOKUP($E15,表C_RAW!$C:$I,4,0)),"",VLOOKUP($E15,表C_RAW!$C:$I,4,0)) -> 5316255 | M15: =IF(ISERROR(VLOOKUP($E15,表C_RAW!$C:$I,5,0)),"",VLOOKUP($E15,表C_RAW!$C:$I,5,0)) -> 3636688 | N15: =IF(ISERROR(VLOOKUP($E15,表C_RAW!$C:$I,6,0)),"",VLOOKUP($E15,表C_RAW!$C:$I,6,0)/100) -> 0.4618
B16: 3 | C16: =VLOOKUP(B16,表C_RAW!N:P,3,0) -> 半導體業 | D16: 1 | E16: =VLOOKUP($C$16&D16,表C_RAW!A:D,3,0) -> 2363 矽統 | G16: =IF(ISERROR(VLOOKUP($E16,表B_RAW!$C:$I,4,0)),"",VLOOKUP($E16,表B_RAW!$C:$I,4,0)) -> 185030 | H16: =IF(ISERROR(VLOOKUP($E16,表B_RAW!$C:$I,5,0)),"",VLOOKUP($E16,表B_RAW!$C:$I,5,0)) -> 184409 | I16: =IF(ISERROR(VLOOKUP($E16,表B_RAW!$C:$I,6,0)),"",VLOOKUP($E16,表B_RAW!$C:$I,6,0)/100) -> 0.0034 | J16: =IF(ISERROR(VLOOKUP($E16,表A_RAW!$C:$I,5,0)),"",VLOOKUP($E16,表A_RAW!$C:$I,5,0)) -> 15891 | K16: =IF(ISERROR(VLOOKUP($E16,表A_RAW!$C:$I,7,0)),"",VLOOKUP($E16,表A_RAW!$C:$I,7,0)) -> 10.64369769 | L16: =IF(ISERROR(VLOOKUP($E16,表C_RAW!$C:$I,4,0)),"",VLOOKUP($E16,表C_RAW!$C:$I,4,0)) -> 839122 | M16: =IF(ISERROR(VLOOKUP($E16,表C_RAW!$C:$I,5,0)),"",VLOOKUP($E16,表C_RAW!$C:$I,5,0)) -> 66690 | N16: =IF(ISERROR(VLOOKUP($E16,表C_RAW!$C:$I,6,0)),"",VLOOKUP($E16,表C_RAW!$C:$I,6,0)/100) -> 11.5824
D17: 2 | E17: =VLOOKUP($C$16&D17,表C_RAW!A:D,3,0) -> 3035 智原 | G17: =IF(ISERROR(VLOOKUP($E17,表B_RAW!$C:$I,4,0)),"",VLOOKUP($E17,表B_RAW!$C:$I,4,0)) -> 1692458 | H17: =IF(ISERROR(VLOOKUP($E17,表B_RAW!$C:$I,5,0)),"",VLOOKUP($E17,表B_RAW!$C:$I,5,0)) -> 1700007 | I17: =IF(ISERROR(VLOOKUP($E17,表B_RAW!$C:$I,6,0)),"",VLOOKUP($E17,表B_RAW!$C:$I,6,0)/100) -> -0.0044 | J17: =IF(ISERROR(VLOOKUP($E17,表A_RAW!$C:$I,5,0)),"",VLOOKUP($E17,表A_RAW!$C:$I,5,0)) -> 871300 | K17: =IF(ISERROR(VLOOKUP($E17,表A_RAW!$C:$I,7,0)),"",VLOOKUP($E17,表A_RAW!$C:$I,7,0)) -> 0.9424515092 | L17: =IF(ISERROR(VLOOKUP($E17,表C_RAW!$C:$I,4,0)),"",VLOOKUP($E17,表C_RAW!$C:$I,4,0)) -> 10830042 | M17: =IF(ISERROR(VLOOKUP($E17,表C_RAW!$C:$I,5,0)),"",VLOOKUP($E17,表C_RAW!$C:$I,5,0)) -> 4310633 | N17: =IF(ISERROR(VLOOKUP($E17,表C_RAW!$C:$I,6,0)),"",VLOOKUP($E17,表C_RAW!$C:$I,6,0)/100) -> 1.5124
D18: 3 | E18: =VLOOKUP($C$16&D18,表C_RAW!A:D,3,0) -> 6103 合邦 | G18: =IF(ISERROR(VLOOKUP($E18,表B_RAW!$C:$I,4,0)),"",VLOOKUP($E18,表B_RAW!$C:$I,4,0)) -> 4695 | H18: =IF(ISERROR(VLOOKUP($E18,表B_RAW!$C:$I,5,0)),"",VLOOKUP($E18,表B_RAW!$C:$I,5,0)) -> 5154 | I18: =IF(ISERROR(VLOOKUP($E18,表B_RAW!$C:$I,6,0)),"",VLOOKUP($E18,表B_RAW!$C:$I,6,0)/100) -> -0.0891 | J18: =IF(ISERROR(VLOOKUP($E18,表A_RAW!$C:$I,5,0)),"",VLOOKUP($E18,表A_RAW!$C:$I,5,0)) -> 3839 | K18: =IF(ISERROR(VLOOKUP($E18,表A_RAW!$C:$I,7,0)),"",VLOOKUP($E18,表A_RAW!$C:$I,7,0)) -> 0.222974733 | L18: =IF(ISERROR(VLOOKUP($E18,表C_RAW!$C:$I,4,0)),"",VLOOKUP($E18,表C_RAW!$C:$I,4,0)) -> 36404 | M18: =IF(ISERROR(VLOOKUP($E18,表C_RAW!$C:$I,5,0)),"",VLOOKUP($E18,表C_RAW!$C:$I,5,0)) -> 15120 | N18: =IF(ISERROR(VLOOKUP($E18,表C_RAW!$C:$I,6,0)),"",VLOOKUP($E18,表C_RAW!$C:$I,6,0)/100) -> 1.4077
C19: =VLOOKUP(B16,表C_RAW!N:T,7,0) -> 24.17 | D19: 4 | E19: =VLOOKUP($C$16&D19,表C_RAW!A:D,3,0) -> 6451 訊芯-KY | G19: =IF(ISERROR(VLOOKUP($E19,表B_RAW!$C:$I,4,0)),"",VLOOKUP($E19,表B_RAW!$C:$I,4,0)) -> 595003 | H19: =IF(ISERROR(VLOOKUP($E19,表B_RAW!$C:$I,5,0)),"",VLOOKUP($E19,表B_RAW!$C:$I,5,0)) -> 659508 | I19: =IF(ISERROR(VLOOKUP($E19,表B_RAW!$C:$I,6,0)),"",VLOOKUP($E19,表B_RAW!$C:$I,6,0)/100) -> -0.0978 | J19: =IF(ISERROR(VLOOKUP($E19,表A_RAW!$C:$I,5,0)),"",VLOOKUP($E19,表A_RAW!$C:$I,5,0)) -> 305439 | K19: =IF(ISERROR(VLOOKUP($E19,表A_RAW!$C:$I,7,0)),"",VLOOKUP($E19,表A_RAW!$C:$I,7,0)) -> 0.9480256287 | L19: =IF(ISERROR(VLOOKUP($E19,表C_RAW!$C:$I,4,0)),"",VLOOKUP($E19,表C_RAW!$C:$I,4,0)) -> 3231344 | M19: =IF(ISERROR(VLOOKUP($E19,表C_RAW!$C:$I,5,0)),"",VLOOKUP($E19,表C_RAW!$C:$I,5,0)) -> 1660701 | N19: =IF(ISERROR(VLOOKUP($E19,表C_RAW!$C:$I,6,0)),"",VLOOKUP($E19,表C_RAW!$C:$I,6,0)/100) -> 0.9458
D20: 5 | E20: =VLOOKUP($C$16&D20,表C_RAW!A:D,3,0) -> 5274 信驊 | G20: =IF(ISERROR(VLOOKUP($E20,表B_RAW!$C:$I,4,0)),"",VLOOKUP($E20,表B_RAW!$C:$I,4,0)) -> 759860 | H20: =IF(ISERROR(VLOOKUP($E20,表B_RAW!$C:$I,5,0)),"",VLOOKUP($E20,表B_RAW!$C:$I,5,0)) -> 704344 | I20: =IF(ISERROR(VLOOKUP($E20,表B_RAW!$C:$I,6,0)),"",VLOOKUP($E20,表B_RAW!$C:$I,6,0)/100) -> 0.0788 | J20: =IF(ISERROR(VLOOKUP($E20,表A_RAW!$C:$I,5,0)),"",VLOOKUP($E20,表A_RAW!$C:$I,5,0)) -> 435334 | K20: =IF(ISERROR(VLOOKUP($E20,表A_RAW!$C:$I,7,0)),"",VLOOKUP($E20,表A_RAW!$C:$I,7,0)) -> 0.745464402 | L20: =IF(ISERROR(VLOOKUP($E20,表C_RAW!$C:$I,4,0)),"",VLOOKUP($E20,表C_RAW!$C:$I,4,0)) -> 3529322 | M20: =IF(ISERROR(VLOOKUP($E20,表C_RAW!$C:$I,5,0)),"",VLOOKUP($E20,表C_RAW!$C:$I,5,0)) -> 1864704 | N20: =IF(ISERROR(VLOOKUP($E20,表C_RAW!$C:$I,6,0)),"",VLOOKUP($E20,表C_RAW!$C:$I,6,0)/100) -> 0.8927
B21: 4 | C21: =VLOOKUP(B21,表C_RAW!N:P,3,0) -> 其他電子業 | D21: 1 | E21: =VLOOKUP($C$21&D21,表C_RAW!A:D,3,0) -> 2354 鴻準 | G21: =IF(ISERROR(VLOOKUP($E21,表B_RAW!$C:$I,4,0)),"",VLOOKUP($E21,表B_RAW!$C:$I,4,0)) -> 14754321 | H21: =IF(ISERROR(VLOOKUP($E21,表B_RAW!$C:$I,5,0)),"",VLOOKUP($E21,表B_RAW!$C:$I,5,0)) -> 12889456 | I21: =IF(ISERROR(VLOOKUP($E21,表B_RAW!$C:$I,6,0)),"",VLOOKUP($E21,表B_RAW!$C:$I,6,0)/100) -> 0.1447 | J21: =IF(ISERROR(VLOOKUP($E21,表A_RAW!$C:$I,5,0)),"",VLOOKUP($E21,表A_RAW!$C:$I,5,0)) -> 4219732 | K21: =IF(ISERROR(VLOOKUP($E21,表A_RAW!$C:$I,7,0)),"",VLOOKUP($E21,表A_RAW!$C:$I,7,0)) -> 2.49650665 | L21: =IF(ISERROR(VLOOKUP($E21,表C_RAW!$C:$I,4,0)),"",VLOOKUP($E21,表C_RAW!$C:$I,4,0)) -> 57616795 | M21: =IF(ISERROR(VLOOKUP($E21,表C_RAW!$C:$I,5,0)),"",VLOOKUP($E21,表C_RAW!$C:$I,5,0)) -> 16362645 | N21: =IF(ISERROR(VLOOKUP($E21,表C_RAW!$C:$I,6,0)),"",VLOOKUP($E21,表C_RAW!$C:$I,6,0)/100) -> 2.5212
D22: 2 | E22: =VLOOKUP($C$21&D22,表C_RAW!A:D,3,0) -> 3093 港建* | G22: =IF(ISERROR(VLOOKUP($E22,表B_RAW!$C:$I,4,0)),"",VLOOKUP($E22,表B_RAW!$C:$I,4,0)) -> 213080 | H22: =IF(ISERROR(VLOOKUP($E22,表B_RAW!$C:$I,5,0)),"",VLOOKUP($E22,表B_RAW!$C:$I,5,0)) -> 262552 | I22: =IF(ISERROR(VLOOKUP($E22,表B_RAW!$C:$I,6,0)),"",VLOOKUP($E22,表B_RAW!$C:$I,6,0)/100) -> -0.1884 | J22: =IF(ISERROR(VLOOKUP($E22,表A_RAW!$C:$I,5,0)),"",VLOOKUP($E22,表A_RAW!$C:$I,5,0)) -> 101521 | K22: =IF(ISERROR(VLOOKUP($E22,表A_RAW!$C:$I,7,0)),"",VLOOKUP($E22,表A_RAW!$C:$I,7,0)) -> 1.098876095 | L22: =IF(ISERROR(VLOOKUP($E22,表C_RAW!$C:$I,4,0)),"",VLOOKUP($E22,表C_RAW!$C:$I,4,0)) -> 1048168 | M22: =IF(ISERROR(VLOOKUP($E22,表C_RAW!$C:$I,5,0)),"",VLOOKUP($E22,表C_RAW!$C:$I,5,0)) -> 392369 | N22: =IF(ISERROR(VLOOKUP($E22,表C_RAW!$C:$I,6,0)),"",VLOOKUP($E22,表C_RAW!$C:$I,6,0)/100) -> 1.6714
D23: 3 | E23: =VLOOKUP($C$21&D23,表C_RAW!A:D,3,0) -> 6667 信紘科 | G23: =IF(ISERROR(VLOOKUP($E23,表B_RAW!$C:$I,4,0)),"",VLOOKUP($E23,表B_RAW!$C:$I,4,0)) -> 482741 | H23: =IF(ISERROR(VLOOKUP($E23,表B_RAW!$C:$I,5,0)),"",VLOOKUP($E23,表B_RAW!$C:$I,5,0)) -> 488304 | I23: =IF(ISERROR(VLOOKUP($E23,表B_RAW!$C:$I,6,0)),"",VLOOKUP($E23,表B_RAW!$C:$I,6,0)/100) -> -0.0114 | J23: =IF(ISERROR(VLOOKUP($E23,表A_RAW!$C:$I,5,0)),"",VLOOKUP($E23,表A_RAW!$C:$I,5,0)) -> 243437 | K23: =IF(ISERROR(VLOOKUP($E23,表A_RAW!$C:$I,7,0)),"",VLOOKUP($E23,表A_RAW!$C:$I,7,0)) -> 0.9830223015 | L23: =IF(ISERROR(VLOOKUP($E23,表C_RAW!$C:$I,4,0)),"",VLOOKUP($E23,表C_RAW!$C:$I,4,0)) -> 2325547 | M23: =IF(ISERROR(VLOOKUP($E23,表C_RAW!$C:$I,5,0)),"",VLOOKUP($E23,表C_RAW!$C:$I,5,0)) -> 1146404 | N23: =IF(ISERROR(VLOOKUP($E23,表C_RAW!$C:$I,6,0)),"",VLOOKUP($E23,表C_RAW!$C:$I,6,0)/100) -> 1.0286
C24: =VLOOKUP(B21,表C_RAW!N:T,7,0) -> 21.7 | D24: 4 | E24: =VLOOKUP($C$21&D24,表C_RAW!A:D,3,0) -> 3498 陽程 | G24: =IF(ISERROR(VLOOKUP($E24,表B_RAW!$C:$I,4,0)),"",VLOOKUP($E24,表B_RAW!$C:$I,4,0)) -> 94810 | H24: =IF(ISERROR(VLOOKUP($E24,表B_RAW!$C:$I,5,0)),"",VLOOKUP($E24,表B_RAW!$C:$I,5,0)) -> 143785 | I24: =IF(ISERROR(VLOOKUP($E24,表B_RAW!$C:$I,6,0)),"",VLOOKUP($E24,表B_RAW!$C:$I,6,0)/100) -> -0.3406 | J24: =IF(ISERROR(VLOOKUP($E24,表A_RAW!$C:$I,5,0)),"",VLOOKUP($E24,表A_RAW!$C:$I,5,0)) -> 55757 | K24: =IF(ISERROR(VLOOKUP($E24,表A_RAW!$C:$I,7,0)),"",VLOOKUP($E24,表A_RAW!$C:$I,7,0)) -> 0.7004142978 | L24: =IF(ISERROR(VLOOKUP($E24,表C_RAW!$C:$I,4,0)),"",VLOOKUP($E24,表C_RAW!$C:$I,4,0)) -> 380018 | M24: =IF(ISERROR(VLOOKUP($E24,表C_RAW!$C:$I,5,0)),"",VLOOKUP($E24,表C_RAW!$C:$I,5,0)) -> 192056 | N24: =IF(ISERROR(VLOOKUP($E24,表C_RAW!$C:$I,6,0)),"",VLOOKUP($E24,表C_RAW!$C:$I,6,0)/100) -> 0.9787
D25: 5 | E25: =VLOOKUP($C$21&D25,表C_RAW!A:D,3,0) -> 6739 竹陞科技 | G25: =IF(ISERROR(VLOOKUP($E25,表B_RAW!$C:$I,4,0)),"",VLOOKUP($E25,表B_RAW!$C:$I,4,0)) -> 60311 | H25: =IF(ISERROR(VLOOKUP($E25,表B_RAW!$C:$I,5,0)),"",VLOOKUP($E25,表B_RAW!$C:$I,5,0)) -> 55061 | I25: =IF(ISERROR(VLOOKUP($E25,表B_RAW!$C:$I,6,0)),"",VLOOKUP($E25,表B_RAW!$C:$I,6,0)/100) -> 0.0953 | J25: =IF(ISERROR(VLOOKUP($E25,表A_RAW!$C:$I,5,0)),"",VLOOKUP($E25,表A_RAW!$C:$I,5,0)) -> 32615 | K25: =IF(ISERROR(VLOOKUP($E25,表A_RAW!$C:$I,7,0)),"",VLOOKUP($E25,表A_RAW!$C:$I,7,0)) -> 0.8491798252 | L25: =IF(ISERROR(VLOOKUP($E25,表C_RAW!$C:$I,4,0)),"",VLOOKUP($E25,表C_RAW!$C:$I,4,0)) -> 263236 | M25: =IF(ISERROR(VLOOKUP($E25,表C_RAW!$C:$I,5,0)),"",VLOOKUP($E25,表C_RAW!$C:$I,5,0)) -> 139838 | N25: =IF(ISERROR(VLOOKUP($E25,表C_RAW!$C:$I,6,0)),"",VLOOKUP($E25,表C_RAW!$C:$I,6,0)/100) -> 0.8824
B26: 5 | C26: =VLOOKUP(B26,表C_RAW!N:P,3,0) -> 資訊服務業 | D26: 1 | E26: =VLOOKUP($C$26&D26,表C_RAW!A:D,3,0) -> 3147 大綜 | G26: =IF(ISERROR(VLOOKUP($E26,表B_RAW!$C:$I,4,0)),"",VLOOKUP($E26,表B_RAW!$C:$I,4,0)) -> 331350 | H26: =IF(ISERROR(VLOOKUP($E26,表B_RAW!$C:$I,5,0)),"",VLOOKUP($E26,表B_RAW!$C:$I,5,0)) -> 575203 | I26: =IF(ISERROR(VLOOKUP($E26,表B_RAW!$C:$I,6,0)),"",VLOOKUP($E26,表B_RAW!$C:$I,6,0)/100) -> -0.4239 | J26: =IF(ISERROR(VLOOKUP($E26,表A_RAW!$C:$I,5,0)),"",VLOOKUP($E26,表A_RAW!$C:$I,5,0)) -> 377768 | K26: =IF(ISERROR(VLOOKUP($E26,表A_RAW!$C:$I,7,0)),"",VLOOKUP($E26,表A_RAW!$C:$I,7,0)) -> -0.1228743567 | L26: =IF(ISERROR(VLOOKUP($E26,表C_RAW!$C:$I,4,0)),"",VLOOKUP($E26,表C_RAW!$C:$I,4,0)) -> 4056729 | M26: =IF(ISERROR(VLOOKUP($E26,表C_RAW!$C:$I,5,0)),"",VLOOKUP($E26,表C_RAW!$C:$I,5,0)) -> 1666839 | N26: =IF(ISERROR(VLOOKUP($E26,表C_RAW!$C:$I,6,0)),"",VLOOKUP($E26,表C_RAW!$C:$I,6,0)/100) -> 1.4338
D27: 2 | E27: =VLOOKUP($C$26&D27,表C_RAW!A:D,3,0) -> 3029 零壹 | G27: =IF(ISERROR(VLOOKUP($E27,表B_RAW!$C:$I,4,0)),"",VLOOKUP($E27,表B_RAW!$C:$I,4,0)) -> 1836818 | H27: =IF(ISERROR(VLOOKUP($E27,表B_RAW!$C:$I,5,0)),"",VLOOKUP($E27,表B_RAW!$C:$I,5,0)) -> 2071500 | I27: =IF(ISERROR(VLOOKUP($E27,表B_RAW!$C:$I,6,0)),"",VLOOKUP($E27,表B_RAW!$C:$I,6,0)/100) -> -0.1133 | J27: =IF(ISERROR(VLOOKUP($E27,表A_RAW!$C:$I,5,0)),"",VLOOKUP($E27,表A_RAW!$C:$I,5,0)) -> 1628284 | K27: =IF(ISERROR(VLOOKUP($E27,表A_RAW!$C:$I,7,0)),"",VLOOKUP($E27,表A_RAW!$C:$I,7,0)) -> 0.1280697962 | L27: =IF(ISERROR(VLOOKUP($E27,表C_RAW!$C:$I,4,0)),"",VLOOKUP($E27,表C_RAW!$C:$I,4,0)) -> 10671143 | M27: =IF(ISERROR(VLOOKUP($E27,表C_RAW!$C:$I,5,0)),"",VLOOKUP($E27,表C_RAW!$C:$I,5,0)) -> 6740109 | N27: =IF(ISERROR(VLOOKUP($E27,表C_RAW!$C:$I,6,0)),"",VLOOKUP($E27,表C_RAW!$C:$I,6,0)/100) -> 0.5832
D28: 3 | E28: =VLOOKUP($C$26&D28,表C_RAW!A:D,3,0) -> 6516 勤崴國際 | G28: =IF(ISERROR(VLOOKUP($E28,表B_RAW!$C:$I,4,0)),"",VLOOKUP($E28,表B_RAW!$C:$I,4,0)) -> 41475 | H28: =IF(ISERROR(VLOOKUP($E28,表B_RAW!$C:$I,5,0)),"",VLOOKUP($E28,表B_RAW!$C:$I,5,0)) -> 45907 | I28: =IF(ISERROR(VLOOKUP($E28,表B_RAW!$C:$I,6,0)),"",VLOOKUP($E28,表B_RAW!$C:$I,6,0)/100) -> -0.0965 | J28: =IF(ISERROR(VLOOKUP($E28,表A_RAW!$C:$I,5,0)),"",VLOOKUP($E28,表A_RAW!$C:$I,5,0)) -> 25347 | K28: =IF(ISERROR(VLOOKUP($E28,表A_RAW!$C:$I,7,0)),"",VLOOKUP($E28,表A_RAW!$C:$I,7,0)) -> 0.6362883181 | L28: =IF(ISERROR(VLOOKUP($E28,表C_RAW!$C:$I,4,0)),"",VLOOKUP($E28,表C_RAW!$C:$I,4,0)) -> 221205 | M28: =IF(ISERROR(VLOOKUP($E28,表C_RAW!$C:$I,5,0)),"",VLOOKUP($E28,表C_RAW!$C:$I,5,0)) -> 152207 | N28: =IF(ISERROR(VLOOKUP($E28,表C_RAW!$C:$I,6,0)),"",VLOOKUP($E28,表C_RAW!$C:$I,6,0)/100) -> 0.4533
C29: =VLOOKUP(B26,表C_RAW!N:T,7,0) -> 17.58 | D29: 4 | E29: =VLOOKUP($C$26&D29,表C_RAW!A:D,3,0) -> 6140 訊達 | G29: =IF(ISERROR(VLOOKUP($E29,表B_RAW!$C:$I,4,0)),"",VLOOKUP($E29,表B_RAW!$C:$I,4,0)) -> 218202 | H29: =IF(ISERROR(VLOOKUP($E29,表B_RAW!$C:$I,5,0)),"",VLOOKUP($E29,表B_RAW!$C:$I,5,0)) -> 234042 | I29: =IF(ISERROR(VLOOKUP($E29,表B_RAW!$C:$I,6,0)),"",VLOOKUP($E29,表B_RAW!$C:$I,6,0)/100) -> -0.0677 | J29: =IF(ISERROR(VLOOKUP($E29,表A_RAW!$C:$I,5,0)),"",VLOOKUP($E29,表A_RAW!$C:$I,5,0)) -> 144046 | K29: =IF(ISERROR(VLOOKUP($E29,表A_RAW!$C:$I,7,0)),"",VLOOKUP($E29,表A_RAW!$C:$I,7,0)) -> 0.5148077697 | L29: =IF(ISERROR(VLOOKUP($E29,表C_RAW!$C:$I,4,0)),"",VLOOKUP($E29,表C_RAW!$C:$I,4,0)) -> 947312 | M29: =IF(ISERROR(VLOOKUP($E29,表C_RAW!$C:$I,5,0)),"",VLOOKUP($E29,表C_RAW!$C:$I,5,0)) -> 673031 | N29: =IF(ISERROR(VLOOKUP($E29,表C_RAW!$C:$I,6,0)),"",VLOOKUP($E29,表C_RAW!$C:$I,6,0)/100) -> 0.4075
D30: 5 | E30: =VLOOKUP($C$26&D30,表C_RAW!A:D,3,0) -> 3570 大塚 | G30: =IF(ISERROR(VLOOKUP($E30,表B_RAW!$C:$I,4,0)),"",VLOOKUP($E30,表B_RAW!$C:$I,4,0)) -> 186621 | H30: =IF(ISERROR(VLOOKUP($E30,表B_RAW!$C:$I,5,0)),"",VLOOKUP($E30,表B_RAW!$C:$I,5,0)) -> 226601 | I30: =IF(ISERROR(VLOOKUP($E30,表B_RAW!$C:$I,6,0)),"",VLOOKUP($E30,表B_RAW!$C:$I,6,0)/100) -> -0.1764 | J30: =IF(ISERROR(VLOOKUP($E30,表A_RAW!$C:$I,5,0)),"",VLOOKUP($E30,表A_RAW!$C:$I,5,0)) -> 168490 | K30: =IF(ISERROR(VLOOKUP($E30,表A_RAW!$C:$I,7,0)),"",VLOOKUP($E30,表A_RAW!$C:$I,7,0)) -> 0.1076087602 | L30: =IF(ISERROR(VLOOKUP($E30,表C_RAW!$C:$I,4,0)),"",VLOOKUP($E30,表C_RAW!$C:$I,4,0)) -> 1156658 | M30: =IF(ISERROR(VLOOKUP($E30,表C_RAW!$C:$I,5,0)),"",VLOOKUP($E30,表C_RAW!$C:$I,5,0)) -> 839458 | N30: =IF(ISERROR(VLOOKUP($E30,表C_RAW!$C:$I,6,0)),"",VLOOKUP($E30,表C_RAW!$C:$I,6,0)/100) -> 0.3779
B32: 衰退前五名之產業 YOY(累計)% | D32: 該產業衰退前五名之公司 YOY(累計)% | G32: 單月營收金額(千元) | H32: 本月與上月相較 | J32: 本月與去年同期相較 | L32: 累計營收金額(千元) | M32: 累計營收與去年同期相較
B33: 衰退 排名 | C33: 產業 | D33: 排名 | E33: 公司代號&簡稱 | H33: 上月營收金額(千元) | I33: 較上月變動比率(%) | J33: 去年同期金額(千元) | K33: 較去年同期變動比率(%) | M33: 去年累計營收金額(千元) | N33: 較去年同期變動比率(%)
B34: 1 | C34: =VLOOKUP(B34,表C_RAW!O:P,2,0) -> 金融業 | D34: 1 | E34: =VLOOKUP($C$34&D34,表C_RAW!B:D,2,0) -> 2888 新光金 | G34: =IF(ISERROR(VLOOKUP($E34,表B_RAW!$C:$I,4,0)),"",VLOOKUP($E34,表B_RAW!$C:$I,4,0)) -> -20840092 | H34: =IF(ISERROR(VLOOKUP($E34,表B_RAW!$C:$I,5,0)),"",VLOOKUP($E34,表B_RAW!$C:$I,5,0)) -> -6299405 | I34: =IF(ISERROR(VLOOKUP($E34,表B_RAW!$C:$I,6,0)),"",VLOOKUP($E34,表B_RAW!$C:$I,6,0)/100) -> -2.3083 | J34: =IF(ISERROR(VLOOKUP($E34,表A_RAW!$C:$I,5,0)),"",VLOOKUP($E34,表A_RAW!$C:$I,5,0)) -> -2713493 | K34: =IF(ISERROR(VLOOKUP($E34,表A_RAW!$C:$I,7,0)),"",VLOOKUP($E34,表A_RAW!$C:$I,7,0)) -> -6.680171646 | L34: =IF(ISERROR(VLOOKUP($E34,表C_RAW!$C:$I,4,0)),"",VLOOKUP($E34,表C_RAW!$C:$I,4,0)) -> -20717921 | M34: =IF(ISERROR(VLOOKUP($E34,表C_RAW!$C:$I,5,0)),"",VLOOKUP($E34,表C_RAW!$C:$I,5,0)) -> 19668832 | N34: =IF(ISERROR(VLOOKUP($E34,表C_RAW!$C:$I,6,0)),"",VLOOKUP($E34,表C_RAW!$C:$I,6,0)/100) -> -2.0533
D35: 2 | E35: =VLOOKUP($C$34&D35,表C_RAW!B:D,2,0) -> 5864 致和證 | G35: =IF(ISERROR(VLOOKUP($E35,表B_RAW!$C:$I,4,0)),"",VLOOKUP($E35,表B_RAW!$C:$I,4,0)) -> 313414 | H35: =IF(ISERROR(VLOOKUP($E35,表B_RAW!$C:$I,5,0)),"",VLOOKUP($E35,表B_RAW!$C:$I,5,0)) -> -95139 | I35: =IF(ISERROR(VLOOKUP($E35,表B_RAW!$C:$I,6,0)),"",VLOOKUP($E35,表B_RAW!$C:$I,6,0)/100) -> 4.2943 | J35: =IF(ISERROR(VLOOKUP($E35,表A_RAW!$C:$I,5,0)),"",VLOOKUP($E35,表A_RAW!$C:$I,5,0)) -> -32727 | K35: =IF(ISERROR(VLOOKUP($E35,表A_RAW!$C:$I,7,0)),"",VLOOKUP($E35,表A_RAW!$C:$I,7,0)) -> 10.57661869 | L35: =IF(ISERROR(VLOOKUP($E35,表C_RAW!$C:$I,4,0)),"",VLOOKUP($E35,表C_RAW!$C:$I,4,0)) -> -208407 | M35: =IF(ISERROR(VLOOKUP($E35,表C_RAW!$C:$I,5,0)),"",VLOOKUP($E35,表C_RAW!$C:$I,5,0)) -> 772873 | N35: =IF(ISERROR(VLOOKUP($E35,表C_RAW!$C:$I,6,0)),"",VLOOKUP($E35,表C_RAW!$C:$I,6,0)/100) -> -1.2697
D36: 3 | E36: =VLOOKUP($C$34&D36,表C_RAW!B:D,2,0) -> 6021 美好證 | G36: =IF(ISERROR(VLOOKUP($E36,表B_RAW!$C:$I,4,0)),"",VLOOKUP($E36,表B_RAW!$C:$I,4,0)) -> 109292 | H36: =IF(ISERROR(VLOOKUP($E36,表B_RAW!$C:$I,5,0)),"",VLOOKUP($E36,表B_RAW!$C:$I,5,0)) -> 21391 | I36: =IF(ISERROR(VLOOKUP($E36,表B_RAW!$C:$I,6,0)),"",VLOOKUP($E36,表B_RAW!$C:$I,6,0)/100) -> 4.1093 | J36: =IF(ISERROR(VLOOKUP($E36,表A_RAW!$C:$I,5,0)),"",VLOOKUP($E36,表A_RAW!$C:$I,5,0)) -> 147773 | K36: =IF(ISERROR(VLOOKUP($E36,表A_RAW!$C:$I,7,0)),"",VLOOKUP($E36,表A_RAW!$C:$I,7,0)) -> -0.2604061635 | L36: =IF(ISERROR(VLOOKUP($E36,表C_RAW!$C:$I,4,0)),"",VLOOKUP($E36,表C_RAW!$C:$I,4,0)) -> -16597 | M36: =IF(ISERROR(VLOOKUP($E36,表C_RAW!$C:$I,5,0)),"",VLOOKUP($E36,表C_RAW!$C:$I,5,0)) -> 744894 | N36: =IF(ISERROR(VLOOKUP($E36,表C_RAW!$C:$I,6,0)),"",VLOOKUP($E36,表C_RAW!$C:$I,6,0)/100) -> -1.0223
C37: =VLOOKUP(B34,表C_RAW!O:T,6,0) -> -19.29 | D37: 4 | E37: =VLOOKUP($C$34&D37,表C_RAW!B:D,2,0) -> 6020 大展證 | G37: =IF(ISERROR(VLOOKUP($E37,表B_RAW!$C:$I,4,0)),"",VLOOKUP($E37,表B_RAW!$C:$I,4,0)) -> 22592 | H37: =IF(ISERROR(VLOOKUP($E37,表B_RAW!$C:$I,5,0)),"",VLOOKUP($E37,表B_RAW!$C:$I,5,0)) -> -19356 | I37: =IF(ISERROR(VLOOKUP($E37,表B_RAW!$C:$I,6,0)),"",VLOOKUP($E37,表B_RAW!$C:$I,6,0)/100) -> 2.1672 | J37: =IF(ISERROR(VLOOKUP($E37,表A_RAW!$C:$I,5,0)),"",VLOOKUP($E37,表A_RAW!$C:$I,5,0)) -> 47447 | K37: =IF(ISERROR(VLOOKUP($E37,表A_RAW!$C:$I,7,0)),"",VLOOKUP($E37,表A_RAW!$C:$I,7,0)) -> -0.5238476616 | L37: =IF(ISERROR(VLOOKUP($E37,表C_RAW!$C:$I,4,0)),"",VLOOKUP($E37,表C_RAW!$C:$I,4,0)) -> -2664 | M37: =IF(ISERROR(VLOOKUP($E37,表C_RAW!$C:$I,5,0)),"",VLOOKUP($E37,表C_RAW!$C:$I,5,0)) -> 194012 | N37: =IF(ISERROR(VLOOKUP($E37,表C_RAW!$C:$I,6,0)),"",VLOOKUP($E37,表C_RAW!$C:$I,6,0)/100) -> -1.0137
D38: 5 | E38: =VLOOKUP($C$34&D38,表C_RAW!B:D,2,0) -> 6016 康和證 | G38: =IF(ISERROR(VLOOKUP($E38,表B_RAW!$C:$I,4,0)),"",VLOOKUP($E38,表B_RAW!$C:$I,4,0)) -> 392557 | H38: =IF(ISERROR(VLOOKUP($E38,表B_RAW!$C:$I,5,0)),"",VLOOKUP($E38,表B_RAW!$C:$I,5,0)) -> -268060 | I38: =IF(ISERROR(VLOOKUP($E38,表B_RAW!$C:$I,6,0)),"",VLOOKUP($E38,表B_RAW!$C:$I,6,0)/100) -> 2.4644 | J38: =IF(ISERROR(VLOOKUP($E38,表A_RAW!$C:$I,5,0)),"",VLOOKUP($E38,表A_RAW!$C:$I,5,0)) -> 383867 | K38: =IF(ISERROR(VLOOKUP($E38,表A_RAW!$C:$I,7,0)),"",VLOOKUP($E38,表A_RAW!$C:$I,7,0)) -> 0.02263804912 | L38: =IF(ISERROR(VLOOKUP($E38,表C_RAW!$C:$I,4,0)),"",VLOOKUP($E38,表C_RAW!$C:$I,4,0)) -> 284186 | M38: =IF(ISERROR(VLOOKUP($E38,表C_RAW!$C:$I,5,0)),"",VLOOKUP($E38,表C_RAW!$C:$I,5,0)) -> 2025162 | N38: =IF(ISERROR(VLOOKUP($E38,表C_RAW!$C:$I,6,0)),"",VLOOKUP($E38,表C_RAW!$C:$I,6,0)/100) -> -0.8597
B39: 2 | C39: =VLOOKUP(B39,表C_RAW!O:P,2,0) -> 油電燃氣業 | D39: 1 | E39: =VLOOKUP($C$39&D39,表C_RAW!B:D,2,0) -> 2616 山隆 | G39: =IF(ISERROR(VLOOKUP($E39,表B_RAW!$C:$I,4,0)),"",VLOOKUP($E39,表B_RAW!$C:$I,4,0)) -> 669256 | H39: =IF(ISERROR(VLOOKUP($E39,表B_RAW!$C:$I,5,0)),"",VLOOKUP($E39,表B_RAW!$C:$I,5,0)) -> 660945 | I39: =IF(ISERROR(VLOOKUP($E39,表B_RAW!$C:$I,6,0)),"",VLOOKUP($E39,表B_RAW!$C:$I,6,0)/100) -> 0.0126 | J39: =IF(ISERROR(VLOOKUP($E39,表A_RAW!$C:$I,5,0)),"",VLOOKUP($E39,表A_RAW!$C:$I,5,0)) -> 1061037 | K39: =IF(ISERROR(VLOOKUP($E39,表A_RAW!$C:$I,7,0)),"",VLOOKUP($E39,表A_RAW!$C:$I,7,0)) -> -0.3692434854 | L39: =IF(ISERROR(VLOOKUP($E39,表C_RAW!$C:$I,4,0)),"",VLOOKUP($E39,表C_RAW!$C:$I,4,0)) -> 3339951 | M39: =IF(ISERROR(VLOOKUP($E39,表C_RAW!$C:$I,5,0)),"",VLOOKUP($E39,表C_RAW!$C:$I,5,0)) -> 5731828 | N39: =IF(ISERROR(VLOOKUP($E39,表C_RAW!$C:$I,6,0)),"",VLOOKUP($E39,表C_RAW!$C:$I,6,0)/100) -> -0.4173
D40: 2 | E40: =VLOOKUP($C$39&D40,表C_RAW!B:D,2,0) -> 9931 欣高 | G40: =IF(ISERROR(VLOOKUP($E40,表B_RAW!$C:$I,4,0)),"",VLOOKUP($E40,表B_RAW!$C:$I,4,0)) -> 114316 | H40: =IF(ISERROR(VLOOKUP($E40,表B_RAW!$C:$I,5,0)),"",VLOOKUP($E40,表B_RAW!$C:$I,5,0)) -> 148370 | I40: =IF(ISERROR(VLOOKUP($E40,表B_RAW!$C:$I,6,0)),"",VLOOKUP($E40,表B_RAW!$C:$I,6,0)/100) -> -0.2295 | J40: =IF(ISERROR(VLOOKUP($E40,表A_RAW!$C:$I,5,0)),"",VLOOKUP($E40,表A_RAW!$C:$I,5,0)) -> 266859 | K40: =IF(ISERROR(VLOOKUP($E40,表A_RAW!$C:$I,7,0)),"",VLOOKUP($E40,表A_RAW!$C:$I,7,0)) -> -0.5716239662 | L40: =IF(ISERROR(VLOOKUP($E40,表C_RAW!$C:$I,4,0)),"",VLOOKUP($E40,表C_RAW!$C:$I,4,0)) -> 683304 | M40: =IF(ISERROR(VLOOKUP($E40,表C_RAW!$C:$I,5,0)),"",VLOOKUP($E40,表C_RAW!$C:$I,5,0)) -> 1115109 | N40: =IF(ISERROR(VLOOKUP($E40,表C_RAW!$C:$I,6,0)),"",VLOOKUP($E40,表C_RAW!$C:$I,6,0)/100) -> -0.3872
D41: 3 | E41: =VLOOKUP($C$39&D41,表C_RAW!B:D,2,0) -> 8927 北基 | G41: =IF(ISERROR(VLOOKUP($E41,表B_RAW!$C:$I,4,0)),"",VLOOKUP($E41,表B_RAW!$C:$I,4,0)) -> 796008 | H41: =IF(ISERROR(VLOOKUP($E41,表B_RAW!$C:$I,5,0)),"",VLOOKUP($E41,表B_RAW!$C:$I,5,0)) -> 901070 | I41: =IF(ISERROR(VLOOKUP($E41,表B_RAW!$C:$I,6,0)),"",VLOOKUP($E41,表B_RAW!$C:$I,6,0)/100) -> -0.1166 | J41: =IF(ISERROR(VLOOKUP($E41,表A_RAW!$C:$I,5,0)),"",VLOOKUP($E41,表A_RAW!$C:$I,5,0)) -> 1138060 | K41: =IF(ISERROR(VLOOKUP($E41,表A_RAW!$C:$I,7,0)),"",VLOOKUP($E41,表A_RAW!$C:$I,7,0)) -> -0.3005570884 | L41: =IF(ISERROR(VLOOKUP($E41,表C_RAW!$C:$I,4,0)),"",VLOOKUP($E41,表C_RAW!$C:$I,4,0)) -> 4287691 | M41: =IF(ISERROR(VLOOKUP($E41,表C_RAW!$C:$I,5,0)),"",VLOOKUP($E41,表C_RAW!$C:$I,5,0)) -> 4826072 | N41: =IF(ISERROR(VLOOKUP($E41,表C_RAW!$C:$I,6,0)),"",VLOOKUP($E41,表C_RAW!$C:$I,6,0)/100) -> -0.1116
C42: =VLOOKUP(B39,表C_RAW!O:T,6,0) -> -6.86 | D42: 4 | E42: =VLOOKUP($C$39&D42,表C_RAW!B:D,2,0) -> 6505 台塑化 | G42: =IF(ISERROR(VLOOKUP($E42,表B_RAW!$C:$I,4,0)),"",VLOOKUP($E42,表B_RAW!$C:$I,4,0)) -> 45539031 | H42: =IF(ISERROR(VLOOKUP($E42,表B_RAW!$C:$I,5,0)),"",VLOOKUP($E42,表B_RAW!$C:$I,5,0)) -> 46250613 | I42: =IF(ISERROR(VLOOKUP($E42,表B_RAW!$C:$I,6,0)),"",VLOOKUP($E42,表B_RAW!$C:$I,6,0)/100) -> -0.0154 | J42: =IF(ISERROR(VLOOKUP($E42,表A_RAW!$C:$I,5,0)),"",VLOOKUP($E42,表A_RAW!$C:$I,5,0)) -> 63506779 | K42: =IF(ISERROR(VLOOKUP($E42,表A_RAW!$C:$I,7,0)),"",VLOOKUP($E42,表A_RAW!$C:$I,7,0)) -> -0.2829264573 | L42: =IF(ISERROR(VLOOKUP($E42,表C_RAW!$C:$I,4,0)),"",VLOOKUP($E42,表C_RAW!$C:$I,4,0)) -> 265056930 | M42: =IF(ISERROR(VLOOKUP($E42,表C_RAW!$C:$I,5,0)),"",VLOOKUP($E42,表C_RAW!$C:$I,5,0)) -> 285420291 | N42: =IF(ISERROR(VLOOKUP($E42,表C_RAW!$C:$I,6,0)),"",VLOOKUP($E42,表C_RAW!$C:$I,6,0)/100) -> -0.0713
D43: 5 | E43: =IFERROR(VLOOKUP($C$39&D43,表C_RAW!B:D,2,0),"") -> 9937 全國 | G43: =IF(ISERROR(VLOOKUP($E43,表B_RAW!$C:$I,4,0)),"",VLOOKUP($E43,表B_RAW!$C:$I,4,0)) -> 1853598 | H43: =IF(ISERROR(VLOOKUP($E43,表B_RAW!$C:$I,5,0)),"",VLOOKUP($E43,表B_RAW!$C:$I,5,0)) -> 1922105 | I43: =IF(ISERROR(VLOOKUP($E43,表B_RAW!$C:$I,6,0)),"",VLOOKUP($E43,表B_RAW!$C:$I,6,0)/100) -> -0.0356 | J43: =IF(ISERROR(VLOOKUP($E43,表A_RAW!$C:$I,5,0)),"",VLOOKUP($E43,表A_RAW!$C:$I,5,0)) -> 2084126 | K43: =IF(ISERROR(VLOOKUP($E43,表A_RAW!$C:$I,7,0)),"",VLOOKUP($E43,表A_RAW!$C:$I,7,0)) -> -0.1106113546 | L43: =IF(ISERROR(VLOOKUP($E43,表C_RAW!$C:$I,4,0)),"",VLOOKUP($E43,表C_RAW!$C:$I,4,0)) -> 9574753 | M43: =IF(ISERROR(VLOOKUP($E43,表C_RAW!$C:$I,5,0)),"",VLOOKUP($E43,表C_RAW!$C:$I,5,0)) -> 9913966 | N43: =IF(ISERROR(VLOOKUP($E43,表C_RAW!$C:$I,6,0)),"",VLOOKUP($E43,表C_RAW!$C:$I,6,0)/100) -> -0.0342
B44: 3 | C44: =VLOOKUP(B44,表C_RAW!O:P,2,0) -> 塑膠工業 | D44: 1 | E44: =VLOOKUP($C$44&D44,表C_RAW!B:D,2,0) -> 1323 永裕 | G44: =IF(ISERROR(VLOOKUP($E44,表B_RAW!$C:$I,4,0)),"",VLOOKUP($E44,表B_RAW!$C:$I,4,0)) -> 173860 | H44: =IF(ISERROR(VLOOKUP($E44,表B_RAW!$C:$I,5,0)),"",VLOOKUP($E44,表B_RAW!$C:$I,5,0)) -> 177544 | I44: =IF(ISERROR(VLOOKUP($E44,表B_RAW!$C:$I,6,0)),"",VLOOKUP($E44,表B_RAW!$C:$I,6,0)/100) -> -0.0207 | J44: =IF(ISERROR(VLOOKUP($E44,表A_RAW!$C:$I,5,0)),"",VLOOKUP($E44,表A_RAW!$C:$I,5,0)) -> 268716 | K44: =IF(ISERROR(VLOOKUP($E44,表A_RAW!$C:$I,7,0)),"",VLOOKUP($E44,表A_RAW!$C:$I,7,0)) -> -0.3529972164 | L44: =IF(ISERROR(VLOOKUP($E44,表C_RAW!$C:$I,4,0)),"",VLOOKUP($E44,表C_RAW!$C:$I,4,0)) -> 878457 | M44: =IF(ISERROR(VLOOKUP($E44,表C_RAW!$C:$I,5,0)),"",VLOOKUP($E44,表C_RAW!$C:$I,5,0)) -> 1274949 | N44: =IF(ISERROR(VLOOKUP($E44,表C_RAW!$C:$I,6,0)),"",VLOOKUP($E44,表C_RAW!$C:$I,6,0)/100) -> -0.311
D45: 2 | E45: =VLOOKUP($C$44&D45,表C_RAW!B:D,2,0) -> 1340 勝悅-KY | G45: =IF(ISERROR(VLOOKUP($E45,表B_RAW!$C:$I,4,0)),"",VLOOKUP($E45,表B_RAW!$C:$I,4,0)) -> 23241 | H45: =IF(ISERROR(VLOOKUP($E45,表B_RAW!$C:$I,5,0)),"",VLOOKUP($E45,表B_RAW!$C:$I,5,0)) -> 28106 | I45: =IF(ISERROR(VLOOKUP($E45,表B_RAW!$C:$I,6,0)),"",VLOOKUP($E45,表B_RAW!$C:$I,6,0)/100) -> -0.1731 | J45: =IF(ISERROR(VLOOKUP($E45,表A_RAW!$C:$I,5,0)),"",VLOOKUP($E45,表A_RAW!$C:$I,5,0)) -> 42775 | K45: =IF(ISERROR(VLOOKUP($E45,表A_RAW!$C:$I,7,0)),"",VLOOKUP($E45,表A_RAW!$C:$I,7,0)) -> -0.4566686148 | L45: =IF(ISERROR(VLOOKUP($E45,表C_RAW!$C:$I,4,0)),"",VLOOKUP($E45,表C_RAW!$C:$I,4,0)) -> 112401 | M45: =IF(ISERROR(VLOOKUP($E45,表C_RAW!$C:$I,5,0)),"",VLOOKUP($E45,表C_RAW!$C:$I,5,0)) -> 160236 | N45: =IF(ISERROR(VLOOKUP($E45,表C_RAW!$C:$I,6,0)),"",VLOOKUP($E45,表C_RAW!$C:$I,6,0)/100) -> -0.2985
D46: 3 | E46: =VLOOKUP($C$44&D46,表C_RAW!B:D,2,0) -> 1314 中石化 | G46: =IF(ISERROR(VLOOKUP($E46,表B_RAW!$C:$I,4,0)),"",VLOOKUP($E46,表B_RAW!$C:$I,4,0)) -> 1696761 | H46: =IF(ISERROR(VLOOKUP($E46,表B_RAW!$C:$I,5,0)),"",VLOOKUP($E46,表B_RAW!$C:$I,5,0)) -> 1739506 | I46: =IF(ISERROR(VLOOKUP($E46,表B_RAW!$C:$I,6,0)),"",VLOOKUP($E46,表B_RAW!$C:$I,6,0)/100) -> -0.0246 | J46: =IF(ISERROR(VLOOKUP($E46,表A_RAW!$C:$I,5,0)),"",VLOOKUP($E46,表A_RAW!$C:$I,5,0)) -> 3133666 | K46: =IF(ISERROR(VLOOKUP($E46,表A_RAW!$C:$I,7,0)),"",VLOOKUP($E46,表A_RAW!$C:$I,7,0)) -> -0.458538019 | L46: =IF(ISERROR(VLOOKUP($E46,表C_RAW!$C:$I,4,0)),"",VLOOKUP($E46,表C_RAW!$C:$I,4,0)) -> 9953922 | M46: =IF(ISERROR(VLOOKUP($E46,表C_RAW!$C:$I,5,0)),"",VLOOKUP($E46,表C_RAW!$C:$I,5,0)) -> 14118455 | N46: =IF(ISERROR(VLOOKUP($E46,表C_RAW!$C:$I,6,0)),"",VLOOKUP($E46,表C_RAW!$C:$I,6,0)/100) -> -0.295
C47: =VLOOKUP(B44,表C_RAW!O:T,6,0) -> -6.83 | D47: 4 | E47: =VLOOKUP($C$44&D47,表C_RAW!B:D,2,0) -> 1337 再生-KY | G47: =IF(ISERROR(VLOOKUP($E47,表B_RAW!$C:$I,4,0)),"",VLOOKUP($E47,表B_RAW!$C:$I,4,0)) -> 50243 | H47: =IF(ISERROR(VLOOKUP($E47,表B_RAW!$C:$I,5,0)),"",VLOOKUP($E47,表B_RAW!$C:$I,5,0)) -> 61260 | I47: =IF(ISERROR(VLOOKUP($E47,表B_RAW!$C:$I,6,0)),"",VLOOKUP($E47,表B_RAW!$C:$I,6,0)/100) -> -0.1798 | J47: =IF(ISERROR(VLOOKUP($E47,表A_RAW!$C:$I,5,0)),"",VLOOKUP($E47,表A_RAW!$C:$I,5,0)) -> 61862 | K47: =IF(ISERROR(VLOOKUP($E47,表A_RAW!$C:$I,7,0)),"",VLOOKUP($E47,表A_RAW!$C:$I,7,0)) -> -0.1878212796 | L47: =IF(ISERROR(VLOOKUP($E47,表C_RAW!$C:$I,4,0)),"",VLOOKUP($E47,表C_RAW!$C:$I,4,0)) -> 294034 | M47: =IF(ISERROR(VLOOKUP($E47,表C_RAW!$C:$I,5,0)),"",VLOOKUP($E47,表C_RAW!$C:$I,5,0)) -> 382664 | N47: =IF(ISERROR(VLOOKUP($E47,表C_RAW!$C:$I,6,0)),"",VLOOKUP($E47,表C_RAW!$C:$I,6,0)/100) -> -0.2316
D48: 5 | E48: =IFERROR(VLOOKUP($C$44&D48,表C_RAW!B:D,2,0),"") -> 1313 聯成 | G48: =IF(ISERROR(VLOOKUP($E48,表B_RAW!$C:$I,4,0)),"",VLOOKUP($E48,表B_RAW!$C:$I,4,0)) -> 5129412 | H48: =IF(ISERROR(VLOOKUP($E48,表B_RAW!$C:$I,5,0)),"",VLOOKUP($E48,表B_RAW!$C:$I,5,0)) -> 5570919 | I48: =IF(ISERROR(VLOOKUP($E48,表B_RAW!$C:$I,6,0)),"",VLOOKUP($E48,表B_RAW!$C:$I,6,0)/100) -> -0.0793 | J48: =IF(ISERROR(VLOOKUP($E48,表A_RAW!$C:$I,5,0)),"",VLOOKUP($E48,表A_RAW!$C:$I,5,0)) -> 6951456 | K48: =IF(ISERROR(VLOOKUP($E48,表A_RAW!$C:$I,7,0)),"",VLOOKUP($E48,表A_RAW!$C:$I,7,0)) -> -0.2621096933 | L48: =IF(ISERROR(VLOOKUP($E48,表C_RAW!$C:$I,4,0)),"",VLOOKUP($E48,表C_RAW!$C:$I,4,0)) -> 24798757 | M48: =IF(ISERROR(VLOOKUP($E48,表C_RAW!$C:$I,5,0)),"",VLOOKUP($E48,表C_RAW!$C:$I,5,0)) -> 32071050 | N48: =IF(ISERROR(VLOOKUP($E48,表C_RAW!$C:$I,6,0)),"",VLOOKUP($E48,表C_RAW!$C:$I,6,0)/100) -> -0.2268
B49: 4 | C49: =VLOOKUP(B49,表C_RAW!O:P,2,0) -> 汽車工業 | D49: 1 | E49: =VLOOKUP($C$49&D49,表C_RAW!B:D,2,0) -> 2227 裕日車 | G49: =IF(ISERROR(VLOOKUP($E49,表B_RAW!$C:$I,4,0)),"",VLOOKUP($E49,表B_RAW!$C:$I,4,0)) -> 1231684 | H49: =IF(ISERROR(VLOOKUP($E49,表B_RAW!$C:$I,5,0)),"",VLOOKUP($E49,表B_RAW!$C:$I,5,0)) -> 1178353 | I49: =IF(ISERROR(VLOOKUP($E49,表B_RAW!$C:$I,6,0)),"",VLOOKUP($E49,表B_RAW!$C:$I,6,0)/100) -> 0.0453 | J49: =IF(ISERROR(VLOOKUP($E49,表A_RAW!$C:$I,5,0)),"",VLOOKUP($E49,表A_RAW!$C:$I,5,0)) -> 2137013 | K49: =IF(ISERROR(VLOOKUP($E49,表A_RAW!$C:$I,7,0)),"",VLOOKUP($E49,表A_RAW!$C:$I,7,0)) -> -0.4236422521 | L49: =IF(ISERROR(VLOOKUP($E49,表C_RAW!$C:$I,4,0)),"",VLOOKUP($E49,表C_RAW!$C:$I,4,0)) -> 6962341 | M49: =IF(ISERROR(VLOOKUP($E49,表C_RAW!$C:$I,5,0)),"",VLOOKUP($E49,表C_RAW!$C:$I,5,0)) -> 11466547 | N49: =IF(ISERROR(VLOOKUP($E49,表C_RAW!$C:$I,6,0)),"",VLOOKUP($E49,表C_RAW!$C:$I,6,0)/100) -> -0.3928
D50: 2 | E50: =VLOOKUP($C$49&D50,表C_RAW!B:D,2,0) -> 2204 中華 | G50: =IF(ISERROR(VLOOKUP($E50,表B_RAW!$C:$I,4,0)),"",VLOOKUP($E50,表B_RAW!$C:$I,4,0)) -> 2624182 | H50: =IF(ISERROR(VLOOKUP($E50,表B_RAW!$C:$I,5,0)),"",VLOOKUP($E50,表B_RAW!$C:$I,5,0)) -> 2974873 | I50: =IF(ISERROR(VLOOKUP($E50,表B_RAW!$C:$I,6,0)),"",VLOOKUP($E50,表B_RAW!$C:$I,6,0)/100) -> -0.1179 | J50: =IF(ISERROR(VLOOKUP($E50,表A_RAW!$C:$I,5,0)),"",VLOOKUP($E50,表A_RAW!$C:$I,5,0)) -> 3838928 | K50: =IF(ISERROR(VLOOKUP($E50,表A_RAW!$C:$I,7,0)),"",VLOOKUP($E50,表A_RAW!$C:$I,7,0)) -> -0.3164284404 | L50: =IF(ISERROR(VLOOKUP($E50,表C_RAW!$C:$I,4,0)),"",VLOOKUP($E50,表C_RAW!$C:$I,4,0)) -> 13548909 | M50: =IF(ISERROR(VLOOKUP($E50,表C_RAW!$C:$I,5,0)),"",VLOOKUP($E50,表C_RAW!$C:$I,5,0)) -> 20137540 | N50: =IF(ISERROR(VLOOKUP($E50,表C_RAW!$C:$I,6,0)),"",VLOOKUP($E50,表C_RAW!$C:$I,6,0)/100) -> -0.3272
D51: 3 | E51: =VLOOKUP($C$49&D51,表C_RAW!B:D,2,0) -> 2201 裕隆 | G51: =IF(ISERROR(VLOOKUP($E51,表B_RAW!$C:$I,4,0)),"",VLOOKUP($E51,表B_RAW!$C:$I,4,0)) -> 5895016 | H51: =IF(ISERROR(VLOOKUP($E51,表B_RAW!$C:$I,5,0)),"",VLOOKUP($E51,表B_RAW!$C:$I,5,0)) -> 5604042 | I51: =IF(ISERROR(VLOOKUP($E51,表B_RAW!$C:$I,6,0)),"",VLOOKUP($E51,表B_RAW!$C:$I,6,0)/100) -> 0.0519 | J51: =IF(ISERROR(VLOOKUP($E51,表A_RAW!$C:$I,5,0)),"",VLOOKUP($E51,表A_RAW!$C:$I,5,0)) -> 7718656 | K51: =IF(ISERROR(VLOOKUP($E51,表A_RAW!$C:$I,7,0)),"",VLOOKUP($E51,表A_RAW!$C:$I,7,0)) -> -0.2362639299 | L51: =IF(ISERROR(VLOOKUP($E51,表C_RAW!$C:$I,4,0)),"",VLOOKUP($E51,表C_RAW!$C:$I,4,0)) -> 29370017 | M51: =IF(ISERROR(VLOOKUP($E51,表C_RAW!$C:$I,5,0)),"",VLOOKUP($E51,表C_RAW!$C:$I,5,0)) -> 36083131 | N51: =IF(ISERROR(VLOOKUP($E51,表C_RAW!$C:$I,6,0)),"",VLOOKUP($E51,表C_RAW!$C:$I,6,0)/100) -> -0.186
C52: =VLOOKUP(B49,表C_RAW!O:T,6,0) -> -4.71 | D52: 4 | E52: =VLOOKUP($C$49&D52,表C_RAW!B:D,2,0) -> 2231 為升 | G52: =IF(ISERROR(VLOOKUP($E52,表B_RAW!$C:$I,4,0)),"",VLOOKUP($E52,表B_RAW!$C:$I,4,0)) -> 287359 | H52: =IF(ISERROR(VLOOKUP($E52,表B_RAW!$C:$I,5,0)),"",VLOOKUP($E52,表B_RAW!$C:$I,5,0)) -> 253017 | I52: =IF(ISERROR(VLOOKUP($E52,表B_RAW!$C:$I,6,0)),"",VLOOKUP($E52,表B_RAW!$C:$I,6,0)/100) -> 0.1357 | J52: =IF(ISERROR(VLOOKUP($E52,表A_RAW!$C:$I,5,0)),"",VLOOKUP($E52,表A_RAW!$C:$I,5,0)) -> 337372 | K52: =IF(ISERROR(VLOOKUP($E52,表A_RAW!$C:$I,7,0)),"",VLOOKUP($E52,表A_RAW!$C:$I,7,0)) -> -0.1482428892 | L52: =IF(ISERROR(VLOOKUP($E52,表C_RAW!$C:$I,4,0)),"",VLOOKUP($E52,表C_RAW!$C:$I,4,0)) -> 1421596 | M52: =IF(ISERROR(VLOOKUP($E52,表C_RAW!$C:$I,5,0)),"",VLOOKUP($E52,表C_RAW!$C:$I,5,0)) -> 1714462 | N52: =IF(ISERROR(VLOOKUP($E52,表C_RAW!$C:$I,6,0)),"",VLOOKUP($E52,表C_RAW!$C:$I,6,0)/100) -> -0.1708
D53: 5 | E53: =VLOOKUP($C$49&D53,表C_RAW!B:D,2,0) -> 1521 大億 | G53: =IF(ISERROR(VLOOKUP($E53,表B_RAW!$C:$I,4,0)),"",VLOOKUP($E53,表B_RAW!$C:$I,4,0)) -> 266859 | H53: =IF(ISERROR(VLOOKUP($E53,表B_RAW!$C:$I,5,0)),"",VLOOKUP($E53,表B_RAW!$C:$I,5,0)) -> 296193 | I53: =IF(ISERROR(VLOOKUP($E53,表B_RAW!$C:$I,6,0)),"",VLOOKUP($E53,表B_RAW!$C:$I,6,0)/100) -> -0.099 | J53: =IF(ISERROR(VLOOKUP($E53,表A_RAW!$C:$I,5,0)),"",VLOOKUP($E53,表A_RAW!$C:$I,5,0)) -> 345154 | K53: =IF(ISERROR(VLOOKUP($E53,表A_RAW!$C:$I,7,0)),"",VLOOKUP($E53,表A_RAW!$C:$I,7,0)) -> -0.2268407725 | L53: =IF(ISERROR(VLOOKUP($E53,表C_RAW!$C:$I,4,0)),"",VLOOKUP($E53,表C_RAW!$C:$I,4,0)) -> 1451339 | M53: =IF(ISERROR(VLOOKUP($E53,表C_RAW!$C:$I,5,0)),"",VLOOKUP($E53,表C_RAW!$C:$I,5,0)) -> 1724287 | N53: =IF(ISERROR(VLOOKUP($E53,表C_RAW!$C:$I,6,0)),"",VLOOKUP($E53,表C_RAW!$C:$I,6,0)/100) -> -0.1583
B54: 5 | C54: =VLOOKUP(B54,表C_RAW!O:P,2,0) -> 其他 | D54: 1 | E54: =VLOOKUP($C$54&D54,表C_RAW!B:D,2,0) -> 3313 斐成 | G54: =IF(ISERROR(VLOOKUP($E54,表B_RAW!$C:$I,4,0)),"",VLOOKUP($E54,表B_RAW!$C:$I,4,0)) -> 61 | H54: =IF(ISERROR(VLOOKUP($E54,表B_RAW!$C:$I,5,0)),"",VLOOKUP($E54,表B_RAW!$C:$I,5,0)) -> 211 | I54: =IF(ISERROR(VLOOKUP($E54,表B_RAW!$C:$I,6,0)),"",VLOOKUP($E54,表B_RAW!$C:$I,6,0)/100) -> -0.7109 | J54: =IF(ISERROR(VLOOKUP($E54,表A_RAW!$C:$I,5,0)),"",VLOOKUP($E54,表A_RAW!$C:$I,5,0)) -> 452 | K54: =IF(ISERROR(VLOOKUP($E54,表A_RAW!$C:$I,7,0)),"",VLOOKUP($E54,表A_RAW!$C:$I,7,0)) -> -0.8650442478 | L54: =IF(ISERROR(VLOOKUP($E54,表C_RAW!$C:$I,4,0)),"",VLOOKUP($E54,表C_RAW!$C:$I,4,0)) -> 809 | M54: =IF(ISERROR(VLOOKUP($E54,表C_RAW!$C:$I,5,0)),"",VLOOKUP($E54,表C_RAW!$C:$I,5,0)) -> 23036 | N54: =IF(ISERROR(VLOOKUP($E54,表C_RAW!$C:$I,6,0)),"",VLOOKUP($E54,表C_RAW!$C:$I,6,0)/100) -> -0.9649
D55: 2 | E55: =VLOOKUP($C$54&D55,表C_RAW!B:D,2,0) -> 1516 川飛 | G55: =IF(ISERROR(VLOOKUP($E55,表B_RAW!$C:$I,4,0)),"",VLOOKUP($E55,表B_RAW!$C:$I,4,0)) -> 11521 | H55: =IF(ISERROR(VLOOKUP($E55,表B_RAW!$C:$I,5,0)),"",VLOOKUP($E55,表B_RAW!$C:$I,5,0)) -> 0 | I55: =IF(ISERROR(VLOOKUP($E55,表B_RAW!$C:$I,6,0)),"",VLOOKUP($E55,表B_RAW!$C:$I,6,0)/100) -> 0 | J55: =IF(ISERROR(VLOOKUP($E55,表A_RAW!$C:$I,5,0)),"",VLOOKUP($E55,表A_RAW!$C:$I,5,0)) -> 90759 | K55: =IF(ISERROR(VLOOKUP($E55,表A_RAW!$C:$I,7,0)),"",VLOOKUP($E55,表A_RAW!$C:$I,7,0)) -> -0.8730594211 | L55: =IF(ISERROR(VLOOKUP($E55,表C_RAW!$C:$I,4,0)),"",VLOOKUP($E55,表C_RAW!$C:$I,4,0)) -> 33385 | M55: =IF(ISERROR(VLOOKUP($E55,表C_RAW!$C:$I,5,0)),"",VLOOKUP($E55,表C_RAW!$C:$I,5,0)) -> 457957 | N55: =IF(ISERROR(VLOOKUP($E55,表C_RAW!$C:$I,6,0)),"",VLOOKUP($E55,表C_RAW!$C:$I,6,0)/100) -> -0.9271
D56: 3 | E56: =VLOOKUP($C$54&D56,表C_RAW!B:D,2,0) -> 4154 樂威科-KY | G56: =IF(ISERROR(VLOOKUP($E56,表B_RAW!$C:$I,4,0)),"",VLOOKUP($E56,表B_RAW!$C:$I,4,0)) -> 1061 | H56: =IF(ISERROR(VLOOKUP($E56,表B_RAW!$C:$I,5,0)),"",VLOOKUP($E56,表B_RAW!$C:$I,5,0)) -> 1226 | I56: =IF(ISERROR(VLOOKUP($E56,表B_RAW!$C:$I,6,0)),"",VLOOKUP($E56,表B_RAW!$C:$I,6,0)/100) -> -0.1346 | J56: =IF(ISERROR(VLOOKUP($E56,表A_RAW!$C:$I,5,0)),"",VLOOKUP($E56,表A_RAW!$C:$I,5,0)) -> 1575 | K56: =IF(ISERROR(VLOOKUP($E56,表A_RAW!$C:$I,7,0)),"",VLOOKUP($E56,表A_RAW!$C:$I,7,0)) -> -0.3263492063 | L56: =IF(ISERROR(VLOOKUP($E56,表C_RAW!$C:$I,4,0)),"",VLOOKUP($E56,表C_RAW!$C:$I,4,0)) -> 8775 | M56: =IF(ISERROR(VLOOKUP($E56,表C_RAW!$C:$I,5,0)),"",VLOOKUP($E56,表C_RAW!$C:$I,5,0)) -> 17454 | N56: =IF(ISERROR(VLOOKUP($E56,表C_RAW!$C:$I,6,0)),"",VLOOKUP($E56,表C_RAW!$C:$I,6,0)/100) -> -0.4972
C57: =VLOOKUP(B54,表C_RAW!O:T,6,0) -> -4.5 | D57: 4 | E57: =VLOOKUP($C$54&D57,表C_RAW!B:D,2,0) -> 1435 中福 | G57: =IF(ISERROR(VLOOKUP($E57,表B_RAW!$C:$I,4,0)),"",VLOOKUP($E57,表B_RAW!$C:$I,4,0)) -> 498 | H57: =IF(ISERROR(VLOOKUP($E57,表B_RAW!$C:$I,5,0)),"",VLOOKUP($E57,表B_RAW!$C:$I,5,0)) -> 499 | I57: =IF(ISERROR(VLOOKUP($E57,表B_RAW!$C:$I,6,0)),"",VLOOKUP($E57,表B_RAW!$C:$I,6,0)/100) -> -0.002 | J57: =IF(ISERROR(VLOOKUP($E57,表A_RAW!$C:$I,5,0)),"",VLOOKUP($E57,表A_RAW!$C:$I,5,0)) -> 1023 | K57: =IF(ISERROR(VLOOKUP($E57,表A_RAW!$C:$I,7,0)),"",VLOOKUP($E57,表A_RAW!$C:$I,7,0)) -> -0.5131964809 | L57: =IF(ISERROR(VLOOKUP($E57,表C_RAW!$C:$I,4,0)),"",VLOOKUP($E57,表C_RAW!$C:$I,4,0)) -> 2492 | M57: =IF(ISERROR(VLOOKUP($E57,表C_RAW!$C:$I,5,0)),"",VLOOKUP($E57,表C_RAW!$C:$I,5,0)) -> 4698 | N57: =IF(ISERROR(VLOOKUP($E57,表C_RAW!$C:$I,6,0)),"",VLOOKUP($E57,表C_RAW!$C:$I,6,0)/100) -> -0.4696
D58: 5 | E58: =VLOOKUP($C$54&D58,表C_RAW!B:D,2,0) -> 8937 合騏 | G58: =IF(ISERROR(VLOOKUP($E58,表B_RAW!$C:$I,4,0)),"",VLOOKUP($E58,表B_RAW!$C:$I,4,0)) -> 6221 | H58: =IF(ISERROR(VLOOKUP($E58,表B_RAW!$C:$I,5,0)),"",VLOOKUP($E58,表B_RAW!$C:$I,5,0)) -> 7777 | I58: =IF(ISERROR(VLOOKUP($E58,表B_RAW!$C:$I,6,0)),"",VLOOKUP($E58,表B_RAW!$C:$I,6,0)/100) -> -0.2001 | J58: =IF(ISERROR(VLOOKUP($E58,表A_RAW!$C:$I,5,0)),"",VLOOKUP($E58,表A_RAW!$C:$I,5,0)) -> 13081 | K58: =IF(ISERROR(VLOOKUP($E58,表A_RAW!$C:$I,7,0)),"",VLOOKUP($E58,表A_RAW!$C:$I,7,0)) -> -0.5244247382 | L58: =IF(ISERROR(VLOOKUP($E58,表C_RAW!$C:$I,4,0)),"",VLOOKUP($E58,表C_RAW!$C:$I,4,0)) -> 36205 | M58: =IF(ISERROR(VLOOKUP($E58,表C_RAW!$C:$I,5,0)),"",VLOOKUP($E58,表C_RAW!$C:$I,5,0)) -> 63037 | N58: =IF(ISERROR(VLOOKUP($E58,表C_RAW!$C:$I,6,0)),"",VLOOKUP($E58,表C_RAW!$C:$I,6,0)/100) -> -0.4257

Sheet 表A_RAW
D1: TSE新產業_名稱 | E1: TSE新產業_代碼 | F1: 單月營收(千元) | G1: 去年單月營收(千元) | H1: 本月較去年同期變動金額 | I1: 較去年同期變動比率(%) | J1: 產業位址 | K1: 產業家數 | L1: 排名(正向) | M1: 排名(反向) | N1: 排名(正向) | O1: 排名(反向) | P1: 產業營收 | Q1: 單月營收(千元) | R1: 去年單月營收(千元) | S1: 本月較去年同期變動金額 | T1: 較去年同期變動比率(%) | U1: 排名(正向) | V1: 排名(反向)
A2: 排名(正向) | B2: 排名(反向) | C2: 公司 | E2: 2025-05-29 | F2: 2025-05-29 | G2: 2025-05-29 | N2: =U2 -> 21 | O2: =V2 -> 14 | P2: =_xlfn.UNIQUE($D$3:$D$1900,FALSE,FALSE) -> 水泥工業 | Q2: =SUMIF($D:$D,$P2,F:F) -> 20939298 | R2: =SUMIF($D:$D,$P2,G:G) -> 22463985 | S2: =Q2-R2 -> -1524687 | T2: =IF(VLOOKUP(P2,$D:$K,8,0)=1,"",S2/R2*100) -> -6.787250793 | U2: =IF($T2="",0,_xlfn.RANK.EQ(T2,T:T)) -> 21 | V2: =IF($T2="",0,_xlfn.RANK.EQ(T2,T:T,1)) -> 14
A3: =$D3&L3 -> 水泥工業4 | B3: =$D3&M3 -> 水泥工業4 | C3: 1101 台泥 | D3: 水泥工業 | E3: M1100 | F3: 12619495 | G3: 13860276 | H3: =F3-G3 -> -1240781 | I3: =IF(ISERROR((H3/G3)*100),"",(H3/(ABS(G3)))) -> -0.08952065601 | J3: =IF(E3="","",MATCH(E3,E:E,0)) -> 3 | K3: =COUNTIF(D:D,D3) -> 7 | L3: =IF(I3="","",RANK(I3,OFFSET(I$1,$J3-1,,$K3,),0)) -> 4 | M3: =IF(I3="","",RANK(I3,OFFSET(I$1,$J3-1,,$K3,),1)) -> 4 | N3: =U3 -> 9 | O3: =V3 -> 26 | P3: 食品工業 | Q3: =SUMIF($D:$D,$P3,F:F) -> 85541694 | R3: 83606411 | S3: =Q3-R3 -> 1935283 | T3: =IF(VLOOKUP(P3,$D:$K,8,0)=1,"",S3/R3*100) -> 2.314754308 | U3: =IF($T3="",0,_xlfn.RANK.EQ(T3,T:T)) -> 9 | V3: =IF($T3="",0,_xlfn.RANK.EQ(T3,T:T,1)) -> 26
A4: 水泥工業3 | B4: 水泥工業5 | C4: 1102 亞泥 | D4: 水泥工業 | E4: M1100 | F4: 6370169 | G4: 6459670 | H4: =F4-G4 -> -89501 | I4: =IF(ISERROR((H4/G4)*100),"",(H4/(ABS(G4)))) -> -0.01385535174 | J4: =IF(E4="","",MATCH(E4,E:E,0)) -> 3 | K4: =COUNTIF(D:D,D4) -> 7 | L4: =IF(I4="","",RANK(I4,OFFSET(I$1,$J4-1,,$K4,),0)) -> 3 | M4: =IF(I4="","",RANK(I4,OFFSET(I$1,$J4-1,,$K4,),1)) -> 5 | N4: 31 | O4: 4 | P4: 塑膠工業 | Q4: 79239333 | R4: 98415061 | S4: -19175728 | T4: -19.48454617 | U4: 31 | V4: 4
A5: 水泥工業2 | B5: 水泥工業6 | C5: 1103 嘉泥 | D5: 水泥工業 | E5: M1100 | F5: 249182 | G5: 243833 | H5: 5349 | I5: 0.02193714551 | J5: 3 | K5: 7 | L5: =IF(I5="","",RANK(I5,OFFSET(I$1,$J5-1,,$K5,),0)) -> 2 | M5: 6 | N5: 30 | O5: 5 | P5: 紡織纖維 | Q5: 46691419 | R5: 53110334 | S5: -6418915 | T5: -12.08600006 | U5: 30 | V5: 5
A6: 水泥工業6 | B6: 水泥工業2 | C6: 1104 環泥 | D6: 水泥工業 | E6: M1100 | F6: 643106 | G6: 743116 | H6: -100010 | I6: -0.1345819495 | J6: 3 | K6: 7 | L6: 6 | M6: 2 | N6: 12 | O6: 23 | P6: 電機機械 | Q6: 44012456 | R6: 43350453 | S6: 662003 | T6: 1.527095922 | U6: 12 | V6: 23
A7: 水泥工業5 | B7: 水泥工業3 | C7: 1108 幸福 | D7: 水泥工業 | E7: M1100 | F7: 388571 | G7: 435713 | H7: -47142 | I7: -0.1081950734 | J7: 3 | K7: 7 | L7: 5 | M7: 3 | N7: 17 | O7: 18 | P7: 電器電纜 | Q7: 25751201 | R7: 25888913 | S7: -137712 | T7: -0.5319342685 | U7: 17 | V7: 18
A8: 水泥工業7 | B8: 水泥工業1 | C8: 1109 信大 | D8: 水泥工業 | E8: M1100 | F8: 407283 | G8: 516800 | H8: -109517 | I8: -0.2119136997 | J8: 3 | K8: 7 | L8: 7 | M8: 1 | N8: 23 | O8: 12 | P8: 化學工業 | Q8: 25673776 | R8: 27988446 | S8: -2314670 | T8: -8.270091165 | U8: 23 | V8: 12
A9: 水泥工業1 | B9: 水泥工業7 | C9: 1110 東泥 | D9: 水泥工業 | E9: M1100 | F9: 261492 | G9: 204577 | H9: 56915 | I9: 0.2782082052 | J9: 3 | K9: 7 | L9: 1 | M9: 7 | N9: 11 | O9: 24 | P9: 生技醫療業 | Q9: 26423616 | R9: 25875639 | S9: 547977 | T9: 2.117733208 | U9: 11 | V9: 24
A10: 食品工業24 | B10: 食品工業8 | C10: 1201 味全 | D10: 食品工業 | E10: M1200 | F10: 1923030 | G10: 2067265 | H10: -144235 | I10: -0.06977092922 | J10: 10 | K10: 31 | L10: 24 | M10: 8 | N10: 25 | O10: 10 | P10: 玻璃陶瓷 | Q10: 4470360 | R10: 4923872 | S10: -453512 | T10: -9.210475008 | U10: 25 | V10: 10
A11: 食品工業21 | B11: 食品工業11 | C11: 1203 味王 | D11: 食品工業 | E11: M1200 | F11: 481004 | G11: 512093 | H11: -31089 | I11: -0.06070967578 | J11: 10 | K11: 31 | L11: 21 | M11: 11 | N11: 29 | O11: 6 | P11: 造紙工業 | Q11: 16043343 | R11: 18135751 | S11: -2092408 | T11: -11.53747645 | U11: 29 | V11: 6
A12: 食品工業20 | B12: 食品工業12 | C12: 1210 大成 | D12: 食品工業 | E12: M1200 | F12: 8229515 | G12: 8612403 | H12: -382888 | I12: -0.04445774309 | J12: 10 | K12: 31 | L12: 20 | M12: 12 | N12: 22 | O12: 13 | P12: 鋼鐵工業 | Q12: 81229961 | R12: 87311117 | S12: -6081156 | T12: -6.964927502 | U12: 22 | V12: 13
A13: 食品工業4 | B13: 食品工業28 | C13: 1213 大飲 | D13: 食品工業 | E13: M1200 | F13: 19978 | G13: 16426 | H13: 3552 | I13: 0.2162425423 | J13: 10 | K13: 31 | L13: 4 | M13: 28 | N13: 20 | O13: 15 | P13: 橡膠工業 | Q13: 17811489 | R13: 18585060 | S13: -773571 | T13: -4.16232716 | U13: 20 | V13: 15
A14: 食品工業13 | B14: 食品工業19 | C14: 1215 卜蜂 | D14: 食品工業 | E14: M1200 | F14: 2448264 | G14: 2366427 | H14: 81837 | I14: 0.03458251617 | J14: 10 | K14: 31 | L14: 13 | M14: 19 | N14: 28 | O14: 7 | P14: 汽車工業 | Q14: 59274498 | R14: 66867239 | S14: -7592741 | T14: -11.35494917 | U14: 28 | V14: 7
A15: 食品工業11 | B15: 食品工業21 | C15: 1216 統一 | D15: 食品工業 | E15: M1200 | F15: 57625519 | G15: 54792810 | H15: 2832709 | I15: 0.05169855315 | J15: 10 | K15: 31 | L15: 11 | M15: 21 | N15: 0 | O15: 0 | P15: 電子工業 | Q15: 114311 | R15: 51830 | S15: 62481 | T15: =IF(VLOOKUP(P15,$D:$K,8,0)=1,"",S15/R15*100) ->  | U15: 0 | V15: 0 | W15: *該公司於2025/6/13才上市，故本月先排除樣本
A16: 食品工業17 | B16: 食品工業15 | C16: 1217 愛之味 | D16: 食品工業 | E16: M1200 | F16: 440729 | G16: 444968 | H16: -4239 | I16: -0.00952652775 | J16: 10 | K16: 31 | L16: 17 | M16: 15 | N16: 3 | O16: 32 | P16: 半導體業 | Q16: 585676625 | R16: 488158885 | S16: 97517740 | T16: =IF(VLOOKUP(P16,$D:$K,8,0)=1,"",S16/R16*100) -> 19.97663937 | U16: 3 | V16: 32
A17: 食品工業14 | B17: 食品工業18 | C17: 1218 泰山 | D17: 食品工業 | E17: M1200 | F17: 832885 | G17: 827689 | H17: 5196 | I17: 0.006277720255 | J17: 10 | K17: 31 | L17: 14 | M17: 18 | N17: 2 | O17: 33 | P17: 電腦及週邊設備業 | Q17: 919284160 | R17: 637780091 | S17: 281504069 | T17: 44.13810857 | U17: 2 | V17: 33
A18: 食品工業18 | B18: 食品工業14 | C18: 1219 福壽 | D18: 食品工業 | E18: M1200 | F18: 1197196 | G18: 1214397 | H18: -17201 | I18: -0.0141642313 | J18: 10 | K18: 31 | L18: 18 | M18: 14 | N18: 14 | O18: 21 | P18: 光電業 | Q18: 106484372 | R18: 105946404 | S18: 537968 | T18: 0.507773723 | U18: 14 | V18: 21
A19: 食品工業22 | B19: 食品工業10 | C19: 1220 台榮 | D19: 食品工業 | E19: M1200 | F19: 274366 | G19: 292960 | H19: -18594 | I19: -0.06346941562 | J19: 10 | K19: 31 | L19: 22 | M19: 10 | N19: 8 | O19: 27 | P19: 通訊網路業 | Q19: 106360721 | R19: 98731575 | S19: 7629146 | T19: 7.727159219 | U19: 8 | V19: 27
A20: 食品工業16 | B20: 食品工業16 | C20: 1225 福懋油 | D20: 食品工業 | E20: M1200 | F20: 1008123 | G20: 1016515 | H20: -8392 | I20: -0.008255657811 | J20: 10 | K20: 31 | L20: 16 | M20: 16 | N20: 7 | O20: 28 | P20: 電子零組件 | Q20: 214348767 | R20: 198746569 | S20: =Q20-R20 -> 15602198 | T20: 7.850298035 | U20: 7 | V20: 28
A21: 食品工業23 | B21: 食品工業9 | C21: 1227 佳格 | D21: 食品工業 | E21: M1200 | F21: 2164443 | G21: 2314332 | H21: -149889 | I21: -0.06476555654 | J21: 10 | K21: 31 | L21: 23 | M21: 9 | N21: 18 | O21: 17 | P21: 電子通路業 | Q21: 255441262 | R21: 258044782 | S21: -2603520 | T21: -1.008941153 | U21: 18 | V21: 17
A22: 食品工業29 | B22: 食品工業3 | C22: 1229 聯華 | D22: 食品工業 | E22: M1200 | F22: 862668 | G22: 1066638 | H22: -203970 | I22: -0.1912270142 | J22: 10 | K22: 31 | L22: 29 | M22: 3 | N22: 4 | O22: 31 | P22: 資訊服務業 | Q22: 14536843 | R22: 12885797 | S22: 1651046 | T22: 12.81291332 | U22: 4 | V22: 31
A23: 食品工業7 | B23: 食品工業25 | C23: 1231 聯華食 | D23: 食品工業 | E23: M1200 | F23: 1018378 | G23: 923424 | H23: 94954 | I23: 0.1028281699 | J23: 10 | K23: 31 | L23: 7 | M23: 25 | N23: 5 | O23: 30 | P23: 其他電子業 | Q23: 697707411 | R23: 619890473 | S23: 77816938 | T23: 12.55333666 | U23: 5 | V23: 30
A24: 食品工業25 | B24: 食品工業7 | C24: 1232 大統益 | D24: 食品工業 | E24: M1200 | F24: 1666647 | G24: 1848037 | H24: -181390 | I24: -0.09815279672 | J24: 10 | K24: 31 | L24: 25 | M24: 7 | N24: 32 | O24: 3 | P24: 建材營造 | Q24: 39070032 | R24: 49142617 | S24: -10072585 | T24: -20.4966394 | U24: 32 | V24: 3
A25: 食品工業9 | B25: 食品工業23 | C25: 1233 天仁 | D25: 食品工業 | E25: M1200 | F25: 196357 | G25: 182752 | H25: 13605 | I25: 0.07444514971 | J25: 10 | K25: 31 | L25: 9 | M25: 23 | N25: 19 | O25: 16 | P25: 航運業 | Q25: 119854423 | R25: 123284110 | S25: -3429687 | T25: -2.781937591 | U25: 19 | V25: 16
A26: 食品工業6 | B26: 食品工業26 | C26: 1234 黑松 | D26: 食品工業 | E26: M1200 | F26: 898472 | G26: 810162 | H26: 88310 | I26: 0.1090028908 | J26: 10 | K26: 31 | L26: 6 | M26: 26 | N26: 6 | O26: 29 | P26: 觀光餐旅 | Q26: 16191638 | R26: 14940248 | S26: 1251390 | T26: 8.375965379 | U26: 6 | V26: 29
A27: 食品工業1 | B27: 食品工業31 | C27: 1235 興泰 | D27: 食品工業 | E27: M1200 | F27: 12837 | G27: 3771 | H27: 9066 | I27: 2.404136834 | J27: 10 | K27: 31 | L27: 1 | M27: 31 | N27: 34 | O27: 1 | P27: 金融業 | Q27: 40731354 | R27: 145495121 | S27: -104763767 | T27: -72.00500352 | U27: 34 | V27: 1
A28: 食品工業27 | B28: 食品工業5 | C28: 1236 宏亞 | D28: 食品工業 | E28: M1200 | F28: 112127 | G28: 130569 | H28: -18442 | I28: -0.1412433273 | J28: 10 | K28: 31 | L28: 27 | M28: 5 | N28: 1 | O28: 34 | P28: 貿易百貨 | Q28: 69953123 | R28: 48446957 | S28: 21506166 | T28: 44.39115959 | U28: 1 | V28: 34
A29: 食品工業5 | B29: 食品工業27 | C29: 1256 鮮活果汁-KY | D29: 食品工業 | E29: M1200 | F29: 384691 | G29: 343021 | H29: 41670 | I29: 0.1214794429 | J29: 10 | K29: 31 | L29: 5 | M29: 27 | N29: 10 | O29: 25 | P29: 文化創意業 | Q29: 4795490 | R29: 4695439 | S29: 100051 | T29: 2.130812476 | U29: 10 | V29: 25
A30: 食品工業15 | B30: 食品工業17 | C30: 1264 德麥 | D30: 食品工業 | E30: M1200 | F30: 540780 | G30: 538142 | H30: 2638 | I30: 0.004902051875 | J30: 10 | K30: 31 | L30: 15 | M30: 17 | N30: =U30 -> 27 | O30: =V30 -> 8 | P30: 農業科技 | Q30: =SUMIF($D:$D,$P30,F:F) -> 458246 | R30: =SUMIF($D:$D,$P30,G:G) -> 510160 | S30: =Q30-R30 -> -51914 | T30: -10.17602321 | U30: 27 | V30: 8
A31: 食品工業30 | B31: 食品工業2 | C31: 1294 漢田生技 | D31: 食品工業 | E31: M1200 | F31: 52034 | G31: 74333 | H31: -22299 | I31: -0.2999878923 | J31: 10 | K31: 31 | L31: 30 | M31: 2 | N31: 13 | O31: 22 | P31: 綠能環保 | Q31: 10089444 | R31: 10037088 | S31: 52356 | T31: 0.5216253957 | U31: 13 | V31: 22
A32: 食品工業3 | B32: 食品工業29 | C32: 1295 生合 | D32: 食品工業 | E32: M1200 | F32: 104854 | G32: 85742 | H32: 19112 | I32: 0.2229012619 | J32: 10 | K32: 31 | L32: 3 | M32: 29 | N32: 16 | O32: 19 | P32: 數位雲端 | Q32: 16717724 | R32: 16765081 | S32: -47357 | T32: -0.2824740304 | U32: 16 | V32: 19
A33: 食品工業19 | B33: 食品工業13 | C33: 1702 南僑 | D33: 食品工業 | E33: M1200 | F33: 1912617 | G33: 1940548 | H33: -27931 | I33: -0.01439335693 | J33: 10 | K33: 31 | L33: 19 | M33: 13 | N33: 26 | O33: 9 | P33: 運動休閒 | Q33: 56152591 | R33: 62065326 | S33: -5912735 | T33: -9.526631665 | U33: 26 | V33: 9
A34: 食品工業8 | B34: 食品工業24 | C34: 1737 臺鹽 | D34: 食品工業 | E34: M1200 | F34: 316192 | G34: 292281 | H34: 23911 | I34: 0.08180825986 | J34: 10 | K34: 31 | L34: 8 | M34: 24 | N34: 15 | O34: 20 | P34: 居家生活 | Q34: 22511830 | R34: 22546747 | S34: -34917 | T34: -0.1548649124 | U34: 15 | V34: 20
A35: 食品工業2 | B35: 食品工業30 | C35: 1796 金穎生技 | D35: 食品工業 | E35: M1200 | F35: 51485 | G35: 33155 | H35: 18330 | I35: 0.5528577892 | J35: 10 | K35: 31 | L35: 2 | M35: 30 | N35: 33 | O35: 2 | P35: 油電燃氣業 | Q35: 51874140 | R35: 70298788 | S35: -18424648 | T35: -26.20905498 | U35: 33 | V35: 2
A36: 食品工業31 | B36: 食品工業1 | C36: 3054 立萬利 | D36: 食品工業 | E36: M1200 | F36: 6566 | G36: 13031 | H36: -6465 | I36: -0.4961246259 | J36: 10 | K36: 31 | L36: 31 | M36: 1 | N36: 24 | O36: 11 | P36: 其他 | Q36: =SUMIF($D:$D,$P36,F:F) -> 54110970 | R36: =SUMIF($D:$D,$P36,G:G) -> 59498480 | S36: =Q36-R36 -> -5387510 | T36: -9.054869973 | U36: 24 | V36: 11
A37: 食品工業12 | B37: 食品工業20 | C37: 4205 中華食 | D37: 食品工業 | E37: M1200 | F37: 171411 | G37: 165522 | H37: 5889 | I37: 0.03557835212 | J37: 10 | K37: 31 | L37: 12 | M37: 20 | N37: 0 | O37: 0 | P37: 存託憑證
A38: 食品工業28 | B38: 食品工業4 | C38: 4207 環泰 | D38: 食品工業 | E38: M1200 | F38: 452319 | G38: 538711 | H38: -86392 | I38: -0.1603679895 | J38: 10 | K38: 31 | L38: 28 | M38: 4 | N38: 0 | O38: 0 | P38: 0
A39: 食品工業10 | B39: 食品工業22 | C39: 6846 綠茵 | D39: 食品工業 | E39: M1200 | F39: 81257 | G39: 76522 | H39: 4735 | I39: 0.06187762996 | J39: 10 | K39: 31 | L39: 10 | M39: 22 | N39: 0 | O39: 0
A40: 食品工業26 | B40: 食品工業6 | C40: 7743 金利食安 | D40: 食品工業 | E40: M1200 | F40: 54950 | G40: 61765 | H40: -6815 | I40: -0.1103375698 | J40: 10 | K40: 31 | L40: 26 | M40: 6 | N40: 0 | O40: 0
A41: 塑膠工業10 | B41: 塑膠工業16 | C41: 1301 台塑 | D41: 塑膠工業 | E41: M1300 | F41: 14852023 | G41: 17396479 | H41: -2544456 | I41: -0.1462627006 | J41: 41 | K41: 25 | L41: 10 | M41: 16 | N41: 0 | O41: 0
A42: 塑膠工業6 | B42: 塑膠工業20 | C42: 1303 南亞 | D42: 塑膠工業 | E42: M1300 | F42: 21949304 | G42: 22713683 | H42: -764379 | I42: -0.03365279862 | J42: 41 | K42: 25 | L42: 6 | M42: 20 | N42: 0 | O42: 0
A43: 塑膠工業11 | B43: 塑膠工業15 | C43: 1304 台聚 | D43: 塑膠工業 | E43: M1300 | F43: 3774657 | G43: 4542986 | H43: -768329 | I43: -0.169124228 | J43: 41 | K43: 25 | L43: 11 | M43: 15 | N43: 0 | O43: 0
A44: 塑膠工業14 | B44: 塑膠工業12 | C44: 1305 華夏 | D44: 塑膠工業 | E44: M1300 | F44: 806203 | G44: 1015541 | H44: -209338 | I44: -0.2061344643 | J44: 41 | K44: 25 | L44: 14 | M44: 12 | N44: 0 | O44: 0
A45: 塑膠工業7 | B45: 塑膠工業19 | C45: 1307 三芳 | D45: 塑膠工業 | E45: M1300 | F45: 802937 | G45: 857628 | H45: -54691 | I45: -0.06377007281 | J45: 41 | K45: 25 | L45: 7 | M45: 19 | N45: 0 | O45: 0
A46: 塑膠工業5 | B46: 塑膠工業21 | C46: 1308 亞聚 | D46: 塑膠工業 | E46: M1300 | F46: 472396 | G46: 446056 | H46: 26340 | I46: 0.0590508815 | J46: 41 | K46: 25 | L46: 5 | M46: 21 | N46: 0 | O46: 0
A47: 塑膠工業17 | B47: 塑膠工業9 | C47: 1309 台達化 | D47: 塑膠工業 | E47: M1300 | F47: 1227097 | G47: 1683225 | H47: -456128 | I47: -0.2709845683 | J47: 41 | K47: 25 | L47: 17 | M47: 9 | N47: 0 | O47: 0
A48: 塑膠工業19 | B48: 塑膠工業7 | C48: 1310 台苯 | D48: 塑膠工業 | E48: M1300 | F48: 841983 | G48: 1191533 | H48: -349550 | I48: -0.2933615771 | J48: 41 | K48: 25 | L48: 19 | M48: 7 | N48: 0 | O48: 0
A49: 塑膠工業8 | B49: 塑膠工業18 | C49: 1312 國喬 | D49: 塑膠工業 | E49: M1300 | F49: 1505648 | G49: 1744102 | H49: -238454 | I49: -0.1367202148 | J49: 41 | K49: 25 | L49: 8 | M49: 18 | N49: 0 | O49: 0
A50: 塑膠工業16 | B50: 塑膠工業10 | C50: 1313 聯成 | D50: 塑膠工業 | E50: M1300 | F50: 5129412 | G50: 6951456 | H50: -1822044 | I50: -0.2621096933 | J50: 41 | K50: 25 | L50: 16 | M50: 10 | N50: 0 | O50: 0
A51: 塑膠工業24 | B51: 塑膠工業2 | C51: 1314 中石化 | D51: 塑膠工業 | E51: M1300 | F51: 1696761 | G51: 3133666 | H51: -1436905 | I51: -0.458538019 | J51: 41 | K51: 25 | L51: 24 | M51: 2 | N51: 0 | O51: 0
A52: 塑膠工業2 | B52: 塑膠工業24 | C52: 1315 達新 | D52: 塑膠工業 | E52: M1300 | F52: 225890 | G52: 185152 | H52: 40738 | I52: 0.2200246284 | J52: 41 | K52: 25 | L52: 2 | M52: 24 | N52: 0 | O52: 0
A53: 塑膠工業22 | B53: 塑膠工業4 | C53: 1321 大洋 | D53: 塑膠工業 | E53: M1300 | F53: 319215 | G53: 498956 | H53: -179741 | I53: -0.3602341689 | J53: 41 | K53: 25 | L53: 22 | M53: 4 | N53: 0 | O53: 0
A54: 塑膠工業21 | B54: 塑膠工業5 | C54: 1323 永裕 | D54: 塑膠工業 | E54: M1300 | F54: 173860 | G54: 268716 | H54: -94856 | I54: -0.3529972164 | J54: 41 | K54: 25 | L54: 21 | M54: 5 | N54: 0 | O54: 0
A55: 塑膠工業20 | B55: 塑膠工業6 | C55: 1324 地球 | D55: 塑膠工業 | E55: M1300 | F55: 53387 | G55: 81349 | H55: -27962 | I55: -0.3437288719 | J55: 41 | K55: 25 | L55: 20 | M55: 6 | N55: 0 | O55: 0
A56: 塑膠工業4 | B56: 塑膠工業22 | C56: 1325 恒大 | D56: 塑膠工業 | E56: M1300 | F56: 29167 | G56: 26823 | H56: 2344 | I56: 0.08738768967 | J56: 41 | K56: 25 | L56: 4 | M56: 22 | N56: 0 | O56: 0
A57: 塑膠工業18 | B57: 塑膠工業8 | C57: 1326 台化 | D57: 塑膠工業 | E57: M1300 | F57: 23721263 | G57: 33036547 | H57: -9315284 | I57: -0.2819690569 | J57: 41 | K57: 25 | L57: 18 | M57: 8 | N57: 0 | O57: 0
A58: 塑膠工業12 | B58: 塑膠工業14 | C58: 1337 再生-KY | D58: 塑膠工業 | E58: M1300 | F58: 50243 | G58: 61862 | H58: -11619 | I58: -0.1878212796 | J58: 41 | K58: 25 | L58: 12 | M58: 14 | N58: 0 | O58: 0
A59: 塑膠工業23 | B59: 塑膠工業3 | C59: 1340 勝悅-KY | D59: 塑膠工業 | E59: M1300 | F59: 23241 | G59: 42775 | H59: -19534 | I59: -0.4566686148 | J59: 41 | K59: 25 | L59: 23 | M59: 3 | N59: 0 | O59: 0
A60: 塑膠工業15 | B60: 塑膠工業11 | C60: 1341 富林-KY | D60: 塑膠工業 | E60: M1300 | F60: 173265 | G60: 220541 | H60: -47276 | I60: -0.2143637691 | J60: 41 | K60: 25 | L60: 15 | M60: 11 | N60: 0 | O60: 0
A61: 塑膠工業1 | B61: 塑膠工業25 | C61: 4303 信立 | D61: 塑膠工業 | E61: M1300 | F61: 101289 | G61: 20859 | H61: 80430 | I61: 3.855889544 | J61: 41 | K61: 25 | L61: 1 | M61: 25 | N61: 0 | O61: 0
A62: 塑膠工業9 | B62: 塑膠工業17 | C62: 4304 勝昱 | D62: 塑膠工業 | E62: M1300 | F62: 24708 | G62: 28808 | H62: -4100 | I62: -0.1423215773 | J62: 41 | K62: 25 | L62: 9 | M62: 17 | N62: 0 | O62: 0
A63: 塑膠工業3 | B63: 塑膠工業23 | C63: 4305 世坤 | D63: 塑膠工業 | E63: M1300 | F63: 107686 | G63: 97983 | H63: 9703 | I63: 0.0990273823 | J63: 41 | K63: 25 | L63: 3 | M63: 23 | N63: 0 | O63: 0
A64: 塑膠工業25 | B64: 塑膠工業1 | C64: 4306 炎洲 | D64: 塑膠工業 | E64: M1300 | F64: 998724 | G64: 1947182 | H64: -948458 | I64: -0.4870926292 | J64: 41 | K64: 25 | L64: 25 | M64: 1 | N64: 0 | O64: 0
A65: 塑膠工業13 | B65: 塑膠工業13 | C65: 9950 萬國通 | D65: 塑膠工業 | E65: M1300 | F65: 178974 | G65: 221153 | H65: -42179 | I65: -0.1907231645 | J65: 41 | K65: 25 | L65: 13 | M65: 13 | N65: 0 | O65: 0
A66: 紡織纖維27 | B66: 紡織纖維25 | C66: 1402 遠東新 | D66: 紡織纖維 | E66: M1400 | F66: 19614093 | G66: 22848498 | H66: -3234405 | I66: -0.141558758 | J66: 66 | K66: 51 | L66: 27 | M66: 25 | N66: 0 | O66: 0
A67: =$D67&L67 -> 紡織纖維28 | B67: =$D67&M67 -> 紡織纖維24 | C67: 1409 新纖 | D67: 紡織纖維 | E67: M1400 | F67: 3236780 | G67: 3988049 | H67: -751269 | I67: -0.1883800826 | J67: =IF(E67="","",MATCH(E67,E:E,0)) -> 66 | K67: =COUNTIF(D:D,D67) -> 51 | L67: 28 | M67: 24 | N67: 0 | O67: 0
A68: 紡織纖維33 | B68: 紡織纖維19 | C68: 1410 南染 | D68: 紡織纖維 | E68: M1400 | F68: 15010 | G68: 18699 | H68: =F68-G68 -> -3689 | I68: =IF(ISERROR((H68/G68)*100),"",(H68/(ABS(G68)))) -> -0.1972832772 | J68: 66 | K68: 51 | L68: =IF(I68="","",RANK(I68,OFFSET(I$1,$J68-1,,$K68,),0)) -> 33 | M68: =IF(I68="","",RANK(I68,OFFSET(I$1,$J68-1,,$K68,),1)) -> 19 | N68: 0 | O68: 0
A69: 紡織纖維7 | B69: 紡織纖維45 | C69: 1413 宏洲 | D69: 紡織纖維 | E69: M1400 | F69: 213967 | G69: 162317 | H69: 51650 | I69: 0.3182045011 | J69: 66 | K69: 51 | L69: 7 | M69: 45 | N69: 0 | O69: 0
A70: 紡織纖維29 | B70: 紡織纖維23 | C70: 1414 東和 | D70: 紡織纖維 | E70: M1400 | F70: 41378 | G70: 51018 | H70: -9640 | I70: -0.1889529186 | J70: 66 | K70: 51 | L70: 29 | M70: 23 | N70: 0 | O70: 0
A71: 紡織纖維49 | B71: 紡織纖維3 | C71: 1417 嘉裕 | D71: 紡織纖維 | E71: M1400 | F71: 23747 | G71: 55508 | H71: -31761 | I71: -0.5721877928 | J71: 66 | K71: 51 | L71: 49 | M71: 3 | N71: 0 | O71: 0
A72: 紡織纖維51 | B72: 紡織纖維1 | C72: 1418 東華 | D72: 紡織纖維 | E72: M1400 | F72: 343 | G72: 1343 | H72: -1000 | I72: -0.7446016381 | J72: 66 | K72: 51 | L72: 51 | M72: 1 | N72: 0 | O72: 0
A73: 紡織纖維11 | B73: 紡織纖維41 | C73: 1419 新紡 | D73: 紡織纖維 | E73: M1400 | F73: 375079 | G73: 355089 | H73: 19990 | I73: 0.05629574557 | J73: 66 | K73: 51 | L73: 11 | M73: 41 | N73: 0 | O73: 0
A74: 紡織纖維39 | B74: 紡織纖維13 | C74: 1423 利華 | D74: 紡織纖維 | E74: M1400 | F74: 5188 | G74: 7435 | H74: -2247 | I74: -0.3022192334 | J74: 66 | K74: 51 | L74: 39 | M74: 13 | N74: 0 | O74: 0
A75: 紡織纖維22 | B75: 紡織纖維30 | C75: 1434 福懋 | D75: 紡織纖維 | E75: M1400 | F75: 2364954 | G75: 2601361 | H75: -236407 | I75: -0.09087819799 | J75: 66 | K75: 51 | L75: 22 | M75: 30 | N75: 0 | O75: 0
A76: 紡織纖維34 | B76: 紡織纖維18 | C76: 1440 南紡 | D76: 紡織纖維 | E76: M1400 | F76: 1291362 | G76: 1620147 | H76: -328785 | I76: -0.2029352892 | J76: 66 | K76: 51 | L76: 34 | M76: 18 | N76: 0 | O76: 0
A77: 紡織纖維40 | B77: 紡織纖維12 | C77: 1441 大東 | D77: 紡織纖維 | E77: M1400 | F77: 95348 | G77: 138447 | H77: -43099 | I77: -0.3113032424 | J77: 66 | K77: 51 | L77: 40 | M77: 12 | N77: 0 | O77: 0
A78: 紡織纖維25 | B78: 紡織纖維27 | C78: 1444 力麗 | D78: 紡織纖維 | E78: M1400 | F78: 592355 | G78: 682992 | H78: -90637 | I78: -0.1327058004 | J78: 66 | K78: 51 | L78: 25 | M78: 27 | N78: 0 | O78: 0
A79: 紡織纖維46 | B79: 紡織纖維6 | C79: 1445 大宇 | D79: 紡織纖維 | E79: M1400 | F79: 64409 | G79: 115767 | H79: -51358 | I79: -0.4436324687 | J79: 66 | K79: 51 | L79: 46 | M79: 6 | N79: 0 | O79: 0
A80: 紡織纖維50 | B80: 紡織纖維2 | C80: 1446 宏和 | D80: 紡織纖維 | E80: M1400 | F80: 78961 | G80: 210934 | H80: -131973 | I80: -0.6256601591 | J80: 66 | K80: 51 | L80: 50 | M80: 2 | N80: 0 | O80: 0
A81: 紡織纖維32 | B81: 紡織纖維20 | C81: 1447 力鵬 | D81: 紡織纖維 | E81: M1400 | F81: 2967993 | G81: 3679353 | H81: -711360 | I81: -0.1933383396 | J81: 66 | K81: 51 | L81: 32 | M81: 20 | N81: 0 | O81: 0
A82: 紡織纖維44 | B82: 紡織纖維8 | C82: 1449 佳和 | D82: 紡織纖維 | E82: M1400 | F82: 142824 | G82: 232810 | H82: -89986 | I82: -0.3865211975 | J82: 66 | K82: 51 | L82: 44 | M82: 8 | N82: 0 | O82: 0
A83: 紡織纖維16 | B83: 紡織纖維36 | C83: 1451 年興 | D83: 紡織纖維 | E83: M1400 | F83: 648324 | G83: 656475 | H83: -8151 | I83: -0.01241631441 | J83: 66 | K83: 51 | L83: 16 | M83: 36 | N83: 0 | O83: 0
A84: 紡織纖維42 | B84: 紡織纖維10 | C84: 1452 宏益 | D84: 紡織纖維 | E84: M1400 | F84: 105355 | G84: 163407 | H84: -58052 | I84: -0.3552601786 | J84: 66 | K84: 51 | L84: 42 | M84: 10 | N84: 0 | O84: 0
A85: 紡織纖維31 | B85: 紡織纖維21 | C85: 1454 台富 | D85: 紡織纖維 | E85: M1400 | F85: 117036 | G85: 145077 | H85: -28041 | I85: -0.1932835667 | J85: 66 | K85: 51 | L85: 31 | M85: 21 | N85: 0 | O85: 0
A86: 紡織纖維45 | B86: 紡織纖維7 | C86: 1455 集盛 | D86: 紡織纖維 | E86: M1400 | F86: 571203 | G86: 973678 | H86: -402475 | I86: -0.4133553392 | J86: 66 | K86: 51 | L86: 45 | M86: 7 | N86: 0 | O86: 0
A87: 紡織纖維13 | B87: 紡織纖維39 | C87: 1457 宜進 | D87: 紡織纖維 | E87: M1400 | F87: 273077 | G87: 263036 | H87: 10041 | I87: 0.03817348196 | J87: 66 | K87: 51 | L87: 13 | M87: 39 | N87: 0 | O87: 0
A88: 紡織纖維36 | B88: 紡織纖維16 | C88: 1459 聯發 | D88: 紡織纖維 | E88: M1400 | F88: 85172 | G88: 108300 | H88: -23128 | I88: -0.21355494 | J88: 66 | K88: 51 | L88: 36 | M88: 16 | N88: 0 | O88: 0
A89: 紡織纖維30 | B89: 紡織纖維22 | C89: 1460 宏遠 | D89: 紡織纖維 | E89: M1400 | F89: 502049 | G89: 619948 | H89: -117899 | I89: -0.1901756276 | J89: 66 | K89: 51 | L89: 30 | M89: 22 | N89: 0 | O89: 0
A90: 紡織纖維48 | B90: 紡織纖維4 | C90: 1463 強盛新 | D90: 紡織纖維 | E90: M1400 | F90: 15686 | G90: 32410 | H90: -16724 | I90: -0.5160135761 | J90: 66 | K90: 51 | L90: 48 | M90: 4 | N90: 0 | O90: 0
A91: 紡織纖維17 | B91: 紡織纖維35 | C91: 1464 得力 | D91: 紡織纖維 | E91: M1400 | F91: 947624 | G91: 967369 | H91: -19745 | I91: -0.0204110324 | J91: 66 | K91: 51 | L91: 17 | M91: 35 | N91: 0 | O91: 0
A92: 紡織纖維47 | B92: 紡織纖維5 | C92: 1465 偉全 | D92: 紡織纖維 | E92: M1400 | F92: 22806 | G92: 41597 | H92: -18791 | I92: -0.4517393081 | J92: 66 | K92: 51 | L92: 47 | M92: 5 | N92: 0 | O92: 0
A93: 紡織纖維38 | B93: 紡織纖維14 | C93: 1466 聚隆 | D93: 紡織纖維 | E93: M1400 | F93: 183650 | G93: 260955 | H93: -77305 | I93: -0.2962388151 | J93: 66 | K93: 51 | L93: 38 | M93: 14 | N93: 0 | O93: 0
A94: 紡織纖維6 | B94: 紡織纖維46 | C94: 1467 南緯 | D94: 紡織纖維 | E94: M1400 | F94: 419780 | G94: 312995 | H94: 106785 | I94: 0.3411715842 | J94: 66 | K94: 51 | L94: 6 | M94: 46 | N94: =U94 -> 0 | O94: =V94 -> 0
A95: 紡織纖維43 | B95: 紡織纖維9 | C95: 1468 昶和 | D95: 紡織纖維 | E95: M1400 | F95: 71055 | G95: 111584 | H95: -40529 | I95: -0.3632151563 | J95: 66 | K95: 51 | L95: 43 | M95: 9 | N95: 0 | O95: 0
A96: 紡織纖維23 | B96: 紡織纖維29 | C96: 1470 大統新創 | D96: 紡織纖維 | E96: M1400 | F96: 67788 | G96: 74660 | H96: -6872 | I96: -0.09204393249 | J96: 66 | K96: 51 | L96: 23 | M96: 29 | N96: 0 | O96: 0
A97: 紡織纖維37 | B97: 紡織纖維15 | C97: 1473 台南 | D97: 紡織纖維 | E97: M1400 | F97: 437767 | G97: 580785 | H97: -143018 | I97: -0.2462494727 | J97: 66 | K97: 51 | L97: 37 | M97: 15 | N97: 0 | O97: 0
A98: 紡織纖維26 | B98: 紡織纖維26 | C98: 1474 弘裕 | D98: 紡織纖維 | E98: M1400 | F98: 220982 | G98: 255047 | H98: -34065 | I98: -0.1335636177 | J98: 66 | K98: 51 | L98: 26 | M98: 26 | N98: 0 | O98: 0
A99: 紡織纖維41 | B99: 紡織纖維11 | C99: 1475 業旺 | D99: 紡織纖維 | E99: M1400 | F99: 118462 | G99: 173903 | H99: -55441 | I99: -0.3188041609 | J99: 66 | K99: 51 | L99: 41 | M99: 11 | N99: 0 | O99: 0
A100: 紡織纖維21 | B100: 紡織纖維31 | C100: 1476 儒鴻 | D100: 紡織纖維 | E100: M1400 | F100: 3038307 | G100: 3325039 | H100: -286732 | I100: -0.0862341765 | J100: 66 | K100: 51 | L100: 21 | M100: 31 | N100: 0 | O100: 0
A101: 紡織纖維20 | B101: 紡織纖維32 | C101: 1477 聚陽 | D101: 紡織纖維 | E101: M1400 | F101: 2488629 | G101: 2712528 | H101: -223899 | I101: -0.08254255809 | J101: 66 | K101: 51 | L101: 20 | M101: 32 | N101: 0 | O101: 0
A102: 紡織纖維19 | B102: 紡織纖維33 | C102: 4401 東隆興 | D102: 紡織纖維 | E102: M1400 | F102: 303941 | G102: 329370 | H102: -25429 | I102: -0.07720496706 | J102: 66 | K102: 51 | L102: 19 | M102: 33 | N102: 0 | O102: 0
A103: 紡織纖維3 | B103: 紡織纖維49 | C103: 4402 郡都開發 | D103: 紡織纖維 | E103: M1400 | F103: 1821 | G103: 932 | H103: 889 | I103: 0.9538626609 | J103: 66 | K103: 51 | L103: 3 | M103: 49 | N103: 0 | O103: 0
A104: 紡織纖維4 | B104: 紡織纖維48 | C104: 4406 新昕纖 | D104: 紡織纖維 | E104: M1400 | F104: 47779 | G104: 32300 | H104: 15479 | I104: 0.4792260062 | J104: 66 | K104: 51 | L104: 4 | M104: 48 | N104: 0 | O104: 0
A105: 紡織纖維1 | B105: 紡織纖維51 | C105: 4413 飛寶企業 | D105: 紡織纖維 | E105: M1400 | F105: 54507 | G105: 8875 | H105: 45632 | I105: 5.141633803 | J105: 66 | K105: 51 | L105: 1 | M105: 51 | N105: 0 | O105: 0
A106: 紡織纖維14 | B106: 紡織纖維38 | C106: 4414 如興 | D106: 紡織纖維 | E106: M1400 | F106: 1089628 | G106: 1074284 | H106: 15344 | I106: 0.01428300152 | J106: 66 | K106: 51 | L106: 14 | M106: 38 | N106: 0 | O106: 0
A107: 紡織纖維9 | B107: 紡織纖維43 | C107: 4417 金洲 | D107: 紡織纖維 | E107: M1400 | F107: 326100 | G107: 278087 | H107: 48013 | I107: 0.1726546009 | J107: 66 | K107: 51 | L107: 9 | M107: 43 | N107: 0 | O107: 0
A108: 紡織纖維8 | B108: 紡織纖維44 | C108: 4420 光明 | D108: 紡織纖維 | E108: M1400 | F108: 87060 | G108: 70545 | H108: 16515 | I108: 0.2341058899 | J108: 66 | K108: 51 | L108: 8 | M108: 44 | N108: 0 | O108: 0
A109: 紡織纖維24 | B109: 紡織纖維28 | C109: 4426 利勤 | D109: 紡織纖維 | E109: M1400 | F109: 71653 | G109: 82117 | H109: -10464 | I109: -0.1274279382 | J109: 66 | K109: 51 | L109: 24 | M109: 28 | N109: 0 | O109: 0
A110: 紡織纖維2 | B110: 紡織纖維50 | C110: 4432 銘旺實 | D110: 紡織纖維 | E110: M1400 | F110: 108373 | G110: 54171 | H110: 54202 | I110: 1.000572262 | J110: 66 | K110: 51 | L110: 2 | M110: 50 | N110: 0 | O110: 0
A111: 紡織纖維18 | B111: 紡織纖維34 | C111: 4433 興采 | D111: 紡織纖維 | E111: M1400 | F111: 273918 | G111: 281067 | H111: -7149 | I111: -0.02543521651 | J111: 66 | K111: 51 | L111: 18 | M111: 34 | N111: 0 | O111: 0
A112: 紡織纖維5 | B112: 紡織纖維47 | C112: 4438 廣越 | D112: 紡織纖維 | E112: M1400 | F112: 1816223 | G112: 1342646 | H112: 473577 | I112: 0.3527191829 | J112: 66 | K112: 51 | L112: 5 | M112: 47 | N112: 0 | O112: 0
A113: 紡織纖維10 | B113: 紡織纖維42 | C113: 4439 冠星-KY | D113: 紡織纖維 | E113: M1400 | F113: 681275 | G113: 619016 | H113: 62259 | I113: 0.100577368 | J113: 66 | K113: 51 | L113: 10 | M113: 42 | N113: 0 | O113: 0
A114: 紡織纖維35 | B114: 紡織纖維17 | C114: 4440 宜新實業 | D114: 紡織纖維 | E114: M1400 | F114: 81940 | G114: 103280 | H114: -21340 | I114: -0.206622773 | J114: 66 | K114: 51 | L114: 35 | M114: 17 | N114: 0 | O114: 0
A115: 紡織纖維12 | B115: 紡織纖維40 | C115: 4442 竣邦-KY | D115: 紡織纖維 | E115: M1400 | F115: 123515 | G115: 118426 | H115: 5089 | I115: 0.0429719825 | J115: 66 | K115: 51 | L115: 12 | M115: 40 | N115: 0 | O115: 0
A116: 紡織纖維15 | B116: 紡織纖維37 | C116: 6506 雙邦 | D116: 紡織纖維 | E116: M1400 | F116: 165143 | G116: 166658 | H116: -1515 | I116: -0.009090472705 | J116: 66 | K116: 51 | L116: 15 | M116: 37 | N116: 0 | O116: 0
A117: 電機機械25 | B117: 電機機械73 | C117: 1503 士電 | D117: 電機機械 | E117: M1500 | F117: 2814376 | G117: 2444165 | H117: 370211 | I117: 0.15146727 | J117: 117 | K117: 97 | L117: 25 | M117: 73 | N117: 0 | O117: 0
A118: 電機機械36 | B118: 電機機械62 | C118: 1504 東元 | D118: 電機機械 | E118: M1500 | F118: 5142957 | G118: 4872215 | H118: 270742 | I118: 0.05556856584 | J118: 117 | K118: 97 | L118: 36 | M118: 62 | N118: 0 | O118: 0
A119: 電機機械30 | B119: 電機機械68 | C119: 1506 正道 | D119: 電機機械 | E119: M1500 | F119: 97056 | G119: 85517 | H119: 11539 | I119: 0.1349322357 | J119: 117 | K119: 97 | L119: 30 | M119: 68 | N119: 0 | O119: 0
A120: 電機機械32 | B120: 電機機械66 | C120: 1513 中興電 | D120: 電機機械 | E120: M1500 | F120: 2308539 | G120: 2058815 | H120: 249724 | I120: 0.1212950168 | J120: 117 | K120: 97 | L120: 32 | M120: 66 | N120: 0 | O120: 0
A121: 電機機械6 | B121: 電機機械92 | C121: 1514 亞力 | D121: 電機機械 | E121: M1500 | F121: 1156147 | G121: 720719 | H121: 435428 | I121: 0.6041577924 | J121: 117 | K121: 97 | L121: 6 | M121: 92 | N121: 0 | O121: 0
A122: 電機機械80 | B122: 電機機械18 | C122: 1515 力山 | D122: 電機機械 | E122: M1500 | F122: 390555 | G122: 491285 | H122: -100730 | I122: -0.2050337381 | J122: 117 | K122: 97 | L122: 80 | M122: 18 | N122: 0 | O122: 0
A123: 電機機械82 | B123: 電機機械16 | C123: 1517 利奇 | D123: 電機機械 | E123: M1500 | F123: 143862 | G123: 182566 | H123: -38704 | I123: -0.2120000438 | J123: 117 | K123: 97 | L123: 82 | M123: 16 | N123: 0 | O123: 0
A124: 電機機械17 | B124: 電機機械81 | C124: 1519 華城 | D124: 電機機械 | E124: M1500 | F124: 1628913 | G124: 1253062 | H124: 375851 | I124: 0.2999460522 | J124: 117 | K124: 97 | L124: 17 | M124: 81 | N124: 0 | O124: 0
A125: 電機機械68 | B125: 電機機械30 | C125: 1526 日馳 | D125: 電機機械 | E125: M1500 | F125: 60977 | G125: 69704 | H125: -8727 | I125: -0.1252008493 | J125: 117 | K125: 97 | L125: 68 | M125: 30 | N125: 0 | O125: 0
A126: 電機機械64 | B126: 電機機械34 | C126: 1527 鑽全 | D126: 電機機械 | E126: M1500 | F126: 238131 | G126: 264317 | H126: -26186 | I126: -0.09907043436 | J126: 117 | K126: 97 | L126: 64 | M126: 34 | N126: 0 | O126: 0
A127: 電機機械62 | B127: 電機機械36 | C127: 1528 恩德 | D127: 電機機械 | E127: M1500 | F127: 289803 | G127: 315704 | H127: -25901 | I127: -0.08204203938 | J127: 117 | K127: 97 | L127: 62 | M127: 36 | N127: 0 | O127: 0
A128: 電機機械10 | B128: 電機機械88 | C128: 1529 樂事綠能 | D128: 電機機械 | E128: M1500 | F128: 46274 | G128: 31611 | H128: 14663 | I128: 0.463857518 | J128: 117 | K128: 97 | L128: 10 | M128: 88 | N128: 0 | O128: 0
A129: 電機機械18 | B129: 電機機械80 | C129: 1530 亞崴 | D129: 電機機械 | E129: M1500 | F129: 152062 | G129: 117784 | H129: 34278 | I129: 0.2910242478 | J129: 117 | K129: 97 | L129: 18 | M129: 80 | N129: 0 | O129: 0
A130: 電機機械14 | B130: 電機機械84 | C130: 1531 高林股 | D130: 電機機械 | E130: M1500 | F130: 138497 | G130: 102799 | H130: 35698 | I130: 0.3472601874 | J130: 117 | K130: 97 | L130: 14 | M130: 84 | N130: 0 | O130: 0
A131: =$D131&L131 -> 電機機械97 | B131: =$D131&M131 -> 電機機械1 | C131: 1532 勤美 | D131: 電機機械 | E131: M1500 | F131: 966382 | G131: 2467804 | H131: -1501422 | I131: -0.608404071 | J131: =IF(E131="","",MATCH(E131,E:E,0)) -> 117 | K131: =COUNTIF(D:D,D131) -> 97 | L131: 97 | M131: 1 | N131: 0 | O131: 0
A132: 電機機械19 | B132: 電機機械79 | C132: 1535 中宇 | D132: 電機機械 | E132: M1500 | F132: 1069641 | G132: 834726 | H132: =F132-G132 -> 234915 | I132: =IF(ISERROR((H132/G132)*100),"",(H132/(ABS(G132)))) -> 0.2814276781 | J132: 117 | K132: 97 | L132: =IF(I132="","",RANK(I132,OFFSET(I$1,$J132-1,,$K132,),0)) -> 19 | M132: =IF(I132="","",RANK(I132,OFFSET(I$1,$J132-1,,$K132,),1)) -> 79 | N132: 0 | O132: 0
A133: 電機機械85 | B133: 電機機械13 | C133: 1537 廣隆 | D133: 電機機械 | E133: M1500 | F133: 530854 | G133: 719497 | H133: -188643 | I133: -0.2621873337 | J133: 117 | K133: 97 | L133: 85 | M133: 13 | N133: 0 | O133: 0
A134: 電機機械27 | B134: 電機機械71 | C134: 1538 正峰 | D134: 電機機械 | E134: M1500 | F134: 10169 | G134: 8888 | H134: 1281 | I134: 0.1441269127 | J134: 117 | K134: 97 | L134: 27 | M134: 71 | N134: 0 | O134: 0
A135: 電機機械50 | B135: 電機機械48 | C135: 1539 巨庭 | D135: 電機機械 | E135: M1500 | F135: 124275 | G135: 126064 | H135: -1789 | I135: -0.01419120447 | J135: 117 | K135: 97 | L135: 50 | M135: 48 | N135: 0 | O135: 0
A136: 電機機械67 | B136: 電機機械31 | C136: 1540 喬福 | D136: 電機機械 | E136: M1500 | F136: 50910 | G136: 57539 | H136: -6629 | I136: -0.1152088149 | J136: 117 | K136: 97 | L136: 67 | M136: 31 | N136: 0 | O136: 0
A137: 電機機械12 | B137: 電機機械86 | C137: 1541 錩泰 | D137: 電機機械 | E137: M1500 | F137: 388424 | G137: 275223 | H137: 113201 | I137: 0.4113064678 | J137: 117 | K137: 97 | L137: 12 | M137: 86 | N137: 0 | O137: 0
A138: 電機機械22 | B138: 電機機械76 | C138: 1558 伸興 | D138: 電機機械 | E138: M1500 | F138: 826261 | G138: 699122 | H138: 127139 | I138: 0.1818552413 | J138: 117 | K138: 97 | L138: 22 | M138: 76 | N138: 0 | O138: 0
A139: 電機機械26 | B139: 電機機械72 | C139: 1560 中砂 | D139: 電機機械 | E139: M1500 | F139: 704078 | G139: 613850 | H139: 90228 | I139: 0.146987049 | J139: 117 | K139: 97 | L139: 26 | M139: 72 | N139: 0 | O139: 0
A140: 電機機械91 | B140: 電機機械7 | C140: 1570 力肯 | D140: 電機機械 | E140: M1500 | F140: 57691 | G140: 105155 | H140: -47464 | I140: -0.4513717845 | J140: 117 | K140: 97 | L140: 91 | M140: 7 | N140: 0 | O140: 0
A141: 電機機械60 | B141: 電機機械38 | C141: 1580 新麥 | D141: 電機機械 | E141: M1500 | F141: 403324 | G141: 428983 | H141: -25659 | I141: -0.05981355905 | J141: 117 | K141: 97 | L141: 60 | M141: 38 | N141: 0 | O141: 0
A142: 電機機械86 | B142: 電機機械12 | C142: 1583 程泰 | D142: 電機機械 | E142: M1500 | F142: 272008 | G142: 374258 | H142: -102250 | I142: -0.2732072528 | J142: 117 | K142: 97 | L142: 86 | M142: 12 | N142: 0 | O142: 0
A143: 電機機械65 | B143: 電機機械33 | C143: 1586 和勤 | D143: 電機機械 | E143: M1500 | F143: 169093 | G143: 187951 | H143: -18858 | I143: -0.1003346617 | J143: 117 | K143: 97 | L143: 65 | M143: 33 | N143: 0 | O143: 0
A144: 電機機械24 | B144: 電機機械74 | C144: 1589 永冠-KY | D144: 電機機械 | E144: M1500 | F144: 665535 | G144: 573458 | H144: 92077 | I144: 0.1605645052 | J144: 117 | K144: 97 | L144: 24 | M144: 74 | N144: 0 | O144: 0
A145: 電機機械47 | B145: 電機機械51 | C145: 1590 亞德客-KY | D145: 電機機械 | E145: M1500 | F145: 2784743 | G145: 2799703 | H145: -14960 | I145: -0.005343423927 | J145: 117 | K145: 97 | L145: 47 | M145: 51 | N145: 0 | O145: 0
A146: 電機機械95 | B146: 電機機械3 | C146: 1591 駿吉-KY | D146: 電機機械 | E146: M1500 | F146: 11422 | G146: 25255 | H146: -13833 | I146: -0.5477331222 | J146: 117 | K146: 97 | L146: 95 | M146: 3 | N146: 0 | O146: 0
A147: 電機機械35 | B147: 電機機械63 | C147: 1597 直得 | D147: 電機機械 | E147: M1500 | F147: 90861 | G147: 84829 | H147: 6032 | I147: 0.07110775796 | J147: 117 | K147: 97 | L147: 35 | M147: 63 | N147: 0 | O147: 0
A148: 電機機械2 | B148: 電機機械96 | C148: 1599 宏佳騰 | D148: 電機機械 | E148: M1500 | F148: 242731 | G148: 118478 | H148: 124253 | I148: 1.048743227 | J148: 117 | K148: 97 | L148: 2 | M148: 96 | N148: 0 | O148: 0
A149: 電機機械61 | B149: 電機機械37 | C149: 2049 上銀 | D149: 電機機械 | E149: M1500 | F149: 1935020 | G149: 2060285 | H149: -125265 | I149: -0.0607998408 | J149: 117 | K149: 97 | L149: 61 | M149: 37 | N149: 0 | O149: 0
A150: 電機機械52 | B150: 電機機械46 | C150: 2066 世德 | D150: 電機機械 | E150: M1500 | F150: 233685 | G150: 239912 | H150: -6227 | I150: -0.0259553503 | J150: 117 | K150: 97 | L150: 52 | M150: 46 | N150: 0 | O150: 0
A151: 電機機械38 | B151: 電機機械60 | C151: 2067 嘉鋼 | D151: 電機機械 | E151: M1500 | F151: 93615 | G151: 89494 | H151: 4121 | I151: 0.04604777974 | J151: 117 | K151: 97 | L151: 38 | M151: 60 | N151: 0 | O151: 0
A152: 電機機械59 | B152: 電機機械39 | C152: 2070 精湛 | D152: 電機機械 | E152: M1500 | F152: 56339 | G152: 59792 | H152: -3453 | I152: -0.0577502007 | J152: 117 | K152: 97 | L152: 59 | M152: 39 | N152: 0 | O152: 0
A153: 電機機械63 | B153: 電機機械35 | C153: 2230 泰茂 | D153: 電機機械 | E153: M1500 | F153: 81017 | G153: 88570 | H153: -7553 | I153: -0.08527718189 | J153: 117 | K153: 97 | L153: 63 | M153: 35 | N153: 0 | O153: 0
A154: 電機機械74 | B154: 電機機械24 | C154: 2235 謚源 | D154: 電機機械 | E154: M1500 | F154: 32451 | G154: 37839 | H154: -5388 | I154: -0.1423927694 | J154: 117 | K154: 97 | L154: 74 | M154: 24 | N154: 0 | O154: 0
A155: 電機機械39 | B155: 電機機械59 | C155: 2371 大同 | D155: 電機機械 | E155: M1500 | F155: 4180316 | G155: 4006391 | H155: 173925 | I155: 0.04341188865 | J155: 117 | K155: 97 | L155: 39 | M155: 59 | N155: 0 | O155: 0
A156: 電機機械3 | B156: 電機機械95 | C156: 3162 精確 | D156: 電機機械 | E156: M1500 | F156: 638561 | G156: 316621 | H156: 321940 | I156: 1.016799265 | J156: 117 | K156: 97 | L156: 3 | M156: 95 | N156: 0 | O156: 0
A157: 電機機械1 | B157: 電機機械97 | C157: 3167 大量 | D157: 電機機械 | E157: M1500 | F157: 433806 | G157: 163728 | H157: 270078 | I157: 1.649552917 | J157: 117 | K157: 97 | L157: 1 | M157: 97 | N157: 0 | O157: 0
A158: 電機機械92 | B158: 電機機械6 | C158: 3226 龍鋒 | D158: 電機機械 | E158: M1500 | F158: 116927 | G158: 230939 | H158: -114012 | I158: -0.4936888096 | J158: 117 | K158: 97 | L158: 92 | M158: 6 | N158: =U158 -> 0 | O158: =V158 -> 0
A159: 電機機械8 | B159: 電機機械90 | C159: 3379 彬台 | D159: 電機機械 | E159: M1500 | F159: 84397 | G159: 56420 | H159: 27977 | I159: 0.4958702588 | J159: 117 | K159: 97 | L159: 8 | M159: 90 | N159: 0 | O159: 0
A160: 電機機械54 | B160: 電機機械44 | C160: 3426 台興 | D160: 電機機械 | E160: M1500 | F160: 60863 | G160: 63497 | H160: -2634 | I160: -0.04148227475 | J160: 117 | K160: 97 | L160: 54 | M160: 44 | N160: 0 | O160: 0
A161: 電機機械78 | B161: 電機機械20 | C161: 3685 元創精密 | D161: 電機機械 | E161: M1500 | F161: 81388 | G161: 100493 | H161: -19105 | I161: -0.1901127442 | J161: 117 | K161: 97 | L161: 78 | M161: 20 | N161: 0 | O161: 0
A162: 電機機械88 | B162: 電機機械10 | C162: 4502 健信 | D162: 電機機械 | E162: M1500 | F162: 84998 | G162: 133841 | H162: -48843 | I162: -0.3649330175 | J162: 117 | K162: 97 | L162: 88 | M162: 10 | N162: 0 | O162: 0
A163: 電機機械4 | B163: 電機機械94 | C163: 4503 金雨 | D163: 電機機械 | E163: M1500 | F163: 60266 | G163: 31432 | H163: 28834 | I163: 0.9173453805 | J163: 117 | K163: 97 | L163: 4 | M163: 94 | N163: 0 | O163: 0
A164: 電機機械16 | B164: 電機機械82 | C164: 4506 崇友 | D164: 電機機械 | E164: M1500 | F164: 555521 | G164: 423956 | H164: 131565 | I164: 0.3103270151 | J164: 117 | K164: 97 | L164: 16 | M164: 82 | N164: 0 | O164: 0
A165: 電機機械48 | B165: 電機機械50 | C165: 4510 高鋒 | D165: 電機機械 | E165: M1500 | F165: 131375 | G165: 132564 | H165: -1189 | I165: -0.008969252587 | J165: 117 | K165: 97 | L165: 48 | M165: 50 | N165: 0 | O165: 0
A166: 電機機械73 | B166: 電機機械25 | C166: 4513 福裕 | D166: 電機機械 | E166: M1500 | F166: 74667 | G166: 86663 | H166: -11996 | I166: -0.1384212409 | J166: 117 | K166: 97 | L166: 73 | M166: 25 | N166: 0 | O166: 0
A167: 電機機械7 | B167: 電機機械91 | C167: 4523 永彰 | D167: 電機機械 | E167: M1500 | F167: 59414 | G167: 39665 | H167: 19749 | I167: 0.4978948695 | J167: 117 | K167: 97 | L167: 7 | M167: 91 | N167: 0 | O167: 0
A168: 電機機械83 | B168: 電機機械15 | C168: 4526 東台 | D168: 電機機械 | E168: M1500 | F168: 418462 | G168: 542527 | H168: -124065 | I168: -0.2286798629 | J168: 117 | K168: 97 | L168: 83 | M168: 15 | N168: 0 | O168: 0
A169: 電機機械89 | B169: 電機機械9 | C169: 4527 方方土霖 | D169: 電機機械 | E169: M1500 | F169: 182952 | G169: 319156 | H169: -136204 | I169: -0.4267630876 | J169: 117 | K169: 97 | L169: 89 | M169: 9 | N169: 0 | O169: 0
A170: 電機機械84 | B170: 電機機械14 | C170: 4528 江興鍛 | D170: 電機機械 | E170: M1500 | F170: 106596 | G170: 140219 | H170: -33623 | I170: -0.2397891869 | J170: 117 | K170: 97 | L170: 84 | M170: 14 | N170: 0 | O170: 0
A171: 電機機械70 | B171: 電機機械28 | C171: 4532 瑞智 | D171: 電機機械 | E171: M1500 | F171: 1736116 | G171: 2008031 | H171: -271915 | I171: -0.1354137461 | J171: 117 | K171: 97 | L171: 70 | M171: 28 | N171: 0 | O171: 0
A172: 電機機械5 | B172: 電機機械93 | C172: 4533 協易機 | D172: 電機機械 | E172: M1500 | F172: 379039 | G172: 225299 | H172: 153740 | I172: 0.6823820789 | J172: 117 | K172: 97 | L172: 5 | M172: 93 | N172: 0 | O172: 0
A173: 電機機械79 | B173: 電機機械19 | C173: 4534 慶騰 | D173: 電機機械 | E173: M1500 | F173: 58565 | G173: 73243 | H173: -14678 | I173: -0.2004014035 | J173: 117 | K173: 97 | L173: 79 | M173: 19 | N173: 0 | O173: 0
A174: 電機機械71 | B174: 電機機械27 | C174: 4535 至興 | D174: 電機機械 | E174: M1500 | F174: 218700 | G174: 252985 | H174: -34285 | I174: -0.1355218689 | J174: 117 | K174: 97 | L174: 71 | M174: 27 | N174: 0 | O174: 0
A175: 電機機械41 | B175: 電機機械57 | C175: 4538 大詠城 | D175: 電機機械 | E175: M1500 | F175: 30110 | G175: 29447 | H175: 663 | I175: 0.022515027 | J175: 117 | K175: 97 | L175: 41 | M175: 57 | N175: 0 | O175: 0
A176: 電機機械45 | B176: 電機機械53 | C176: 4540 全球傳動 | D176: 電機機械 | E176: M1500 | F176: 197625 | G176: 196432 | H176: 1193 | I176: 0.006073348538 | J176: 117 | K176: 97 | L176: 45 | M176: 53 | N176: 0 | O176: 0
A177: 電機機械69 | B177: 電機機械29 | C177: 4543 萬在 | D177: 電機機械 | E177: M1500 | F177: 76917 | G177: 87961 | H177: -11044 | I177: -0.125555644 | J177: 117 | K177: 97 | L177: 69 | M177: 29 | N177: 0 | O177: 0
A178: 電機機械49 | B178: 電機機械49 | C178: 4549 桓達 | D178: 電機機械 | E178: M1500 | F178: 112987 | G178: 114074 | H178: -1087 | I178: -0.009528902291 | J178: 117 | K178: 97 | L178: 49 | M178: 49 | N178: 0 | O178: 0
A179: 電機機械94 | B179: 電機機械4 | C179: 4550 長佳 | D179: 電機機械 | E179: M1500 | F179: 43517 | G179: 93058 | H179: -49541 | I179: -0.532366911 | J179: 117 | K179: 97 | L179: 94 | M179: 4 | N179: 0 | O179: 0
A180: 電機機械56 | B180: 電機機械42 | C180: 4552 力達-KY | D180: 電機機械 | E180: M1500 | F180: 312003 | G180: 330371 | H180: -18368 | I180: -0.05559810032 | J180: 117 | K180: 97 | L180: 56 | M180: 42 | N180: 0 | O180: 0
A181: 電機機械53 | B181: 電機機械45 | C181: 4555 氣立 | D181: 電機機械 | E181: M1500 | F181: 135924 | G181: 141766 | H181: -5842 | I181: -0.04120875245 | J181: 117 | K181: 97 | L181: 53 | M181: 45 | N181: 0 | O181: 0
A182: 電機機械20 | B182: 電機機械78 | C182: 4558 寶緯 | D182: 電機機械 | E182: M1500 | F182: 125662 | G182: 99559 | H182: 26103 | I182: 0.2621862413 | J182: 117 | K182: 97 | L182: 20 | M182: 78 | N182: 0 | O182: 0
A183: 電機機械44 | B183: 電機機械54 | C183: 4560 強信-KY | D183: 電機機械 | E183: M1500 | F183: 138013 | G183: 137020 | H183: 993 | I183: 0.007247117209 | J183: 117 | K183: 97 | L183: 44 | M183: 54 | N183: 0 | O183: 0
A184: 電機機械90 | B184: 電機機械8 | C184: 4561 健椿 | D184: 電機機械 | E184: M1500 | F184: 81572 | G184: 144375 | H184: -62803 | I184: -0.4349991342 | J184: 117 | K184: 97 | L184: 90 | M184: 8 | N184: 0 | O184: 0
A185: 電機機械15 | B185: 電機機械83 | C185: 4562 穎漢 | D185: 電機機械 | E185: M1500 | F185: 71052 | G185: 53426 | H185: 17626 | I185: 0.3299142739 | J185: 117 | K185: 97 | L185: 15 | M185: 83 | N185: 0 | O185: 0
A186: 電機機械31 | B186: 電機機械67 | C186: 4563 百德 | D186: 電機機械 | E186: M1500 | F186: 297390 | G186: 263669 | H186: 33721 | I186: 0.1278914093 | J186: 117 | K186: 97 | L186: 31 | M186: 67 | N186: 0 | O186: 0
A187: 電機機械21 | B187: 電機機械77 | C187: 4564 元翎 | D187: 電機機械 | E187: M1500 | F187: 114056 | G187: 91328 | H187: 22728 | I187: 0.2488612474 | J187: 117 | K187: 97 | L187: 21 | M187: 77 | N187: 0 | O187: 0
A188: 電機機械55 | B188: 電機機械43 | C188: 4566 時碩工業 | D188: 電機機械 | E188: M1500 | F188: 415167 | G188: 438081 | H188: -22914 | I188: -0.05230539558 | J188: 117 | K188: 97 | L188: 55 | M188: 43 | N188: 0 | O188: 0
A189: 電機機械66 | B189: 電機機械32 | C189: 4568 科際精密 | D189: 電機機械 | E189: M1500 | F189: 99716 | G189: 112410 | H189: -12694 | I189: -0.1129258963 | J189: 117 | K189: 97 | L189: 66 | M189: 32 | N189: 0 | O189: 0
A190: 電機機械40 | B190: 電機機械58 | C190: 4571 鈞興-KY | D190: 電機機械 | E190: M1500 | F190: 241605 | G190: 234097 | H190: 7508 | I190: 0.03207217521 | J190: 117 | K190: 97 | L190: 40 | M190: 58 | N190: 0 | O190: 0
A191: 電機機械76 | B191: 電機機械22 | C191: 4572 駐龍 | D191: 電機機械 | E191: M1500 | F191: 62742 | G191: 75823 | H191: -13081 | I191: -0.1725202115 | J191: 117 | K191: 97 | L191: 76 | M191: 22 | N191: 0 | O191: 0
A192: 電機機械23 | B192: 電機機械75 | C192: 4576 大銀微系統 | D192: 電機機械 | E192: M1500 | F192: 227661 | G192: 194350 | H192: 33311 | I192: 0.1713969642 | J192: 117 | K192: 97 | L192: 23 | M192: 75 | N192: 0 | O192: 0
A193: 電機機械58 | B193: 電機機械40 | C193: 4580 捷流閥業 | D193: 電機機械 | E193: M1500 | F193: 192206 | G193: 203693 | H193: -11487 | I193: -0.0563936905 | J193: 117 | K193: 97 | L193: 58 | M193: 40 | N193: 0 | O193: 0
A194: 電機機械43 | B194: 電機機械55 | C194: 4583 台灣精銳 | D194: 電機機械 | E194: M1500 | F194: 267200 | G194: 265130 | H194: 2070 | I194: 0.007807490665 | J194: 117 | K194: 97 | L194: 43 | M194: 55 | N194: 0 | O194: 0
A195: =$D195&L195 -> 電機機械57 | B195: =$D195&M195 -> 電機機械41 | C195: 4584 君帆 | D195: 電機機械 | E195: M1500 | F195: 102165 | G195: 108236 | H195: -6071 | I195: -0.05609039506 | J195: =IF(E195="","",MATCH(E195,E:E,0)) -> 117 | K195: =COUNTIF(D:D,D195) -> 97 | L195: 57 | M195: 41 | N195: 0 | O195: 0
A196: 電機機械81 | B196: 電機機械17 | C196: 5288 豐祥-KY | D196: 電機機械 | E196: M1500 | F196: 483014 | G196: 610118 | H196: =F196-G196 -> -127104 | I196: =IF(ISERROR((H196/G196)*100),"",(H196/(ABS(G196)))) -> -0.2083269138 | J196: 117 | K196: 97 | L196: =IF(I196="","",RANK(I196,OFFSET(I$1,$J196-1,,$K196,),0)) -> 81 | M196: =IF(I196="","",RANK(I196,OFFSET(I$1,$J196-1,,$K196,),1)) -> 17 | N196: 0 | O196: 0
A197: 電機機械33 | B197: 電機機械65 | C197: 6122 擎邦 | D197: 電機機械 | E197: M1500 | F197: 317245 | G197: 287258 | H197: 29987 | I197: 0.1043904782 | J197: 117 | K197: 97 | L197: 33 | M197: 65 | N197: 0 | O197: 0
A198: 電機機械87 | B198: 電機機械11 | C198: 6425 易發 | D198: 電機機械 | E198: M1500 | F198: 128142 | G198: 195073 | H198: -66931 | I198: -0.3431074521 | J198: 117 | K198: 97 | L198: 87 | M198: 11 | N198: 0 | O198: 0
A199: 電機機械13 | B199: 電機機械85 | C199: 6603 富強鑫 | D199: 電機機械 | E199: M1500 | F199: 555098 | G199: 409207 | H199: 145891 | I199: 0.3565212716 | J199: 117 | K199: 97 | L199: 13 | M199: 85 | N199: 0 | O199: 0
A200: 電機機械72 | B200: 電機機械26 | C200: 6606 建德工業 | D200: 電機機械 | E200: M1500 | F200: 63945 | G200: 74118 | H200: -10173 | I200: -0.1372541083 | J200: 117 | K200: 97 | L200: 72 | M200: 26 | N200: 0 | O200: 0
... 2800 more rows

Sheet 表B_RAW
A1: 排名(正向) | B1: 排名(反向) | D1: TSE新產業_名稱 | E1: TSE新產業_代碼 | F1: 單月營收(千元) | G1: 單月營收(千元) | H1: 單月營收與上月比％ | J1: 產業位址 | K1: 產業家數 | L1: 排名(正向) | M1: 排名(反向) | N1: 排名(正向) | O1: 排名(反向) | P1: 產業營收 | Q1: 單月營收(千元) | R1: 上月單月營收(千元) | S1: 本月較上月變動金額 | T1: 單月營收與上月比％ | U1: 排名(正向) | V1: 排名(反向)
C2: 公司 | F2: 2025-05-29 | G2: 2025-04-30 | H2: 2025-05-29 | N2: =U2 -> 10 | O2: =V2 -> 25 | P2: =_xlfn.UNIQUE($D$3:$D$1900,FALSE,FALSE) -> 水泥工業 | Q2: =SUMIF($D:$D,$P2,F:F) -> 20939298 | R2: =SUMIF($D:$D,$P2,G:G) -> 21037121 | S2: =Q2-R2 -> -97823 | T2: =IF(VLOOKUP(P2,$D:$K,8,0)=1,"",ROUND(S2/R2*100,2)) -> -0.47 | U2: =IF($T2="",0,_xlfn.RANK.EQ(T2,T:T)) -> 10 | V2: =IF($T2="",0,_xlfn.RANK.EQ(T2,T:T,1)) -> 25
A3: =D3&L3 -> 水泥工業2 | B3: =D3&M3 -> 水泥工業6 | C3: 1101 台泥 | D3: 水泥工業 | E3: M1100 | F3: 12619495 | G3: 12681318 | H3: -0.49 | I3: =F3-G3 -> -61823 | J3: =IF(E3="","",MATCH(E3,E:E,0)) -> 3 | K3: =COUNTIF(D:D,D3) -> 7 | L3: =IF(H3="","",RANK(H3,OFFSET(H$1,$J3-1,,$K3,),0)) -> 2 | M3: =IF(H3="","",RANK(H3,OFFSET(H$1,$J3-1,,$K3,),1)) -> 6 | N3: =U3 -> 7 | O3: =V3 -> 28 | P3: 食品工業 | Q3: =SUMIF($D:$D,$P3,F:F) -> 85541694 | R3: =SUMIF($D:$D,$P3,G:G) -> 84577929 | S3: =Q3-R3 -> 963765 | T3: =IF(VLOOKUP(P3,$D:$K,8,0)=1,"",ROUND(S3/R3*100,2)) -> 1.14 | U3: =IF($T3="",0,_xlfn.RANK.EQ(T3,T:T)) -> 7 | V3: =IF($T3="",0,_xlfn.RANK.EQ(T3,T:T,1)) -> 28
A4: =D4&L4 -> 水泥工業1 | B4: =D4&M4 -> 水泥工業7 | C4: 1102 亞泥 | D4: 水泥工業 | E4: M1100 | F4: 6370169 | G4: 6276269 | H4: 1.5 | I4: =F4-G4 -> 93900 | J4: =IF(E4="","",MATCH(E4,E:E,0)) -> 3 | K4: =COUNTIF(D:D,D4) -> 7 | L4: =IF(H4="","",RANK(H4,OFFSET(H$1,$J4-1,,$K4,),0)) -> 1 | M4: =IF(H4="","",RANK(H4,OFFSET(H$1,$J4-1,,$K4,),1)) -> 7 | N4: 27 | O4: 8 | P4: 塑膠工業 | Q4: 79239333 | R4: 85072464 | S4: -5833131 | T4: -6.86 | U4: 27 | V4: 8
A5: 水泥工業7 | B5: 水泥工業1 | C5: 1103 嘉泥 | D5: 水泥工業 | E5: M1100 | F5: 249182 | G5: 271595 | H5: -8.25 | I5: -22413 | J5: 3 | K5: 7 | L5: 7 | M5: 1 | N5: 12 | O5: 23 | P5: 紡織纖維 | Q5: 46691419 | R5: 47111484 | S5: -420065 | T5: -0.89 | U5: 12 | V5: 23
A6: 水泥工業6 | B6: 水泥工業2 | C6: 1104 環泥 | D6: 水泥工業 | E6: M1100 | F6: 643106 | G6: 698668 | H6: -7.95 | I6: -55562 | J6: 3 | K6: 7 | L6: 6 | M6: 2 | N6: 16 | O6: 19 | P6: 電機機械 | Q6: 44012456 | R6: 44846457 | S6: -834001 | T6: -1.86 | U6: 16 | V6: 19
A7: 水泥工業4 | B7: 水泥工業4 | C7: 1108 幸福 | D7: 水泥工業 | E7: M1100 | F7: 388571 | G7: 410688 | H7: -5.39 | I7: -22117 | J7: 3 | K7: 7 | L7: 4 | M7: 4 | N7: 30 | O7: 5 | P7: 電器電纜 | Q7: 25751201 | R7: 28076634 | S7: -2325433 | T7: -8.28 | U7: 30 | V7: 5
A8: 水泥工業5 | B8: 水泥工業3 | C8: 1109 信大 | D8: 水泥工業 | E8: M1100 | F8: 407283 | G8: 434011 | H8: -6.16 | I8: -26728 | J8: 3 | K8: 7 | L8: 5 | M8: 3 | N8: 31 | O8: 4 | P8: 化學工業 | Q8: 25673776 | R8: 28194426 | S8: -2520650 | T8: -8.94 | U8: 31 | V8: 4
A9: 水泥工業3 | B9: 水泥工業5 | C9: 1110 東泥 | D9: 水泥工業 | E9: M1100 | F9: 261492 | G9: 264572 | H9: -1.16 | I9: -3080 | J9: 3 | K9: 7 | L9: 3 | M9: 5 | N9: 23 | O9: 12 | P9: 生技醫療業 | Q9: 26423616 | R9: 27851848 | S9: -1428232 | T9: -5.13 | U9: 23 | V9: 12
A10: 食品工業11 | B10: 食品工業21 | C10: 1201 味全 | D10: 食品工業 | E10: M1200 | F10: 1923030 | G10: 1856995 | H10: 3.56 | I10: 66035 | J10: 10 | K10: 31 | L10: 11 | M10: 21 | N10: 28 | O10: 7 | P10: 玻璃陶瓷 | Q10: 4470360 | R10: 4868782 | S10: -398422 | T10: -8.18 | U10: 28 | V10: 7
A11: 食品工業19 | B11: 食品工業13 | C11: 1203 味王 | D11: 食品工業 | E11: M1200 | F11: 481004 | G11: 498590 | H11: -3.53 | I11: -17586 | J11: 10 | K11: 31 | L11: 19 | M11: 13 | N11: 20 | O11: 15 | P11: 造紙工業 | Q11: 16043343 | R11: 16628752 | S11: -585409 | T11: -3.52 | U11: 20 | V11: 15
A12: 食品工業21 | B12: 食品工業11 | C12: 1210 大成 | D12: 食品工業 | E12: M1200 | F12: 8229515 | G12: 8722030 | H12: -5.65 | I12: -492515 | J12: 10 | K12: 31 | L12: 21 | M12: 11 | N12: 25 | O12: 10 | P12: 鋼鐵工業 | Q12: 81229961 | R12: 86447610 | S12: -5217649 | T12: -6.04 | U12: 25 | V12: 10
A13: 食品工業28 | B13: 食品工業4 | C13: 1213 大飲 | D13: 食品工業 | E13: M1200 | F13: 19978 | G13: 25157 | H13: -20.59 | I13: -5179 | J13: 10 | K13: 31 | L13: 28 | M13: 4 | N13: 18 | O13: 17 | P13: 橡膠工業 | Q13: 17811489 | R13: 18332093 | S13: -520604 | T13: -2.84 | U13: 18 | V13: 17
A14: 食品工業14 | B14: 食品工業18 | C14: 1215 卜蜂 | D14: 食品工業 | E14: M1200 | F14: 2448264 | G14: 2386361 | H14: 2.59 | I14: 61903 | J14: 10 | K14: 31 | L14: 14 | M14: 18 | N14: 11 | O14: 24 | P14: 汽車工業 | Q14: 59274498 | R14: 59709775 | S14: -435277 | T14: -0.73 | U14: 11 | V14: 24
A15: 食品工業15 | B15: 食品工業17 | C15: 1216 統一 | D15: 食品工業 | E15: M1200 | F15: 57625519 | G15: 56208747 | H15: 2.52 | I15: 1416772 | J15: 10 | K15: 31 | L15: 15 | M15: 17 | N15: 0 | O15: 0 | P15: 電子工業 | Q15: 114311 | R15: 136995 | S15: -22684 | U15: 0 | V15: 0 | W15: *該公司於2025/6/13才上市，故本月先排除樣本
A16: 食品工業5 | B16: 食品工業27 | C16: 1217 愛之味 | D16: 食品工業 | E16: M1200 | F16: 440729 | G16: 376794 | H16: 16.97 | I16: 63935 | J16: 10 | K16: 31 | L16: 5 | M16: 27 | N16: 26 | O16: 9 | P16: 半導體業 | Q16: 585676625 | R16: 625182388 | S16: -39505763 | T16: -6.32 | U16: 26 | V16: 9
A17: 食品工業10 | B17: 食品工業22 | C17: 1218 泰山 | D17: 食品工業 | E17: M1200 | F17: 832885 | G17: 793857 | H17: 4.92 | I17: 39028 | J17: 10 | K17: 31 | L17: 10 | M17: 22 | N17: 2 | O17: 33 | P17: 電腦及週邊設備業 | Q17: 919284160 | R17: 831677653 | S17: 87606507 | T17: 10.53 | U17: 2 | V17: 33
A18: 食品工業17 | B18: 食品工業15 | C18: 1219 福壽 | D18: 食品工業 | E18: M1200 | F18: 1197196 | G18: 1207240 | H18: -0.83 | I18: -10044 | J18: 10 | K18: 31 | L18: 17 | M18: 15 | N18: 13 | O18: 22 | P18: 光電業 | Q18: 106484372 | R18: 107493302 | S18: -1008930 | T18: -0.94 | U18: 13 | V18: 22
A19: 食品工業13 | B19: 食品工業19 | C19: 1220 台榮 | D19: 食品工業 | E19: M1200 | F19: 274366 | G19: 266521 | H19: 2.94 | I19: 7845 | J19: 10 | K19: 31 | L19: 13 | M19: 19 | N19: 9 | O19: 26 | P19: 通訊網路業 | Q19: 106360721 | R19: 106595837 | S19: -235116 | T19: -0.22 | U19: 9 | V19: 26
A20: 食品工業18 | B20: 食品工業14 | C20: 1225 福懋油 | D20: 食品工業 | E20: M1200 | F20: 1008123 | G20: 1018583 | H20: -1.03 | I20: -10460 | J20: 10 | K20: 31 | L20: 18 | M20: 14 | N20: 22 | O20: 13 | P20: 電子零組件 | Q20: 214348767 | R20: 225620357 | S20: -11271590 | T20: -5 | U20: 22 | V20: 13
A21: 食品工業9 | B21: 食品工業23 | C21: 1227 佳格 | D21: 食品工業 | E21: M1200 | F21: 2164443 | G21: 2029826 | H21: 6.63 | I21: 134617 | J21: 10 | K21: 31 | L21: 9 | M21: 23 | N21: 33 | O21: 2 | P21: 電子通路業 | Q21: 255441262 | R21: 327981446 | S21: -72540184 | T21: -22.12 | U21: 33 | V21: 2
A22: 食品工業29 | B22: 食品工業3 | C22: 1229 聯華 | D22: 食品工業 | E22: M1200 | F22: 862668 | G22: 1106918 | H22: -22.07 | I22: -244250 | J22: 10 | K22: 31 | L22: 29 | M22: 3 | N22: 14 | O22: 21 | P22: 資訊服務業 | Q22: 14536843 | R22: 14686784 | S22: -149941 | T22: -1.02 | U22: 14 | V22: 21
A23: 食品工業16 | B23: 食品工業16 | C23: 1231 聯華食 | D23: 食品工業 | E23: M1200 | F23: 1018378 | G23: 998002 | H23: 2.04 | I23: 20376 | J23: 10 | K23: 31 | L23: 16 | M23: 16 | N23: 19 | O23: 16 | P23: 其他電子業 | Q23: 697707411 | R23: 723096153 | S23: -25388742 | T23: -3.51 | U23: 19 | V23: 16
A24: 食品工業23 | B24: 食品工業9 | C24: 1232 大統益 | D24: 食品工業 | E24: M1200 | F24: 1666647 | G24: 1833047 | H24: -9.08 | I24: -166400 | J24: 10 | K24: 31 | L24: 23 | M24: 9 | N24: 8 | O24: 27 | P24: 建材營造 | Q24: 39070032 | R24: 38939434 | S24: 130598 | T24: 0.34 | U24: 8 | V24: 27
A25: 食品工業6 | B25: 食品工業26 | C25: 1233 天仁 | D25: 食品工業 | E25: M1200 | F25: 196357 | G25: 168871 | H25: 16.28 | I25: 27486 | J25: 10 | K25: 31 | L25: 6 | M25: 26 | N25: 6 | O25: 29 | P25: 航運業 | Q25: 119854423 | R25: 118436583 | S25: 1417840 | T25: 1.2 | U25: 6 | V25: 29
A26: 食品工業7 | B26: 食品工業25 | C26: 1234 黑松 | D26: 食品工業 | E26: M1200 | F26: 898472 | G26: 799538 | H26: 12.37 | I26: 98934 | J26: 10 | K26: 31 | L26: 7 | M26: 25 | N26: 3 | O26: 32 | P26: 觀光餐旅 | Q26: 16191638 | R26: 14956698 | S26: 1234940 | T26: 8.26 | U26: 3 | V26: 32
A27: 食品工業26 | B27: 食品工業6 | C27: 1235 興泰 | D27: 食品工業 | E27: M1200 | F27: 12837 | G27: 14427 | H27: -11.02 | I27: -1590 | J27: 10 | K27: 31 | L27: 26 | M27: 6 | N27: 34 | O27: 1 | P27: 金融業 | Q27: 40731354 | R27: 79405542 | S27: -38674188 | T27: -48.7 | U27: 34 | V27: 1
A28: 食品工業25 | B28: 食品工業7 | C28: 1236 宏亞 | D28: 食品工業 | E28: M1200 | F28: 112127 | G28: 125303 | H28: -10.52 | I28: -13176 | J28: 10 | K28: 31 | L28: 25 | M28: 7 | N28: 1 | O28: 34 | P28: 貿易百貨 | Q28: 69953123 | R28: 56395521 | S28: 13557602 | T28: 24.04 | U28: 1 | V28: 34
A29: 食品工業2 | B29: 食品工業30 | C29: 1256 鮮活果汁-KY | D29: 食品工業 | E29: M1200 | F29: 384691 | G29: 291642 | H29: 31.91 | I29: 93049 | J29: 10 | K29: 31 | L29: 2 | M29: 30 | N29: 21 | O29: 14 | P29: 文化創意業 | Q29: 4795490 | R29: 5033645 | S29: -238155 | T29: -4.73 | U29: 21 | V29: 14
A30: 食品工業20 | B30: 食品工業12 | C30: 1264 德麥 | D30: 食品工業 | E30: M1200 | F30: 540780 | G30: 567719 | H30: -4.75 | I30: -26939 | J30: 10 | K30: 31 | L30: 20 | M30: 12 | N30: =U30 -> 29 | O30: =V30 -> 6 | P30: 農業科技 | Q30: =SUMIF($D:$D,$P30,F:F) -> 458246 | R30: =SUMIF($D:$D,$P30,G:G) -> 499153 | S30: =Q30-R30 -> -40907 | T30: -8.2 | U30: 29 | V30: 6
A31: 食品工業30 | B31: 食品工業2 | C31: 1294 漢田生技 | D31: 食品工業 | E31: M1200 | F31: 52034 | G31: 72323 | H31: -28.05 | I31: -20289 | J31: 10 | K31: 31 | L31: 30 | M31: 2 | N31: 32 | O31: 3 | P31: 綠能環保 | Q31: 10089444 | R31: 11258053 | S31: -1168609 | T31: -10.38 | U31: 32 | V31: 3
A32: 食品工業24 | B32: 食品工業8 | C32: 1295 生合 | D32: 食品工業 | E32: M1200 | F32: 104854 | G32: 116307 | H32: -9.85 | I32: -11453 | J32: 10 | K32: 31 | L32: 24 | M32: 8 | N32: 5 | O32: 30 | P32: 數位雲端 | Q32: 16717724 | R32: 16499193 | S32: 218531 | T32: 1.32 | U32: 5 | V32: 30
A33: 食品工業22 | B33: 食品工業10 | C33: 1702 南僑 | D33: 食品工業 | E33: M1200 | F33: 1912617 | G33: 2031399 | H33: -5.85 | I33: -118782 | J33: 10 | K33: 31 | L33: 22 | M33: 10 | N33: 24 | O33: 11 | P33: 運動休閒 | Q33: 56152591 | R33: 59617144 | S33: -3464553 | T33: -5.81 | U33: 24 | V33: 11
A34: 食品工業4 | B34: 食品工業28 | C34: 1737 臺鹽 | D34: 食品工業 | E34: M1200 | F34: 316192 | G34: 256043 | H34: 23.49 | I34: 60149 | J34: 10 | K34: 31 | L34: 4 | M34: 28 | N34: 4 | O34: 31 | P34: 居家生活 | Q34: 22511830 | R34: 22123054 | S34: 388776 | T34: 1.76 | U34: 4 | V34: 31
A35: 食品工業27 | B35: 食品工業5 | C35: 1796 金穎生技 | D35: 食品工業 | E35: M1200 | F35: 51485 | G35: 58855 | H35: -12.52 | I35: -7370 | J35: 10 | K35: 31 | L35: 27 | M35: 5 | N35: 17 | O35: 18 | P35: 油電燃氣業 | Q35: 51874140 | R35: 53049243 | S35: -1175103 | T35: -2.22 | U35: 17 | V35: 18
A36: 食品工業1 | B36: 食品工業31 | C36: 3054 立萬利 | D36: 食品工業 | E36: M1200 | F36: 6566 | G36: 3850 | H36: 70.55 | I36: 2716 | J36: 10 | K36: 31 | L36: 1 | M36: 31 | N36: 15 | O36: 20 | P36: 其他 | Q36: =SUMIF($D:$D,$P36,F:F) -> 54110970 | R36: =SUMIF($D:$D,$P36,G:G) -> 54875809 | S36: =Q36-R36 -> -764839 | T36: -1.39 | U36: 15 | V36: 20
A37: 食品工業8 | B37: 食品工業24 | C37: 4205 中華食 | D37: 食品工業 | E37: M1200 | F37: 171411 | G37: 157652 | H37: 8.73 | I37: 13759 | J37: 10 | K37: 31 | L37: 8 | M37: 24 | N37: 0 | O37: 0 | P37: 存託憑證
A38: 食品工業12 | B38: 食品工業20 | C38: 4207 環泰 | D38: 食品工業 | E38: M1200 | F38: 452319 | G38: 437230 | H38: 3.45 | I38: 15089 | J38: 10 | K38: 31 | L38: 12 | M38: 20 | N38: 0 | O38: 0 | P38: 0
A39: 食品工業3 | B39: 食品工業29 | C39: 6846 綠茵 | D39: 食品工業 | E39: M1200 | F39: 81257 | G39: 64304 | H39: 26.36 | I39: 16953 | J39: 10 | K39: 31 | L39: 3 | M39: 29 | N39: 0 | O39: 0
A40: 食品工業31 | B40: 食品工業1 | C40: 7743 金利食安 | D40: 食品工業 | E40: M1200 | F40: 54950 | G40: 83798 | H40: -34.43 | I40: -28848 | J40: 10 | K40: 31 | L40: 31 | M40: 1 | N40: 0 | O40: 0
A41: 塑膠工業17 | B41: 塑膠工業9 | C41: 1301 台塑 | D41: 塑膠工業 | E41: M1300 | F41: 14852023 | G41: 16172957 | H41: -8.17 | I41: -1320934 | J41: 41 | K41: 25 | L41: 17 | M41: 9 | N41: 0 | O41: 0
A42: 塑膠工業15 | B42: 塑膠工業11 | C42: 1303 南亞 | D42: 塑膠工業 | E42: M1300 | F42: 21949304 | G42: 23176793 | H42: -5.3 | I42: -1227489 | J42: 41 | K42: 25 | L42: 15 | M42: 11 | N42: 0 | O42: 0
A43: 塑膠工業11 | B43: 塑膠工業15 | C43: 1304 台聚 | D43: 塑膠工業 | E43: M1300 | F43: 3774657 | G43: 3891027 | H43: -2.99 | I43: -116370 | J43: 41 | K43: 25 | L43: 11 | M43: 15 | N43: 0 | O43: 0
A44: 塑膠工業12 | B44: 塑膠工業14 | C44: 1305 華夏 | D44: 塑膠工業 | E44: M1300 | F44: 806203 | G44: 831785 | H44: -3.08 | I44: -25582 | J44: 41 | K44: 25 | L44: 12 | M44: 14 | N44: 0 | O44: 0
A45: 塑膠工業19 | B45: 塑膠工業7 | C45: 1307 三芳 | D45: 塑膠工業 | E45: M1300 | F45: 802937 | G45: 904039 | H45: -11.18 | I45: -101102 | J45: 41 | K45: 25 | L45: 19 | M45: 7 | N45: 0 | O45: 0
A46: 塑膠工業5 | B46: 塑膠工業21 | C46: 1308 亞聚 | D46: 塑膠工業 | E46: M1300 | F46: 472396 | G46: 440496 | H46: 7.24 | I46: 31900 | J46: 41 | K46: 25 | L46: 5 | M46: 21 | N46: 0 | O46: 0
A47: 塑膠工業18 | B47: 塑膠工業8 | C47: 1309 台達化 | D47: 塑膠工業 | E47: M1300 | F47: 1227097 | G47: 1375904 | H47: -10.82 | I47: -148807 | J47: 41 | K47: 25 | L47: 18 | M47: 8 | N47: 0 | O47: 0
A48: 塑膠工業8 | B48: 塑膠工業18 | C48: 1310 台苯 | D48: 塑膠工業 | E48: M1300 | F48: 841983 | G48: 846621 | H48: -0.55 | I48: -4638 | J48: 41 | K48: 25 | L48: 8 | M48: 18 | N48: 0 | O48: 0
A49: 塑膠工業25 | B49: 塑膠工業1 | C49: 1312 國喬 | D49: 塑膠工業 | E49: M1300 | F49: 1505648 | G49: 2633140 | H49: -42.82 | I49: -1127492 | J49: 41 | K49: 25 | L49: 25 | M49: 1 | N49: 0 | O49: 0
A50: 塑膠工業16 | B50: 塑膠工業10 | C50: 1313 聯成 | D50: 塑膠工業 | E50: M1300 | F50: 5129412 | G50: 5570919 | H50: -7.93 | I50: -441507 | J50: 41 | K50: 25 | L50: 16 | M50: 10 | N50: 0 | O50: 0
A51: 塑膠工業10 | B51: 塑膠工業16 | C51: 1314 中石化 | D51: 塑膠工業 | E51: M1300 | F51: 1696761 | G51: 1739506 | H51: -2.46 | I51: -42745 | J51: 41 | K51: 25 | L51: 10 | M51: 16 | N51: 0 | O51: 0
A52: 塑膠工業1 | B52: 塑膠工業25 | C52: 1315 達新 | D52: 塑膠工業 | E52: M1300 | F52: 225890 | G52: 153227 | H52: 47.42 | I52: 72663 | J52: 41 | K52: 25 | L52: 1 | M52: 25 | N52: 0 | O52: 0
A53: 塑膠工業7 | B53: 塑膠工業19 | C53: 1321 大洋 | D53: 塑膠工業 | E53: M1300 | F53: 319215 | G53: 317330 | H53: 0.59 | I53: 1885 | J53: 41 | K53: 25 | L53: 7 | M53: 19 | N53: 0 | O53: 0
A54: 塑膠工業9 | B54: 塑膠工業17 | C54: 1323 永裕 | D54: 塑膠工業 | E54: M1300 | F54: 173860 | G54: 177544 | H54: -2.07 | I54: -3684 | J54: 41 | K54: 25 | L54: 9 | M54: 17 | N54: 0 | O54: 0
A55: 塑膠工業22 | B55: 塑膠工業4 | C55: 1324 地球 | D55: 塑膠工業 | E55: M1300 | F55: 53387 | G55: 67590 | H55: -21.01 | I55: -14203 | J55: 41 | K55: 25 | L55: 22 | M55: 4 | N55: 0 | O55: 0
A56: 塑膠工業6 | B56: 塑膠工業20 | C56: 1325 恒大 | D56: 塑膠工業 | E56: M1300 | F56: 29167 | G56: 28246 | H56: 3.26 | I56: 921 | J56: 41 | K56: 25 | L56: 6 | M56: 20 | N56: 0 | O56: 0
A57: 塑膠工業14 | B57: 塑膠工業12 | C57: 1326 台化 | D57: 塑膠工業 | E57: M1300 | F57: 23721263 | G57: 25033602 | H57: -5.24 | I57: -1312339 | J57: 41 | K57: 25 | L57: 14 | M57: 12 | N57: 0 | O57: 0
A58: 塑膠工業21 | B58: 塑膠工業5 | C58: 1337 再生-KY | D58: 塑膠工業 | E58: M1300 | F58: 50243 | G58: 61260 | H58: -17.98 | I58: -11017 | J58: 41 | K58: 25 | L58: 21 | M58: 5 | N58: 0 | O58: 0
A59: 塑膠工業20 | B59: 塑膠工業6 | C59: 1340 勝悅-KY | D59: 塑膠工業 | E59: M1300 | F59: 23241 | G59: 28106 | H59: -17.31 | I59: -4865 | J59: 41 | K59: 25 | L59: 20 | M59: 6 | N59: 0 | O59: 0
A60: 塑膠工業23 | B60: 塑膠工業3 | C60: 1341 富林-KY | D60: 塑膠工業 | E60: M1300 | F60: 173265 | G60: 225185 | H60: -23.06 | I60: -51920 | J60: 41 | K60: 25 | L60: 23 | M60: 3 | N60: 0 | O60: 0
A61: 塑膠工業2 | B61: 塑膠工業24 | C61: 4303 信立 | D61: 塑膠工業 | E61: M1300 | F61: 101289 | G61: 78172 | H61: 29.57 | I61: 23117 | J61: 41 | K61: 25 | L61: 2 | M61: 24 | N61: 0 | O61: 0
A62: 塑膠工業24 | B62: 塑膠工業2 | C62: 4304 勝昱 | D62: 塑膠工業 | E62: M1300 | F62: 24708 | G62: 32895 | H62: -24.89 | I62: -8187 | J62: 41 | K62: 25 | L62: 24 | M62: 2 | N62: 0 | O62: 0
A63: 塑膠工業4 | B63: 塑膠工業22 | C63: 4305 世坤 | D63: 塑膠工業 | E63: M1300 | F63: 107686 | G63: 98372 | H63: 9.47 | I63: 9314 | J63: 41 | K63: 25 | L63: 4 | M63: 22 | N63: 0 | O63: 0
A64: 塑膠工業13 | B64: 塑膠工業13 | C64: 4306 炎洲 | D64: 塑膠工業 | E64: M1300 | F64: 998724 | G64: 1035112 | H64: -3.52 | I64: -36388 | J64: 41 | K64: 25 | L64: 13 | M64: 13 | N64: 0 | O64: 0
A65: 塑膠工業3 | B65: 塑膠工業23 | C65: 9950 萬國通 | D65: 塑膠工業 | E65: M1300 | F65: 178974 | G65: 152636 | H65: 17.26 | I65: 26338 | J65: 41 | K65: 25 | L65: 3 | M65: 23 | N65: 0 | O65: 0
A66: 紡織纖維21 | B66: 紡織纖維31 | C66: 1402 遠東新 | D66: 紡織纖維 | E66: M1400 | F66: 19614093 | G66: 20017785 | H66: -2.02 | I66: -403692 | J66: 66 | K66: 51 | L66: 21 | M66: 31 | N66: 0 | O66: 0
A67: 紡織纖維19 | B67: 紡織纖維33 | C67: 1409 新纖 | D67: 紡織纖維 | E67: M1400 | F67: 3236780 | G67: 3262094 | H67: -0.78 | I67: -25314 | J67: 66 | K67: 51 | L67: 19 | M67: 33 | N67: 0 | O67: 0
A68: =D68&L68 -> 紡織纖維46 | B68: =D68&M68 -> 紡織纖維6 | C68: 1410 南染 | D68: 紡織纖維 | E68: M1400 | F68: 15010 | G68: 20489 | H68: -26.74 | I68: =F68-G68 -> -5479 | J68: =IF(E68="","",MATCH(E68,E:E,0)) -> 66 | K68: =COUNTIF(D:D,D68) -> 51 | L68: =IF(H68="","",RANK(H68,OFFSET(H$1,$J68-1,,$K68,),0)) -> 46 | M68: =IF(H68="","",RANK(H68,OFFSET(H$1,$J68-1,,$K68,),1)) -> 6 | N68: 0 | O68: 0
A69: 紡織纖維22 | B69: 紡織纖維30 | C69: 1413 宏洲 | D69: 紡織纖維 | E69: M1400 | F69: 213967 | G69: 225307 | H69: -5.03 | I69: -11340 | J69: 66 | K69: 51 | L69: 22 | M69: 30 | N69: 0 | O69: 0
A70: 紡織纖維33 | B70: 紡織纖維19 | C70: 1414 東和 | D70: 紡織纖維 | E70: M1400 | F70: 41378 | G70: 47474 | H70: -12.84 | I70: -6096 | J70: 66 | K70: 51 | L70: 33 | M70: 19 | N70: 0 | O70: 0
A71: 紡織纖維10 | B71: 紡織纖維42 | C71: 1417 嘉裕 | D71: 紡織纖維 | E71: M1400 | F71: 23747 | G71: 21620 | H71: 9.84 | I71: 2127 | J71: 66 | K71: 51 | L71: 10 | M71: 42 | N71: 0 | O71: 0
A72: 紡織纖維20 | B72: 紡織纖維32 | C72: 1418 東華 | D72: 紡織纖維 | E72: M1400 | F72: 343 | G72: 348 | H72: -1.44 | I72: -5 | J72: 66 | K72: 51 | L72: 20 | M72: 32 | N72: 0 | O72: 0
A73: 紡織纖維4 | B73: 紡織纖維48 | C73: 1419 新紡 | D73: 紡織纖維 | E73: M1400 | F73: 375079 | G73: 287707 | H73: 30.37 | I73: 87372 | J73: 66 | K73: 51 | L73: 4 | M73: 48 | N73: 0 | O73: 0
A74: 紡織纖維39 | B74: 紡織纖維13 | C74: 1423 利華 | D74: 紡織纖維 | E74: M1400 | F74: 5188 | G74: 6308 | H74: -17.76 | I74: -1120 | J74: 66 | K74: 51 | L74: 39 | M74: 13 | N74: 0 | O74: 0
A75: 紡織纖維35 | B75: 紡織纖維17 | C75: 1434 福懋 | D75: 紡織纖維 | E75: M1400 | F75: 2364954 | G75: 2724072 | H75: -13.18 | I75: -359118 | J75: 66 | K75: 51 | L75: 35 | M75: 17 | N75: 0 | O75: 0
A76: 紡織纖維12 | B76: 紡織纖維40 | C76: 1440 南紡 | D76: 紡織纖維 | E76: M1400 | F76: 1291362 | G76: 1226509 | H76: 5.29 | I76: 64853 | J76: 66 | K76: 51 | L76: 12 | M76: 40 | N76: 0 | O76: 0
A77: 紡織纖維45 | B77: 紡織纖維7 | C77: 1441 大東 | D77: 紡織纖維 | E77: M1400 | F77: 95348 | G77: 129268 | H77: -26.24 | I77: -33920 | J77: 66 | K77: 51 | L77: 45 | M77: 7 | N77: 0 | O77: 0
A78: 紡織纖維14 | B78: 紡織纖維38 | C78: 1444 力麗 | D78: 紡織纖維 | E78: M1400 | F78: 592355 | G78: 570729 | H78: 3.79 | I78: 21626 | J78: 66 | K78: 51 | L78: 14 | M78: 38 | N78: 0 | O78: 0
A79: 紡織纖維23 | B79: 紡織纖維29 | C79: 1445 大宇 | D79: 紡織纖維 | E79: M1400 | F79: 64409 | G79: 67973 | H79: -5.24 | I79: -3564 | J79: 66 | K79: 51 | L79: 23 | M79: 29 | N79: 0 | O79: 0
A80: 紡織纖維51 | B80: 紡織纖維1 | C80: 1446 宏和 | D80: 紡織纖維 | E80: M1400 | F80: 78961 | G80: 384531 | H80: -79.47 | I80: -305570 | J80: 66 | K80: 51 | L80: 51 | M80: 1 | N80: 0 | O80: 0
A81: 紡織纖維8 | B81: 紡織纖維44 | C81: 1447 力鵬 | D81: 紡織纖維 | E81: M1400 | F81: 2967993 | G81: 2550232 | H81: 16.38 | I81: 417761 | J81: 66 | K81: 51 | L81: 8 | M81: 44 | N81: 0 | O81: 0
A82: 紡織纖維47 | B82: 紡織纖維5 | C82: 1449 佳和 | D82: 紡織纖維 | E82: M1400 | F82: 142824 | G82: 215009 | H82: -33.57 | I82: -72185 | J82: 66 | K82: 51 | L82: 47 | M82: 5 | N82: 0 | O82: 0
A83: 紡織纖維6 | B83: 紡織纖維46 | C83: 1451 年興 | D83: 紡織纖維 | E83: M1400 | F83: 648324 | G83: 535184 | H83: 21.14 | I83: 113140 | J83: 66 | K83: 51 | L83: 6 | M83: 46 | N83: 0 | O83: 0
A84: 紡織纖維42 | B84: 紡織纖維10 | C84: 1452 宏益 | D84: 紡織纖維 | E84: M1400 | F84: 105355 | G84: 131672 | H84: -19.99 | I84: -26317 | J84: 66 | K84: 51 | L84: 42 | M84: 10 | N84: 0 | O84: 0
A85: 紡織纖維44 | B85: 紡織纖維8 | C85: 1454 台富 | D85: 紡織纖維 | E85: M1400 | F85: 117036 | G85: 157093 | H85: -25.5 | I85: -40057 | J85: 66 | K85: 51 | L85: 44 | M85: 8 | N85: 0 | O85: 0
A86: 紡織纖維25 | B86: 紡織纖維27 | C86: 1455 集盛 | D86: 紡織纖維 | E86: M1400 | F86: 571203 | G86: 614132 | H86: -6.99 | I86: -42929 | J86: 66 | K86: 51 | L86: 25 | M86: 27 | N86: 0 | O86: 0
A87: 紡織纖維26 | B87: 紡織纖維26 | C87: 1457 宜進 | D87: 紡織纖維 | E87: M1400 | F87: 273077 | G87: 295832 | H87: -7.69 | I87: -22755 | J87: 66 | K87: 51 | L87: 26 | M87: 26 | N87: 0 | O87: 0
A88: 紡織纖維34 | B88: 紡織纖維18 | C88: 1459 聯發 | D88: 紡織纖維 | E88: M1400 | F88: 85172 | G88: 97944 | H88: -13.04 | I88: -12772 | J88: 66 | K88: 51 | L88: 34 | M88: 18 | N88: 0 | O88: 0
A89: 紡織纖維37 | B89: 紡織纖維15 | C89: 1460 宏遠 | D89: 紡織纖維 | E89: M1400 | F89: 502049 | G89: 588791 | H89: -14.73 | I89: -86742 | J89: 66 | K89: 51 | L89: 37 | M89: 15 | N89: 0 | O89: 0
A90: 紡織纖維17 | B90: 紡織纖維35 | C90: 1463 強盛新 | D90: 紡織纖維 | E90: M1400 | F90: 15686 | G90: 15540 | H90: 0.94 | I90: 146 | J90: 66 | K90: 51 | L90: 17 | M90: 35 | N90: 0 | O90: 0
A91: 紡織纖維31 | B91: 紡織纖維21 | C91: 1464 得力 | D91: 紡織纖維 | E91: M1400 | F91: 947624 | G91: 1060772 | H91: -10.67 | I91: -113148 | J91: 66 | K91: 51 | L91: 31 | M91: 21 | N91: 0 | O91: 0
A92: 紡織纖維50 | B92: 紡織纖維2 | C92: 1465 偉全 | D92: 紡織纖維 | E92: M1400 | F92: 22806 | G92: 41306 | H92: -44.79 | I92: -18500 | J92: 66 | K92: 51 | L92: 50 | M92: 2 | N92: 0 | O92: 0
A93: 紡織纖維41 | B93: 紡織纖維11 | C93: 1466 聚隆 | D93: 紡織纖維 | E93: M1400 | F93: 183650 | G93: 227181 | H93: -19.16 | I93: -43531 | J93: 66 | K93: 51 | L93: 41 | M93: 11 | N93: 0 | O93: 0
A94: 紡織纖維5 | B94: 紡織纖維47 | C94: 1467 南緯 | D94: 紡織纖維 | E94: M1400 | F94: 419780 | G94: 324581 | H94: 29.33 | I94: 95199 | J94: 66 | K94: 51 | L94: 5 | M94: 47 | N94: =U94 -> 0 | O94: =V94 -> 0
A95: 紡織纖維28 | B95: 紡織纖維24 | C95: 1468 昶和 | D95: 紡織纖維 | E95: M1400 | F95: 71055 | G95: 78672 | H95: -9.68 | I95: -7617 | J95: 66 | K95: 51 | L95: 28 | M95: 24 | N95: 0 | O95: 0
A96: 紡織纖維11 | B96: 紡織纖維41 | C96: 1470 大統新創 | D96: 紡織纖維 | E96: M1400 | F96: 67788 | G96: 64041 | H96: 5.85 | I96: 3747 | J96: 66 | K96: 51 | L96: 11 | M96: 41 | N96: 0 | O96: 0
A97: 紡織纖維18 | B97: 紡織纖維34 | C97: 1473 台南 | D97: 紡織纖維 | E97: M1400 | F97: 437767 | G97: 438282 | H97: -0.12 | I97: -515 | J97: 66 | K97: 51 | L97: 18 | M97: 34 | N97: 0 | O97: 0
A98: 紡織纖維38 | B98: 紡織纖維14 | C98: 1474 弘裕 | D98: 紡織纖維 | E98: M1400 | F98: 220982 | G98: 268202 | H98: -17.61 | I98: -47220 | J98: 66 | K98: 51 | L98: 38 | M98: 14 | N98: 0 | O98: 0
A99: 紡織纖維27 | B99: 紡織纖維25 | C99: 1475 業旺 | D99: 紡織纖維 | E99: M1400 | F99: 118462 | G99: 131032 | H99: -9.59 | I99: -12570 | J99: 66 | K99: 51 | L99: 27 | M99: 25 | N99: 0 | O99: 0
A100: 紡織纖維30 | B100: 紡織纖維22 | C100: 1476 儒鴻 | D100: 紡織纖維 | E100: M1400 | F100: 3038307 | G100: 3390928 | H100: -10.4 | I100: -352621 | J100: 66 | K100: 51 | L100: 30 | M100: 22 | N100: 0 | O100: 0
A101: 紡織纖維13 | B101: 紡織纖維39 | C101: 1477 聚陽 | D101: 紡織纖維 | E101: M1400 | F101: 2488629 | G101: 2364173 | H101: 5.26 | I101: 124456 | J101: 66 | K101: 51 | L101: 13 | M101: 39 | N101: 0 | O101: 0
A102: 紡織纖維32 | B102: 紡織纖維20 | C102: 4401 東隆興 | D102: 紡織纖維 | E102: M1400 | F102: 303941 | G102: 343709 | H102: -11.57 | I102: -39768 | J102: 66 | K102: 51 | L102: 32 | M102: 20 | N102: 0 | O102: 0
A103: 紡織纖維43 | B103: 紡織纖維9 | C103: 4402 郡都開發 | D103: 紡織纖維 | E103: M1400 | F103: 1821 | G103: 2314 | H103: -21.31 | I103: -493 | J103: 66 | K103: 51 | L103: 43 | M103: 9 | N103: 0 | O103: 0
A104: 紡織纖維40 | B104: 紡織纖維12 | C104: 4406 新昕纖 | D104: 紡織纖維 | E104: M1400 | F104: 47779 | G104: 58915 | H104: -18.9 | I104: -11136 | J104: 66 | K104: 51 | L104: 40 | M104: 12 | N104: 0 | O104: 0
A105: 紡織纖維48 | B105: 紡織纖維4 | C105: 4413 飛寶企業 | D105: 紡織纖維 | E105: M1400 | F105: 54507 | G105: 84472 | H105: -35.47 | I105: -29965 | J105: 66 | K105: 51 | L105: 48 | M105: 4 | N105: 0 | O105: 0
A106: 紡織纖維29 | B106: 紡織纖維23 | C106: 4414 如興 | D106: 紡織纖維 | E106: M1400 | F106: 1089628 | G106: 1215664 | H106: -10.37 | I106: -126036 | J106: 66 | K106: 51 | L106: 29 | M106: 23 | N106: 0 | O106: 0
A107: 紡織纖維9 | B107: 紡織纖維43 | C107: 4417 金洲 | D107: 紡織纖維 | E107: M1400 | F107: 326100 | G107: 285600 | H107: 14.18 | I107: 40500 | J107: 66 | K107: 51 | L107: 9 | M107: 43 | N107: 0 | O107: 0
A108: 紡織纖維24 | B108: 紡織纖維28 | C108: 4420 光明 | D108: 紡織纖維 | E108: M1400 | F108: 87060 | G108: 91908 | H108: -5.27 | I108: -4848 | J108: 66 | K108: 51 | L108: 24 | M108: 28 | N108: 0 | O108: 0
A109: 紡織纖維16 | B109: 紡織纖維36 | C109: 4426 利勤 | D109: 紡織纖維 | E109: M1400 | F109: 71653 | G109: 69339 | H109: 3.34 | I109: 2314 | J109: 66 | K109: 51 | L109: 16 | M109: 36 | N109: 0 | O109: 0
A110: 紡織纖維1 | B110: 紡織纖維51 | C110: 4432 銘旺實 | D110: 紡織纖維 | E110: M1400 | F110: 108373 | G110: 47384 | H110: 128.71 | I110: 60989 | J110: 66 | K110: 51 | L110: 1 | M110: 51 | N110: 0 | O110: 0
A111: 紡織纖維3 | B111: 紡織纖維49 | C111: 4433 興采 | D111: 紡織纖維 | E111: M1400 | F111: 273918 | G111: 199644 | H111: 37.2 | I111: 74274 | J111: 66 | K111: 51 | L111: 3 | M111: 49 | N111: 0 | O111: 0
A112: 紡織纖維2 | B112: 紡織纖維50 | C112: 4438 廣越 | D112: 紡織纖維 | E112: M1400 | F112: 1816223 | G112: 1089199 | H112: 66.75 | I112: 727024 | J112: 66 | K112: 51 | L112: 2 | M112: 50 | N112: 0 | O112: 0
A113: 紡織纖維7 | B113: 紡織纖維45 | C113: 4439 冠星-KY | D113: 紡織纖維 | E113: M1400 | F113: 681275 | G113: 565519 | H113: 20.47 | I113: 115756 | J113: 66 | K113: 51 | L113: 7 | M113: 45 | N113: 0 | O113: 0
A114: 紡織纖維15 | B114: 紡織纖維37 | C114: 4440 宜新實業 | D114: 紡織纖維 | E114: M1400 | F114: 81940 | G114: 79066 | H114: 3.63 | I114: 2874 | J114: 66 | K114: 51 | L114: 15 | M114: 37 | N114: 0 | O114: 0
A115: 紡織纖維49 | B115: 紡織纖維3 | C115: 4442 竣邦-KY | D115: 紡織纖維 | E115: M1400 | F115: 123515 | G115: 205130 | H115: -39.79 | I115: -81615 | J115: 66 | K115: 51 | L115: 49 | M115: 3 | N115: 0 | O115: 0
A116: 紡織纖維36 | B116: 紡織纖維16 | C116: 6506 雙邦 | D116: 紡織纖維 | E116: M1400 | F116: 165143 | G116: 190808 | H116: -13.45 | I116: -25665 | J116: 66 | K116: 51 | L116: 36 | M116: 16 | N116: 0 | O116: 0
A117: 電機機械23 | B117: 電機機械75 | C117: 1503 士電 | D117: 電機機械 | E117: M1500 | F117: 2814376 | G117: 2568833 | H117: 9.56 | I117: 245543 | J117: 117 | K117: 97 | L117: 23 | M117: 75 | N117: 0 | O117: 0
A118: 電機機械36 | B118: 電機機械62 | C118: 1504 東元 | D118: 電機機械 | E118: M1500 | F118: 5142957 | G118: 4955077 | H118: 3.79 | I118: 187880 | J118: 117 | K118: 97 | L118: 36 | M118: 62 | N118: 0 | O118: 0
A119: 電機機械49 | B119: 電機機械49 | C119: 1506 正道 | D119: 電機機械 | E119: M1500 | F119: 97056 | G119: 100281 | H119: -3.22 | I119: -3225 | J119: 117 | K119: 97 | L119: 49 | M119: 49 | N119: 0 | O119: 0
A120: 電機機械34 | B120: 電機機械64 | C120: 1513 中興電 | D120: 電機機械 | E120: M1500 | F120: 2308539 | G120: 2179872 | H120: 5.9 | I120: 128667 | J120: 117 | K120: 97 | L120: 34 | M120: 64 | N120: 0 | O120: 0
A121: 電機機械1 | B121: 電機機械97 | C121: 1514 亞力 | D121: 電機機械 | E121: M1500 | F121: 1156147 | G121: 612494 | H121: 88.76 | I121: 543653 | J121: 117 | K121: 97 | L121: 1 | M121: 97 | N121: 0 | O121: 0
A122: 電機機械48 | B122: 電機機械50 | C122: 1515 力山 | D122: 電機機械 | E122: M1500 | F122: 390555 | G122: 403045 | H122: -3.1 | I122: -12490 | J122: 117 | K122: 97 | L122: 48 | M122: 50 | N122: 0 | O122: 0
A123: 電機機械91 | B123: 電機機械7 | C123: 1517 利奇 | D123: 電機機械 | E123: M1500 | F123: 143862 | G123: 204834 | H123: -29.77 | I123: -60972 | J123: 117 | K123: 97 | L123: 91 | M123: 7 | N123: 0 | O123: 0
A124: 電機機械88 | B124: 電機機械10 | C124: 1519 華城 | D124: 電機機械 | E124: M1500 | F124: 1628913 | G124: 2113986 | H124: -22.95 | I124: -485073 | J124: 117 | K124: 97 | L124: 88 | M124: 10 | N124: 0 | O124: 0
A125: 電機機械66 | B125: 電機機械32 | C125: 1526 日馳 | D125: 電機機械 | E125: M1500 | F125: 60977 | G125: 66983 | H125: -8.97 | I125: -6006 | J125: 117 | K125: 97 | L125: 66 | M125: 32 | N125: 0 | O125: 0
A126: 電機機械46 | B126: 電機機械52 | C126: 1527 鑽全 | D126: 電機機械 | E126: M1500 | F126: 238131 | G126: 243325 | H126: -2.13 | I126: -5194 | J126: 117 | K126: 97 | L126: 46 | M126: 52 | N126: 0 | O126: 0
A127: 電機機械15 | B127: 電機機械83 | C127: 1528 恩德 | D127: 電機機械 | E127: M1500 | F127: 289803 | G127: 238137 | H127: 21.7 | I127: 51666 | J127: 117 | K127: 97 | L127: 15 | M127: 83 | N127: 0 | O127: 0
A128: 電機機械97 | B128: 電機機械1 | C128: 1529 樂事綠能 | D128: 電機機械 | E128: M1500 | F128: 46274 | G128: 127000 | H128: -63.56 | I128: -80726 | J128: 117 | K128: 97 | L128: 97 | M128: 1 | N128: 0 | O128: 0
A129: 電機機械16 | B129: 電機機械82 | C129: 1530 亞崴 | D129: 電機機械 | E129: M1500 | F129: 152062 | G129: 126246 | H129: 20.45 | I129: 25816 | J129: 117 | K129: 97 | L129: 16 | M129: 82 | N129: 0 | O129: 0
A130: 電機機械31 | B130: 電機機械67 | C130: 1531 高林股 | D130: 電機機械 | E130: M1500 | F130: 138497 | G130: 129025 | H130: 7.34 | I130: 9472 | J130: 117 | K130: 97 | L130: 31 | M130: 67 | N130: 0 | O130: 0
A131: 電機機械58 | B131: 電機機械40 | C131: 1532 勤美 | D131: 電機機械 | E131: M1500 | F131: 966382 | G131: 1041425 | H131: -7.21 | I131: -75043 | J131: 117 | K131: 97 | L131: 58 | M131: 40 | N131: 0 | O131: 0
A132: =D132&L132 -> 電機機械9 | B132: =D132&M132 -> 電機機械89 | C132: 1535 中宇 | D132: 電機機械 | E132: M1500 | F132: 1069641 | G132: 817321 | H132: 30.87 | I132: =F132-G132 -> 252320 | J132: =IF(E132="","",MATCH(E132,E:E,0)) -> 117 | K132: =COUNTIF(D:D,D132) -> 97 | L132: =IF(H132="","",RANK(H132,OFFSET(H$1,$J132-1,,$K132,),0)) -> 9 | M132: =IF(H132="","",RANK(H132,OFFSET(H$1,$J132-1,,$K132,),1)) -> 89 | N132: 0 | O132: 0
A133: 電機機械80 | B133: 電機機械18 | C133: 1537 廣隆 | D133: 電機機械 | E133: M1500 | F133: 530854 | G133: 632178 | H133: -16.03 | I133: -101324 | J133: 117 | K133: 97 | L133: 80 | M133: 18 | N133: 0 | O133: 0
A134: 電機機械18 | B134: 電機機械80 | C134: 1538 正峰 | D134: 電機機械 | E134: M1500 | F134: 10169 | G134: 8548 | H134: 18.96 | I134: 1621 | J134: 117 | K134: 97 | L134: 18 | M134: 80 | N134: 0 | O134: 0
A135: 電機機械44 | B135: 電機機械54 | C135: 1539 巨庭 | D135: 電機機械 | E135: M1500 | F135: 124275 | G135: 125941 | H135: -1.32 | I135: -1666 | J135: 117 | K135: 97 | L135: 44 | M135: 54 | N135: 0 | O135: 0
A136: 電機機械26 | B136: 電機機械72 | C136: 1540 喬福 | D136: 電機機械 | E136: M1500 | F136: 50910 | G136: 46807 | H136: 8.77 | I136: 4103 | J136: 117 | K136: 97 | L136: 26 | M136: 72 | N136: 0 | O136: 0
A137: 電機機械25 | B137: 電機機械73 | C137: 1541 錩泰 | D137: 電機機械 | E137: M1500 | F137: 388424 | G137: 356687 | H137: 8.9 | I137: 31737 | J137: 117 | K137: 97 | L137: 25 | M137: 73 | N137: 0 | O137: 0
A138: 電機機械8 | B138: 電機機械90 | C138: 1558 伸興 | D138: 電機機械 | E138: M1500 | F138: 826261 | G138: 630830 | H138: 30.98 | I138: 195431 | J138: 117 | K138: 97 | L138: 8 | M138: 90 | N138: 0 | O138: 0
A139: 電機機械41 | B139: 電機機械57 | C139: 1560 中砂 | D139: 電機機械 | E139: M1500 | F139: 704078 | G139: 698859 | H139: 0.75 | I139: 5219 | J139: 117 | K139: 97 | L139: 41 | M139: 57 | N139: 0 | O139: 0
A140: 電機機械13 | B140: 電機機械85 | C140: 1570 力肯 | D140: 電機機械 | E140: M1500 | F140: 57691 | G140: 47301 | H140: 21.97 | I140: 10390 | J140: 117 | K140: 97 | L140: 13 | M140: 85 | N140: 0 | O140: 0
A141: 電機機械76 | B141: 電機機械22 | C141: 1580 新麥 | D141: 電機機械 | E141: M1500 | F141: 403324 | G141: 464524 | H141: -13.17 | I141: -61200 | J141: 117 | K141: 97 | L141: 76 | M141: 22 | N141: 0 | O141: 0
A142: 電機機械75 | B142: 電機機械23 | C142: 1583 程泰 | D142: 電機機械 | E142: M1500 | F142: 272008 | G142: 312943 | H142: -13.08 | I142: -40935 | J142: 117 | K142: 97 | L142: 75 | M142: 23 | N142: 0 | O142: 0
A143: 電機機械84 | B143: 電機機械14 | C143: 1586 和勤 | D143: 電機機械 | E143: M1500 | F143: 169093 | G143: 216182 | H143: -21.78 | I143: -47089 | J143: 117 | K143: 97 | L143: 84 | M143: 14 | N143: 0 | O143: 0
A144: 電機機械38 | B144: 電機機械60 | C144: 1589 永冠-KY | D144: 電機機械 | E144: M1500 | F144: 665535 | G144: 656505 | H144: 1.38 | I144: 9030 | J144: 117 | K144: 97 | L144: 38 | M144: 60 | N144: 0 | O144: 0
A145: 電機機械82 | B145: 電機機械16 | C145: 1590 亞德客-KY | D145: 電機機械 | E145: M1500 | F145: 2784743 | G145: 3467477 | H145: -19.69 | I145: -682734 | J145: 117 | K145: 97 | L145: 82 | M145: 16 | N145: 0 | O145: 0
A146: 電機機械4 | B146: 電機機械94 | C146: 1591 駿吉-KY | D146: 電機機械 | E146: M1500 | F146: 11422 | G146: 7780 | H146: 46.81 | I146: 3642 | J146: 117 | K146: 97 | L146: 4 | M146: 94 | N146: 0 | O146: 0
A147: 電機機械39 | B147: 電機機械58 | C147: 1597 直得 | D147: 電機機械 | E147: M1500 | F147: 90861 | G147: 90019 | H147: 0.94 | I147: 842 | J147: 117 | K147: 97 | L147: 39 | M147: 58 | N147: 0 | O147: 0
A148: 電機機械2 | B148: 電機機械96 | C148: 1599 宏佳騰 | D148: 電機機械 | E148: M1500 | F148: 242731 | G148: 146488 | H148: 65.7 | I148: 96243 | J148: 117 | K148: 97 | L148: 2 | M148: 96 | N148: 0 | O148: 0
A149: 電機機械53 | B149: 電機機械45 | C149: 2049 上銀 | D149: 電機機械 | E149: M1500 | F149: 1935020 | G149: 2050060 | H149: -5.61 | I149: -115040 | J149: 117 | K149: 97 | L149: 53 | M149: 45 | N149: 0 | O149: 0
A150: 電機機械24 | B150: 電機機械74 | C150: 2066 世德 | D150: 電機機械 | E150: M1500 | F150: 233685 | G150: 213358 | H150: 9.53 | I150: 20327 | J150: 117 | K150: 97 | L150: 24 | M150: 74 | N150: 0 | O150: 0
A151: 電機機械55 | B151: 電機機械43 | C151: 2067 嘉鋼 | D151: 電機機械 | E151: M1500 | F151: 93615 | G151: 99984 | H151: -6.37 | I151: -6369 | J151: 117 | K151: 97 | L151: 55 | M151: 43 | N151: 0 | O151: 0
A152: 電機機械11 | B152: 電機機械87 | C152: 2070 精湛 | D152: 電機機械 | E152: M1500 | F152: 56339 | G152: 44877 | H152: 25.54 | I152: 11462 | J152: 117 | K152: 97 | L152: 11 | M152: 87 | N152: 0 | O152: 0
A153: 電機機械83 | B153: 電機機械15 | C153: 2230 泰茂 | D153: 電機機械 | E153: M1500 | F153: 81017 | G153: 101887 | H153: -20.48 | I153: -20870 | J153: 117 | K153: 97 | L153: 83 | M153: 15 | N153: 0 | O153: 0
A154: 電機機械94 | B154: 電機機械4 | C154: 2235 謚源 | D154: 電機機械 | E154: M1500 | F154: 32451 | G154: 51100 | H154: -36.5 | I154: -18649 | J154: 117 | K154: 97 | L154: 94 | M154: 4 | N154: 0 | O154: 0
A155: 電機機械47 | B155: 電機機械51 | C155: 2371 大同 | D155: 電機機械 | E155: M1500 | F155: 4180316 | G155: 4289081 | H155: -2.54 | I155: -108765 | J155: 117 | K155: 97 | L155: 47 | M155: 51 | N155: 0 | O155: 0
A156: 電機機械59 | B156: 電機機械39 | C156: 3162 精確 | D156: 電機機械 | E156: M1500 | F156: 638561 | G156: 689020 | H156: -7.32 | I156: -50459 | J156: 117 | K156: 97 | L156: 59 | M156: 39 | N156: 0 | O156: 0
A157: 電機機械30 | B157: 電機機械68 | C157: 3167 大量 | D157: 電機機械 | E157: M1500 | F157: 433806 | G157: 402685 | H157: 7.73 | I157: 31121 | J157: 117 | K157: 97 | L157: 30 | M157: 68 | N157: 0 | O157: 0
A158: 電機機械96 | B158: 電機機械2 | C158: 3226 龍鋒 | D158: 電機機械 | E158: M1500 | F158: 116927 | G158: 215898 | H158: -45.84 | I158: -98971 | J158: 117 | K158: 97 | L158: 96 | M158: 2 | N158: =U158 -> 0 | O158: =V158 -> 0
A159: 電機機械74 | B159: 電機機械24 | C159: 3379 彬台 | D159: 電機機械 | E159: M1500 | F159: 84397 | G159: 96623 | H159: -12.65 | I159: -12226 | J159: 117 | K159: 97 | L159: 74 | M159: 24 | N159: 0 | O159: 0
A160: 電機機械42 | B160: 電機機械56 | C160: 3426 台興 | D160: 電機機械 | E160: M1500 | F160: 60863 | G160: 60562 | H160: 0.5 | I160: 301 | J160: 117 | K160: 97 | L160: 42 | M160: 56 | N160: 0 | O160: 0
A161: 電機機械72 | B161: 電機機械25 | C161: 3685 元創精密 | D161: 電機機械 | E161: M1500 | F161: 81388 | G161: 92607 | H161: -12.11 | I161: -11219 | J161: 117 | K161: 97 | L161: 72 | M161: 25 | N161: 0 | O161: 0
A162: 電機機械57 | B162: 電機機械41 | C162: 4502 健信 | D162: 電機機械 | E162: M1500 | F162: 84998 | G162: 91035 | H162: -6.63 | I162: -6037 | J162: 117 | K162: 97 | L162: 57 | M162: 41 | N162: 0 | O162: 0
A163: 電機機械17 | B163: 電機機械81 | C163: 4503 金雨 | D163: 電機機械 | E163: M1500 | F163: 60266 | G163: 50636 | H163: 19.02 | I163: 9630 | J163: 117 | K163: 97 | L163: 17 | M163: 81 | N163: 0 | O163: 0
A164: 電機機械21 | B164: 電機機械77 | C164: 4506 崇友 | D164: 電機機械 | E164: M1500 | F164: 555521 | G164: 495376 | H164: 12.14 | I164: 60145 | J164: 117 | K164: 97 | L164: 21 | M164: 77 | N164: 0 | O164: 0
A165: 電機機械29 | B165: 電機機械69 | C165: 4510 高鋒 | D165: 電機機械 | E165: M1500 | F165: 131375 | G165: 121643 | H165: 8 | I165: 9732 | J165: 117 | K165: 97 | L165: 29 | M165: 69 | N165: 0 | O165: 0
A166: 電機機械85 | B166: 電機機械13 | C166: 4513 福裕 | D166: 電機機械 | E166: M1500 | F166: 74667 | G166: 95529 | H166: -21.84 | I166: -20862 | J166: 117 | K166: 97 | L166: 85 | M166: 13 | N166: 0 | O166: 0
A167: 電機機械63 | B167: 電機機械35 | C167: 4523 永彰 | D167: 電機機械 | E167: M1500 | F167: 59414 | G167: 64814 | H167: -8.33 | I167: -5400 | J167: 117 | K167: 97 | L167: 63 | M167: 35 | N167: 0 | O167: 0
A168: 電機機械78 | B168: 電機機械20 | C168: 4526 東台 | D168: 電機機械 | E168: M1500 | F168: 418462 | G168: 489911 | H168: -14.58 | I168: -71449 | J168: 117 | K168: 97 | L168: 78 | M168: 20 | N168: 0 | O168: 0
A169: 電機機械70 | B169: 電機機械28 | C169: 4527 方方土霖 | D169: 電機機械 | E169: M1500 | F169: 182952 | G169: 206202 | H169: -11.28 | I169: -23250 | J169: 117 | K169: 97 | L169: 70 | M169: 28 | N169: 0 | O169: 0
A170: 電機機械92 | B170: 電機機械6 | C170: 4528 江興鍛 | D170: 電機機械 | E170: M1500 | F170: 106596 | G170: 155036 | H170: -31.24 | I170: -48440 | J170: 117 | K170: 97 | L170: 92 | M170: 6 | N170: 0 | O170: 0
A171: 電機機械86 | B171: 電機機械12 | C171: 4532 瑞智 | D171: 電機機械 | E171: M1500 | F171: 1736116 | G171: 2238087 | H171: -22.43 | I171: -501971 | J171: 117 | K171: 97 | L171: 86 | M171: 12 | N171: 0 | O171: 0
A172: 電機機械7 | B172: 電機機械91 | C172: 4533 協易機 | D172: 電機機械 | E172: M1500 | F172: 379039 | G172: 284960 | H172: 33.01 | I172: 94079 | J172: 117 | K172: 97 | L172: 7 | M172: 91 | N172: 0 | O172: 0
A173: 電機機械77 | B173: 電機機械21 | C173: 4534 慶騰 | D173: 電機機械 | E173: M1500 | F173: 58565 | G173: 67667 | H173: -13.45 | I173: -9102 | J173: 117 | K173: 97 | L173: 77 | M173: 21 | N173: 0 | O173: 0
A174: 電機機械50 | B174: 電機機械48 | C174: 4535 至興 | D174: 電機機械 | E174: M1500 | F174: 218700 | G174: 228067 | H174: -4.11 | I174: -9367 | J174: 117 | K174: 97 | L174: 50 | M174: 48 | N174: 0 | O174: 0
A175: 電機機械72 | B175: 電機機械25 | C175: 4538 大詠城 | D175: 電機機械 | E175: M1500 | F175: 30110 | G175: 34258 | H175: -12.11 | I175: -4148 | J175: 117 | K175: 97 | L175: 72 | M175: 25 | N175: 0 | O175: 0
A176: 電機機械37 | B176: 電機機械61 | C176: 4540 全球傳動 | D176: 電機機械 | E176: M1500 | F176: 197625 | G176: 190676 | H176: 3.64 | I176: 6949 | J176: 117 | K176: 97 | L176: 37 | M176: 61 | N176: 0 | O176: 0
A177: 電機機械22 | B177: 電機機械76 | C177: 4543 萬在 | D177: 電機機械 | E177: M1500 | F177: 76917 | G177: 69703 | H177: 10.35 | I177: 7214 | J177: 117 | K177: 97 | L177: 22 | M177: 76 | N177: 0 | O177: 0
A178: 電機機械51 | B178: 電機機械47 | C178: 4549 桓達 | D178: 電機機械 | E178: M1500 | F178: 112987 | G178: 119203 | H178: -5.21 | I178: -6216 | J178: 117 | K178: 97 | L178: 51 | M178: 47 | N178: 0 | O178: 0
A179: 電機機械93 | B179: 電機機械5 | C179: 4550 長佳 | D179: 電機機械 | E179: M1500 | F179: 43517 | G179: 67634 | H179: -35.66 | I179: -24117 | J179: 117 | K179: 97 | L179: 93 | M179: 5 | N179: 0 | O179: 0
A180: 電機機械61 | B180: 電機機械37 | C180: 4552 力達-KY | D180: 電機機械 | E180: M1500 | F180: 312003 | G180: 339564 | H180: -8.12 | I180: -27561 | J180: 117 | K180: 97 | L180: 61 | M180: 37 | N180: 0 | O180: 0
A181: 電機機械60 | B181: 電機機械38 | C181: 4555 氣立 | D181: 電機機械 | E181: M1500 | F181: 135924 | G181: 147660 | H181: -7.95 | I181: -11736 | J181: 117 | K181: 97 | L181: 60 | M181: 38 | N181: 0 | O181: 0
A182: 電機機械62 | B182: 電機機械36 | C182: 4558 寶緯 | D182: 電機機械 | E182: M1500 | F182: 125662 | G182: 136865 | H182: -8.19 | I182: -11203 | J182: 117 | K182: 97 | L182: 62 | M182: 36 | N182: 0 | O182: 0
A183: 電機機械67 | B183: 電機機械31 | C183: 4560 強信-KY | D183: 電機機械 | E183: M1500 | F183: 138013 | G183: 152145 | H183: -9.29 | I183: -14132 | J183: 117 | K183: 97 | L183: 67 | M183: 31 | N183: 0 | O183: 0
A184: 電機機械87 | B184: 電機機械11 | C184: 4561 健椿 | D184: 電機機械 | E184: M1500 | F184: 81572 | G184: 105209 | H184: -22.47 | I184: -23637 | J184: 117 | K184: 97 | L184: 87 | M184: 11 | N184: 0 | O184: 0
A185: 電機機械14 | B185: 電機機械84 | C185: 4562 穎漢 | D185: 電機機械 | E185: M1500 | F185: 71052 | G185: 58339 | H185: 21.79 | I185: 12713 | J185: 117 | K185: 97 | L185: 14 | M185: 84 | N185: 0 | O185: 0
A186: 電機機械6 | B186: 電機機械92 | C186: 4563 百德 | D186: 電機機械 | E186: M1500 | F186: 297390 | G186: 221473 | H186: 34.28 | I186: 75917 | J186: 117 | K186: 97 | L186: 6 | M186: 92 | N186: 0 | O186: 0
A187: 電機機械19 | B187: 電機機械79 | C187: 4564 元翎 | D187: 電機機械 | E187: M1500 | F187: 114056 | G187: 97246 | H187: 17.29 | I187: 16810 | J187: 117 | K187: 97 | L187: 19 | M187: 79 | N187: 0 | O187: 0
A188: 電機機械64 | B188: 電機機械34 | C188: 4566 時碩工業 | D188: 電機機械 | E188: M1500 | F188: 415167 | G188: 456001 | H188: -8.95 | I188: -40834 | J188: 117 | K188: 97 | L188: 64 | M188: 34 | N188: 0 | O188: 0
A189: 電機機械32 | B189: 電機機械66 | C189: 4568 科際精密 | D189: 電機機械 | E189: M1500 | F189: 99716 | G189: 93466 | H189: 6.69 | I189: 6250 | J189: 117 | K189: 97 | L189: 32 | M189: 66 | N189: 0 | O189: 0
A190: 電機機械20 | B190: 電機機械78 | C190: 4571 鈞興-KY | D190: 電機機械 | E190: M1500 | F190: 241605 | G190: 213351 | H190: 13.24 | I190: 28254 | J190: 117 | K190: 97 | L190: 20 | M190: 78 | N190: 0 | O190: 0
A191: 電機機械27 | B191: 電機機械71 | C191: 4572 駐龍 | D191: 電機機械 | E191: M1500 | F191: 62742 | G191: 57957 | H191: 8.26 | I191: 4785 | J191: 117 | K191: 97 | L191: 27 | M191: 71 | N191: 0 | O191: 0
A192: 電機機械54 | B192: 電機機械44 | C192: 4576 大銀微系統 | D192: 電機機械 | E192: M1500 | F192: 227661 | G192: 242739 | H192: -6.21 | I192: -15078 | J192: 117 | K192: 97 | L192: 54 | M192: 44 | N192: 0 | O192: 0
A193: 電機機械33 | B193: 電機機械65 | C193: 4580 捷流閥業 | D193: 電機機械 | E193: M1500 | F193: 192206 | G193: 181063 | H193: 6.15 | I193: 11143 | J193: 117 | K193: 97 | L193: 33 | M193: 65 | N193: 0 | O193: 0
A194: 電機機械35 | B194: 電機機械63 | C194: 4583 台灣精銳 | D194: 電機機械 | E194: M1500 | F194: 267200 | G194: 253641 | H194: 5.35 | I194: 13559 | J194: 117 | K194: 97 | L194: 35 | M194: 63 | N194: 0 | O194: 0
A195: 電機機械79 | B195: 電機機械19 | C195: 4584 君帆 | D195: 電機機械 | E195: M1500 | F195: 102165 | G195: 120391 | H195: -15.14 | I195: -18226 | J195: 117 | K195: 97 | L195: 79 | M195: 19 | N195: 0 | O195: 0
A196: =D196&L196 -> 電機機械81 | B196: =D196&M196 -> 電機機械17 | C196: 5288 豐祥-KY | D196: 電機機械 | E196: M1500 | F196: 483014 | G196: 592304 | H196: -18.45 | I196: =F196-G196 -> -109290 | J196: =IF(E196="","",MATCH(E196,E:E,0)) -> 117 | K196: =COUNTIF(D:D,D196) -> 97 | L196: =IF(H196="","",RANK(H196,OFFSET(H$1,$J196-1,,$K196,),0)) -> 81 | M196: =IF(H196="","",RANK(H196,OFFSET(H$1,$J196-1,,$K196,),1)) -> 17 | N196: 0 | O196: 0
A197: 電機機械56 | B197: 電機機械42 | C197: 6122 擎邦 | D197: 電機機械 | E197: M1500 | F197: 317245 | G197: 339443 | H197: -6.54 | I197: -22198 | J197: 117 | K197: 97 | L197: 56 | M197: 42 | N197: 0 | O197: 0
A198: 電機機械5 | B198: 電機機械93 | C198: 6425 易發 | D198: 電機機械 | E198: M1500 | F198: 128142 | G198: 88054 | H198: 45.53 | I198: 40088 | J198: 117 | K198: 97 | L198: 5 | M198: 93 | N198: 0 | O198: 0
A199: 電機機械3 | B199: 電機機械95 | C199: 6603 富強鑫 | D199: 電機機械 | E199: M1500 | F199: 555098 | G199: 361505 | H199: 53.55 | I199: 193593 | J199: 117 | K199: 97 | L199: 3 | M199: 95 | N199: 0 | O199: 0
A200: 電機機械90 | B200: 電機機械8 | C200: 6606 建德工業 | D200: 電機機械 | E200: M1500 | F200: 63945 | G200: 87931 | H200: -27.28 | I200: -23986 | J200: 117 | K200: 97 | L200: 90 | M200: 8 | N200: 0 | O200: 0
... 2800 more rows

Sheet 表C_RAW
A1: 排名(正向) | B1: 排名(反向) | D1: TSE新產業_名稱 | E1: TSE新產業_代碼 | F1: 累計營收(千元) | G1: 去年累計營收(千元) | H1: 累計營收成長率％ | J1: 產業位址 | K1: 產業家數 | L1: 排名(正向) | M1: 排名(反向) | N1: 排名(正向) | O1: 排名(反向) | P1: 產業營收 | Q1: 單月營收(千元) | R1: 上月單月營收(千元) | S1: 本月較上月變動金額 | T1: 單月營收與上月比％ | U1: 排名(正向) | V1: 排名(反向)
C2: 公司 | E2: 2025-05-29 | F2: 2025-05-29 | G2: 2025-05-29 | H2: 2025-05-29 | N2: =U2 -> 9 | O2: =V2 -> 26 | P2: =_xlfn.UNIQUE($D$3:$D$1900,FALSE,FALSE) -> 水泥工業 | Q2: =SUMIF($D:$D,$P2,F:F) -> 99167605 | R2: =SUMIF($D:$D,$P2,G:G) -> 89437810 | S2: =Q2-R2 -> 9729795 | T2: =IF(VLOOKUP(P2,$D:$K,8,0)=1,"",ROUND(S2/R2*100,2)) -> 10.88 | U2: =IF($T2="",0,_xlfn.RANK.EQ(T2,T:T)) -> 9 | V2: =IF($T2="",0,_xlfn.RANK.EQ(T2,T:T,1)) -> 26
A3: =D3&L3 -> 水泥工業2 | B3: =D3&M3 -> 水泥工業6 | C3: 1101 台泥 | D3: 水泥工業 | E3: M1100 | F3: 60273039 | G3: 51172432 | H3: 17.78 | I3: =F3-G3 -> 9100607 | J3: =IF(E3="","",MATCH(E3,E:E,0)) -> 3 | K3: =COUNTIF(D:D,D3) -> 7 | L3: =IF(H3="","",RANK(H3,OFFSET(H$1,$J3-1,,$K3,),0)) -> 2 | M3: =IF(H3="","",RANK(H3,OFFSET(H$1,$J3-1,,$K3,),1)) -> 6 | N3: =U3 -> 18 | O3: 17 | P3: 食品工業 | Q3: =SUMIF($D:$D,$P3,F:F) -> 422738357 | R3: 407184343 | S3: =Q3-R3 -> 15554014 | T3: =IF(VLOOKUP(P3,$D:$K,8,0)=1,"",ROUND(S3/R3*100,2)) -> 3.82 | U3: =IF($T3="",0,_xlfn.RANK.EQ(T3,T:T)) -> 18 | V3: =IF($T3="",0,_xlfn.RANK.EQ(T3,T:T,1)) -> 17
A4: =D4&L4 -> 水泥工業4 | B4: =D4&M4 -> 水泥工業4 | C4: 1102 亞泥 | D4: 水泥工業 | E4: M1100 | F4: 29241145 | G4: 28646108 | H4: 2.08 | I4: =F4-G4 -> 595037 | J4: =IF(E4="","",MATCH(E4,E:E,0)) -> 3 | K4: =COUNTIF(D:D,D4) -> 7 | L4: =IF(H4="","",RANK(H4,OFFSET(H$1,$J4-1,,$K4,),0)) -> 4 | M4: =IF(H4="","",RANK(H4,OFFSET(H$1,$J4-1,,$K4,),1)) -> 4 | N4: 32 | O4: 3 | P4: 塑膠工業 | Q4: 415300844 | R4: 445757703 | S4: -30456859 | T4: -6.83 | U4: 32 | V4: 3
A5: 水泥工業3 | B5: 水泥工業5 | C5: 1103 嘉泥 | D5: 水泥工業 | E5: M1100 | F5: 1273231 | G5: 1181116 | H5: 7.8 | I5: 92115 | J5: 3 | K5: 7 | L5: 3 | M5: 5 | N5: 25 | O5: 10 | P5: 紡織纖維 | Q5: 241750302 | R5: 248012245 | S5: -6261943 | T5: -2.52 | U5: 25 | V5: 10
A6: 水泥工業5 | B6: 水泥工業3 | C6: 1104 環泥 | D6: 水泥工業 | E6: M1100 | F6: 3270428 | G6: 3338375 | H6: -2.04 | I6: -67947 | J6: 3 | K6: 7 | L6: 5 | M6: 3 | N6: 16 | O6: 19 | P6: 電機機械 | Q6: 213831403 | R6: 204810045 | S6: 9021358 | T6: 4.4 | U6: 16 | V6: 19
A7: 水泥工業6 | B7: 水泥工業2 | C7: 1108 幸福 | D7: 水泥工業 | E7: M1100 | F7: 2011969 | G7: 2055420 | H7: -2.11 | I7: -43451 | J7: 3 | K7: 7 | L7: 6 | M7: 2 | N7: 11 | O7: 24 | P7: 電器電纜 | Q7: 125901966 | R7: 116289301 | S7: 9612665 | T7: 8.27 | U7: 11 | V7: 24
A8: 水泥工業7 | B8: 水泥工業1 | C8: 1109 信大 | D8: 水泥工業 | E8: M1100 | F8: 1831205 | G8: 2055791 | H8: -10.92 | I8: -224586 | J8: 3 | K8: 7 | L8: 7 | M8: 1 | N8: 20 | O8: 15 | P8: 化學工業 | Q8: 132955753 | R8: 129599971 | S8: 3355782 | T8: 2.59 | U8: 20 | V8: 15
A9: 水泥工業1 | B9: 水泥工業7 | C9: 1110 東泥 | D9: 水泥工業 | E9: M1100 | F9: 1266588 | G9: 988568 | H9: 28.12 | I9: 278020 | J9: 3 | K9: 7 | L9: 1 | M9: 7 | N9: 8 | O9: 27 | P9: 生技醫療業 | Q9: 131878502 | R9: 118737124 | S9: 13141378 | T9: 11.07 | U9: 8 | V9: 27
A10: 食品工業21 | B10: 食品工業11 | C10: 1201 味全 | D10: 食品工業 | E10: M1200 | F10: 8995394 | G10: 9290525 | H10: -3.18 | I10: -295131 | J10: 10 | K10: 31 | L10: 21 | M10: 11 | N10: 26 | O10: 9 | P10: 玻璃陶瓷 | Q10: 22147428 | R10: 22730373 | S10: -582945 | T10: -2.56 | U10: 26 | V10: 9
A11: 食品工業19 | B11: 食品工業13 | C11: 1203 味王 | D11: 食品工業 | E11: M1200 | F11: 2512007 | G11: 2563178 | H11: -2 | I11: -51171 | J11: 10 | K11: 31 | L11: 19 | M11: 13 | N11: 29 | O11: 6 | P11: 造紙工業 | Q11: 79631719 | R11: 82908278 | S11: -3276559 | T11: -3.95 | U11: 29 | V11: 6
A12: 食品工業16 | B12: 食品工業16 | C12: 1210 大成 | D12: 食品工業 | E12: M1200 | F12: 42493838 | G12: 42506279 | H12: -0.03 | I12: -12441 | J12: 10 | K12: 31 | L12: 16 | M12: 16 | N12: 28 | O12: 7 | P12: 鋼鐵工業 | Q12: 407091189 | R12: 421443632 | S12: -14352443 | T12: -3.41 | U12: 28 | V12: 7
A13: 食品工業2 | B13: 食品工業30 | C13: 1213 大飲 | D13: 食品工業 | E13: M1200 | F13: 111276 | G13: 62252 | H13: 78.75 | I13: 49024 | J13: 10 | K13: 31 | L13: 2 | M13: 30 | N13: 22 | O13: 13 | P13: 橡膠工業 | Q13: 89250385 | R13: 87569770 | S13: 1680615 | T13: 1.92 | U13: 22 | V13: 13
A14: 食品工業15 | B14: 食品工業17 | C14: 1215 卜蜂 | D14: 食品工業 | E14: M1200 | F14: 11531707 | G14: 11477311 | H14: 0.47 | I14: 54396 | J14: 10 | K14: 31 | L14: 15 | M14: 17 | N14: 31 | O14: 4 | P14: 汽車工業 | Q14: 296583807 | R14: 311235450 | S14: -14651643 | T14: -4.71 | U14: 31 | V14: 4
A15: 食品工業7 | B15: 食品工業25 | C15: 1216 統一 | D15: 食品工業 | E15: M1200 | F15: 283100268 | G15: 265889799 | H15: 6.47 | I15: 17210469 | J15: 10 | K15: 31 | L15: 7 | M15: 25 | N15: 0 | O15: 0 | P15: 電子工業 | Q15: 562607 | R15: 228029 | S15: 334578 | U15: 0 | V15: 0 | W15: *該公司於2025/6/13才上市，故本月先排除樣本
A16: 食品工業12 | B16: 食品工業20 | C16: 1217 愛之味 | D16: 食品工業 | E16: M1200 | F16: 2003192 | G16: 1957327 | H16: 2.34 | I16: 45865 | J16: 10 | K16: 31 | L16: 12 | M16: 20 | N16: 3 | O16: 32 | P16: 半導體業 | Q16: 2853010716 | R16: 2297652173 | S16: 555358543 | T16: 24.17 | U16: 3 | V16: 32
A17: 食品工業26 | B17: 食品工業6 | C17: 1218 泰山 | D17: 食品工業 | E17: M1200 | F17: 4126068 | G17: 4469148 | H17: -7.68 | I17: -343080 | J17: 10 | K17: 31 | L17: 26 | M17: 6 | N17: 1 | O17: 34 | P17: 電腦及週邊設備業 | Q17: 4056811955 | R17: 2965044470 | S17: 1091767485 | T17: 36.82 | U17: 1 | V17: 34
A18: 食品工業14 | B18: 食品工業18 | C18: 1219 福壽 | D18: 食品工業 | E18: M1200 | F18: 6039917 | G18: 5999939 | H18: 0.67 | I18: 39978 | J18: 10 | K18: 31 | L18: 14 | M18: 18 | N18: 14 | O18: 21 | P18: 光電業 | Q18: 520642100 | R18: 488632434 | S18: 32009666 | T18: 6.55 | U18: 14 | V18: 21
A19: 食品工業17 | B19: 食品工業15 | C19: 1220 台榮 | D19: 食品工業 | E19: M1200 | F19: 1299136 | G19: 1311899 | H19: -0.97 | I19: -12763 | J19: 10 | K19: 31 | L19: 17 | M19: 15 | N19: 10 | O19: 25 | P19: 通訊網路業 | Q19: 518135571 | R19: 469775612 | S19: 48359959 | T19: 10.29 | U19: 10 | V19: 25
A20: 食品工業22 | B20: 食品工業10 | C20: 1225 福懋油 | D20: 食品工業 | E20: M1200 | F20: 5247458 | G20: 5436735 | H20: -3.48 | I20: -189277 | J20: 10 | K20: 31 | L20: 22 | M20: 10 | N20: 7 | O20: 28 | P20: 電子零組件 | Q20: 1062385340 | R20: 921876211 | S20: 140509129 | T20: 15.24 | U20: 7 | V20: 28
A21: 食品工業18 | B21: 食品工業14 | C21: 1227 佳格 | D21: 食品工業 | E21: M1200 | F21: 11074580 | G21: 11193849 | H21: -1.07 | I21: -119269 | J21: 10 | K21: 31 | L21: 18 | M21: 14 | N21: 6 | O21: 29 | P21: 電子通路業 | Q21: 1397296749 | R21: 1204722724 | S21: 192574025 | T21: 15.98 | U21: 6 | V21: 29
A22: 食品工業30 | B22: 食品工業2 | C22: 1229 聯華 | D22: 食品工業 | E22: M1200 | F22: 4391541 | G22: 5250063 | H22: -16.35 | I22: -858522 | J22: 10 | K22: 31 | L22: 30 | M22: 2 | N22: 5 | O22: 30 | P22: 資訊服務業 | Q22: 75277012 | R22: 64021073 | S22: 11255939 | T22: 17.58 | U22: 5 | V22: 30
A23: 食品工業6 | B23: 食品工業26 | C23: 1231 聯華食 | D23: 食品工業 | E23: M1200 | F23: 5142275 | G23: 4688223 | H23: 9.68 | I23: 454052 | J23: 10 | K23: 31 | L23: 6 | M23: 26 | N23: 4 | O23: 31 | P23: 其他電子業 | Q23: 3284731583 | R23: 2699106967 | S23: 585624616 | T23: 21.7 | U23: 4 | V23: 31
A24: 食品工業23 | B24: 食品工業9 | C24: 1232 大統益 | D24: 食品工業 | E24: M1200 | F24: 8896864 | G24: 9267840 | H24: -4 | I24: -370976 | J24: 10 | K24: 31 | L24: 23 | M24: 9 | N24: 27 | O24: 8 | P24: 建材營造 | Q24: 187250678 | R24: 193848022 | S24: -6597344 | T24: -3.4 | U24: 27 | V24: 8
A25: 食品工業20 | B25: 食品工業12 | C25: 1233 天仁 | D25: 食品工業 | E25: M1200 | F25: 916366 | G25: 935257 | H25: -2.02 | I25: -18891 | J25: 10 | K25: 31 | L25: 20 | M25: 12 | N25: 13 | O25: 22 | P25: 航運業 | Q25: 623333062 | R25: 584053019 | S25: 39280043 | T25: 6.73 | U25: 13 | V25: 22
A26: 食品工業24 | B26: 食品工業8 | C26: 1234 黑松 | D26: 食品工業 | E26: M1200 | F26: 3927781 | G26: 4117494 | H26: -4.61 | I26: -189713 | J26: 10 | K26: 31 | L26: 24 | M26: 8 | N26: 12 | O26: 23 | P26: 觀光餐旅 | Q26: 79252522 | R26: 73764403 | S26: 5488119 | T26: 7.44 | U26: 12 | V26: 23
A27: 食品工業1 | B27: 食品工業31 | C27: 1235 興泰 | D27: 食品工業 | E27: M1200 | F27: 55684 | G27: 30224 | H27: 84.24 | I27: 25460 | J27: 10 | K27: 31 | L27: 1 | M27: 31 | N27: 34 | O27: 1 | P27: 金融業 | Q27: 710347156 | R27: 880141941 | S27: -169794785 | T27: -19.29 | U27: 34 | V27: 1
A28: 食品工業25 | B28: 食品工業7 | C28: 1236 宏亞 | D28: 食品工業 | E28: M1200 | F28: 753403 | G28: 815992 | H28: -7.67 | I28: -62589 | J28: 10 | K28: 31 | L28: 25 | M28: 7 | N28: 19 | O28: 16 | P28: 貿易百貨 | Q28: 289788468 | R28: 281365097 | S28: 8423371 | T28: 2.99 | U28: 19 | V28: 16
A29: 食品工業29 | B29: 食品工業3 | C29: 1256 鮮活果汁-KY | D29: 食品工業 | E29: M1200 | F29: 1411831 | G29: 1653089 | H29: -14.59 | I29: -241258 | J29: 10 | K29: 31 | L29: 29 | M29: 3 | N29: 17 | O29: 18 | P29: 文化創意業 | Q29: 25659371 | R29: 24618476 | S29: 1040895 | T29: 4.23 | U29: 17 | V29: 18
A30: 食品工業8 | B30: 食品工業24 | C30: 1264 德麥 | D30: 食品工業 | E30: M1200 | F30: 2757338 | G30: 2615302 | H30: 5.43 | I30: 142036 | J30: 10 | K30: 31 | L30: 8 | M30: 24 | N30: =U30 -> 24 | O30: =V30 -> 11 | P30: 農業科技 | Q30: =SUMIF($D:$D,$P30,F:F) -> 2197514 | R30: =SUMIF($D:$D,$P30,G:G) -> 2232523 | S30: =Q30-R30 -> -35009 | T30: -1.57 | U30: 24 | V30: 11
A31: 食品工業28 | B31: 食品工業4 | C31: 1294 漢田生技 | D31: 食品工業 | E31: M1200 | F31: 299034 | G31: 329720 | H31: -9.31 | I31: -30686 | J31: 10 | K31: 31 | L31: 28 | M31: 4 | N31: 2 | O31: 33 | P31: 綠能環保 | Q31: 52949927 | R31: 42570562 | S31: 10379365 | T31: 24.38 | U31: 2 | V31: 33
A32: 食品工業5 | B32: 食品工業27 | C32: 1295 生合 | D32: 食品工業 | E32: M1200 | F32: 454885 | G32: 390791 | H32: 16.4 | I32: 64094 | J32: 10 | K32: 31 | L32: 5 | M32: 27 | N32: 23 | O32: 12 | P32: 數位雲端 | Q32: 85430417 | R32: 83990436 | S32: 1439981 | T32: 1.71 | U32: 23 | V32: 12
A33: 食品工業11 | B33: 食品工業21 | C33: 1702 南僑 | D33: 食品工業 | E33: M1200 | F33: 9802582 | G33: 9529437 | H33: 2.87 | I33: 273145 | J33: 10 | K33: 31 | L33: 11 | M33: 21 | N33: 15 | O33: 20 | P33: 運動休閒 | Q33: 291946444 | R33: 277246101 | S33: 14700343 | T33: 5.3 | U33: 15 | V33: 20
A34: 食品工業10 | B34: 食品工業22 | C34: 1737 臺鹽 | D34: 食品工業 | E34: M1200 | F34: 1391424 | G34: 1342689 | H34: 3.63 | I34: 48735 | J34: 10 | K34: 31 | L34: 10 | M34: 22 | N34: 21 | O34: 14 | P34: 居家生活 | Q34: 109910320 | R34: 107400094 | S34: 2510226 | T34: 2.34 | U34: 21 | V34: 14
A35: 食品工業3 | B35: 食品工業29 | C35: 1796 金穎生技 | D35: 食品工業 | E35: M1200 | F35: 276767 | G35: 199744 | H35: 38.56 | I35: 77023 | J35: 10 | K35: 31 | L35: 3 | M35: 29 | N35: 33 | O35: 2 | P35: 油電燃氣業 | Q35: 297433351 | R35: 319355455 | S35: -21922104 | T35: -6.86 | U35: 33 | V35: 2
A36: 食品工業31 | B36: 食品工業1 | C36: 3054 立萬利 | D36: 食品工業 | E36: M1200 | F36: 28688 | G36: 52191 | H36: -45.03 | I36: -23503 | J36: 10 | K36: 31 | L36: 31 | M36: 1 | N36: 30 | O36: 5 | P36: 其他 | Q36: =SUMIF($D:$D,$P36,F:F) -> 265618073 | R36: =SUMIF($D:$D,$P36,G:G) -> 278125130 | S36: =Q36-R36 -> -12507057 | T36: -4.5 | U36: 30 | V36: 5
A37: 食品工業13 | B37: 食品工業19 | C37: 4205 中華食 | D37: 食品工業 | E37: M1200 | F37: 813054 | G37: 796428 | H37: 2.09 | I37: 16626 | J37: 10 | K37: 31 | L37: 13 | M37: 19 | N37: 0 | O37: 0 | P37: 存託憑證
A38: 食品工業27 | B38: 食品工業5 | C38: 4207 環泰 | D38: 食品工業 | E38: M1200 | F38: 2247251 | G38: 2436798 | H38: -7.78 | I38: -189547 | J38: 10 | K38: 31 | L38: 27 | M38: 5 | N38: 0 | O38: 0 | P38: 0
A39: 食品工業9 | B39: 食品工業23 | C39: 6846 綠茵 | D39: 食品工業 | E39: M1200 | F39: 378322 | G39: 364697 | H39: 3.74 | I39: 13625 | J39: 10 | K39: 31 | L39: 9 | M39: 23 | N39: 0 | O39: 0
A40: 食品工業4 | B40: 食品工業28 | C40: 7743 金利食安 | D40: 食品工業 | E40: M1200 | F40: 258426 | G40: 210123 | H40: 22.99 | I40: 48303 | J40: 10 | K40: 31 | L40: 4 | M40: 28 | N40: 0 | O40: 0
A41: 塑膠工業11 | B41: 塑膠工業15 | C41: 1301 台塑 | D41: 塑膠工業 | E41: M1300 | F41: 78227184 | G41: 82165649 | H41: -4.79 | I41: -3938465 | J41: 41 | K41: 25 | L41: 11 | M41: 15 | N41: 0 | O41: 0
A42: 塑膠工業5 | B42: 塑膠工業21 | C42: 1303 南亞 | D42: 塑膠工業 | E42: M1300 | F42: 110677728 | G42: 103223622 | H42: 7.22 | I42: 7454106 | J42: 41 | K42: 25 | L42: 5 | M42: 21 | N42: 0 | O42: 0
A43: 塑膠工業13 | B43: 塑膠工業13 | C43: 1304 台聚 | D43: 塑膠工業 | E43: M1300 | F43: 19812980 | G43: 20946497 | H43: -5.41 | I43: -1133517 | J43: 41 | K43: 25 | L43: 13 | M43: 13 | N43: 0 | O43: 0
A44: 塑膠工業17 | B44: 塑膠工業9 | C44: 1305 華夏 | D44: 塑膠工業 | E44: M1300 | F44: 4100099 | G44: 4833421 | H44: -15.17 | I44: -733322 | J44: 41 | K44: 25 | L44: 17 | M44: 9 | N44: 0 | O44: 0
A45: 塑膠工業6 | B45: 塑膠工業20 | C45: 1307 三芳 | D45: 塑膠工業 | E45: M1300 | F45: 4637990 | G45: 4359727 | H45: 6.38 | I45: 278263 | J45: 41 | K45: 25 | L45: 6 | M45: 20 | N45: 0 | O45: 0
A46: 塑膠工業9 | B46: 塑膠工業17 | C46: 1308 亞聚 | D46: 塑膠工業 | E46: M1300 | F46: 2447288 | G46: 2532800 | H46: -3.38 | I46: -85512 | J46: 41 | K46: 25 | L46: 9 | M46: 17 | N46: 0 | O46: 0
A47: 塑膠工業10 | B47: 塑膠工業16 | C47: 1309 台達化 | D47: 塑膠工業 | E47: M1300 | F47: 6835842 | G47: 7093624 | H47: -3.63 | I47: -257782 | J47: 41 | K47: 25 | L47: 10 | M47: 16 | N47: 0 | O47: 0
A48: 塑膠工業14 | B48: 塑膠工業12 | C48: 1310 台苯 | D48: 塑膠工業 | E48: M1300 | F48: 3982316 | G48: 4442096 | H48: -10.35 | I48: -459780 | J48: 41 | K48: 25 | L48: 14 | M48: 12 | N48: 0 | O48: 0
A49: 塑膠工業2 | B49: 塑膠工業24 | C49: 1312 國喬 | D49: 塑膠工業 | E49: M1300 | F49: 9836234 | G49: 6685379 | H49: 47.13 | I49: 3150855 | J49: 41 | K49: 25 | L49: 2 | M49: 24 | N49: 0 | O49: 0
A50: 塑膠工業21 | B50: 塑膠工業5 | C50: 1313 聯成 | D50: 塑膠工業 | E50: M1300 | F50: 24798757 | G50: 32071050 | H50: -22.68 | I50: -7272293 | J50: 41 | K50: 25 | L50: 21 | M50: 5 | N50: 0 | O50: 0
A51: 塑膠工業23 | B51: 塑膠工業3 | C51: 1314 中石化 | D51: 塑膠工業 | E51: M1300 | F51: 9953922 | G51: 14118455 | H51: -29.5 | I51: -4164533 | J51: 41 | K51: 25 | L51: 23 | M51: 3 | N51: 0 | O51: 0
A52: 塑膠工業3 | B52: 塑膠工業23 | C52: 1315 達新 | D52: 塑膠工業 | E52: M1300 | F52: 920301 | G52: 779025 | H52: 18.13 | I52: 141276 | J52: 41 | K52: 25 | L52: 3 | M52: 23 | N52: 0 | O52: 0
A53: 塑膠工業19 | B53: 塑膠工業7 | C53: 1321 大洋 | D53: 塑膠工業 | E53: M1300 | F53: 1633740 | G53: 1999421 | H53: -18.29 | I53: -365681 | J53: 41 | K53: 25 | L53: 19 | M53: 7 | N53: 0 | O53: 0
A54: 塑膠工業25 | B54: 塑膠工業1 | C54: 1323 永裕 | D54: 塑膠工業 | E54: M1300 | F54: 878457 | G54: 1274949 | H54: -31.1 | I54: -396492 | J54: 41 | K54: 25 | L54: 25 | M54: 1 | N54: 0 | O54: 0
A55: 塑膠工業15 | B55: 塑膠工業11 | C55: 1324 地球 | D55: 塑膠工業 | E55: M1300 | F55: 305741 | G55: 341983 | H55: -10.6 | I55: -36242 | J55: 41 | K55: 25 | L55: 15 | M55: 11 | N55: 0 | O55: 0
A56: 塑膠工業12 | B56: 塑膠工業14 | C56: 1325 恒大 | D56: 塑膠工業 | E56: M1300 | F56: 139649 | G56: 147247 | H56: -5.16 | I56: -7598 | J56: 41 | K56: 25 | L56: 12 | M56: 14 | N56: 0 | O56: 0
A57: 塑膠工業16 | B57: 塑膠工業10 | C57: 1326 台化 | D57: 塑膠工業 | E57: M1300 | F57: 127664254 | G57: 149125489 | H57: -14.39 | I57: -21461235 | J57: 41 | K57: 25 | L57: 16 | M57: 10 | N57: 0 | O57: 0
A58: 塑膠工業22 | B58: 塑膠工業4 | C58: 1337 再生-KY | D58: 塑膠工業 | E58: M1300 | F58: 294034 | G58: 382664 | H58: -23.16 | I58: -88630 | J58: 41 | K58: 25 | L58: 22 | M58: 4 | N58: 0 | O58: 0
A59: 塑膠工業24 | B59: 塑膠工業2 | C59: 1340 勝悅-KY | D59: 塑膠工業 | E59: M1300 | F59: 112401 | G59: 160236 | H59: -29.85 | I59: -47835 | J59: 41 | K59: 25 | L59: 24 | M59: 2 | N59: 0 | O59: 0
A60: 塑膠工業8 | B60: 塑膠工業18 | C60: 1341 富林-KY | D60: 塑膠工業 | E60: M1300 | F60: 1088500 | G60: 1109144 | H60: -1.86 | I60: -20644 | J60: 41 | K60: 25 | L60: 8 | M60: 18 | N60: 0 | O60: 0
A61: 塑膠工業1 | B61: 塑膠工業25 | C61: 4303 信立 | D61: 塑膠工業 | E61: M1300 | F61: 403684 | G61: 92632 | H61: 335.79 | I61: 311052 | J61: 41 | K61: 25 | L61: 1 | M61: 25 | N61: 0 | O61: 0
A62: 塑膠工業7 | B62: 塑膠工業19 | C62: 4304 勝昱 | D62: 塑膠工業 | E62: M1300 | F62: 152176 | G62: 146941 | H62: 3.56 | I62: 5235 | J62: 41 | K62: 25 | L62: 7 | M62: 19 | N62: 0 | O62: 0
A63: 塑膠工業4 | B63: 塑膠工業22 | C63: 4305 世坤 | D63: 塑膠工業 | E63: M1300 | F63: 454464 | G63: 406459 | H63: 11.81 | I63: 48005 | J63: 41 | K63: 25 | L63: 4 | M63: 22 | N63: 0 | O63: 0
A64: 塑膠工業20 | B64: 塑膠工業6 | C64: 4306 炎洲 | D64: 塑膠工業 | E64: M1300 | F64: 5033207 | G64: 6225250 | H64: -19.15 | I64: -1192043 | J64: 41 | K64: 25 | L64: 20 | M64: 6 | N64: 0 | O64: 0
A65: 塑膠工業18 | B65: 塑膠工業8 | C65: 9950 萬國通 | D65: 塑膠工業 | E65: M1300 | F65: 909896 | G65: 1093943 | H65: -16.82 | I65: -184047 | J65: 41 | K65: 25 | L65: 18 | M65: 8 | N65: 0 | O65: 0
A66: 紡織纖維31 | B66: 紡織纖維21 | C66: 1402 遠東新 | D66: 紡織纖維 | E66: M1400 | F66: 103435427 | G66: 110215556 | H66: -6.15 | I66: -6780129 | J66: 66 | K66: 51 | L66: 31 | M66: 21 | N66: 0 | O66: 0
A67: 紡織纖維35 | B67: 紡織纖維17 | C67: 1409 新纖 | D67: 紡織纖維 | E67: M1400 | F67: 17041036 | G67: 18644985 | H67: -8.6 | I67: -1603949 | J67: 66 | K67: 51 | L67: 35 | M67: 17 | N67: 0 | O67: 0
A68: =D68&L68 -> 紡織纖維30 | B68: =D68&M68 -> 紡織纖維22 | C68: 1410 南染 | D68: 紡織纖維 | E68: M1400 | F68: 86264 | G68: 90174 | H68: -4.34 | I68: =F68-G68 -> -3910 | J68: =IF(E68="","",MATCH(E68,E:E,0)) -> 66 | K68: =COUNTIF(D:D,D68) -> 51 | L68: =IF(H68="","",RANK(H68,OFFSET(H$1,$J68-1,,$K68,),0)) -> 30 | M68: =IF(H68="","",RANK(H68,OFFSET(H$1,$J68-1,,$K68,),1)) -> 22 | N68: 0 | O68: 0
A69: 紡織纖維18 | B69: 紡織纖維34 | C69: 1413 宏洲 | D69: 紡織纖維 | E69: M1400 | F69: 1039236 | G69: 967616 | H69: 7.4 | I69: 71620 | J69: 66 | K69: 51 | L69: 18 | M69: 34 | N69: 0 | O69: 0
A70: 紡織纖維34 | B70: 紡織纖維18 | C70: 1414 東和 | D70: 紡織纖維 | E70: M1400 | F70: 222153 | G70: 241999 | H70: -8.2 | I70: -19846 | J70: 66 | K70: 51 | L70: 34 | M70: 18 | N70: 0 | O70: 0
A71: 紡織纖維51 | B71: 紡織纖維1 | C71: 1417 嘉裕 | D71: 紡織纖維 | E71: M1400 | F71: 100509 | G71: 344513 | H71: -70.83 | I71: -244004 | J71: 66 | K71: 51 | L71: 51 | M71: 1 | N71: 0 | O71: 0
A72: 紡織纖維50 | B72: 紡織纖維2 | C72: 1418 東華 | D72: 紡織纖維 | E72: M1400 | F72: 3531 | G72: 5794 | H72: -39.06 | I72: -2263 | J72: 66 | K72: 51 | L72: 50 | M72: 2 | N72: 0 | O72: 0
A73: 紡織纖維13 | B73: 紡織纖維39 | C73: 1419 新紡 | D73: 紡織纖維 | E73: M1400 | F73: 1726547 | G73: 1517158 | H73: 13.8 | I73: 209389 | J73: 66 | K73: 51 | L73: 13 | M73: 39 | N73: 0 | O73: 0
A74: 紡織纖維47 | B74: 紡織纖維5 | C74: 1423 利華 | D74: 紡織纖維 | E74: M1400 | F74: 39885 | G74: 53617 | H74: -25.61 | I74: -13732 | J74: 66 | K74: 51 | L74: 47 | M74: 5 | N74: 0 | O74: 0
A75: 紡織纖維24 | B75: 紡織纖維28 | C75: 1434 福懋 | D75: 紡織纖維 | E75: M1400 | F75: 12776799 | G75: 12390998 | H75: 3.11 | I75: 385801 | J75: 66 | K75: 51 | L75: 24 | M75: 28 | N75: 0 | O75: 0
A76: 紡織纖維32 | B76: 紡織纖維20 | C76: 1440 南紡 | D76: 紡織纖維 | E76: M1400 | F76: 6710240 | G76: 7224926 | H76: -7.12 | I76: -514686 | J76: 66 | K76: 51 | L76: 32 | M76: 20 | N76: 0 | O76: 0
A77: 紡織纖維7 | B77: 紡織纖維45 | C77: 1441 大東 | D77: 紡織纖維 | E77: M1400 | F77: 627742 | G77: 489605 | H77: 28.21 | I77: 138137 | J77: 66 | K77: 51 | L77: 7 | M77: 45 | N77: 0 | O77: 0
A78: 紡織纖維39 | B78: 紡織纖維13 | C78: 1444 力麗 | D78: 紡織纖維 | E78: M1400 | F78: 3095255 | G78: 3479120 | H78: -11.03 | I78: -383865 | J78: 66 | K78: 51 | L78: 39 | M78: 13 | N78: 0 | O78: 0
A79: 紡織纖維44 | B79: 紡織纖維8 | C79: 1445 大宇 | D79: 紡織纖維 | E79: M1400 | F79: 332805 | G79: 435567 | H79: -23.59 | I79: -102762 | J79: 66 | K79: 51 | L79: 44 | M79: 8 | N79: 0 | O79: 0
A80: 紡織纖維49 | B80: 紡織纖維3 | C80: 1446 宏和 | D80: 紡織纖維 | E80: M1400 | F80: 757404 | G80: 1157209 | H80: -34.55 | I80: -399805 | J80: 66 | K80: 51 | L80: 49 | M80: 3 | N80: 0 | O80: 0
A81: 紡織纖維43 | B81: 紡織纖維9 | C81: 1447 力鵬 | D81: 紡織纖維 | E81: M1400 | F81: 12455777 | G81: 15852502 | H81: -21.43 | I81: -3396725 | J81: 66 | K81: 51 | L81: 43 | M81: 9 | N81: 0 | O81: 0
A82: 紡織纖維48 | B82: 紡織纖維4 | C82: 1449 佳和 | D82: 紡織纖維 | E82: M1400 | F82: 1006944 | G82: 1360513 | H82: -25.99 | I82: -353569 | J82: 66 | K82: 51 | L82: 48 | M82: 4 | N82: 0 | O82: 0
A83: 紡織纖維37 | B83: 紡織纖維15 | C83: 1451 年興 | D83: 紡織纖維 | E83: M1400 | F83: 2534253 | G83: 2815556 | H83: -9.99 | I83: -281303 | J83: 66 | K83: 51 | L83: 37 | M83: 15 | N83: 0 | O83: 0
A84: 紡織纖維33 | B84: 紡織纖維19 | C84: 1452 宏益 | D84: 紡織纖維 | E84: M1400 | F84: 587122 | G84: 633533 | H84: -7.33 | I84: -46411 | J84: 66 | K84: 51 | L84: 33 | M84: 19 | N84: 0 | O84: 0
A85: 紡織纖維27 | B85: 紡織纖維25 | C85: 1454 台富 | D85: 紡織纖維 | E85: M1400 | F85: 678728 | G85: 683747 | H85: -0.73 | I85: -5019 | J85: 66 | K85: 51 | L85: 27 | M85: 25 | N85: 0 | O85: 0
A86: 紡織纖維45 | B86: 紡織纖維7 | C86: 1455 集盛 | D86: 紡織纖維 | E86: M1400 | F86: 3045152 | G86: 4034519 | H86: -24.52 | I86: -989367 | J86: 66 | K86: 51 | L86: 45 | M86: 7 | N86: 0 | O86: 0
A87: 紡織纖維26 | B87: 紡織纖維26 | C87: 1457 宜進 | D87: 紡織纖維 | E87: M1400 | F87: 1425171 | G87: 1401624 | H87: 1.68 | I87: 23547 | J87: 66 | K87: 51 | L87: 26 | M87: 26 | N87: 0 | O87: 0
A88: 紡織纖維36 | B88: 紡織纖維16 | C88: 1459 聯發 | D88: 紡織纖維 | E88: M1400 | F88: 538329 | G88: 592201 | H88: -9.1 | I88: -53872 | J88: 66 | K88: 51 | L88: 36 | M88: 16 | N88: 0 | O88: 0
A89: 紡織纖維20 | B89: 紡織纖維32 | C89: 1460 宏遠 | D89: 紡織纖維 | E89: M1400 | F89: 3262946 | G89: 3097281 | H89: 5.35 | I89: 165665 | J89: 66 | K89: 51 | L89: 20 | M89: 32 | N89: 0 | O89: 0
A90: 紡織纖維1 | B90: 紡織纖維51 | C90: 1463 強盛新 | D90: 紡織纖維 | E90: M1400 | F90: 685467 | G90: 132758 | H90: 416.33 | I90: 552709 | J90: 66 | K90: 51 | L90: 1 | M90: 51 | N90: 0 | O90: 0
A91: 紡織纖維9 | B91: 紡織纖維43 | C91: 1464 得力 | D91: 紡織纖維 | E91: M1400 | F91: 5470713 | G91: 4494434 | H91: 21.72 | I91: 976279 | J91: 66 | K91: 51 | L91: 9 | M91: 43 | N91: 0 | O91: 0
A92: 紡織纖維46 | B92: 紡織纖維6 | C92: 1465 偉全 | D92: 紡織纖維 | E92: M1400 | F92: 147951 | G92: 196210 | H92: -24.6 | I92: -48259 | J92: 66 | K92: 51 | L92: 46 | M92: 6 | N92: 0 | O92: 0
A93: 紡織纖維23 | B93: 紡織纖維29 | C93: 1466 聚隆 | D93: 紡織纖維 | E93: M1400 | F93: 1097512 | G93: 1060339 | H93: 3.51 | I93: 37173 | J93: 66 | K93: 51 | L93: 23 | M93: 29 | N93: 0 | O93: 0
A94: 紡織纖維19 | B94: 紡織纖維33 | C94: 1467 南緯 | D94: 紡織纖維 | E94: M1400 | F94: 1987564 | G94: 1878956 | H94: 5.78 | I94: 108608 | J94: 66 | K94: 51 | L94: 19 | M94: 33 | N94: =U94 -> 0 | O94: =V94 -> 0
A95: 紡織纖維42 | B95: 紡織纖維10 | C95: 1468 昶和 | D95: 紡織纖維 | E95: M1400 | F95: 396185 | G95: 490049 | H95: -19.15 | I95: -93864 | J95: 66 | K95: 51 | L95: 42 | M95: 10 | N95: 0 | O95: 0
A96: 紡織纖維17 | B96: 紡織纖維35 | C96: 1470 大統新創 | D96: 紡織纖維 | E96: M1400 | F96: 345771 | G96: 320946 | H96: 7.73 | I96: 24825 | J96: 66 | K96: 51 | L96: 17 | M96: 35 | N96: 0 | O96: 0
A97: 紡織纖維25 | B97: 紡織纖維27 | C97: 1473 台南 | D97: 紡織纖維 | E97: M1400 | F97: 3372187 | G97: 3280598 | H97: 2.79 | I97: 91589 | J97: 66 | K97: 51 | L97: 25 | M97: 27 | N97: 0 | O97: 0
A98: 紡織纖維28 | B98: 紡織纖維24 | C98: 1474 弘裕 | D98: 紡織纖維 | E98: M1400 | F98: 1232594 | G98: 1260651 | H98: -2.23 | I98: -28057 | J98: 66 | K98: 51 | L98: 28 | M98: 24 | N98: 0 | O98: 0
A99: 紡織纖維41 | B99: 紡織纖維11 | C99: 1475 業旺 | D99: 紡織纖維 | E99: M1400 | F99: 640426 | G99: 763058 | H99: -16.07 | I99: -122632 | J99: 66 | K99: 51 | L99: 41 | M99: 11 | N99: 0 | O99: 0
A100: 紡織纖維11 | B100: 紡織纖維41 | C100: 1476 儒鴻 | D100: 紡織纖維 | E100: M1400 | F100: 15803841 | G100: 13826996 | H100: 14.3 | I100: 1976845 | J100: 66 | K100: 51 | L100: 11 | M100: 41 | N100: 0 | O100: 0
A101: 紡織纖維16 | B101: 紡織纖維36 | C101: 1477 聚陽 | D101: 紡織纖維 | E101: M1400 | F101: 14776725 | G101: 13554834 | H101: 9.01 | I101: 1221891 | J101: 66 | K101: 51 | L101: 16 | M101: 36 | N101: 0 | O101: 0
A102: 紡織纖維21 | B102: 紡織纖維31 | C102: 4401 東隆興 | D102: 紡織纖維 | E102: M1400 | F102: 1583334 | G102: 1507691 | H102: 5.02 | I102: 75643 | J102: 66 | K102: 51 | L102: 21 | M102: 31 | N102: 0 | O102: 0
A103: 紡織纖維29 | B103: 紡織纖維23 | C103: 4402 郡都開發 | D103: 紡織纖維 | E103: M1400 | F103: 11096 | G103: 11498 | H103: -3.5 | I103: -402 | J103: 66 | K103: 51 | L103: 29 | M103: 23 | N103: 0 | O103: 0
A104: 紡織纖維3 | B104: 紡織纖維49 | C104: 4406 新昕纖 | D104: 紡織纖維 | E104: M1400 | F104: 230414 | G104: 147163 | H104: 56.57 | I104: 83251 | J104: 66 | K104: 51 | L104: 3 | M104: 49 | N104: 0 | O104: 0
A105: 紡織纖維2 | B105: 紡織纖維50 | C105: 4413 飛寶企業 | D105: 紡織纖維 | E105: M1400 | F105: 269452 | G105: 150415 | H105: 79.14 | I105: 119037 | J105: 66 | K105: 51 | L105: 2 | M105: 50 | N105: 0 | O105: 0
A106: 紡織纖維14 | B106: 紡織纖維38 | C106: 4414 如興 | D106: 紡織纖維 | E106: M1400 | F106: 5590194 | G106: 5036384 | H106: 11 | I106: 553810 | J106: 66 | K106: 51 | L106: 14 | M106: 38 | N106: 0 | O106: 0
A107: 紡織纖維5 | B107: 紡織纖維47 | C107: 4417 金洲 | D107: 紡織纖維 | E107: M1400 | F107: 1418251 | G107: 1015263 | H107: 39.69 | I107: 402988 | J107: 66 | K107: 51 | L107: 5 | M107: 47 | N107: 0 | O107: 0
A108: 紡織纖維4 | B108: 紡織纖維48 | C108: 4420 光明 | D108: 紡織纖維 | E108: M1400 | F108: 427220 | G108: 293430 | H108: 45.6 | I108: 133790 | J108: 66 | K108: 51 | L108: 4 | M108: 48 | N108: 0 | O108: 0
A109: 紡織纖維40 | B109: 紡織纖維12 | C109: 4426 利勤 | D109: 紡織纖維 | E109: M1400 | F109: 372100 | G109: 426646 | H109: -12.78 | I109: -54546 | J109: 66 | K109: 51 | L109: 40 | M109: 12 | N109: 0 | O109: 0
A110: 紡織纖維15 | B110: 紡織纖維37 | C110: 4432 銘旺實 | D110: 紡織纖維 | E110: M1400 | F110: 408644 | G110: 369339 | H110: 10.64 | I110: 39305 | J110: 66 | K110: 51 | L110: 15 | M110: 37 | N110: 0 | O110: 0
A111: 紡織纖維12 | B111: 紡織纖維40 | C111: 4433 興采 | D111: 紡織纖維 | E111: M1400 | F111: 1253464 | G111: 1096950 | H111: 14.27 | I111: 156514 | J111: 66 | K111: 51 | L111: 12 | M111: 40 | N111: 0 | O111: 0
A112: 紡織纖維10 | B112: 紡織纖維42 | C112: 4438 廣越 | D112: 紡織纖維 | E112: M1400 | F112: 5662370 | G112: 4680222 | H112: 20.99 | I112: 982148 | J112: 66 | K112: 51 | L112: 10 | M112: 42 | N112: 0 | O112: 0
A113: 紡織纖維8 | B113: 紡織纖維44 | C113: 4439 冠星-KY | D113: 紡織纖維 | E113: M1400 | F113: 3033151 | G113: 2461984 | H113: 23.2 | I113: 571167 | J113: 66 | K113: 51 | L113: 8 | M113: 44 | N113: 0 | O113: 0
A114: 紡織纖維38 | B114: 紡織纖維14 | C114: 4440 宜新實業 | D114: 紡織纖維 | E114: M1400 | F114: 388124 | G114: 431419 | H114: -10.04 | I114: -43295 | J114: 66 | K114: 51 | L114: 38 | M114: 14 | N114: 0 | O114: 0
A115: 紡織纖維6 | B115: 紡織纖維46 | C115: 4442 竣邦-KY | D115: 紡織纖維 | E115: M1400 | F115: 738730 | G115: 547787 | H115: 34.86 | I115: 190943 | J115: 66 | K115: 51 | L115: 6 | M115: 46 | N115: 0 | O115: 0
A116: 紡織纖維22 | B116: 紡織纖維30 | C116: 6506 雙邦 | D116: 紡織纖維 | E116: M1400 | F116: 877567 | G116: 845912 | H116: 3.74 | I116: 31655 | J116: 66 | K116: 51 | L116: 22 | M116: 30 | N116: 0 | O116: 0
A117: 電機機械57 | B117: 電機機械41 | C117: 1503 士電 | D117: 電機機械 | E117: M1500 | F117: 15677907 | G117: 15315889 | H117: 2.36 | I117: 362018 | J117: 117 | K117: 97 | L117: 57 | M117: 41 | N117: 0 | O117: 0
A118: 電機機械58 | B118: 電機機械40 | C118: 1504 東元 | D118: 電機機械 | E118: M1500 | F118: 23799149 | G118: 23380806 | H118: 1.79 | I118: 418343 | J118: 117 | K118: 97 | L118: 58 | M118: 40 | N118: 0 | O118: 0
A119: 電機機械50 | B119: 電機機械48 | C119: 1506 正道 | D119: 電機機械 | E119: M1500 | F119: 448951 | G119: 422984 | H119: 6.14 | I119: 25967 | J119: 117 | K119: 97 | L119: 50 | M119: 48 | N119: 0 | O119: 0
A120: 電機機械46 | B120: 電機機械52 | C120: 1513 中興電 | D120: 電機機械 | E120: M1500 | F120: 10936069 | G120: 10110093 | H120: 8.17 | I120: 825976 | J120: 117 | K120: 97 | L120: 46 | M120: 52 | N120: 0 | O120: 0
A121: 電機機械35 | B121: 電機機械63 | C121: 1514 亞力 | D121: 電機機械 | E121: M1500 | F121: 3789569 | G121: 3386560 | H121: 11.9 | I121: 403009 | J121: 117 | K121: 97 | L121: 35 | M121: 63 | N121: 0 | O121: 0
A122: 電機機械94 | B122: 電機機械4 | C122: 1515 力山 | D122: 電機機械 | E122: M1500 | F122: 1808093 | G122: 3161928 | H122: -42.82 | I122: -1353835 | J122: 117 | K122: 97 | L122: 94 | M122: 4 | N122: 0 | O122: 0
A123: 電機機械15 | B123: 電機機械83 | C123: 1517 利奇 | D123: 電機機械 | E123: M1500 | F123: 898957 | G123: 708528 | H123: 26.88 | I123: 190429 | J123: 117 | K123: 97 | L123: 15 | M123: 83 | N123: 0 | O123: 0
A124: 電機機械7 | B124: 電機機械91 | C124: 1519 華城 | D124: 電機機械 | E124: M1500 | F124: 8164160 | G124: 5756925 | H124: 41.81 | I124: 2407235 | J124: 117 | K124: 97 | L124: 7 | M124: 91 | N124: 0 | O124: 0
A125: 電機機械53 | B125: 電機機械45 | C125: 1526 日馳 | D125: 電機機械 | E125: M1500 | F125: 328542 | G125: 312045 | H125: 5.29 | I125: 16497 | J125: 117 | K125: 97 | L125: 53 | M125: 45 | N125: 0 | O125: 0
A126: 電機機械63 | B126: 電機機械35 | C126: 1527 鑽全 | D126: 電機機械 | E126: M1500 | F126: 1297516 | G126: 1296957 | H126: 0.04 | I126: 559 | J126: 117 | K126: 97 | L126: 63 | M126: 35 | N126: 0 | O126: 0
A127: 電機機械87 | B127: 電機機械11 | C127: 1528 恩德 | D127: 電機機械 | E127: M1500 | F127: 1099341 | G127: 1438911 | H127: -23.6 | I127: -339570 | J127: 117 | K127: 97 | L127: 87 | M127: 11 | N127: 0 | O127: 0
A128: 電機機械4 | B128: 電機機械94 | C128: 1529 樂事綠能 | D128: 電機機械 | E128: M1500 | F128: 439817 | G128: 248923 | H128: 76.69 | I128: 190894 | J128: 117 | K128: 97 | L128: 4 | M128: 94 | N128: 0 | O128: 0
A129: 電機機械13 | B129: 電機機械85 | C129: 1530 亞崴 | D129: 電機機械 | E129: M1500 | F129: 830667 | G129: 652305 | H129: 27.34 | I129: 178362 | J129: 117 | K129: 97 | L129: 13 | M129: 85 | N129: 0 | O129: 0
A130: 電機機械45 | B130: 電機機械53 | C130: 1531 高林股 | D130: 電機機械 | E130: M1500 | F130: 678042 | G130: 626787 | H130: 8.18 | I130: 51255 | J130: 117 | K130: 97 | L130: 45 | M130: 53 | N130: 0 | O130: 0
A131: 電機機械95 | B131: 電機機械3 | C131: 1532 勤美 | D131: 電機機械 | E131: M1500 | F131: 4997872 | G131: 9534263 | H131: -47.58 | I131: -4536391 | J131: 117 | K131: 97 | L131: 95 | M131: 3 | N131: 0 | O131: 0
A132: =D132&L132 -> 電機機械62 | B132: =D132&M132 -> 電機機械36 | C132: 1535 中宇 | D132: 電機機械 | E132: M1500 | F132: 4356761 | G132: 4335679 | H132: 0.49 | I132: =F132-G132 -> 21082 | J132: =IF(E132="","",MATCH(E132,E:E,0)) -> 117 | K132: =COUNTIF(D:D,D132) -> 97 | L132: =IF(H132="","",RANK(H132,OFFSET(H$1,$J132-1,,$K132,),0)) -> 62 | M132: =IF(H132="","",RANK(H132,OFFSET(H$1,$J132-1,,$K132,),1)) -> 36 | N132: 0 | O132: 0
A133: 電機機械73 | B133: 電機機械25 | C133: 1537 廣隆 | D133: 電機機械 | E133: M1500 | F133: 2913165 | G133: 3139915 | H133: -7.22 | I133: -226750 | J133: 117 | K133: 97 | L133: 73 | M133: 25 | N133: 0 | O133: 0
A134: 電機機械10 | B134: 電機機械88 | C134: 1538 正峰 | D134: 電機機械 | E134: M1500 | F134: 49337 | G134: 36340 | H134: 35.76 | I134: 12997 | J134: 117 | K134: 97 | L134: 10 | M134: 88 | N134: 0 | O134: 0
A135: 電機機械64 | B135: 電機機械34 | C135: 1539 巨庭 | D135: 電機機械 | E135: M1500 | F135: 607014 | G135: 609982 | H135: -0.49 | I135: -2968 | J135: 117 | K135: 97 | L135: 64 | M135: 34 | N135: 0 | O135: 0
A136: 電機機械61 | B136: 電機機械37 | C136: 1540 喬福 | D136: 電機機械 | E136: M1500 | F136: 227546 | G136: 226176 | H136: 0.61 | I136: 1370 | J136: 117 | K136: 97 | L136: 61 | M136: 37 | N136: 0 | O136: 0
A137: 電機機械19 | B137: 電機機械79 | C137: 1541 錩泰 | D137: 電機機械 | E137: M1500 | F137: 1592745 | G137: 1303712 | H137: 22.17 | I137: 289033 | J137: 117 | K137: 97 | L137: 19 | M137: 79 | N137: 0 | O137: 0
A138: 電機機械33 | B138: 電機機械65 | C138: 1558 伸興 | D138: 電機機械 | E138: M1500 | F138: 3501413 | G138: 3121729 | H138: 12.16 | I138: 379684 | J138: 117 | K138: 97 | L138: 33 | M138: 65 | N138: 0 | O138: 0
A139: 電機機械24 | B139: 電機機械74 | C139: 1560 中砂 | D139: 電機機械 | E139: M1500 | F139: 3174566 | G139: 2751941 | H139: 15.36 | I139: 422625 | J139: 117 | K139: 97 | L139: 24 | M139: 74 | N139: 0 | O139: 0
A140: 電機機械84 | B140: 電機機械14 | C140: 1570 力肯 | D140: 電機機械 | E140: M1500 | F140: 226064 | G140: 278191 | H140: -18.74 | I140: -52127 | J140: 117 | K140: 97 | L140: 84 | M140: 14 | N140: 0 | O140: 0
A141: 電機機械42 | B141: 電機機械56 | C141: 1580 新麥 | D141: 電機機械 | E141: M1500 | F141: 1956887 | G141: 1776899 | H141: 10.13 | I141: 179988 | J141: 117 | K141: 97 | L141: 42 | M141: 56 | N141: 0 | O141: 0
A142: 電機機械83 | B142: 電機機械15 | C142: 1583 程泰 | D142: 電機機械 | E142: M1500 | F142: 1448711 | G142: 1713392 | H142: -15.45 | I142: -264681 | J142: 117 | K142: 97 | L142: 83 | M142: 15 | N142: 0 | O142: 0
A143: 電機機械77 | B143: 電機機械21 | C143: 1586 和勤 | D143: 電機機械 | E143: M1500 | F143: 927564 | G143: 1055342 | H143: -12.11 | I143: -127778 | J143: 117 | K143: 97 | L143: 77 | M143: 21 | N143: 0 | O143: 0
A144: 電機機械25 | B144: 電機機械73 | C144: 1589 永冠-KY | D144: 電機機械 | E144: M1500 | F144: 2989187 | G144: 2591982 | H144: 15.32 | I144: 397205 | J144: 117 | K144: 97 | L144: 25 | M144: 73 | N144: 0 | O144: 0
A145: 電機機械43 | B145: 電機機械55 | C145: 1590 亞德客-KY | D145: 電機機械 | E145: M1500 | F145: 14348303 | G145: 13117777 | H145: 9.38 | I145: 1230526 | J145: 117 | K145: 97 | L145: 43 | M145: 55 | N145: 0 | O145: 0
A146: 電機機械97 | B146: 電機機械1 | C146: 1591 駿吉-KY | D146: 電機機械 | E146: M1500 | F146: 32740 | G146: 85223 | H146: -61.58 | I146: -52483 | J146: 117 | K146: 97 | L146: 97 | M146: 1 | N146: 0 | O146: 0
A147: 電機機械54 | B147: 電機機械44 | C147: 1597 直得 | D147: 電機機械 | E147: M1500 | F147: 434239 | G147: 413340 | H147: 5.06 | I147: 20899 | J147: 117 | K147: 97 | L147: 54 | M147: 44 | N147: 0 | O147: 0
A148: 電機機械21 | B148: 電機機械77 | C148: 1599 宏佳騰 | D148: 電機機械 | E148: M1500 | F148: 885184 | G148: 743267 | H148: 19.09 | I148: 141917 | J148: 117 | K148: 97 | L148: 21 | M148: 77 | N148: 0 | O148: 0
A149: 電機機械56 | B149: 電機機械42 | C149: 2049 上銀 | D149: 電機機械 | E149: M1500 | F149: 9823861 | G149: 9587020 | H149: 2.47 | I149: 236841 | J149: 117 | K149: 97 | L149: 56 | M149: 42 | N149: 0 | O149: 0
A150: 電機機械68 | B150: 電機機械30 | C150: 2066 世德 | D150: 電機機械 | E150: M1500 | F150: 1154562 | G150: 1215046 | H150: -4.98 | I150: -60484 | J150: 117 | K150: 97 | L150: 68 | M150: 30 | N150: 0 | O150: 0
A151: 電機機械52 | B151: 電機機械46 | C151: 2067 嘉鋼 | D151: 電機機械 | E151: M1500 | F151: 432034 | G151: 409052 | H151: 5.62 | I151: 22982 | J151: 117 | K151: 97 | L151: 52 | M151: 46 | N151: 0 | O151: 0
A152: 電機機械72 | B152: 電機機械26 | C152: 2070 精湛 | D152: 電機機械 | E152: M1500 | F152: 246225 | G152: 262466 | H152: -6.19 | I152: -16241 | J152: 117 | K152: 97 | L152: 72 | M152: 26 | N152: 0 | O152: 0
A153: 電機機械12 | B153: 電機機械86 | C153: 2230 泰茂 | D153: 電機機械 | E153: M1500 | F153: 632463 | G153: 489351 | H153: 29.25 | I153: 143112 | J153: 117 | K153: 97 | L153: 12 | M153: 86 | N153: 0 | O153: 0
A154: 電機機械48 | B154: 電機機械50 | C154: 2235 謚源 | D154: 電機機械 | E154: M1500 | F154: 229355 | G154: 214961 | H154: 6.7 | I154: 14394 | J154: 117 | K154: 97 | L154: 48 | M154: 50 | N154: 0 | O154: 0
A155: 電機機械59 | B155: 電機機械39 | C155: 2371 大同 | D155: 電機機械 | E155: M1500 | F155: 19014358 | G155: 18726080 | H155: 1.54 | I155: 288278 | J155: 117 | K155: 97 | L155: 59 | M155: 39 | N155: 0 | O155: 0
A156: 電機機械1 | B156: 電機機械97 | C156: 3162 精確 | D156: 電機機械 | E156: M1500 | F156: 3167526 | G156: 1285600 | H156: 146.39 | I156: 1881926 | J156: 117 | K156: 97 | L156: 1 | M156: 97 | N156: 0 | O156: 0
A157: 電機機械3 | B157: 電機機械95 | C157: 3167 大量 | D157: 電機機械 | E157: M1500 | F157: 1679926 | G157: 715297 | H157: 134.86 | I157: 964629 | J157: 117 | K157: 97 | L157: 3 | M157: 95 | N157: 0 | O157: 0
A158: 電機機械78 | B158: 電機機械20 | C158: 3226 龍鋒 | D158: 電機機械 | E158: M1500 | F158: 859393 | G158: 978894 | H158: -12.21 | I158: -119501 | J158: 117 | K158: 97 | L158: 78 | M158: 20 | N158: =U158 -> 0 | O158: =V158 -> 0
A159: 電機機械2 | B159: 電機機械96 | C159: 3379 彬台 | D159: 電機機械 | E159: M1500 | F159: 454540 | G159: 190922 | H159: 138.08 | I159: 263618 | J159: 117 | K159: 97 | L159: 2 | M159: 96 | N159: 0 | O159: 0
A160: 電機機械44 | B160: 電機機械54 | C160: 3426 台興 | D160: 電機機械 | E160: M1500 | F160: 323239 | G160: 298458 | H160: 8.3 | I160: 24781 | J160: 117 | K160: 97 | L160: 44 | M160: 54 | N160: 0 | O160: 0
A161: 電機機械76 | B161: 電機機械22 | C161: 3685 元創精密 | D161: 電機機械 | E161: M1500 | F161: 414854 | G161: 465095 | H161: -10.8 | I161: -50241 | J161: 117 | K161: 97 | L161: 76 | M161: 22 | N161: 0 | O161: 0
A162: 電機機械92 | B162: 電機機械6 | C162: 4502 健信 | D162: 電機機械 | E162: M1500 | F162: 375484 | G162: 596106 | H162: -37.01 | I162: -220622 | J162: 117 | K162: 97 | L162: 92 | M162: 6 | N162: 0 | O162: 0
A163: 電機機械5 | B163: 電機機械93 | C163: 4503 金雨 | D163: 電機機械 | E163: M1500 | F163: 230515 | G163: 131818 | H163: 74.87 | I163: 98697 | J163: 117 | K163: 97 | L163: 5 | M163: 93 | N163: 0 | O163: 0
A164: 電機機械16 | B164: 電機機械82 | C164: 4506 崇友 | D164: 電機機械 | E164: M1500 | F164: 2644001 | G164: 2089172 | H164: 26.56 | I164: 554829 | J164: 117 | K164: 97 | L164: 16 | M164: 82 | N164: 0 | O164: 0
A165: 電機機械81 | B165: 電機機械17 | C165: 4510 高鋒 | D165: 電機機械 | E165: M1500 | F165: 564346 | G165: 658929 | H165: -14.35 | I165: -94583 | J165: 117 | K165: 97 | L165: 81 | M165: 17 | N165: 0 | O165: 0
A166: 電機機械89 | B166: 電機機械9 | C166: 4513 福裕 | D166: 電機機械 | E166: M1500 | F166: 405789 | G166: 542746 | H166: -25.23 | I166: -136957 | J166: 117 | K166: 97 | L166: 89 | M166: 9 | N166: 0 | O166: 0
A167: 電機機械14 | B167: 電機機械84 | C167: 4523 永彰 | D167: 電機機械 | E167: M1500 | F167: 285236 | G167: 224262 | H167: 27.19 | I167: 60974 | J167: 117 | K167: 97 | L167: 14 | M167: 84 | N167: 0 | O167: 0
A168: 電機機械49 | B168: 電機機械49 | C168: 4526 東台 | D168: 電機機械 | E168: M1500 | F168: 2428521 | G168: 2287490 | H168: 6.17 | I168: 141031 | J168: 117 | K168: 97 | L168: 49 | M168: 49 | N168: 0 | O168: 0
A169: 電機機械88 | B169: 電機機械10 | C169: 4527 方方土霖 | D169: 電機機械 | E169: M1500 | F169: 995167 | G169: 1323578 | H169: -24.81 | I169: -328411 | J169: 117 | K169: 97 | L169: 88 | M169: 10 | N169: 0 | O169: 0
A170: 電機機械80 | B170: 電機機械18 | C170: 4528 江興鍛 | D170: 電機機械 | E170: M1500 | F170: 635854 | G170: 728714 | H170: -12.74 | I170: -92860 | J170: 117 | K170: 97 | L170: 80 | M170: 18 | N170: 0 | O170: 0
A171: 電機機械22 | B171: 電機機械76 | C171: 4532 瑞智 | D171: 電機機械 | E171: M1500 | F171: 10600891 | G171: 8995158 | H171: 17.85 | I171: 1605733 | J171: 117 | K171: 97 | L171: 22 | M171: 76 | N171: 0 | O171: 0
A172: 電機機械17 | B172: 電機機械81 | C172: 4533 協易機 | D172: 電機機械 | E172: M1500 | F172: 1713987 | G172: 1367441 | H172: 25.34 | I172: 346546 | J172: 117 | K172: 97 | L172: 17 | M172: 81 | N172: 0 | O172: 0
A173: 電機機械69 | B173: 電機機械29 | C173: 4534 慶騰 | D173: 電機機械 | E173: M1500 | F173: 325584 | G173: 342676 | H173: -4.99 | I173: -17092 | J173: 117 | K173: 97 | L173: 69 | M173: 29 | N173: 0 | O173: 0
A174: 電機機械74 | B174: 電機機械24 | C174: 4535 至興 | D174: 電機機械 | E174: M1500 | F174: 1086297 | G174: 1173906 | H174: -7.46 | I174: -87609 | J174: 117 | K174: 97 | L174: 74 | M174: 24 | N174: 0 | O174: 0
A175: 電機機械31 | B175: 電機機械66 | C175: 4538 大詠城 | D175: 電機機械 | E175: M1500 | F175: 133962 | G175: 118600 | H175: 12.95 | I175: 15362 | J175: 117 | K175: 97 | L175: 31 | M175: 66 | N175: 0 | O175: 0
A176: 電機機械75 | B176: 電機機械23 | C176: 4540 全球傳動 | D176: 電機機械 | E176: M1500 | F176: 859981 | G176: 958296 | H176: -10.26 | I176: -98315 | J176: 117 | K176: 97 | L176: 75 | M176: 23 | N176: 0 | O176: 0
A177: 電機機械79 | B177: 電機機械19 | C177: 4543 萬在 | D177: 電機機械 | E177: M1500 | F177: 322769 | G177: 368334 | H177: -12.37 | I177: -45565 | J177: 117 | K177: 97 | L177: 79 | M177: 19 | N177: 0 | O177: 0
A178: 電機機械65 | B178: 電機機械33 | C178: 4549 桓達 | D178: 電機機械 | E178: M1500 | F178: 521835 | G178: 534423 | H178: -2.36 | I178: -12588 | J178: 117 | K178: 97 | L178: 65 | M178: 33 | N178: 0 | O178: 0
A179: 電機機械96 | B179: 電機機械2 | C179: 4550 長佳 | D179: 電機機械 | E179: M1500 | F179: 303586 | G179: 639809 | H179: -52.55 | I179: -336223 | J179: 117 | K179: 97 | L179: 96 | M179: 2 | N179: 0 | O179: 0
A180: 電機機械55 | B180: 電機機械43 | C180: 4552 力達-KY | D180: 電機機械 | E180: M1500 | F180: 1438726 | G180: 1380262 | H180: 4.24 | I180: 58464 | J180: 117 | K180: 97 | L180: 55 | M180: 43 | N180: 0 | O180: 0
A181: 電機機械39 | B181: 電機機械59 | C181: 4555 氣立 | D181: 電機機械 | E181: M1500 | F181: 661798 | G181: 595234 | H181: 11.18 | I181: 66564 | J181: 117 | K181: 97 | L181: 39 | M181: 59 | N181: 0 | O181: 0
A182: 電機機械30 | B182: 電機機械68 | C182: 4558 寶緯 | D182: 電機機械 | E182: M1500 | F182: 658442 | G182: 578870 | H182: 13.75 | I182: 79572 | J182: 117 | K182: 97 | L182: 30 | M182: 68 | N182: 0 | O182: 0
A183: 電機機械20 | B183: 電機機械78 | C183: 4560 強信-KY | D183: 電機機械 | E183: M1500 | F183: 728561 | G183: 604800 | H183: 20.46 | I183: 123761 | J183: 117 | K183: 97 | L183: 20 | M183: 78 | N183: 0 | O183: 0
A184: 電機機械90 | B184: 電機機械8 | C184: 4561 健椿 | D184: 電機機械 | E184: M1500 | F184: 401572 | G184: 561990 | H184: -28.54 | I184: -160418 | J184: 117 | K184: 97 | L184: 90 | M184: 8 | N184: 0 | O184: 0
A185: 電機機械36 | B185: 電機機械62 | C185: 4562 穎漢 | D185: 電機機械 | E185: M1500 | F185: 322470 | G185: 288252 | H185: 11.87 | I185: 34218 | J185: 117 | K185: 97 | L185: 36 | M185: 62 | N185: 0 | O185: 0
A186: 電機機械37 | B186: 電機機械61 | C186: 4563 百德 | D186: 電機機械 | E186: M1500 | F186: 1328615 | G186: 1190633 | H186: 11.59 | I186: 137982 | J186: 117 | K186: 97 | L186: 37 | M186: 61 | N186: 0 | O186: 0
A187: 電機機械8 | B187: 電機機械90 | C187: 4564 元翎 | D187: 電機機械 | E187: M1500 | F187: 519198 | G187: 371765 | H187: 39.66 | I187: 147433 | J187: 117 | K187: 97 | L187: 8 | M187: 90 | N187: 0 | O187: 0
A188: 電機機械34 | B188: 電機機械64 | C188: 4566 時碩工業 | D188: 電機機械 | E188: M1500 | F188: 2123517 | G188: 1894427 | H188: 12.09 | I188: 229090 | J188: 117 | K188: 97 | L188: 34 | M188: 64 | N188: 0 | O188: 0
A189: 電機機械40 | B189: 電機機械58 | C189: 4568 科際精密 | D189: 電機機械 | E189: M1500 | F189: 497292 | G189: 449855 | H189: 10.54 | I189: 47437 | J189: 117 | K189: 97 | L189: 40 | M189: 58 | N189: 0 | O189: 0
A190: 電機機械60 | B190: 電機機械38 | C190: 4571 鈞興-KY | D190: 電機機械 | E190: M1500 | F190: 1308833 | G190: 1292932 | H190: 1.23 | I190: 15901 | J190: 117 | K190: 97 | L190: 60 | M190: 38 | N190: 0 | O190: 0
A191: 電機機械86 | B191: 電機機械12 | C191: 4572 駐龍 | D191: 電機機械 | E191: M1500 | F191: 292588 | G191: 370518 | H191: -21.03 | I191: -77930 | J191: 117 | K191: 97 | L191: 86 | M191: 12 | N191: 0 | O191: 0
A192: 電機機械18 | B192: 電機機械80 | C192: 4576 大銀微系統 | D192: 電機機械 | E192: M1500 | F192: 1058185 | G192: 844671 | H192: 25.28 | I192: 213514 | J192: 117 | K192: 97 | L192: 18 | M192: 80 | N192: 0 | O192: 0
A193: 電機機械71 | B193: 電機機械27 | C193: 4580 捷流閥業 | D193: 電機機械 | E193: M1500 | F193: 910497 | G193: 962766 | H193: -5.43 | I193: -52269 | J193: 117 | K193: 97 | L193: 71 | M193: 27 | N193: 0 | O193: 0
A194: 電機機械47 | B194: 電機機械51 | C194: 4583 台灣精銳 | D194: 電機機械 | E194: M1500 | F194: 1332703 | G194: 1234109 | H194: 7.99 | I194: 98594 | J194: 117 | K194: 97 | L194: 47 | M194: 51 | N194: 0 | O194: 0
A195: 電機機械29 | B195: 電機機械69 | C195: 4584 君帆 | D195: 電機機械 | E195: M1500 | F195: 578897 | G195: 506102 | H195: 14.38 | I195: 72795 | J195: 117 | K195: 97 | L195: 29 | M195: 69 | N195: 0 | O195: 0
A196: =D196&L196 -> 電機機械66 | B196: =D196&M196 -> 電機機械32 | C196: 5288 豐祥-KY | D196: 電機機械 | E196: M1500 | F196: 2967566 | G196: 3067685 | H196: -3.26 | I196: =F196-G196 -> -100119 | J196: =IF(E196="","",MATCH(E196,E:E,0)) -> 117 | K196: =COUNTIF(D:D,D196) -> 97 | L196: =IF(H196="","",RANK(H196,OFFSET(H$1,$J196-1,,$K196,),0)) -> 66 | M196: =IF(H196="","",RANK(H196,OFFSET(H$1,$J196-1,,$K196,),1)) -> 32 | N196: 0 | O196: 0
A197: 電機機械70 | B197: 電機機械28 | C197: 6122 擎邦 | D197: 電機機械 | E197: M1500 | F197: 1573822 | G197: 1661390 | H197: -5.27 | I197: -87568 | J197: 117 | K197: 97 | L197: 70 | M197: 28 | N197: 0 | O197: 0
A198: 電機機械93 | B198: 電機機械5 | C198: 6425 易發 | D198: 電機機械 | E198: M1500 | F198: 506605 | G198: 807159 | H198: -37.24 | I198: -300554 | J198: 117 | K198: 97 | L198: 93 | M198: 5 | N198: 0 | O198: 0
A199: 電機機械31 | B199: 電機機械66 | C199: 6603 富強鑫 | D199: 電機機械 | E199: M1500 | F199: 1948967 | G199: 1725566 | H199: 12.95 | I199: 223401 | J199: 117 | K199: 97 | L199: 31 | M199: 66 | N199: 0 | O199: 0
A200: 電機機械51 | B200: 電機機械47 | C200: 6606 建德工業 | D200: 電機機械 | E200: M1500 | F200: 324530 | G200: 306659 | H200: 5.83 | I200: 17871 | J200: 117 | K200: 97 | L200: 51 | M200: 47 | N200: 0 | O200: 0
... 2800 more rows
